Workbook

Sheet Instructions
A1: Instructions
A3: Purpose
A4: This rating model is prepared to determine the rates sought by each rating category/TA to cover funding requirements for the forthcoming year.
A6: Conventions
A7: All yellow cells are input cells.
A8: The majority of tabs in this spreadhseet have been protected to ensure that values aren't inadvertantly changed.
A9: Should a user need to amend the content of a tab the password required is "gwrcrates".
A11: Process
A12: To run the rates model the following actions should be completed
B13: 1) | C13: On each of the tabs shaded green in the structure diagram below delete all values in the shaded yellow cell
B14: 2) | C14: Delete the entire contents of the "TA Split" tab.
B15: 3) | C15: In the control tab;
C16: a) | D16: In cell B5 enter the current rating year in the YYYY/YY date format
C17: b) | D17: Adjust the WRS rating basis if required by the rates funding policy
C18: c) | D18: Obtain "Flood protection" and "Pest rate" information from the Landcare & Wairarapa Accountant and enter in the relevant cells
C19: d) | D19: Obtian Water levy split from the water supply accountant and enter in the relevant cells
B20: 4) | C20: Obtain Capital Values (CVs) & corresponding assessments from each Territorial Authority (TA) and Equalised Capital Values (ECVs) & corresponding assessments from Quotable Value and enter into the relevant yellow cells on the "UHCC Adjustments" and "Capital values" tab
B21: 5) | C21: Select the cells to be updated in the ESSBase tab and retrieve the information from the ESSbase system
B22: 6) | C22: Email the ESSBase extract to the respective management accountants and obtain confirmation that these rates values are correct before proceeding further.
B23: 7) | C23: Populate the "Class rates" tab with data provided by the Landcare & Wairarapa Accountant
B24: 8) | C24: Populate the "TA Split" tab with data provided by the relevant accountant responsible for catchment management
B25: 9) | C25: Use the rating model from the previous year to populate the yellow cells using the PASTE SPECIAL>>VALUES comand in the "Comparison - TA" and "Comparison - Category" tabs.
B26: 10) | C26: On the "Check" tab if cell B7 says "Error" then a rounding/check total error occurs within the model and the error should be investigated and reconciled where possible. Explanations of the difference can be entered in the "Check" tab for future reference. If cell B7 reads "OK" then no rounding/check total errors have been found in the data that has been entered.
B27: 11) | C27: Once all checks have been completed the individual that has completed steps 1 through 9 above should forward the model to their manager for reivew and approval.
B28: 12) | C28: Once approval of the results is obtained the values can be used for distribution as required.
A30: Strucutre diagram
A31: The flow diagram below sets out the structure of this excel spreadsheet.

Sheet >>Input tabs

Sheet Control
A1: Control
A2: =check_total -> 8066.052688
A4: Years
A5: Current rating year | B5: 2018/19
A6: Previous rating year | B6: =VALUE(LEFT(year_current,4))-1&"/"&VALUE(RIGHT(year_current,2))-1 -> 2017/18
A9: GST
A10: GST % | B10: 0.15
A12: Error tolerance
A13: $ error tolerance | B13: 2
A15: TA's
A16: TA full name | B16: TA short name
A17: Wellington City | B17: Wellington
A18: Hutt City | B18: Hutt
A19: Upper Hutt City | B19: Upper Hutt
A20: Porirua City | B20: Porirua
A21: Kapiti Coast District | B21: Kapiti
A22: Masterton District | B22: Masterton
A23: Carterton District | B23: Carterton
A24: South Wairarapa District | B24: South Wairarapa
A25: Tararua District | B25: Tararua
A28: TA's
A29: TA full name | B29: Category group | C29: Concatenated row | D29: TA naming convention
A30: Wellington City | B30: District wide | C30: =A30&B30 -> Wellington CityDistrict wide | D30: Wellington City
A31: Hutt City | B31: District wide | C31: Hutt CityDistrict wide | D31: Hutt City
A32: Upper Hutt City | B32: District wide | C32: Upper Hutt CityDistrict wide | D32: Upper Hutt City
A33: Porirua City | B33: District wide | C33: Porirua CityDistrict wide | D33: Porirua City
A34: Kapiti Coast District | B34: District wide | C34: Kapiti Coast DistrictDistrict wide | D34: Kapiti Coast District
A35: Masterton District | B35: District wide | C35: Masterton DistrictDistrict wide | D35: Masterton District
A36: Carterton District | B36: District wide | C36: Carterton DistrictDistrict wide | D36: Carterton District
A37: South Wairarapa District | B37: District wide | C37: South Wairarapa DistrictDistrict wide | D37: South Wairarapa District
A38: Tararua District | B38: District wide | C38: Tararua DistrictDistrict wide | D38: Tararua District
A39: Region wide | C39: Region wide
A41: TA & Category | G41: PT differentials to use for rating model transition | L41: Calculation of differentials using the 2017/18 Transport rate
A42: TA full name | B42: Category group | C42: Concatenated name | D42: TA naming convention | E42: PT differential | G42: 2017/18 | H42: 2018/19 | I42: 2019/20 | J42: 2020/21 onwards | L42: Rate levied | M42: ECV | N42: Cents/ECV$
A43: Wellington City | B43: Regional CBD | C43: =A43&B43 -> Wellington CityRegional CBD | D43: CBD Business | E43: =IF(VALUE(LEFT(year_current,4))>2019,J43,INDEX($G43:$I43,,MATCH(year_current,$G$42:$I$42,0))) -> 7.162136754 | G43: =N43/N$71 -> 6.743205131 | H43: =($J43-$G43)/3+G43 -> 7.162136754 | I43: =($J43-$G43)/3+H43 -> 7.581068377 | J43: 8 | L43: 25019166.08 | M43: 9699270191 | N43: =(L43*100)/M43 -> 0.2579489548
A44: Wellington City | B44: Business | C44: Wellington CityBusiness | D44: Business | E44: =IF(VALUE(LEFT(year_current,4))>2019,J44,INDEX($G44:$I44,,MATCH(year_current,$G$42:$I$42,0))) -> 0.9406814812 | G44: 0.6610222218 | H44: =($J44-$G44)/3+G44 -> 0.9406814812 | I44: 1.220340741 | J44: 1.5 | L44: 1192769.666 | M44: 4717078733 | N44: 0.02528619372
A45: Wellington City | B45: Residential | C45: Wellington CityResidential | D45: Residential | E45: 0.7740148146 | G45: 0.6610222218 | H45: =($J45-$G45)/3+G45 -> 0.7740148146 | I45: 0.8870074073 | J45: 1 | L45: 12199002 | M45: 4.824372595e+10 | N45: 0.02528619372
A46: Wellington City | B46: Rural | C46: Wellington CityRural | D46: Rural | E46: 0.1965188139 | G46: 0.1697782208 | H46: =($J46-$G46)/3+G46 -> 0.1965188139 | I46: 0.2232594069 | J46: 0.25 | L46: 46420.2668 | M46: 714756729.4 | N46: 0.006494554705
A47: Hutt City | B47: Business | C47: Hutt CityBusiness | D47: Business | E47: 1.446888823 | G47: 1.420333234 | H47: =($J47-$G47)/3+G47 -> 1.446888823 | I47: 1.473444411 | J47: 1.5 | L47: 2092334.59 | M47: 3850999697 | N47: 0.05433224499
A48: Hutt City | B48: Residential | C48: Hutt CityResidential | D48: Residential | E48: 1.280222156 | G48: 1.420333234 | H48: =($J48-$G48)/3+G48 -> 1.280222156 | I48: 1.140111078 | J48: 1 | L48: 9399014.05 | M48: 1.729914538e+10 | N48: 0.05433224499
A49: Hutt City | B49: Rural | C49: Hutt CityRural | D49: Rural | E49: 0.3246422102 | G49: 0.3619633154 | H49: =($J49-$G49)/3+G49 -> 0.3246422102 | I49: 0.2873211051 | J49: 0.25 | L49: 44664.56015 | M49: 322575294.9 | N49: 0.0138462433
A50: Upper Hutt City | B50: Business | C50: Upper Hutt CityBusiness | D50: Business | E50: 1.564524426 | G50: 1.596786638 | H50: =($J50-$G50)/3+G50 -> 1.564524426 | I50: 1.532262213 | J50: 1.5 | L50: 725473.2635 | M50: 1187700996 | N50: 0.0610821466
A51: Upper Hutt City | B51: Residential | C51: Upper Hutt CityResidential | D51: Residential | E51: 1.397857759 | G51: 1.596786638 | H51: =($J51-$G51)/3+G51 -> 1.397857759 | I51: 1.198928879 | J51: 1 | L51: 3744588.865 | M51: 6130414651 | N51: 0.0610821466
A52: Upper Hutt City | B52: Rural | C52: Upper Hutt CityRural | D52: Rural | E52: 0.35464047 | G52: 0.406960705 | H52: =($J52-$G52)/3+G52 -> 0.35464047 | I52: 0.302320235 | J52: 0.25 | L52: 126321.4349 | M52: 811441419.6 | N52: 0.01556753598
A53: Porirua City | B53: Business | C53: Porirua CityBusiness | D53: Business | E53: 1.598538878 | G53: 1.647808317 | H53: =($J53-$G53)/3+G53 -> 1.598538878 | I53: 1.549269439 | J53: 1.5 | L53: 691972.2213 | M53: 1097778116 | N53: 0.0630338874
A54: Porirua City | B54: Residential | C54: Porirua CityResidential | D54: Residential | E54: 1.431872211 | G54: 1.647808317 | H54: =($J54-$G54)/3+G54 -> 1.431872211 | I54: 1.215936106 | J54: 1 | L54: 5277337.683 | M54: 8372223102 | N54: 0.0630338874
A55: Porirua City | B55: Rural | C55: Porirua CityRural | D55: Rural | E55: 0.3632344603 | G55: 0.4198516904 | H55: =($J55-$G55)/3+G55 -> 0.3632344603 | I55: 0.3066172301 | J55: 0.25 | L55: 96761.34374 | M55: 602474380.3 | N55: 0.016060657
A56: Kapiti Coast District | B56: Business | C56: Kapiti Coast DistrictBusiness | D56: Urban - Commerical | E56: 0.9693177137 | G56: 0.7039765706 | H56: =($J56-$G56)/3+G56 -> 0.9693177137 | I56: 1.234658857 | J56: 1.5 | L56: 403085.5329 | M56: 1496826987 | N56: 0.02692933361
A57: Kapiti Coast District | B57: Residential | C57: Kapiti Coast DistrictResidential | D57: Urban - Residential | E57: 0.802651047 | G57: 0.7039765706 | H57: =($J57-$G57)/3+G57 -> 0.802651047 | I57: 0.9013255235 | J57: 1 | L57: 2549190.973 | M57: 9466223746 | N57: 0.02692933361
A58: Kapiti Coast District | B58: Rural | C58: Kapiti Coast DistrictRural | D58: Rural | E58: 0.2047493834 | G58: 0.1821240752 | H58: =($J58-$G58)/3+G58 -> 0.2047493834 | I58: 0.2273746917 | J58: 0.25 | L58: 138343.5821 | M58: 1985748559 | N58: 0.006966822737
A59: Masterton District | B59: Business | C59: Masterton DistrictBusiness | D59: Urban Ward | E59: 0.4993249485 | G59: 0.2489874227 | H59: =($J59-$G59)/3+G59 -> 0.4993249485 | I59: 0.7496624742 | J59: 1 | L59: 38506.17602 | M59: 404283094.1 | N59: 0.009524557565
A60: Masterton District | B60: Residential | C60: Masterton DistrictResidential | D60: Urban - Residential | E60: 0.3326582818 | G60: 0.2489874227 | H60: =($J60-$G60)/3+G60 -> 0.3326582818 | I60: 0.4163291409 | J60: 0.5 | L60: 199517.2283 | M60: 2094766366 | N60: 0.009524557565
A61: Masterton District | B61: Rural | C61: Masterton DistrictRural | D61: Rural Ward | E61: 0.131019333 | G61: 0.07152899945 | H61: =($J61-$G61)/3+G61 -> 0.131019333 | I61: 0.1905096665 | J61: 0.25 | L61: 68725.16171 | M61: 2511691056 | N61: 0.002736210791
A62: Carterton District | B62: Business | C62: Carterton DistrictBusiness | D62: Urban Ward | E62: 0.6311347496 | G62: 0.4467021244 | H62: =($J62-$G62)/3+G62 -> 0.6311347496 | I62: 0.8155673748 | J62: 1 | L62: 16823.53518 | M62: 98453654.54 | N62: 0.01708777115
A63: Carterton District | B63: Residential | C63: Carterton DistrictResidential | D63: Urban - Residential | E63: 0.4644680829 | G63: 0.4467021244 | H63: =($J63-$G63)/3+G63 -> 0.4644680829 | I63: 0.4822340415 | J63: 0.5 | L63: 109887.4071 | M63: 643076303.8 | N63: 0.01708777115
A64: Carterton District | B64: Rural | C64: Carterton DistrictRural | D64: Rural Ward | E64: 0.1631445304 | G64: 0.1197167956 | H64: =($J64-$G64)/3+G64 -> 0.1631445304 | I64: 0.2065722652 | J64: 0.25 | L64: 72077.97135 | M64: 1573910635 | N64: 0.004579546625
A65: South Wairarapa District | B65: Business | C65: South Wairarapa DistrictBusiness | D65: Urban Ward | E65: 0.7268331513 | G65: 0.5902497269 | H65: =($J65-$G65)/3+G65 -> 0.7268331513 | I65: 0.8634165756 | J65: 1 | L65: 44332.49903 | M65: 196344625.2 | N65: 0.02257892162
A66: South Wairarapa District | B66: Residential | C66: South Wairarapa DistrictResidential | D66: Urban - Residential | E66: 0.5601664846 | G66: 0.5902497269 | H66: =($J66-$G66)/3+G66 -> 0.5601664846 | I66: 0.5300832423 | J66: 0.5 | L66: 206694.8687 | M66: 915432863.5 | N66: 0.02257892162
A67: South Wairarapa District | B67: Rural | C67: South Wairarapa DistrictRural | D67: Rural Ward | E67: 0.1856285043 | G67: 0.1534427564 | H67: =($J67-$G67)/3+G67 -> 0.1856285043 | I67: 0.2178142521 | J67: 0.25 | L67: 153385.1807 | M67: 2613181710 | N67: 0.005869671448
A68: Tararua District | B68: Rural | C68: Tararua DistrictRural | D68: Tararua District | E68: 0 | G68: 0 | H68: =($J68-$G68)/3+G68 -> 0 | I68: 0 | J68: 0 | L68: 0 | M68: 7041800 | N68: 0
A69: Region wide | C69: Region wide | L69: =SUM(L43:L68) -> 64656396.14 | M69: =SUM(M43:M68) -> 1.27056566e+11
A71: WRS rates | L71: =SUMIF($D$43:$D$68,"Residential",L$43:L$68) -> 30619942.6 | M71: =SUMIF($D$43:$D$68,"Residential",M$43:M$68) -> 8.004550909e+10 | N71: =(L71*100)/M71 -> 0.03825316741
A72: Category group | B72: Rating basis
A73: Regional CBD | B73: Remainder
A74: Business | B74: Remainder
A75: Residential | B75: 14
A76: Rural | B76: 28
A79: Flood protection
A80: From Essbase / Landcare & Wairarapa Accountant
A81: TA full name | B81: Regional | C81: Catchment | D81: Property | E81: Total
A82: Wellington City | C82: 54042 | E82: =SUM(B82:D82) -> 54042
A83: Hutt City | C83: 5167492 | E83: =SUM(B83:D83) -> 5167492
A84: Upper Hutt City | C84: 881402 | E84: 881402
A85: Porirua City | C85: 45121 | E85: 45121
A86: Kapiti Coast District | C86: 1619846 | E86: 1619846
A87: Masterton District | C87: 271627 | E87: 271627
A88: Carterton District | C88: 144634 | E88: 144634
A89: South Wairarapa District | C89: 201926 | E89: 201926
A90: Tararua District | E90: 0
A91: Non District Wide | D91: 95164 | E91: 95164
A92: Special Rates | D92: 1417714 | E92: 1417714
A93: External Revenue | D93: 2857246 | E93: 2857246
A94: Total | B94: 9735000 | C94: =SUM(C82:C93) -> 8386090 | D94: =SUM(D82:D93) -> 4370124 | E94: =SUM(B94:D94) -> 22491214
A96: Non district-wide breakdown
A97: Greytown River Management Rate | D97: 92549
A98: Donalds Creek Stopbank River Management Rate | D98: 2615
A99: South Wairarapa District River Management Rates | D99: =SUM(D97:D98) -> 95164
A102: Stadium Rate (ex-GST)
A103: Stadium rate allocations
A104: TA full name | B104: Category group | C104: Concatenated name | D104: CV | E104: Stadium allocation
A105: Wellington City | B105: Regional CBD | C105: =A105&B105 -> Wellington CityRegional CBD | D105: =INDEX(capital_values,MATCH($C105,capital_values_rows,0),MATCH(D$104&" "&year_current,capital_values_header,0)) -> 7819039000 | E105: =0.2055*D105/SUM($D$105:$D$106) -> 0.137547126
A106: Wellington City | B106: Business | C106: Wellington CityBusiness | D106: 3862866400 | E106: =0.2055*D106/SUM($D$105:$D$106) -> 0.06795287395
A107: Wellington City | B107: Residential | C107: Wellington CityResidential | D107: 39302266501 | E107: 0.3856
A108: Wellington City | B108: Rural | C108: Wellington CityRural | D108: 591709550 | E108: 0.0029
A109: Hutt City | B109: Business | C109: Hutt CityBusiness | D109: 3771653500 | E109: 0.0509
A110: Hutt City | B110: Residential | C110: Hutt CityResidential | D110: 17222975000 | E110: 0.142
A111: Hutt City | B111: Rural | C111: Hutt CityRural | D111: 313950000 | E111: 0.0023
A112: Upper Hutt City | B112: Business | C112: Upper Hutt CityBusiness | D112: 1176281500 | E112: 0.0079
A113: Upper Hutt City | B113: Residential | C113: Upper Hutt CityResidential | D113: 6108760420 | E113: 0.0427
A114: Upper Hutt City | B114: Rural | C114: Upper Hutt CityRural | D114: 842402340 | E114: 0.002
A115: Porirua City | B115: Business | C115: Porirua CityBusiness | D115: 1097240500 | E115: 0.0124
A116: Porirua City | B116: Residential | C116: Porirua CityResidential | D116: 8483788000 | E116: 0.058
A117: Porirua City | B117: Rural | C117: Porirua CityRural | D117: 613377750 | E117: 0.0014
A118: Kapiti Coast District | B118: Business | C118: Kapiti Coast DistrictBusiness | D118: 1513816000 | E118: =0.0441*D118/SUM($D$118:$D$119) -> 0.005310941709
A119: Kapiti Coast District | B119: Residential | C119: Kapiti Coast DistrictResidential | D119: 11056324900 | E119: =0.0441*D119/SUM($D$118:$D$119) -> 0.03878905829
A120: Kapiti Coast District | B120: Rural | C120: Kapiti Coast DistrictRural | D120: 2039387700 | E120: 0.0043
A121: Masterton District | B121: Business | C121: Masterton DistrictBusiness | D121: 435894100 | E121: =0.0147*D121/SUM($D$121:$D$122) -> 0.002039569297
A122: Masterton District | B122: Residential | C122: Masterton DistrictResidential | D122: 2705770800 | E122: =0.0147*D122/SUM($D$121:$D$122) -> 0.0126604307
A123: Masterton District | B123: Rural | C123: Masterton DistrictRural | D123: 2767803100 | E123: 0.0053
A124: Carterton District | B124: Business | C124: Carterton DistrictBusiness | D124: 92706500 | E124: =0.0039*D124/SUM($D$124:$D$125) -> 0.0003928711058
A125: Carterton District | B125: Residential | C125: Carterton DistrictResidential | D125: 827583500 | E125: =0.0039*D125/SUM($D$124:$D$125) -> 0.003507128894
A126: Carterton District | B126: Rural | C126: Carterton DistrictRural | D126: 1786851800 | E126: 0.0031
A127: South Wairarapa District | B127: Business | C127: South Wairarapa DistrictBusiness | D127: 205904600 | E127: =0.0072*D127/SUM($D$127:$D$128) -> 0.0009877456792
A128: South Wairarapa District | B128: Residential | C128: South Wairarapa DistrictResidential | D128: 1295001100 | E128: =0.0072*D128/SUM($D$127:$D$128) -> 0.006212254321
A129: South Wairarapa District | B129: Rural | C129: South Wairarapa DistrictRural | D129: 2959579600 | E129: 0.0038
A130: Tararua District | B130: Rural | C130: Tararua DistrictRural | D130: 10760500 | E130: 0
A133: Pest Rate property areas
A134: TA full name | B134: TA code | C134: Range | D134: Area ha
A135: Wellington City | B135: WCC | C135: 16690 | D135: =INDEX('TA Split'!$F$139:$AA$139,MATCH(B135,'TA Split'!$F$1:$AA$1,0)) -> 34055
A136: Hutt City | B136: HCC | C136: 15780 to 15890, 16031 to 16600 | D136: =INDEX('TA Split'!$F$139:$AA$139,MATCH(B136,'TA Split'!$F$1:$AA$1,0)) -> 15578
A137: Upper Hutt City | B137: UHCC | C137: 15170 to 15230, 1590 to 16016 | D137: =INDEX('TA Split'!$F$139:$AA$139,MATCH(B137,'TA Split'!$F$1:$AA$1,0)) -> 54326.2119
A138: Porirua City | B138: PCC | D138: =INDEX('TA Split'!$F$139:$AA$139,MATCH(B138,'TA Split'!$F$1:$AA$1,0)) -> 11858
A139: Kapiti Coast District | B139: KCDC | C139: 14860 to 15150, 15251 to 15410 | D139: =INDEX('TA Split'!$F$139:$AA$139,MATCH(B139,'TA Split'!$F$1:$AA$1,0)) -> 29205.9985
A140: Masterton District | B140: MDC | C140: 17870 to 18130 | D140: =INDEX('TA Split'!$F$139:$AA$139,MATCH(B140,'TA Split'!$F$1:$AA$1,0)) -> 207207.7345
A141: Carterton District | B141: CDC | C141: 18140 to 18190 | D141: =INDEX('TA Split'!$F$139:$AA$139,MATCH(B141,'TA Split'!$F$1:$AA$1,0)) -> 78106.069
A142: South Wairarapa District | B142: SWDC | C142: 18230 to 18480 | D142: =INDEX('TA Split'!$F$139:$AA$139,MATCH(B142,'TA Split'!$F$1:$AA$1,0)) -> 178090.1371
A143: Tararua District | B143: TDC | C143: 11130 to 17750 | D143: =INDEX('TA Split'!$F$139:$AA$139,MATCH(B143,'TA Split'!$F$1:$AA$1,0)) -> 5307.8223
A144: Region wide | D144: =SUM(D135:D143) -> 613734.9733
A147: Water levy
A148: Need numbers for each city - March 31 comes from Wellington Water
A149: TA full name | B149: Share of levy | C149: =year_current -> 2018/19
A150: Wellington City | B150: =C150/$C$159 -> 0.535142175 | C150: 17696562
A151: Hutt City | B151: =C151/$C$159 -> 0.2481588591 | C151: 8206340
A152: Upper Hutt City | B152: 0.1003228774 | C152: 3317567
A153: Porirua City | B153: 0.1163760885 | C153: 3848429
A154: Kapiti Coast District
A155: Masterton District
A156: Carterton District
A157: South Wairarapa District
A158: Tararua District
A159: Region wide | B159: =SUM(B150:B158) -> 1 | C159: =SUM(C150:C158) -> 33068898
A161: Water levy evidence

Sheet UHCC Adjustments
A1: Wellington Regional Council
A2: ="UHCC Adjustments "&year_current -> UHCC Adjustments 2018/19
A3: Printed: | B3: =NOW() -> 2018-03-27T14:57:01
A4: =check_total -> 8066.052688
A6: TA full name | B6: Category group | C6: Sub category group | D6: CV | E6: Rateable Land Value
A8: Trentham Military Camp
A9: Upper Hutt City | B9: Business | C9: Trentham Military Camp | D9: 56325000 | E9: 19235000
A10: Upper Hutt City | B10: Residential | C10: Trentham Military Camp | D10: 26720000 | E10: 9495000
A11: Upper Hutt City | B11: Rural | C11: Trentham Military Camp | D11: 4676000 | E11: 2720500
A12: Upper Hutt City | B12: Business & Residential | C12: Trentham Military Camp | D12: =D10+D9 -> 83045000 | E12: =E10+E9 -> 28730000
A13: Upper Hutt | B13: Total | C13: Trentham Military Camp | D13: =+D9+D10+D11 -> 87721000 | E13: =+E9+E10+E11 -> 31450500
A15: Rest of Upper Hutt
A16: Upper Hutt City | B16: Business | C16: Rest of Upper Hutt City | D16: =+D23-D9 -> 1119956500 | E16: 274335200
A17: Upper Hutt City | B17: Residential | C17: Rest of Upper Hutt City | D17: 6082040420 | E17: 2955698620
A18: Upper Hutt City | B18: Rural | C18: Rest of Upper Hutt City | D18: 837726340 | E18: 418796740
A19: Upper Hutt City | B19: Business & Residential | C19: Rest of Upper Hutt City | D19: 7201996920 | E19: 3230033820
A20: Upper Hutt | B20: Total | C20: Rest of Upper Hutt City | D20: =+D27-D13 -> 8039723260 | E20: 3648830560
A22: All Upper Hutt
A23: Upper Hutt City | B23: Business | C23: Total | D23: =INDEX(capital_values,MATCH($A16&B16,capital_values_rows,0),MATCH(D$6&" "&year_current,capital_values_header,0)) -> 1176281500 | E23: 293570200
A24: Upper Hutt City | B24: Residential | C24: Total | D24: =INDEX(capital_values,MATCH($A17&B17,capital_values_rows,0),MATCH(D$6&" "&year_current,capital_values_header,0)) -> 6108760420 | E24: 2965193620
A25: Upper Hutt City | B25: Rural | C25: Total | D25: =INDEX(capital_values,MATCH($A18&B18,capital_values_rows,0),MATCH(D$6&" "&year_current,capital_values_header,0)) -> 842402340 | E25: 421517240
A26: Upper Hutt City | B26: Business & Residential | C26: Total | D26: =D24+D23 -> 7285041920 | E26: =E24+E23 -> 3258763820
A27: Upper Hutt | B27: All | C27: Total | D27: =+'Capital values'!E10 -> 8127444260 | E27: =+E23+E24+E25 -> 3680281060
A29: Trentham Military Camp share of rates
A30: Upper Hutt City | B30: Business | C30: Trentham % of Share | D30: =+D9/D23 -> 0.04788394615 | E30: =+E9/E23 -> 0.06552095546
A31: Upper Hutt City | B31: Residential | C31: Trentham % of Share | D31: =+D10/D24 -> 0.004374046151 | E31: 0.00320215177
A32: Upper Hutt City | B32: Rural | C32: Trentham % of Share | D32: =+D11/D25 -> 0.005550791799 | E32: 0.006454065793
A33: Upper Hutt City | B33: Business & Residential | C33: % of Share | D33: =+D12/D26 -> 0.01139938533 | E33: 0.008816226516
A34: Upper Hutt | B34: All | C34: % of Share | D34: =+D13/D27 -> 0.01079318383 | E34: =+E13/E27 -> 0.008545678846

Sheet Capital values
A1: Wellington Regional Council
A2: Rateable values
A3: =check_total -> 8066.052688
A5: Capital values
A6: =Control!A29 -> TA full name | B6: =Control!B29 -> Category group | C6: =Control!C29 -> Concatenated row | D6: ="CV "&year_previous -> CV 2017/18 | E6: ="CV "&year_current -> CV 2018/19 | F6: ="ECV "&year_previous -> ECV 2017/18 | G6: ="ECV "&year_current -> ECV 2018/19 | I6: Check CV | J6: Check ECV
A7: =Control!A40 -> 0 | B7: =Control!B40 -> 0 | C7: =Control!C40 -> 0
A8: =Control!A30 -> Wellington City | B8: =Control!B30 -> District wide | C8: =Control!C30 -> Wellington CityDistrict wide | D8: =SUMIF($A$19:$A$44,$A8,D$19:D$44) -> 51319125451 | E8: =SUMIF($A$19:$A$44,$A8,E$19:E$44) -> 51575881451 | F8: 63374831603 | G8: 68975077410 | J8: =ISBLANK(F8)+ISBLANK(G8) -> 0
A9: =Control!A31 -> Hutt City | B9: =Control!B31 -> District wide | C9: =Control!C31 -> Hutt CityDistrict wide | D9: =SUMIF($A$19:$A$44,$A9,D$19:D$44) -> 21170821500 | E9: 21308578500 | F9: 21472720375 | G9: 24118117072 | J9: =ISBLANK(F9)+ISBLANK(G9) -> 0
A10: =Control!A32 -> Upper Hutt City | B10: =Control!B32 -> District wide | C10: =Control!C32 -> Upper Hutt CityDistrict wide | D10: 8012247760 | E10: 8127444260 | F10: 8129557067 | G10: 9172479133 | J10: 0
A11: =Control!A33 -> Porirua City | B11: =Control!B33 -> District wide | C11: =Control!C33 -> Porirua CityDistrict wide | D11: 10044595300 | E11: 10194406250 | F11: 10072475598 | G11: 11429809803 | J11: 0
A12: =Control!A34 -> Kapiti Coast District | B12: =Control!B34 -> District wide | C12: =Control!C34 -> Kapiti Coast DistrictDistrict wide | D12: 10974506450 | E12: 14609528600 | F12: 12948799292 | G12: 14678791680 | J12: 0
A13: =Control!A35 -> Masterton District | B13: =Control!B35 -> District wide | C13: =Control!C35 -> Masterton DistrictDistrict wide | D13: 4724008400 | E13: 5909468000 | F13: 5010740516 | G13: 5891731979 | J13: 0
A14: =Control!A36 -> Carterton District | B14: =Control!B36 -> District wide | C14: =Control!C36 -> Carterton DistrictDistrict wide | D14: 2188251200 | E14: 2707141800 | F14: 2315440593 | G14: 2715649450 | J14: 0
A15: =Control!A37 -> South Wairarapa District | B15: =Control!B37 -> District wide | C15: =Control!C37 -> South Wairarapa DistrictDistrict wide | D15: 3612556200 | E15: 4460485300 | F15: 3724959199 | G15: 4514129051 | J15: 0
A16: =Control!A38 -> Tararua District | B16: =Control!B38 -> District wide | C16: =Control!C38 -> Tararua DistrictDistrict wide | D16: 6806000 | E16: 10760500 | F16: 7041800 | G16: 7041800 | J16: 0
A17: =Control!A39 -> Region wide | B17: =Control!B39 -> 0 | C17: =Control!C39 -> Region wide | D17: =SUM(D8:D16) -> 112052918261 | E17: =SUM(E8:E16) -> 118903694661 | F17: =SUM(F8:F16) -> 127056566043 | G17: =SUM(G8:G16) -> 141502827378
A19: =Control!A43 -> Wellington City | B19: =Control!B43 -> Regional CBD | C19: =Control!C43 -> Wellington CityRegional CBD | D19: 7854191500 | E19: 7819039000 | F19: =D19 * (INDEX(F$8:F$16,MATCH($A19&"District wide",$C$8:$C$16,0))/INDEX(D$8:D$16,MATCH($A19&"District wide",$C$8:$C$16,0))) -> 9699270191 | G19: =E19 * (INDEX(G$8:G$16,MATCH($A19&"District wide",$C$8:$C$16,0))/INDEX(E$8:E$16,MATCH($A19&"District wide",$C$8:$C$16,0))) -> 1.045680278e+10 | I19: =ISBLANK(D19)+ISBLANK(E19) -> 0
A20: =Control!A44 -> Wellington City | B20: =Control!B44 -> Business | C20: =Control!C44 -> Wellington CityBusiness | D20: 3819755400 | E20: 3862866400 | F20: =D20 * (INDEX(F$8:F$16,MATCH($A20&"District wide",$C$8:$C$16,0))/INDEX(D$8:D$16,MATCH($A20&"District wide",$C$8:$C$16,0))) -> 4717078733 | G20: =E20 * (INDEX(G$8:G$16,MATCH($A20&"District wide",$C$8:$C$16,0))/INDEX(E$8:E$16,MATCH($A20&"District wide",$C$8:$C$16,0))) -> 5166009799 | I20: =ISBLANK(D20)+ISBLANK(E20) -> 0
A21: =Control!A45 -> Wellington City | B21: =Control!B45 -> Residential | C21: =Control!C45 -> Wellington CityResidential | D21: 39066389001 | E21: 39302266501 | F21: =D21 * (INDEX(F$8:F$16,MATCH($A21&"District wide",$C$8:$C$16,0))/INDEX(D$8:D$16,MATCH($A21&"District wide",$C$8:$C$16,0))) -> 4.824372595e+10 | G21: 5.256094124e+10 | I21: =ISBLANK(D21)+ISBLANK(E21) -> 0
A22: =Control!A46 -> Wellington City | B22: =Control!B46 -> Rural | C22: =Control!C46 -> Wellington CityRural | D22: 578789550 | E22: 591709550 | F22: =D22 * (INDEX(F$8:F$16,MATCH($A22&"District wide",$C$8:$C$16,0))/INDEX(D$8:D$16,MATCH($A22&"District wide",$C$8:$C$16,0))) -> 714756729.4 | G22: 791323596.8 | I22: =ISBLANK(D22)+ISBLANK(E22) -> 0
A23: =Control!A47 -> Hutt City | B23: =Control!B47 -> Business | C23: =Control!C47 -> Hutt CityBusiness | D23: 3796856000 | E23: =743244000+3028409500 -> 3771653500 | F23: =D23 * (INDEX(F$8:F$16,MATCH($A23&"District wide",$C$8:$C$16,0))/INDEX(D$8:D$16,MATCH($A23&"District wide",$C$8:$C$16,0))) -> 3850999697 | G23: 4268946456 | I23: =ISBLANK(D23)+ISBLANK(E23) -> 0
A24: =Control!A48 -> Hutt City | B24: =Control!B48 -> Residential | C24: =Control!C48 -> Hutt CityResidential | D24: 17055925500 | E24: 17222975000 | F24: 1.729914538e+10 | G24: 1.949382627e+10 | I24: =ISBLANK(D24)+ISBLANK(E24) -> 0
A25: =Control!A49 -> Hutt City | B25: =Control!B49 -> Rural | C25: =Control!C49 -> Hutt CityRural | D25: 318040000 | E25: 313950000 | F25: 322575294.9 | G25: 355344344.3 | I25: 0
A26: =Control!A50 -> Upper Hutt City | B26: =Control!B50 -> Business | C26: =Control!C50 -> Upper Hutt CityBusiness | D26: 1170562500 | E26: 1176281500 | F26: 1187700996 | G26: 1327528946 | I26: =ISBLANK(D26)+ISBLANK(E26) -> 0
A27: =Control!A51 -> Upper Hutt City | B27: =Control!B51 -> Residential | C27: =Control!C51 -> Upper Hutt CityResidential | D27: 6041952920 | E27: 6108760420 | F27: 6130414651 | G27: 6894230915 | I27: =ISBLANK(D27)+ISBLANK(E27) -> 0
A28: =Control!A52 -> Upper Hutt City | B28: =Control!B52 -> Rural | C28: =Control!C52 -> Upper Hutt CityRural | D28: 799732340 | E28: 842402340 | F28: 811441419.6 | G28: 950719271.4 | I28: 0
A29: =Control!A53 -> Porirua City | B29: =Control!B53 -> Business | C29: =Control!C53 -> Porirua CityBusiness | D29: 1094739500 | E29: 1097240500 | F29: 1097778116 | G29: 1230208991 | I29: =ISBLANK(D29)+ISBLANK(E29) -> 0
A30: =Control!A54 -> Porirua City | B30: =Control!B54 -> Residential | C30: =Control!C54 -> Porirua CityResidential | D30: 8349049050 | E30: 8483788000 | F30: 8372223102 | G30: 9511891215 | I30: =ISBLANK(D30)+ISBLANK(E30) -> 0
A31: =Control!A55 -> Porirua City | B31: =Control!B55 -> Rural | C31: =Control!C55 -> Porirua CityRural | D31: 600806750 | E31: 613377750 | F31: 602474380.3 | G31: 687709597.6 | I31: 0
A32: =Control!A56 -> Kapiti Coast District | B32: =Control!B56 -> Business | C32: =Control!C56 -> Kapiti Coast DistrictBusiness | D32: 1268607000 | E32: 1513816000 | F32: 1496826987 | G32: 1520992930 | I32: =ISBLANK(D32)+ISBLANK(E32) -> 0
A33: =Control!A57 -> Kapiti Coast District | B33: =Control!B57 -> Residential | C33: =Control!C57 -> Kapiti Coast DistrictResidential | D33: 8022916350 | E33: =12570140900-E32 -> 11056324900 | F33: 9466223746 | G33: 1.110874241e+10 | I33: =ISBLANK(D33)+ISBLANK(E33) -> 0
A34: =Control!A58 -> Kapiti Coast District | B34: =Control!B58 -> Rural | C34: =Control!C58 -> Kapiti Coast DistrictRural | D34: 1682983100 | E34: 2039387700 | F34: 1985748559 | G34: 2049056340 | I34: 0
A35: =Control!A59 -> Masterton District | B35: =Control!B59 -> Business | C35: =Control!C59 -> Masterton DistrictBusiness | D35: 381148600 | E35: 435894100 | F35: 404283094.1 | G35: 434585855.9 | I35: =ISBLANK(D35)+ISBLANK(E35) -> 0
A36: =Control!A60 -> Masterton District | B36: =Control!B60 -> Residential | C36: =Control!C60 -> Masterton DistrictResidential | D36: 1974896500 | E36: =137995000+2567775800 -> 2705770800 | F36: 2094766366 | G36: 2697650000 | I36: =ISBLANK(D36)+ISBLANK(E36) -> 0
A37: =Control!A61 -> Masterton District | B37: =Control!B61 -> Rural | C37: =Control!C61 -> Masterton DistrictRural | D37: 2367963300 | E37: 2767803100 | F37: 2511691056 | G37: 2759496123 | I37: 0
A38: =Control!A62 -> Carterton District | B38: =Control!B62 -> Business | C38: =Control!C62 -> Carterton DistrictBusiness | D38: 93045500 | E38: 92706500 | F38: 98453654.54 | G38: 92997845.82 | I38: =ISBLANK(D38)+ISBLANK(E38) -> 0
A39: =Control!A63 -> Carterton District | B39: =Control!B63 -> Residential | C39: =Control!C63 -> Carterton DistrictResidential | D39: 607751500 | E39: 827583500 | F39: 643076303.8 | G39: 830184320.8 | I39: =ISBLANK(D39)+ISBLANK(E39) -> 0
A40: =Control!A64 -> Carterton District | B40: =Control!B64 -> Rural | C40: =Control!C64 -> Carterton DistrictRural | D40: 1487454200 | E40: 1786851800 | F40: 1573910635 | G40: 1792467283 | I40: 0
A41: =Control!A65 -> South Wairarapa District | B41: =Control!B65 -> Business | C41: =Control!C65 -> South Wairarapa DistrictBusiness | D41: 190419802 | E41: 205904600 | F41: 196344625.2 | G41: 208380899 | I41: =ISBLANK(D41)+ISBLANK(E41) -> 0
A42: =Control!A66 -> South Wairarapa District | B42: =Control!B66 -> Residential | C42: =Control!C66 -> South Wairarapa DistrictResidential | D42: 887809098 | E42: 1295001100 | F42: 915432863.5 | G42: 1310575351 | I42: =ISBLANK(D42)+ISBLANK(E42) -> 0
A43: =Control!A67 -> South Wairarapa District | B43: =Control!B67 -> Rural | C43: =Control!C67 -> South Wairarapa DistrictRural | D43: 2534327300 | E43: 2959579600 | F43: 2613181710 | G43: 2995172801 | I43: 0
A44: =Control!A68 -> Tararua District | B44: =Control!B68 -> Rural | C44: =Control!C68 -> Tararua DistrictRural | D44: 6806000 | E44: 10760500 | F44: 7041800 | G44: 7041800 | I44: =ISBLANK(D44)+ISBLANK(E44) -> 0
A45: =Control!A69 -> Region wide | B45: =Control!B69 -> 0 | C45: =Control!C69 -> Region wide | D45: =SUM(D19:D44) -> 112052918261 | E45: =SUM(E19:E44) -> 118903694661 | F45: =SUM(F19:F44) -> 1.27056566e+11 | G45: =SUM(G19:G44) -> 141502827378
A47: Greytown Urban -CV | D47: 535058000 | E47: 739130000 | I47: =ISBLANK(D47)+ISBLANK(E47) -> 0
A48: Featherston Urban - LV | D48: 78778700 | E48: 162213500 | I48: =ISBLANK(D48)+ISBLANK(E48) -> 0
A50: Check totals | D50: =Total_CV-D17 -> 0 | E50: =E17-E45 -> 0
A53: No. of Assessments (#)
A54: =Control!A29 -> TA full name | B54: =Control!B29 -> Category group | C54: =Control!C29 -> Concatenated row | D54: ="CV assessments "&year_previous -> CV assessments 2017/18 | E54: ="CV assessments "&year_current -> CV assessments 2018/19 | F54: ="ECV assessments "&year_previous -> ECV assessments 2017/18 | G54: ="ECV assessments "&year_current -> ECV assessments 2018/19
A55: =Control!A40 -> 0 | B55: =Control!B40 -> 0 | C55: =Control!C40 -> 0
A56: =Control!A30 -> Wellington City | B56: =Control!B30 -> District wide | C56: =Control!C30 -> Wellington CityDistrict wide | D56: =SUMIF($A$67:$A$92,$A56,D$67:D$92) -> 76971 | E56: =SUMIF($A$67:$A$92,$A56,E$67:E$92) -> 77106 | F56: 77487 | G56: 77786 | J56: =ISBLANK(F56)+ISBLANK(G56) -> 0
A57: =Control!A31 -> Hutt City | B57: =Control!B31 -> District wide | C57: =Control!C31 -> Hutt CityDistrict wide | D57: =SUMIF($A$67:$A$92,$A57,D$67:D$92) -> 39049 | E57: 39145 | F57: 39674 | G57: 39853 | J57: 0
A58: =Control!A32 -> Upper Hutt City | B58: =Control!B32 -> District wide | C58: =Control!C32 -> Upper Hutt CityDistrict wide | D58: 16570 | E58: 16736 | F58: 16638 | G58: 16793 | J58: 0
A59: =Control!A33 -> Porirua City | B59: =Control!B33 -> District wide | C59: =Control!C33 -> Porirua CityDistrict wide | D59: 18514 | E59: 18629 | F59: 18501 | G59: 18614 | J59: 0
A60: =Control!A34 -> Kapiti Coast District | B60: =Control!B34 -> District wide | C60: =Control!C34 -> Kapiti Coast DistrictDistrict wide | D60: 24761 | E60: 24840 | F60: 24679 | G60: 24776 | J60: 0
A61: =Control!A35 -> Masterton District | B61: =Control!B35 -> District wide | C61: =Control!C35 -> Masterton DistrictDistrict wide | D61: 12296 | E61: 12282 | F61: 12273 | G61: 12285 | J61: 0
A62: =Control!A36 -> Carterton District | B62: =Control!B36 -> District wide | C62: =Control!C36 -> Carterton DistrictDistrict wide | D62: 4561 | E62: 4643 | F62: 4619 | G62: 4662 | J62: 0
A63: =Control!A37 -> South Wairarapa District | B63: =Control!B37 -> District wide | C63: =Control!C37 -> South Wairarapa DistrictDistrict wide | D63: 6598 | E63: 6611 | F63: 6556 | G63: 6596 | J63: 0
A64: =Control!A38 -> Tararua District | B64: =Control!B38 -> District wide | C64: =Control!C38 -> Tararua DistrictDistrict wide | D64: 12 | E64: 10 | F64: 10 | G64: 10 | J64: 0
A65: =Control!A39 -> Region wide | B65: =Control!B39 -> 0 | C65: =Control!C39 -> Region wide | D65: =SUM(D56:D64) -> 199332 | E65: =SUM(E56:E64) -> 200002 | F65: 200437 | G65: 201375
A67: =Control!A43 -> Wellington City | B67: =Control!B43 -> Regional CBD | C67: =Control!C43 -> Wellington CityRegional CBD | D67: 3401 | E67: 3382 | I67: =ISBLANK(D67)+ISBLANK(E67) -> 0
A68: =Control!A44 -> Wellington City | B68: =Control!B44 -> Business | C68: =Control!C44 -> Wellington CityBusiness | D68: 1907 | E68: 1900 | I68: =ISBLANK(D68)+ISBLANK(E68) -> 0
A69: =Control!A45 -> Wellington City | B69: =Control!B45 -> Residential | C69: =Control!C45 -> Wellington CityResidential | D69: 70889 | E69: 71045 | I69: 0
A70: =Control!A46 -> Wellington City | B70: =Control!B46 -> Rural | C70: =Control!C46 -> Wellington CityRural | D70: 774 | E70: 779 | I70: 0
A71: =Control!A47 -> Hutt City | B71: =Control!B47 -> Business | C71: =Control!C47 -> Hutt CityBusiness | D71: 2357 | E71: =368+1990 -> 2358 | I71: =ISBLANK(D71)+ISBLANK(E71) -> 0
A72: =Control!A48 -> Hutt City | B72: =Control!B48 -> Residential | C72: =Control!C48 -> Hutt CityResidential | D72: 36202 | E72: =36300 -> 36300 | I72: =ISBLANK(D72)+ISBLANK(E72) -> 0
A73: =Control!A49 -> Hutt City | B73: =Control!B49 -> Rural | C73: =Control!C49 -> Hutt CityRural | D73: 490 | E73: 487 | I73: 0
A74: =Control!A50 -> Upper Hutt City | B74: =Control!B50 -> Business | C74: =Control!C50 -> Upper Hutt CityBusiness | D74: 722 | E74: 712 | I74: =ISBLANK(D74)+ISBLANK(E74) -> 0
A75: =Control!A51 -> Upper Hutt City | B75: =Control!B51 -> Residential | C75: =Control!C51 -> Upper Hutt CityResidential | D75: 14604 | E75: 14778 | I75: =ISBLANK(D75)+ISBLANK(E75) -> 0
A76: =Control!A52 -> Upper Hutt City | B76: =Control!B52 -> Rural | C76: =Control!C52 -> Upper Hutt CityRural | D76: 1244 | E76: 1246 | I76: 0
A77: =Control!A53 -> Porirua City | B77: =Control!B53 -> Business | C77: =Control!C53 -> Porirua CityBusiness | D77: 796 | E77: 795 | I77: =ISBLANK(D77)+ISBLANK(E77) -> 0
A78: =Control!A54 -> Porirua City | B78: =Control!B54 -> Residential | C78: =Control!C54 -> Porirua CityResidential | D78: 17106 | E78: 17224 | I78: =ISBLANK(D78)+ISBLANK(E78) -> 0
A79: =Control!A55 -> Porirua City | B79: =Control!B55 -> Rural | C79: =Control!C55 -> Porirua CityRural | D79: 612 | E79: 610 | I79: 0
A80: =Control!A56 -> Kapiti Coast District | B80: =Control!B56 -> Business | C80: =Control!C56 -> Kapiti Coast DistrictBusiness | D80: 1389 | E80: 1395 | I80: =ISBLANK(D80)+ISBLANK(E80) -> 0
A81: =Control!A57 -> Kapiti Coast District | B81: =Control!B57 -> Residential | C81: =Control!C57 -> Kapiti Coast DistrictResidential | D81: 20583 | E81: =22067-E80 -> 20672 | I81: =ISBLANK(D81)+ISBLANK(E81) -> 0
A82: =Control!A58 -> Kapiti Coast District | B82: =Control!B58 -> Rural | C82: =Control!C58 -> Kapiti Coast DistrictRural | D82: 2789 | E82: 2773 | I82: 0
A83: =Control!A59 -> Masterton District | B83: =Control!B59 -> Business | C83: =Control!C59 -> Masterton DistrictBusiness | D83: 546 | E83: 550 | I83: =ISBLANK(D83)+ISBLANK(E83) -> 0
A84: =Control!A60 -> Masterton District | B84: =Control!B60 -> Residential | C84: =Control!C60 -> Masterton DistrictResidential | D84: 7842 | E84: =17+7861 -> 7878 | I84: =ISBLANK(D84)+ISBLANK(E84) -> 0
A85: =Control!A61 -> Masterton District | B85: =Control!B61 -> Rural | C85: =Control!C61 -> Masterton DistrictRural | D85: 3908 | E85: 3854 | I85: 0
A86: =Control!A62 -> Carterton District | B86: =Control!B62 -> Business | C86: =Control!C62 -> Carterton DistrictBusiness | D86: 225 | E86: 225 | I86: =ISBLANK(D86)+ISBLANK(E86) -> 0
A87: =Control!A63 -> Carterton District | B87: =Control!B63 -> Residential | C87: =Control!C63 -> Carterton DistrictResidential | D87: 2299 | E87: 2356 | I87: =ISBLANK(D87)+ISBLANK(E87) -> 0
A88: =Control!A64 -> Carterton District | B88: =Control!B64 -> Rural | C88: =Control!C64 -> Carterton DistrictRural | D88: 2037 | E88: 2062 | I88: 0
A89: =Control!A65 -> South Wairarapa District | B89: =Control!B65 -> Business | C89: =Control!C65 -> South Wairarapa DistrictBusiness | D89: 312 | E89: 308 | I89: =ISBLANK(D89)+ISBLANK(E89) -> 0
A90: =Control!A66 -> South Wairarapa District | B90: =Control!B66 -> Residential | C90: =Control!C66 -> South Wairarapa DistrictResidential | D90: 3147 | E90: 3196 | I90: =ISBLANK(D90)+ISBLANK(E90) -> 0
A91: =Control!A67 -> South Wairarapa District | B91: =Control!B67 -> Rural | C91: =Control!C67 -> South Wairarapa DistrictRural | D91: 3139 | E91: 3107 | I91: 0
A92: =Control!A68 -> Tararua District | B92: =Control!B68 -> Rural | C92: =Control!C68 -> Tararua DistrictRural | D92: 12 | E92: 10 | I92: =ISBLANK(D92)+ISBLANK(E92) -> 0
A93: =Control!A69 -> Region wide | B93: =Control!B69 -> 0 | C93: =Control!C69 -> Region wide | D93: =SUM(D67:D92) -> 199332 | E93: =SUM(E67:E92) -> 200002
A95: Check totals | D95: =Total_assessments-D65 -> 0 | E95: =E65-E93 -> 0
A98: Number of Assessments Contiguous for WRS
A99: =Control!A29 -> TA full name | B99: =Control!B29 -> Category group | C99: =Control!C29 -> Concatenated row | D99: ="Contiguous assements "&year_previous -> Contiguous assements 2017/18 | E99: ="Contiguous assements "&year_current -> Contiguous assements 2018/19
A100: =Control!A40 -> 0 | B100: =Control!B40 -> 0 | C100: =Control!C40 -> 0
A101: =Control!A30 -> Wellington City | B101: =Control!B30 -> District wide | C101: =Control!C30 -> Wellington CityDistrict wide | D101: =SUMIF($A$112:$A$137,$A101,D$112:D$137) -> 0 | E101: =SUMIF($A$112:$A$137,$A101,E$112:E$137) -> 0
A102: =Control!A31 -> Hutt City | B102: =Control!B31 -> District wide | C102: =Control!C31 -> Hutt CityDistrict wide | D102: =SUMIF($A$112:$A$137,$A102,D$112:D$137) -> 125 | E102: 125
A103: =Control!A32 -> Upper Hutt City | B103: =Control!B32 -> District wide | C103: =Control!C32 -> Upper Hutt CityDistrict wide | D103: 78 | E103: 111
A104: =Control!A33 -> Porirua City | B104: =Control!B33 -> District wide | C104: =Control!C33 -> Porirua CityDistrict wide | D104: 0 | E104: 0
A105: =Control!A34 -> Kapiti Coast District | B105: =Control!B34 -> District wide | C105: =Control!C34 -> Kapiti Coast DistrictDistrict wide | D105: 425 | E105: 354
A106: =Control!A35 -> Masterton District | B106: =Control!B35 -> District wide | C106: =Control!C35 -> Masterton DistrictDistrict wide | D106: 498 | E106: 455
A107: =Control!A36 -> Carterton District | B107: =Control!B36 -> District wide | C107: =Control!C36 -> Carterton DistrictDistrict wide | D107: 293 | E107: 302
A108: =Control!A37 -> South Wairarapa District | B108: =Control!B37 -> District wide | C108: =Control!C37 -> South Wairarapa DistrictDistrict wide | D108: 445 | E108: 413
A109: =Control!A38 -> Tararua District | B109: =Control!B38 -> District wide | C109: =Control!C38 -> Tararua DistrictDistrict wide | D109: 3 | E109: 1
A110: =Control!A39 -> Region wide | B110: =Control!B39 -> 0 | C110: =Control!C39 -> Region wide | D110: =SUM(D101:D109) -> 1867 | E110: =SUM(E101:E109) -> 1761
A112: =Control!A43 -> Wellington City | B112: =Control!B43 -> Regional CBD | C112: =Control!C43 -> Wellington CityRegional CBD
A113: =Control!A44 -> Wellington City | B113: =Control!B44 -> Business | C113: =Control!C44 -> Wellington CityBusiness
A114: =Control!A45 -> Wellington City | B114: =Control!B45 -> Residential | C114: =Control!C45 -> Wellington CityResidential
A115: =Control!A46 -> Wellington City | B115: =Control!B46 -> Rural | C115: =Control!C46 -> Wellington CityRural
A116: =Control!A47 -> Hutt City | B116: =Control!B47 -> Business | C116: =Control!C47 -> Hutt CityBusiness
A117: =Control!A48 -> Hutt City | B117: =Control!B48 -> Residential | C117: =Control!C48 -> Hutt CityResidential | D117: 125 | E117: 125
A118: =Control!A49 -> Hutt City | B118: =Control!B49 -> Rural | C118: =Control!C49 -> Hutt CityRural
A119: =Control!A50 -> Upper Hutt City | B119: =Control!B50 -> Business | C119: =Control!C50 -> Upper Hutt CityBusiness
A120: =Control!A51 -> Upper Hutt City | B120: =Control!B51 -> Residential | C120: =Control!C51 -> Upper Hutt CityResidential | D120: 12 | E120: =14778-14741 -> 37
A121: =Control!A52 -> Upper Hutt City | B121: =Control!B52 -> Rural | C121: =Control!C52 -> Upper Hutt CityRural | D121: 66 | E121: =1246-1172 -> 74
A122: =Control!A53 -> Porirua City | B122: =Control!B53 -> Business | C122: =Control!C53 -> Porirua CityBusiness
A123: =Control!A54 -> Porirua City | B123: =Control!B54 -> Residential | C123: =Control!C54 -> Porirua CityResidential
A124: =Control!A55 -> Porirua City | B124: =Control!B55 -> Rural | C124: =Control!C55 -> Porirua CityRural
A125: =Control!A56 -> Kapiti Coast District | B125: =Control!B56 -> Business | C125: =Control!C56 -> Kapiti Coast DistrictBusiness
A126: =Control!A57 -> Kapiti Coast District | B126: =Control!B57 -> Residential | C126: =Control!C57 -> Kapiti Coast DistrictResidential | D126: 255 | E126: 199
A127: =Control!A58 -> Kapiti Coast District | B127: =Control!B58 -> Rural | C127: =Control!C58 -> Kapiti Coast DistrictRural | D127: 170 | E127: 155
A128: =Control!A59 -> Masterton District | B128: =Control!B59 -> Business | C128: =Control!C59 -> Masterton DistrictBusiness
A129: =Control!A60 -> Masterton District | B129: =Control!B60 -> Residential | C129: =Control!C60 -> Masterton DistrictResidential | D129: 17 | E129: 14
A130: =Control!A61 -> Masterton District | B130: =Control!B61 -> Rural | C130: =Control!C61 -> Masterton DistrictRural | D130: 481 | E130: 441
A131: =Control!A62 -> Carterton District | B131: =Control!B62 -> Business | C131: =Control!C62 -> Carterton DistrictBusiness
A132: =Control!A63 -> Carterton District | B132: =Control!B63 -> Residential | C132: =Control!C63 -> Carterton DistrictResidential | D132: 79 | E132: 82
A133: =Control!A64 -> Carterton District | B133: =Control!B64 -> Rural | C133: =Control!C64 -> Carterton DistrictRural | D133: 214 | E133: 220
A134: =Control!A65 -> South Wairarapa District | B134: =Control!B65 -> Business | C134: =Control!C65 -> South Wairarapa DistrictBusiness
A135: =Control!A66 -> South Wairarapa District | B135: =Control!B66 -> Residential | C135: =Control!C66 -> South Wairarapa DistrictResidential | D135: 75 | E135: 73
A136: =Control!A67 -> South Wairarapa District | B136: =Control!B67 -> Rural | C136: =Control!C67 -> South Wairarapa DistrictRural | D136: 370 | E136: 340
A137: =Control!A68 -> Tararua District | B137: =Control!B68 -> Rural | C137: =Control!C68 -> Tararua DistrictRural | D137: 3 | E137: 1
A138: =Control!A69 -> Region wide | B138: =Control!B69 -> 0 | C138: =Control!C69 -> Region wide | D138: =SUM(D112:D137) -> 1867 | E138: =SUM(E112:E137) -> 1761
A140: Check totals | D140: =D110-D138 -> 0 | E140: =E110-E138 -> 0

Sheet ESSbase
A1: Wellington Regional Council
A2: ESSBase values
A3: =check_total -> 8066.052688
B5: Model naming convention | C5: Essbase name | D5: Essbase name | F5: Last Year Base | G5: Current Year Base | H5: total | J5: Proposed Budget Base
F6: =year_previous -> 2017/18 | G6: =year_current -> 2018/19 | H6: =year_current -> 2018/19 | J6: =year_current -> 2018/19
O7: Manual adj to Essbase
B8: General rate | C8: WRC - Mgmt | D8: General Rates | F8: =42481670.5205436 -> 42481670.52 | G8: =48100745.972216+R11 -> 36442150.97 | H8: =+G8/F8-1 -> -0.1421676566 | J8: 31804344.03 | K8: =+G8-J8 -> 4637806.942
B9: Remission of rates | D9: Remission of Regional Rates | F9: 0 | G9: 0 | J9: 0 | K9: =+G9-J9 -> 0 | P9: Essbase | Q9: rates model | R9: manual adj | S9: to input to Essbase
B10: Public transport rate | D10: Transport Rate | F10: 64656396.13 | G10: 67273010.4 | H10: =+G10/F10-1 -> 0.04046953483 | J10: 64656396.13 | K10: 2616614.275
B11: Flood protection – regional rate | D11: Flood protection - regional rates | G11: =S13 -> 9735000 | J11: 10679230.94 | K11: -944230.9371 | M11: New category to be added in GL | O11: General | P11: 48100746 | R11: =-R12-R13 -> -11658595 | S11: =P11+R11 -> 36442151
B12: Flood protection – catchment rate | D12: Flood protection - Catchment rates | F12: 5826660.417 | G12: =6462495.46518727+R12 -> 8386090.465 | H12: =+G12/F12-1 -> 0.439261921 | J12: 5826660.315 | K12: 2559430.15 | M12: New category to be added in GL, was "River Mgmt Rates" | O12: River | P12: 6462495 | Q12: =Control!C94 -> 8386090 | R12: =Q12-P12 -> 1923595 | S12: =P12+R12 -> 8386090
B13: Stadium purposes rate | D13: Stadium Rate | F13: 978091.35 | G13: 0 | H13: -1 | J13: 978091.35 | K13: -978091.35 | O13: FP- regional | Q13: =Control!B94 -> 9735000 | R13: =Q13-P13 -> 9735000 | S13: =P13+R13 -> 9735000
B14: Regional strategy rate | D14: WRS Rate | F14: 4822017.219 | G14: 4907860.821 | H14: 0.01780242545 | J14: 4822017.219 | K14: 85843.60205
B15: District-Wide Rates | D15: District-Wide Rates | F15: =SUM(F8:F14) -> 118764835.6 | G15: =SUM(G8:G14) -> 126744112.7 | H15: 0.0671855182 | J15: 118766740 | K15: 7977372.681
B16: Rates penalties | D16: Rates Penalties | F16: 0 | G16: 0 | J16: 0 | K16: 0
B17: Remission of rates penalties | D17: Remission of Rates Penalties | F17: 0 | G17: 0 | J17: 0 | K17: 0
B18: Pest management rate | D18: Pest Rate | F18: 472000 | G18: 532000 | H18: 0.1271186441 | J18: 472000 | K18: 60000
B19: River Mgmt Rates - Non District Wide | D19: River Mgmt Rates - Non District Wide | F19: 93297.36 | G19: 95164 | H19: 0.02000742572 | J19: 93297.36 | K19: 1866.64
B20: Special Rates | D20: Special Rates | F20: 1451756.116 | G20: 1480589 | H20: 0.01986069401 | J20: 1451707.832 | K20: 28881.168 | M20: Rename "Flood Protection - Property"
B21: Total Other Rates | D21: Total Other Rates | F21: =SUM(F16:F20) -> 2017053.476 | G21: =SUM(G16:G20) -> 2107753 | H21: 0.04496634575 | J21: 2017005.192 | K21: 90747.808
B22: Total Regnl Rates | D22: Total Regnl Rates | F22: =F21+F15 -> 120781889.1 | G22: =G21+G15 -> 128851865.7 | H22: =+G22/F22-1 -> 0.06681445877 | J22: 120783745.2 | K22: 8068120.489
B23: Bulk water levies | D23: Bulk Water Levies | F23: 30862765.44 | G23: 33068898.04 | H23: 0.07148201307 | J23: 30668029.58 | K23: 2400868.461
B24: Total Regnl Rates & levies | D24: Total Regnl Rates & levies | F24: =SUM(F22:F23) -> 151644654.5 | G24: =SUM(G22:G23) -> 161920763.7 | H24: =+G24/F24-1 -> 0.06776440082 | J24: 151451774.9 | K24: 10468988.85 | M24: Row added to reconcile total
B25: Warm Greater Wellington rate | D25: Warm Greater Wellington rate | F25: 3181767 | G25: 3237058 | H25: 0.01737745096 | J25: 3181767.073 | K25: 55290.92744 | M25: Row added to reconcile total
B26: Total Rates & Levies | D26: Total Rates & Levies | F26: =SUM(F24:F25) -> 154826421.5 | G26: =SUM(G24:G25) -> 165157821.7 | H26: 0.06672892165 | J26: 154633541.9 | K26: 10524279.78
B31: Total River, Drainage etc | D31: Total River, Drainage etc
B33: General Rates | C33: Te Hunga Whiriwhiri Department | D33: General Rates | F33: 1033308.058 | G33: 1322264.386 | H33: =+G33/F33-1 -> 0.2796419952 | J33: 1033308.058 | K33: 288956.3271
B34: General Rates | C34: Managing Emergencies | D34: General Rates | F34: 1303299.144 | G34: 1454741.32 | H34: =+G34/F34-1 -> 0.1161990909 | J34: 1303299.144 | K34: 151442.1757
B35: General Rates | C35: Rates Collection.. | D35: General Rates | F35: 0 | G35: 0 | H35: 0 | J35: 0 | K35: 0
B36: General Rates | C36: Old 30000 | D36: General Rates | F36: 16860390.21 | G36: 18407195.97 | H36: =+G36/F36-1 -> 0.09174199058 | J36: 16947905.22 | K36: 1459290.754
B37: General Rates | C37: Parks & Forests Group | D37: General Rates | F37: 5882830.082 | G37: 5919808.138 | H37: =+G37/F37-1 -> 0.006285759679 | J37: 5911654.038 | K37: 8154.100232
B38: General Rates | C38: Wairarapa Water Use (was Env Edu) activity | D38: General Rates | F38: 361326.3535 | G38: 425103.9757 | H38: =+G38/F38-1 -> 0.1765097439 | J38: 361326.3535 | K38: 63777.62214
B39: General Rates | C39: Catchment Management (excluding forests) | D39: General Rates | F39: 21662719.48 | G39: =22790704.2516897+R11 -> 11132109.25 | H39: =+G39/F39-1 -> -0.486116724 | J39: 21662719.48 | K39: -10530610.23
B40: General Rates | C40: Strategy Group | D40: General Rates | F40: 5273359.228 | G40: 6446744.482 | H40: =+G40/F40-1 -> 0.2225119138 | J40: 5273359.228 | K40: 1173385.254
K41: 0
B42: General Rates | C42: Investment Management. | D42: General Rates | F42: -9897893.768 | G42: -8665816.554 | H42: =+G42/F42-1 -> -0.1244787268 | J42: -10009996.55 | K42: 1344179.997
B44: General Rates | C44: WRC - Mgmt | D44: General Rates | F44: =SUM(F33:F42) -> 42479338.79 | G44: =SUM(G33:G42) -> 36442150.97 | H44: =+G44/F44-1 -> -0.1421205694 | J44: 42483574.97 | K44: -6041423.995
F46: 0 | G46: =SUM(G33:G42)-G44 -> 0 | J46: 0 | K46: 0
B52: Warm Greater Wellington rate | C52: Warm Greater Wellington management | D52: Warm Greater Wellington rate | F52: 3268007.073 | G52: 3237058 | H52: =+G52/F52-1 -> -0.009470319944 | J52: 3181767.073
B53: External Income | C53: Warm Greater Wellington management | D53: External Income | F53: 0 | G53: 0 | H53: 0 | J53: 0

Sheet Class Rates
A1: Wellington Regional Council
A2: ="Class rates "&year_current -> Class rates 2018/19
A3: Printed : | B3: =NOW() -> 2018-03-27T14:57:00.990
A4: =check_total -> 8066.052688
A6: 2016-12-01 | B6: Revenue Required | D6: Class | E6: $ per Hectare | F6: Class Total | G6: Class Areas | H6: Scheme Total | I6: Var
A7: Draft | B7: ex gst | E7: ex gst | F7: ex gst | G7: Hectares | H7: ex gst | I7: $ | K7: Lookup index
A8: River Management | K8: Scheme | L8: Class | M8: Concat
A9: Waingawa | B9: 40635 | D9: A | E9: 146.8098727 | F9: =E9*G9 -> 4979.952374 | G9: 33.9211 | H9: =SUM(F9:F16) -> 40635 | I9: =B9-H9 -> 0 | K9: =A9 -> Waingawa | L9: =D9 -> A | M9: =K9&L9 -> WaingawaA
D10: B | E10: 95.42641728 | F10: =E10*G10 -> 12423.79429 | G10: 130.1924 | K10: =K9 -> Waingawa | L10: B | M10: =K10&L10 -> WaingawaB
D11: C | E11: 73.40493637 | F11: =SUM(E11*G11) -> 8381.001269 | G11: 114.1749 | K11: Waingawa | L11: C | M11: WaingawaC
D12: D | E12: 66.06444273 | F12: =E12*G12 -> 153.9565773 | G12: 2.3304 | K12: Waingawa | L12: D | M12: WaingawaD
D13: E | E13: 58.72394909 | F13: =E13*G13 -> 9854.260363 | G13: 167.8065 | K13: Waingawa | L13: E | M13: WaingawaE
D14: F | E14: 51.38345546 | F14: =E14*G14 -> 1333.750077 | G14: 25.9568 | K14: Waingawa | L14: F | M14: WaingawaF
D15: G | E15: 22.02148091 | F15: =E15*G15 -> 1030.134399 | G15: 46.778616 | K15: Waingawa | L15: G | M15: WaingawaG
D16: H | E16: 14.68098727 | F16: =E16*G16 -> 2478.150652 | G16: 168.8 | K16: Waingawa | L16: H | M16: WaingawaH
A17: Lower Wairarapa Valley Development Scheme | B17: 769460 | D17: A | E17: 0.2341872774 | F17: =E17*G17+J17 -> 676524.1077 | G17: 2888816.657 | H17: =SUM(F17:F19) -> 769459.6032 | I17: =B17-H17 -> 0.3967528765 | K17: =A17 -> Lower Wairarapa Valley Development Scheme | L17: A | M17: Lower Wairarapa Valley Development SchemeA
D18: Sa | E18: 18.80247294 | F18: =E18*G18 -> 7840.631216 | G18: 417 | K18: Lower Wairarapa Valley Development Scheme | L18: Sa | M18: Lower Wairarapa Valley Development SchemeSa
D19: Sb | E19: 37.6193034 | F19: 85094.86429 | G19: 2262 | K19: Lower Wairarapa Valley Development Scheme | L19: Sb | M19: Lower Wairarapa Valley Development SchemeSb
A20: Upper Ruamahanga | B20: 42007 | D20: A | E20: 132.7757248 | F20: =E20*G20+J20 -> 11819.57655 | G20: 89.01910773 | H20: =SUM(F20:F26) -> 42007 | I20: =B20-H20 -> 0 | K20: =A20 -> Upper Ruamahanga | L20: A | M20: Upper RuamahangaA
A21: (Mt Bruce - Te Ore Ore) | D21: B | E21: 110.6464373 | F21: 729.5067109 | G21: 6.593133305 | K21: =K20 -> Upper Ruamahanga | L21: B | M21: Upper RuamahangaB
D22: C | E22: 88.51714984 | F22: 11043.78113 | G22: 124.7643101 | K22: Upper Ruamahanga | L22: C | M22: Upper RuamahangaC
D23: D | E23: 66.38786238 | F23: 1169.435473 | G23: 17.6152 | K23: Upper Ruamahanga | L23: D | M23: Upper RuamahangaD
D24: E | E24: 44.25857492 | F24: 13130.68114 | G24: 296.6810649 | K24: Upper Ruamahanga | L24: E | M24: Upper RuamahangaE
D25: F | E25: 22.12928746 | F25: 872.4043693 | G25: 39.42306641 | K25: Upper Ruamahanga | L25: F | M25: Upper RuamahangaF
D26: S | E26: 1246.774858 | F26: 3241.61463 | G26: 2.6 | K26: Upper Ruamahanga | L26: S | M26: Upper RuamahangaS
A27: Middle Ruamahanga | B27: 29642 | D27: A | E27: 130.9622033 | F27: =E27*G27+J27 -> 5283.166748 | G27: 40.34115657 | H27: =SUM(F27:F33) -> 29642 | I27: =B27-H27 -> 0 | K27: =A27 -> Middle Ruamahanga | L27: A | M27: Middle RuamahangaA
A28: (Te Ore Ore - Gladstone) | D28: B | E28: 109.1351694 | F28: 5956.552732 | G28: 54.57958936 | K28: =K27 -> Middle Ruamahanga | L28: B | M28: Middle RuamahangaB
D29: C | E29: 87.30813553 | F29: 446.4326894 | G29: 5.1133 | K29: Middle Ruamahanga | L29: C | M29: Middle RuamahangaC
D30: D | E30: 65.48110165 | F30: 7412.989876 | G30: 113.2080812 | K30: Middle Ruamahanga | L30: D | M30: Middle RuamahangaD
D31: E | E31: 43.65406777 | F31: 1316.35349 | G31: 30.1542 | K31: Middle Ruamahanga | L31: E | M31: Middle RuamahangaE
D32: F | E32: 21.82703388 | F32: 6452.973489 | G32: 295.6413374 | K32: Middle Ruamahanga | L32: F | M32: Middle RuamahangaF
D33: S | E33: 1320.729036 | F33: 2773.530975 | G33: 2.1 | K33: Middle Ruamahanga | L33: S | M33: Middle RuamahangaS
A34: Lower Ruamahanga | B34: 68591 | D34: A | E34: 63.01058251 | F34: =E34*G34+J34 -> 7906.166579 | G34: 125.473631 | H34: =SUM(F34:F41) -> 68591 | I34: =B34-H34 -> 0 | K34: =A34 -> Lower Ruamahanga | L34: A | M34: Lower RuamahangaA
A35: (Gladstone - Waiohine) | D35: B | E35: 54.00907073 | F35: 2907.367687 | G35: 53.8311 | K35: =K34 -> Lower Ruamahanga | L35: B | M35: Lower RuamahangaB
D36: C | E36: 45.00755894 | F36: 10080.64903 | G36: 223.9768 | K36: Lower Ruamahanga | L36: C | M36: Lower RuamahangaC
D37: D | E37: 36.00604715 | F37: 11468.35449 | G37: 318.5119 | K37: Lower Ruamahanga | L37: D | M37: Lower RuamahangaD
D38: E | E38: 27.00453536 | F38: 8736.613868 | G38: 323.523947 | K38: Lower Ruamahanga | L38: E | M38: Lower RuamahangaE
D39: F | E39: 18.00302358 | F39: 22040.94694 | G39: 1224.2914 | K39: Lower Ruamahanga | L39: F | M39: Lower RuamahangaF
D40: SA | E40: 1579.97137 | F40: 4107.925562 | G40: 2.6 | K40: Lower Ruamahanga | L40: SA | M40: Lower RuamahangaSA
D41: SB | E41: 789.9857943 | F41: 1342.97585 | G41: 1.7 | K41: Lower Ruamahanga | L41: =D41 -> SB | M41: Lower RuamahangaSB
A42: Waiohine Rural | B42: 92549 | D42: A | E42: 45.78519365 | F42: =E42*G42 -> 5150.211607 | G42: 112.4864 | H42: =SUM(F42:F47) -> 92549 | I42: =B42-H42 -> 0 | K42: =A42 -> Waiohine Rural | L42: A | M42: Waiohine RuralA
D43: B | E43: 38.15432804 | F43: =E43*G43 -> 14613.98901 | G43: 383.0231 | K43: =K42 -> Waiohine Rural | L43: B | M43: Waiohine RuralB
D44: C | E44: 30.52346243 | F44: 39000.59809 | G44: 1277.725231 | K44: Waiohine Rural | L44: C | M44: Waiohine RuralC
D45: D | E45: 22.89259683 | F45: 8505.107936 | G45: 371.5222 | K45: Waiohine Rural | L45: D | M45: Waiohine RuralD
D46: E | E46: 15.26173122 | F46: 12230.31317 | G46: 801.371286 | K46: Waiohine Rural | L46: E | M46: Waiohine RuralE
D47: S | E47: 763.0865608 | F47: 13048.78019 | G47: 17.1 | K47: Waiohine Rural | L47: S | M47: Waiohine RuralS
A48: Mangatarere | B48: 9907 | D48: A | E48: 34.61407718 | F48: 742.7142541 | G48: 21.457 | H48: =SUM(F48:F51) -> 9906.999517 | I48: =B48-H48 -> 0.0004825546348 | K48: =A48 -> Mangatarere | L48: A | M48: MangatarereA
D49: B | E49: 33.1091173 | F49: 6937.9758 | G49: 209.5488 | K49: =K48 -> Mangatarere | L49: B | M49: MangatarereB
D50: C | E50: 28.056752 | F50: 442.4100883 | G50: 15.7684 | K50: Mangatarere | L50: C | M50: MangatarereC
D51: D | E51: 24.83183798 | F51: 1783.899375 | G51: 71.8392 | K51: Mangatarere | L51: D | M51: MangatarereD
A52: Waipoua | B52: 51896 | D52: A | E52: 111.4783952 | F52: 9754.181216 | G52: 87.4984 | H52: =SUM(F52:F57) -> 51896 | I52: =B52-H52 -> 0 | K52: =A52 -> Waipoua | L52: A | M52: WaipouaA
D53: B | E53: 89.18271617 | F53: 26784.19164 | G53: 300.3294 | K53: =K52 -> Waipoua | L53: B | M53: WaipouaB
D54: C | E54: 66.88703713 | F54: 1501.727692 | G54: 22.4517 | K54: =K53 -> Waipoua | L54: C | M54: WaipouaC
D55: D | E55: 44.59135809 | F55: 13253.91612 | G55: 297.2306 | K55: Waipoua | L55: D | M55: WaipouaD
D56: SA | E56: 3767.969758 | F56: 376.7969758 | G56: 0.1 | K56: Waipoua | L56: SA | M56: WaipouaSA
D57: SC | E57: 2251.863583 | F57: 225.1863583 | G57: 0.1 | K57: Waipoua | L57: SC | M57: WaipouaSC
A58: Kopuaranga | B58: 22357 | D58: A2 | E58: 125.4415319 | F58: 3268.253671 | G58: 26.054 | H58: =SUM(F58:F69) -> 22356 | I58: =B58-H58 -> 1 | K58: =A58 -> Kopuaranga | L58: A2 | M58: KopuarangaA2
D59: A3 | E59: 112.8973787 | F59: 7779.024532 | G59: 68.9035 | K59: =K58 -> Kopuaranga | L59: A3 | M59: KopuarangaA3
D60: A4 | E60: 62.72076593 | F60: 707.7850273 | G60: 11.2847 | K60: Kopuaranga | L60: A4 | M60: KopuarangaA4
D61: A5 | E61: 43.90453615 | F61: 2534.345445 | G61: 57.724 | K61: Kopuaranga | L61: A5 | M61: KopuarangaA5
D62: A6 | E62: 25.08830637 | F62: =E62*G62 -> 2035.439384 | G62: 81.131 | K62: Kopuaranga | L62: A6 | M62: KopuarangaA6
D63: B2 | E63: 25.08830637 | F63: 1537.338658 | G63: 61.2771 | K63: Kopuaranga | L63: B2 | M63: KopuarangaB2
D64: B3 | E64: 22.57947574 | F64: 1658.266051 | G64: 73.4413 | K64: Kopuaranga | L64: B3 | M64: KopuarangaB3
D65: B4 | E65: 12.54415319 | F65: 116.3997063 | G65: 9.2792 | K65: Kopuaranga | L65: B4 | M65: KopuarangaB4
D66: B5 | E66: 8.780907231 | F66: 272.8140068 | G66: 31.069 | K66: Kopuaranga | L66: B5 | M66: KopuarangaB5
D67: B6 | E67: 5.017661275 | F67: 603.4445173 | G67: 120.2641 | K67: Kopuaranga | L67: B6 | M67: KopuarangaB6
D68: SA | E68: 153.5742 | F68: 767.871 | G68: 5 | K68: Kopuaranga | L68: SA | M68: KopuarangaSA
D69: SB | E69: 76.787 | F69: 1075.018 | G69: 14 | K69: Kopuaranga | L69: SB | M69: KopuarangaSB
A70: Lower Taueru | B70: 2263 | D70: A | E70: 4.058768509 | F70: =E70*G70+J70 -> 1653.678543 | G70: 407.43357 | H70: =SUM(F70:F73) -> 2263 | I70: =B70-H70 -> 0 | K70: =A70 -> Lower Taueru | L70: =D70 -> A | M70: Lower TaueruA
D71: B | E71: 0.8117537017 | F71: 228.9494607 | G71: 282.043014 | K71: =K70 -> Lower Taueru | L71: B | M71: =K71&L71 -> Lower TaueruB
D72: C | E72: 0.4058768509 | F72: =E72*G72 -> 72.31146622 | G72: 178.1611 | K72: Lower Taueru | L72: C | M72: Lower TaueruC
D73: S | E73: 202.9384254 | F73: 308.0605298 | G73: 1.518 | K73: Lower Taueru | L73: S | M73: Lower TaueruS
A74: Lower Whangaehu | B74: 4114 | D74: A | E74: 21.62306943 | F74: =E74*G74+J74 -> 721.9964505 | G74: 33.3901 | H74: =SUM(F74:F79) -> 4114 | I74: =B74-H74 -> 0 | K74: =A74 -> Lower Whangaehu | L74: A | M74: Lower WhangaehuA
D75: B | E75: 17.29845554 | F75: =E75*G75 -> 1125.835382 | G75: 65.083 | K75: =K74 -> Lower Whangaehu | L75: B | M75: Lower WhangaehuB
D76: C | E76: 12.97384166 | F76: =E76*G76 -> 705.8366658 | G76: 54.4046 | K76: Lower Whangaehu | L76: C | M76: Lower WhangaehuC
D77: D | E77: 8.649227772 | F77: =E77*G77 -> 662.2609914 | G77: 76.5688 | K77: Lower Whangaehu | L77: D | M77: Lower WhangaehuD
D78: E | E78: 4.324613886 | F78: =E78*G78 -> 753.5311025 | G78: 174.2424 | K78: Lower Whangaehu | L78: E | M78: Lower WhangaehuE
D79: S | E79: 108.1153471 | F79: =E79*G79 -> 144.5394076 | G79: 1.3369 | K79: Lower Whangaehu | L79: S | M79: Lower WhangaehuS
A80: Catchment Schemes | K80: Lower Whangaehu | L80: 0 | M80: Lower Whangaehu0
A81: Awhea-Opouawe | B81: 18992 | D81: A | F81: =E81*G81 -> 0 | G81: 2224.6093 | H81: =H149 -> 18992.38 | I81: =B81-H81 -> -0.38 | K81: =A81 -> Awhea-Opouawe | L81: A | M81: Awhea-OpouaweA
D82: B | F82: =E82*G82 -> 0 | G82: 1956.3707 | H82: see bottom of sheet | K82: =K81 -> Awhea-Opouawe | L82: B | M82: Awhea-OpouaweB
A83: see bottom of sheet | D83: C | F83: 0 | G83: 1789.5901 | K83: Awhea-Opouawe | L83: C | M83: Awhea-OpouaweC
D84: D | F84: 0 | G84: 685.6269 | K84: Awhea-Opouawe | L84: D | M84: Awhea-OpouaweD
D85: E | F85: 0 | G85: 31708.3607 | K85: Awhea-Opouawe | L85: E | M85: Awhea-OpouaweE
D86: F | F86: 0 | G86: 3356.5217 | K86: Awhea-Opouawe | L86: F | M86: Awhea-OpouaweF
D87: SA | F87: 0 | G87: 0.65 | K87: Awhea-Opouawe | L87: SA | M87: Awhea-OpouaweSA
D88: SB | F88: 0 | G88: 0.21 | K88: Awhea-Opouawe | L88: SB | M88: Awhea-OpouaweSB
A89: Whareama | B89: 17356 | D89: A | E89: 4.077827534 | F89: =E89*G89+J89 -> 2917.22088 | G89: 715.3860372 | H89: =SUM(F89:F94) -> 17356 | I89: =B89-H89 -> 0 | K89: =A89 -> Whareama | L89: A | M89: WhareamaA
D90: B | E90: 1.568395205 | F90: 1493.998285 | G90: 952.5649402 | K90: =K89 -> Whareama | L90: B | M90: WhareamaB
D91: C | E91: 0.2744691609 | F91: 12508.96495 | G91: 45575.12003 | K91: Whareama | L91: C | M91: WhareamaC
D92: D | E92: 0.2352592808 | F92: 0 | G92: 0 | K92: Whareama | L92: D | M92: WhareamaD
D93: E | E93: 0.1960494007 | F93: 3.019650894 | G93: 15.4025 | K93: Whareama | L93: E | M93: WhareamaE
D94: F | E94: 0.1568395205 | F94: 432.7962295 | G94: 2759.484523 | K94: Whareama | L94: F | M94: WhareamaF
A95: Homewood | B95: 10057 | D95: A | E95: 1.654117647 | F95: 3795.759298 | G95: 2294.733573 | H95: =SUM(F95:F98) -> 10057.06363 | I95: =B95-H95 -> -0.06362707305 | K95: =A95 -> Homewood | L95: A | M95: HomewoodA
D96: B | E96: 1.575294118 | F96: 870.2431084 | G96: 552.432145 | K96: =K95 -> Homewood | L96: B | M96: HomewoodB
D97: C | E97: 1.378431373 | F97: 5048.4689 | G97: 3662.473882 | K97: Homewood | L97: C | M97: HomewoodC
D98: D | E98: 0.1969607843 | F98: 342.5923202 | G98: 1739.393562 | K98: Homewood | L98: D | M98: HomewoodD
A99: Mataikona-Whakataki | B99: 4584 | D99: A | F99: 0 | G99: 4067.5168 | H99: =H153 -> 4584 | I99: =B99-H99 -> 0 | K99: =A99 -> Mataikona-Whakataki | L99: A | M99: Mataikona-WhakatakiA
D100: B | F100: 0 | G100: 7767.279 | H100: see bottom of sheet | K100: =K99 -> Mataikona-Whakataki | L100: B | M100: Mataikona-WhakatakiB
A101: see bottom of sheet | D101: C | F101: 0 | G101: 11511.3636 | K101: Mataikona-Whakataki | L101: C | M101: Mataikona-WhakatakiC
D102: S | F102: 0 | G102: 12.2 | K102: Mataikona-Whakataki | L102: =D102 -> S | M102: Mataikona-WhakatakiS
A103: Maungaraki | B103: 5990 | D103: A | F103: - | G103: 3305.4718 | H103: =SUM(H155:H158) -> 5990 | I103: =B103-H103 -> 0 | K103: =A103 -> Maungaraki | L103: A | M103: MaungarakiA
D104: B | F104: - | G104: 2971.2169 | H104: see bottom of sheet | K104: =K103 -> Maungaraki | L104: B | M104: MaungarakiB
D105: C | F105: - | K105: =K104 -> Maungaraki | L105: C | M105: MaungarakiC
A106: Upper Kaiwhata | B106: 2168 | D106: A | E106: 9.064369309 | F106: =E106*G106 -> 295.6262471 | G106: 32.6141 | H106: =SUM(F106:F111) -> 2168 | I106: =B106-H106 -> 0 | K106: =A106 -> Upper Kaiwhata | L106: A | M106: Upper KaiwhataA
D107: B | E107: 3.965661573 | F107: 208.6247309 | G107: 52.6078 | K107: =K106 -> Upper Kaiwhata | L107: B | M107: Upper KaiwhataB
D108: C | E108: 0.5665230818 | F108: 542.8382247 | G108: 958.1926 | K108: Upper Kaiwhata | L108: C | M108: Upper KaiwhataC
D109: D | E109: 0.3399138491 | F109: 697.7339179 | G109: 2052.6787 | K109: Upper Kaiwhata | L109: D | M109: Upper KaiwhataD
D110: E | E110: 0.2266092327 | F110: 371.9160581 | G110: 1641.222 | K110: Upper Kaiwhata | L110: E | M110: Upper KaiwhataE
D111: F | E111: 0.1133046164 | F111: 51.26082132 | G111: 452.416 | K111: Upper Kaiwhata | L111: F | M111: Upper KaiwhataF
A112: Lower Kaiwhata | B112: 3728 | D112: A | E112: 14.72961911 | F112: 676.5431893 | G112: 45.9308 | H112: =SUM(F112:F117) -> 3728 | I112: =B112-H112 -> 0 | K112: =A112 -> Lower Kaiwhata | L112: A | M112: Lower KaiwhataA
D113: B | E113: 6.44420836 | F113: 286.1666718 | G113: 44.4068 | K113: =K112 -> Lower Kaiwhata | L113: B | M113: Lower KaiwhataB
D114: C | E114: 0.9206011943 | F114: 1066.646196 | G114: 1158.6409 | K114: Lower Kaiwhata | L114: C | M114: Lower KaiwhataC
D115: D | E115: 0.5523607166 | F115: 1634.513354 | G115: 2959.1412 | K115: Lower Kaiwhata | L115: D | M115: Lower KaiwhataD
D116: E | E116: 0.361 | F116: 0 | G116: 0 | K116: Lower Kaiwhata | L116: E | M116: Lower KaiwhataE
D117: F | E117: 0.1841202389 | F117: 64.13058898 | G117: 348.3082 | K117: Lower Kaiwhata | L117: F | M117: Lower KaiwhataF
A118: Pump Drainage | L118: 0 | M118: 0
A119: Te Hopai | B119: 56304 | D119: A | E119: 45.16542618 | F119: =E119*G119 -> 56304 | G119: 1246.617264 | H119: =F119 -> 56304 | I119: =B119-H119 -> 0 | K119: =A119 -> Te Hopai | L119: A | M119: Te HopaiA
A120: Moonmoot Pump | B120: 27540 | D120: A | E120: 120.936515 | F120: =E120*G120 -> 27540 | G120: 227.722785 | H120: =F120 -> 27540 | I120: =B120-H120 -> 0 | K120: =A120 -> Moonmoot Pump | L120: A | M120: Moonmoot PumpA
A121: Onoke Pump | B121: 52767 | D121: A | E121: 73.96266096 | F121: =E121*G121 -> 52767 | G121: 713.42755 | H121: =F121 -> 52767 | I121: =B121-H121 -> 0 | K121: =A121 -> Onoke Pump | L121: A | M121: Onoke PumpA
A122: Pouawha Pump | B122: 105499 | D122: A | E122: 111.5800878 | F122: =E122*G122 -> 105499 | G122: 945.500242 | H122: =F122 -> 105499 | I122: =B122-H122 -> 0 | K122: =A122 -> Pouawha Pump | L122: A | M122: Pouawha PumpA
A123: Gravity Drainage | L123: 0 | M123: 0
A124: Okawa | B124: 2016 | D124: A | E124: 7.14890929 | F124: =E124*G124 -> 2016 | G124: 282.0010603 | H124: =F124 -> 2016 | I124: =B124-H124 -> 0 | K124: =A124 -> Okawa | L124: A | M124: OkawaA
A125: Taumata | B125: 1871 | D125: A | E125: 6.439229812 | F125: 1871 | G125: 290.5627 | H125: =F125 -> 1871 | I125: =B125-H125 -> 0 | K125: =A125 -> Taumata | L125: A | M125: TaumataA
A126: East Pukio | B126: 3213 | D126: A | E126: 28.29512242 | F126: 3213 | G126: 113.5531401 | H126: =F126 -> 3213 | I126: 0 | K126: =A126 -> East Pukio | L126: A | M126: East PukioA
A127: Longbush | B127: 4516 | D127: A | E127: 16.07125908 | F127: 3505.886047 | G127: 218.1463214 | H127: =SUM(F127:F128) -> 4516 | I127: 0 | K127: =A127 -> Longbush | L127: A | M127: LongbushA
D128: B | E128: 8.035629539 | F128: 1010.113953 | G128: 125.7043954 | I128: 0 | K128: =K127 -> Longbush | L128: B | M128: LongbushB
A129: Otahoua | B129: 3060 | D129: A | E129: 33.00457213 | F129: 3060 | G129: 92.7144272 | H129: =F129 -> 3060 | I129: =B129-H129 -> 0 | K129: =A129 -> Otahoua | L129: A | M129: OtahouaA
A130: Te Whiti | B130: 1375 | D130: A | E130: 9.73285955 | F130: 1375 | G130: 141.274 | H130: =F130 -> 1375 | I130: 0 | K130: =A130 -> Te Whiti | L130: A | M130: Te WhitiA
A131: Ahikouka | B131: 3109 | D131: A | E131: 27.70758666 | F131: 3109 | G131: 112.207535 | H131: =F131 -> 3109 | I131: 0 | K131: =A131 -> Ahikouka | L131: A | M131: AhikoukaA
A132: Battersea | B132: 10539 | D132: A | E132: 15.38320624 | F132: =E132*G132 -> 2595.164603 | G132: 168.7011513 | H132: =SUM(F132:F137) -> 10539 | I132: 0 | K132: =A132 -> Battersea | L132: A | M132: BatterseaA
D133: B | E133: 12.73663312 | F133: 2488.238196 | G133: 195.3607497 | K133: =K132 -> Battersea | L133: B | M133: BatterseaB
D134: C | E134: 9.924649186 | F134: 3156.150946 | G134: 318.0113359 | K134: =K133 -> Battersea | L134: =D134 -> C | M134: BatterseaC
D135: D | E135: 5.954789512 | F135: =E135*G135 -> 909.5175817 | G135: 152.7371505 | K135: Battersea | L135: D | M135: =K135&L135 -> BatterseaD
D136: E | E136: 5.127735413 | F136: 1040.391017 | G136: 202.8948324 | K136: Battersea | L136: E | M136: BatterseaE
D137: F | E137: 4.962324593 | F137: 349.5376561 | G137: 70.43828946 | K137: Battersea | L137: F | M137: BatterseaF
A138: Manaia | B138: 4048 | D138: A | E138: 23.20564887 | F138: 4048 | G138: 174.4402849 | H138: =F138 -> 4048 | I138: =B138-H138 -> 0 | K138: =A138 -> Manaia | L138: A | M138: ManaiaA
A139: Whakawiriwiri | B139: 8438 | D139: A | E139: 11.70526774 | F139: 8438 | G139: 720.8720197 | H139: =F139 -> 8438 | I139: =B139-H139 -> 0 | K139: =A139 -> Whakawiriwiri | L139: A | M139: WhakawiriwiriA
A140: Total Scheme Rates | B140: =SUM(B9:B139) -> 1480591 | F140: =SUM(F8:F139)+H149+H153+H155+H156+H157+H158 -> 1480590.046 | H140: =SUM(H8:H139) -> 1480590.046 | I140: =SUM(I8:I139) -> 0.9536083581
A141: Checks | B141: =IF(ABS(INDEX(ESSbase!$G$8:$G$26,MATCH("Special Rates",ESSbase!$B$8:$B$26,0),)-B140)>tolerance_dollar,1,0) -> 0 | F141: =IF(ABS(INDEX(ESSbase!$G$8:$G$26,MATCH("Special Rates",ESSbase!$B$8:$B$26,0),)-F140)>tolerance_dollar,1,0) -> 0 | H141: =IF(ABS(INDEX(ESSbase!$G$8:$G$26,MATCH("Special Rates",ESSbase!$B$8:$B$26,0),)-H140)>tolerance_dollar,1,0) -> 0
A145: Revised
A146: Catchment Schemes | B146: $GST Excl | E146: Rate Base | K146: 67774000
A147: Awhea-Opouawe Catchment Scheme | B147: =B81 -> 18992 | E147: land value | F147: $67,774,000 x 0.00013 cents | H147: =K148 -> 8945 | K147: 0.0001319827663
E148: charge per dwelling | F148: $114.54 / $57.27 | H148: 10047.38 | K148: =K146*K147 -> 8945
H149: =SUM(H147:H148) -> 18992.38
A151: Mataikona Whakataki Catchment Scheme | B151: =B99 -> 4584 | E151: land value within scheme area | F151: $74213500 x 0.000037109 cents | H151: =K153 -> 2754 | K151: 74213500
E152: charge per dwelling | F152: 15.3 | H152: 1830 | K152: 3.71091513e-05
H153: =SUM(H151:H152) -> 4584 | K153: =K151*K152 -> 2754
A155: Maungaraki Catchment Scheme | B155: =B103 -> 5990 | E155: Class A | F155: 0.8627511758 | G155: 3305.4718 | H155: =F155*G155 -> 2851.799682
E156: Class B | F156: 0.4060005533 | G156: 2971.2169 | H156: =F156*G156 -> 1206.315705
E157: Charge per dwelling | F157: 30.4500415 | G157: 19 | H157: 578.5507884
E158: River frontage | F158: 0.02842003873 | G158: 47619 | H158: =F158*G158 -> 1353.333824
A162: Notes
A163: All River Management schemes have hectare adjustments which in turn affect the $/ha and total columns
A164: Upper Mangatarere River scheme on rates holiday
A165: Bovine Tb rate has been deleted

Sheet TA Split
A1: Scheme Name | B1: No | C1: Class | D1: Class Area | E1: $ per Hectare | F1: TDC | G1: TDC | H1: MDC | I1: MDC | J1: CDC | K1: CDC | L1: SWDC | M1: SWDC | N1: UHCC | O1: UHCC | P1: HCC | Q1: HCC | R1: KCDC | S1: KCDC | T1: WCC | U1: WCC | V1: PCC | W1: PCC | X1: Total Area | Y1: Variance | Z1: Class Total | AA1: Scheme Total | AB1: Comments
D2: Total Hectares | E2: GST exc | F2: Area ha | G2: Revenue | H2: Area ha | I2: Revenue | J2: Area ha | K2: Revenue | L2: Area ha | M2: Revenue | N2: 15170 to 15230 | O2: Revenue | P2: 15780 to 15890 | Q2: Revenue | R2: 14860 to 15150 | S2: Revenue | T2: 16690 | U2: Revenue | W2: Revenue | X2: TA Hectares | Y2: Hectares | Z2: $ GST exc | AA2: $ GST exc
F3: 11130 to 17750 | G3: $ GST excl | H3: 17870 to 18130 | I3: $ GST exc | J3: 18140 to 18190 | K3: $ GST exc | L3: 18230 to 18480 | M3: $ GST exc | N3: 1590 to 16016 | O3: $ GST exc | P3: 16031 to 16600 | Q3: $ GST exc | R3: 15251 to 15410 | S3: $ GST exc | U3: $ GST exc | W3: $ GST exc | Y3: (D-X)
A4: River Management
A5: Waingawa | B5: 453 | C5: A | D5: ='[6]Class Rates'!G4 -> 33.9211 | E5: ='[6]Class Rates'!E4 -> 146.8098727 | H5: 22.4398 | I5: =H5*E5 -> 3294.384182 | J5: 11.4813 | K5: =J5*E5 -> 1685.568192 | X5: =SUM(F5+H5+J5+L5+N5+R5+P5) -> 33.9211 | Y5: =D5-X5 -> 0 | Z5: =G5+I5+K5+M5+O5+Q5+S5 -> 4979.952374
C6: B | D6: ='[6]Class Rates'!G5 -> 130.1924 | E6: ='[6]Class Rates'!E5 -> 95.42641728 | H6: 61.3092 | I6: 5850.517302 | J6: 68.8832 | K6: 6573.276987 | X6: =SUM(F6+H6+J6+L6+N6+R6+P6) -> 130.1924 | Y6: 0 | Z6: 12423.79429
C7: C | D7: ='[6]Class Rates'!G6 -> 114.1749 | E7: ='[6]Class Rates'!E6 -> 73.40493637 | H7: 58.2934 | I7: 4279.023318 | J7: 55.8815 | K7: 4101.977952 | X7: 114.1749 | Y7: 0 | Z7: 8381.001269
C8: D | D8: ='[6]Class Rates'!G7 -> 2.3304 | E8: ='[6]Class Rates'!E7 -> 66.06444273 | H8: 1.307719407 | I8: 86.39375386 | J8: 1.0227 | K8: 67.56410558 | X8: 2.330419407 | Y8: -1.940688035e-05 | Z8: 153.9578594
C9: E | D9: ='[6]Class Rates'!G8 -> 167.8065 | E9: ='[6]Class Rates'!E8 -> 58.72394909 | H9: 71.7801 | I9: 4215.210938 | J9: 96.0264 | K9: 5639.049425 | X9: 167.8065 | Y9: 0 | Z9: 9854.260363
C10: F | D10: ='[6]Class Rates'!G9 -> 25.9568 | E10: ='[6]Class Rates'!E9 -> 51.38345546 | H10: 10.6428 | I10: 546.8638397 | J10: 15.314 | K10: 786.8862369 | X10: 25.9568 | Y10: 0 | Z10: 1333.750077
C11: G | D11: ='[6]Class Rates'!G10 -> 46.778616 | E11: ='[6]Class Rates'!E10 -> 22.02148091 | H11: 25.0293 | I11: 551.1822521 | J11: 21.7494 | K11: 478.9539969 | X11: 46.7787 | Y11: -8.399999999e-05 | Z11: 1030.136249
C12: H | D12: ='[6]Class Rates'!G11 -> 168.8 | E12: ='[6]Class Rates'!E11 -> 14.68098727 | H12: 68.312 | I12: 1002.887603 | J12: 100.488 | K12: 1475.263049 | X12: 168.8 | Y12: 0 | Z12: 2478.150652 | AA12: =SUM(Z5:Z12) -> 40635.00313
A13: Lower Wairarapa Valley | B13: 457 | C13: A | D13: ='[6]Class Rates'!G12 -> 2888816.657 | E13: ='[6]Class Rates'!E12 -> 0.2341872774 | J13: 26924.7509 | K13: 6305.434108 | L13: 2861891.906 | M13: =L13*E13 -> 670218.6736 | X13: =F13+H13+J13+L13+N13+R13+P13 -> 2888816.657 | Y13: 0 | Z13: =SUM(G13+I13+K13+M13+O13+Q13+S13) -> 676524.1077
A14: Development Scheme | C14: Sa | D14: ='[6]Class Rates'!G13 -> 417 | E14: ='[6]Class Rates'!E13 -> 18.80247294 | K14: 0 | L14: =D14 -> 417 | M14: =L14*E14 -> 7840.631216 | X14: 417 | Y14: 0 | Z14: 7840.631216
C15: Sb | D15: ='[6]Class Rates'!G14 -> 2262 | E15: ='[6]Class Rates'!E14 -> 37.6193034 | K15: 0 | L15: =D15 -> 2262 | M15: =L15*E15 -> 85094.86429 | X15: 2262 | Y15: 0 | Z15: 85094.86429 | AA15: =SUM(Z13:Z15) -> 769459.6032
A16: Upper Ruamahanga | B16: 1320 | C16: A | D16: ='[6]Class Rates'!G15 -> 89.01910773 | E16: ='[6]Class Rates'!E15 -> 132.7757248 | H16: =D16 -> 89.01910773 | I16: =H16*E16 -> 11819.57655 | X16: 89.01910773 | Y16: 0 | Z16: 11819.57655
A17: (Mt Bruce - Te Ore Ore) | C17: B | D17: ='[6]Class Rates'!G16 -> 6.593133305 | E17: ='[6]Class Rates'!E16 -> 110.6464373 | H17: 6.593133305 | I17: 729.5067109 | X17: 6.593133305 | Y17: 0 | Z17: 729.5067109
C18: C | D18: ='[6]Class Rates'!G17 -> 124.7643101 | E18: ='[6]Class Rates'!E17 -> 88.51714984 | H18: 124.7643101 | I18: 11043.78113 | X18: 124.7643101 | Y18: 0 | Z18: 11043.78113
C19: D | D19: ='[6]Class Rates'!G18 -> 17.6152 | E19: ='[6]Class Rates'!E18 -> 66.38786238 | H19: 17.6152 | I19: 1169.435473 | X19: 17.6152 | Y19: 0 | Z19: 1169.435473
C20: E | D20: ='[6]Class Rates'!G19 -> 296.6810649 | E20: ='[6]Class Rates'!E19 -> 44.25857492 | H20: 296.6810649 | I20: 13130.68114 | X20: 296.6810649 | Y20: 0 | Z20: 13130.68114
C21: F | D21: ='[6]Class Rates'!G20 -> 39.42306641 | E21: ='[6]Class Rates'!E20 -> 22.12928746 | H21: 39.42306641 | I21: 872.4043693 | X21: 39.42306641 | Y21: 0 | Z21: 872.4043693
C22: S | D22: ='[6]Class Rates'!G21 -> 2.6 | E22: ='[6]Class Rates'!E21 -> 1246.774858 | H22: 2.6 | I22: 3241.61463 | X22: 2.6 | Y22: 0 | Z22: 3241.61463 | AA22: =SUM(Z16:Z22) -> 42007
A23: Middle Ruamahanga | B23: 1321 | C23: A | D23: ='[6]Class Rates'!G22 -> 40.34115657 | E23: ='[6]Class Rates'!E22 -> 130.9622033 | H23: 40.34115657 | I23: 5283.166748 | X23: 40.34115657 | Y23: 0 | Z23: 5283.166748
A24: (Te Ore Ore - Gladstone) | C24: B | D24: ='[6]Class Rates'!G23 -> 54.57958936 | E24: ='[6]Class Rates'!E23 -> 109.1351694 | H24: 54.57958936 | I24: 5956.552732 | X24: 54.57958936 | Y24: 0 | Z24: 5956.552732
C25: C | D25: ='[6]Class Rates'!G24 -> 5.1133 | E25: ='[6]Class Rates'!E24 -> 87.30813553 | H25: 5.1133 | I25: 446.4326894 | X25: 5.1133 | Y25: 0 | Z25: 446.4326894
C26: D | D26: ='[6]Class Rates'!G25 -> 113.2080812 | E26: ='[6]Class Rates'!E25 -> 65.48110165 | H26: 113.2080812 | I26: 7412.989876 | X26: 113.2080812 | Y26: 0 | Z26: 7412.989876
C27: E | D27: ='[6]Class Rates'!G26 -> 30.1542 | E27: ='[6]Class Rates'!E26 -> 43.65406777 | H27: 30.1542 | I27: 1316.35349 | X27: 30.1542 | Y27: 0 | Z27: 1316.35349
C28: F | D28: ='[6]Class Rates'!G27 -> 295.6413374 | E28: ='[6]Class Rates'!E27 -> 21.82703388 | H28: 295.6413374 | I28: 6452.973489 | X28: 295.6413374 | Y28: 0 | Z28: 6452.973489
C29: S | D29: ='[6]Class Rates'!G28 -> 2.1 | E29: ='[6]Class Rates'!E28 -> 1320.729036 | H29: 2.1 | I29: 2773.530975 | X29: 2.1 | Y29: 0 | Z29: 2773.530975 | AA29: =SUM(Z23:Z29) -> 29642
A30: Lower Ruamahanga | B30: 1322 | C30: A | D30: ='[6]Class Rates'!G29 -> 125.473631 | E30: ='[6]Class Rates'!E29 -> 63.01058251 | H30: 33.4719 | I30: 2109.083917 | J30: 92.0017 | K30: 5797.080709 | X30: 125.4736 | Y30: 3.100000002e-05 | Z30: 7906.164626
A31: (Gladstone - Waiohine) | C31: B | D31: ='[6]Class Rates'!G30 -> 53.8311 | E31: ='[6]Class Rates'!E30 -> 54.00907073 | H31: 5.4948 | I31: 296.7690418 | J31: 48.3363 | K31: 2610.598645 | X31: 53.8311 | Y31: 0 | Z31: 2907.367687
C32: C | D32: ='[6]Class Rates'!G31 -> 223.9768 | E32: ='[6]Class Rates'!E31 -> 45.00755894 | H32: 83.8275 | I32: 3772.871147 | J32: 140.1493 | K32: 6307.77788 | X32: 223.9768 | Y32: 0 | Z32: 10080.64903
C33: D | D33: ='[6]Class Rates'!G32 -> 318.5119 | E33: ='[6]Class Rates'!E32 -> 36.00604715 | H33: 68.4969 | I33: =H33*E33 -> 2466.302611 | J33: 250.015 | K33: 9002.051878 | X33: 318.5119 | Y33: 0 | Z33: 11468.35449
C34: E | D34: ='[6]Class Rates'!G33 -> 323.523947 | E34: ='[6]Class Rates'!E33 -> 27.00453536 | H34: 35.973 | I34: =H34*E34 -> 971.4341506 | J34: 287.5509 | K34: 7765.178448 | X34: 323.5239 | Y34: 4.7e-05 | Z34: 8736.612598
C35: F | D35: ='[6]Class Rates'!G34 -> 1224.2914 | E35: ='[6]Class Rates'!E34 -> 18.00302358 | H35: 263.1955 | I35: =H35*E35 -> 4738.314791 | J35: 961.0959 | K35: 17302.63215 | X35: 1224.2914 | Y35: 0 | Z35: 22040.94694
C36: SA | D36: ='[6]Class Rates'!G35 -> 2.6 | E36: ='[6]Class Rates'!E35 -> 1579.97137 | H36: 0.8 | I36: =H36*E36 -> 1263.977096 | J36: 1.8 | K36: 2843.948466 | X36: 2.6 | Y36: 0 | Z36: 4107.925562
C37: SB | D37: ='[6]Class Rates'!G36 -> 1.7 | E37: ='[6]Class Rates'!E36 -> 789.9857943 | H37: 0.5 | I37: =H37*E37 -> 394.9928972 | J37: 1.2 | K37: 947.9829532 | X37: 1.7 | Y37: 0 | Z37: 1342.97585 | AA37: =SUM(Z30:Z37) -> 68590.99678
A38: Waiohine Rural | B38: 461 | C38: A | D38: ='[6]Class Rates'!G37 -> 112.4864 | E38: ='[6]Class Rates'!E37 -> 45.78519365 | J38: 0 | K38: 0 | L38: =D38 -> 112.4864 | M38: =L38*E38 -> 5150.211607 | X38: 112.4864 | Y38: 0 | Z38: 5150.211607
C39: B | D39: ='[6]Class Rates'!G38 -> 383.0231 | E39: ='[6]Class Rates'!E38 -> 38.15432804 | J39: 226.1025 | K39: 8626.788956 | L39: 156.96 | M39: 5988.70333 | X39: 383.0625 | Y39: -0.0394 | Z39: 14615.49229
C40: C | D40: ='[6]Class Rates'!G39 -> 1277.725231 | E40: ='[6]Class Rates'!E39 -> 30.52346243 | J40: 224.6962 | K40: 6858.50602 | L40: 1053.8915 | M40: 32168.41761 | X40: 1278.5877 | Y40: -0.862469 | Z40: 39026.92363
C41: D | D41: ='[6]Class Rates'!G40 -> 371.5222 | E41: ='[6]Class Rates'!E40 -> 22.89259683 | J41: 159.1003 | K41: 3642.219023 | L41: 212.4537 | M41: 4863.616898 | X41: 371.554 | Y41: -0.0318 | Z41: 8505.835921
C42: E | D42: ='[6]Class Rates'!G41 -> 801.371286 | E42: ='[6]Class Rates'!E41 -> 15.26173122 | J42: 147.5129 | K42: 2251.302231 | L42: 651.0355 | M42: 9935.928814 | X42: 798.5484 | Y42: 2.822886 | Z42: 12187.23104
C43: S | D43: ='[6]Class Rates'!G42 -> 17.1 | E43: ='[6]Class Rates'!E42 -> 763.0865608 | J43: 2 | K43: 1526.173122 | L43: 15 | M43: 11446.29841 | X43: 17 | Y43: 0.1 | Z43: 12972.47153 | AA43: =SUM(Z38:Z43) -> 92458.16602
A44: Mangatarere | B44: 480 | C44: A | D44: ='[6]Class Rates'!G43 -> 21.457 | E44: ='[6]Class Rates'!E43 -> 34.61407718 | J44: =D44 -> 21.457 | K44: 742.7142541 | X44: 21.457 | Y44: 0 | Z44: 742.7142541
C45: B | D45: ='[6]Class Rates'!G44 -> 209.5488 | E45: ='[6]Class Rates'!E44 -> 33.1091173 | J45: 209.5488 | K45: 6937.9758 | X45: 209.5488 | Y45: 0 | Z45: 6937.9758
C46: C | D46: ='[6]Class Rates'!G45 -> 15.7684 | E46: ='[6]Class Rates'!E45 -> 28.056752 | J46: 15.7684 | K46: 442.4100883 | X46: 15.7684 | Y46: 0 | Z46: 442.4100883
C47: D | D47: ='[6]Class Rates'!G46 -> 71.8392 | E47: ='[6]Class Rates'!E46 -> 24.83183798 | J47: 71.8392 | K47: 1783.899375 | X47: 71.8392 | Y47: 0 | Z47: 1783.899375 | AA47: =SUM(Z44:Z47) -> 9906.999517
A48: Waipoua | B48: 462 | C48: A | D48: ='[6]Class Rates'!G47 -> 87.4984 | E48: ='[6]Class Rates'!E47 -> 111.4783952 | H48: =D48 -> 87.4984 | I48: =H48*E48 -> 9754.181216 | X48: 87.4984 | Y48: 0 | Z48: 9754.181216
C49: B | D49: ='[6]Class Rates'!G48 -> 300.3294 | E49: ='[6]Class Rates'!E48 -> 89.18271617 | H49: 300.3294 | I49: 26784.19164 | X49: 300.3294 | Y49: 0 | Z49: 26784.19164
C50: C | D50: ='[6]Class Rates'!G49 -> 22.4517 | E50: ='[6]Class Rates'!E49 -> 66.88703713 | H50: 22.4517 | I50: 1501.727692 | X50: 22.4517 | Y50: 0 | Z50: 1501.727692
C51: D | D51: ='[6]Class Rates'!G50 -> 297.2306 | E51: ='[6]Class Rates'!E50 -> 44.59135809 | H51: 297.2306 | I51: 13253.91612 | X51: 297.2306 | Y51: 0 | Z51: 13253.91612
C52: SA | D52: ='[6]Class Rates'!G51 -> 0.1 | E52: ='[6]Class Rates'!E51 -> 3767.969758 | H52: 0.1 | I52: 376.7969758 | X52: 0.1 | Y52: 0 | Z52: 376.7969758
C53: SC | D53: ='[6]Class Rates'!G52 -> 0.1 | E53: ='[6]Class Rates'!E52 -> 2251.863583 | H53: 0.1 | I53: 225.1863583 | X53: 0.1 | Y53: 0 | Z53: 225.1863583 | AA53: =SUM(Z48:Z53) -> 51896
A54: Kopuaranga | B54: 1325 | C54: A2 | D54: ='[6]Class Rates'!G53 -> 26.054 | E54: ='[6]Class Rates'!E53 -> 125.4415319 | H54: 26.054 | I54: 3268.253671 | X54: 26.054 | Y54: 0 | Z54: 3268.253671
C55: A3 | D55: ='[6]Class Rates'!G54 -> 68.9035 | E55: ='[6]Class Rates'!E54 -> 112.8973787 | H55: 68.9035 | I55: 7779.024532 | X55: 68.9035 | Y55: 0 | Z55: 7779.024532
C56: A4 | D56: ='[6]Class Rates'!G55 -> 11.2847 | E56: ='[6]Class Rates'!E55 -> 62.72076593 | H56: 11.2847 | I56: 707.7850273 | X56: 11.2847 | Y56: 0 | Z56: 707.7850273
C57: A5 | D57: ='[6]Class Rates'!G56 -> 57.724 | E57: ='[6]Class Rates'!E56 -> 43.90453615 | H57: 57.724 | I57: 2534.345445 | X57: 57.724 | Y57: 0 | Z57: 2534.345445
C58: A6 | D58: ='[6]Class Rates'!G57 -> 81.131 | E58: ='[6]Class Rates'!E57 -> 25.08830637 | H58: 81.131 | I58: 2035.439384 | X58: 81.131 | Y58: 0 | Z58: 2035.439384
C59: B2 | D59: ='[6]Class Rates'!G58 -> 61.2771 | E59: ='[6]Class Rates'!E58 -> 25.08830637 | H59: 61.2771 | I59: 1537.338658 | X59: 61.2771 | Y59: 0 | Z59: 1537.338658
C60: B3 | D60: ='[6]Class Rates'!G59 -> 73.4413 | E60: ='[6]Class Rates'!E59 -> 22.57947574 | H60: 73.4413 | I60: 1658.266051 | X60: 73.4413 | Y60: 0 | Z60: 1658.266051
C61: B4 | D61: ='[6]Class Rates'!G60 -> 9.2792 | E61: ='[6]Class Rates'!E60 -> 12.54415319 | H61: 9.2792 | I61: 116.3997063 | X61: 9.2792 | Y61: 0 | Z61: 116.3997063
C62: B5 | D62: ='[6]Class Rates'!G61 -> 31.069 | E62: ='[6]Class Rates'!E61 -> 8.780907231 | H62: 31.069 | I62: 272.8140068 | X62: 31.069 | Y62: 0 | Z62: 272.8140068
C63: B6 | D63: ='[6]Class Rates'!G62 -> 120.2641 | E63: ='[6]Class Rates'!E62 -> 5.017661275 | H63: 120.2641 | I63: 603.4445173 | X63: 120.2641 | Y63: 0 | Z63: 603.4445173
C64: SA | D64: ='[6]Class Rates'!G63 -> 5 | E64: ='[6]Class Rates'!E63 -> 153.5742 | H64: 5 | I64: 767.871 | X64: 5 | Y64: 0 | Z64: 767.871
C65: SB | D65: ='[6]Class Rates'!G64 -> 14 | E65: ='[6]Class Rates'!E64 -> 76.787 | H65: 14 | I65: 1075.018 | X65: 14 | Y65: 0 | Z65: 1075.018 | AA65: =SUM(Z54:Z65) -> 22356
A66: Lower Taueru | B66: 1221 | C66: A | D66: ='[6]Class Rates'!G65 -> 407.43357 | E66: ='[6]Class Rates'!E65 -> 4.058768509 | H66: 278.7856 | I66: 1131.526214 | J66: 128.648 | K66: 522.1524511 | X66: 407.4336 | Y66: -2.999999987e-05 | Z66: 1653.678665
C67: B | D67: ='[6]Class Rates'!G66 -> 282.043014 | E67: ='[6]Class Rates'!E66 -> 0.8117537017 | H67: 202.2235 | I67: 164.1556747 | J67: 79.8195 | K67: 64.7937746 | X67: 282.043 | Y67: 1.399999996e-05 | Z67: 228.9494493
C68: C | D68: ='[6]Class Rates'!G67 -> 178.1611 | E68: ='[6]Class Rates'!E67 -> 0.4058768509 | H68: 165.9938 | I68: 67.37304081 | J68: 12.1673 | K68: 4.938425408 | X68: 178.1611 | Y68: 0 | Z68: 72.31146622
C69: S | D69: ='[6]Class Rates'!G68 -> 1.518 | E69: ='[6]Class Rates'!E68 -> 202.9384254 | H69: 1.4168 | I69: 287.5231612 | J69: 0.1012 | K69: =J69*E69 -> 20.53736865 | X69: 1.518 | Y69: =D69-X69 -> 0 | Z69: 308.0605298 | AA69: =SUM(Z66:Z69) -> 2263.00011
A70: Lower Whangaehu | B70: 466 | C70: A | D70: ='[6]Class Rates'!G69 -> 33.3901 | E70: ='[6]Class Rates'!E69 -> 21.62306943 | H70: =D70 -> 33.3901 | I70: 721.9964505 | X70: 33.3901 | Y70: 0 | Z70: 721.9964505
C71: B | D71: ='[6]Class Rates'!G70 -> 65.083 | E71: ='[6]Class Rates'!E70 -> 17.29845554 | H71: 65.083 | I71: 1125.835382 | X71: 65.083 | Y71: 0 | Z71: 1125.835382
C72: C | D72: ='[6]Class Rates'!G71 -> 54.4046 | E72: ='[6]Class Rates'!E71 -> 12.97384166 | H72: 54.4046 | I72: 705.8366658 | X72: 54.4046 | Y72: 0 | Z72: 705.8366658
C73: D | D73: ='[6]Class Rates'!G72 -> 76.5688 | E73: ='[6]Class Rates'!E72 -> 8.649227772 | H73: 76.5688 | I73: 662.2609914 | X73: =F73+H73+J73+L73+N73+R73+P73 -> 76.5688 | Y73: =D73-X73 -> 0 | Z73: 662.2609914
C74: E | D74: ='[6]Class Rates'!G73 -> 174.2424 | E74: ='[6]Class Rates'!E73 -> 4.324613886 | H74: 174.2424 | I74: 753.5311025 | X74: =F74+H74+J74+L74+N74+R74+P74 -> 174.2424 | Y74: =D74-X74 -> 0 | Z74: 753.5311025
C75: S | D75: ='[6]Class Rates'!G74 -> 1.3369 | E75: ='[6]Class Rates'!E74 -> 108.1153471 | H75: 1.3369 | I75: 144.5394076 | X75: =F75+H75+J75+L75+N75+R75+P75 -> 1.3369 | Y75: =D75-X75 -> 0 | Z75: 144.5394076 | AA75: =SUM(Z70:Z75) -> 4114
A76: Catchment Schemes | Z76: 0
A77: Awhea-Opouawe | B77: 454 | C77: LV | D77: Land Value | E77: ='[6]Class Rates'!K158 -> 0.0001319827663 | L77: 67774000 | M77: =L77*E77 -> 8945 | X77: 67774000 | Y77: =D77-X77 ->  | Z77: =SUM(G77+I77+K77+M77+O77+Q77+S77) -> 8945
C78: Dwell | D78: Dwellings | E78: 116.83 | L78: 86 | M78: =L78*E78 -> 10047.38 | X78: 86 | Z78: 10047.38
X79: =F79+H79+J79+L79+N79+R79+P79 -> 0 | Y79: 0 | Z79: 0
X80: 0 | Y80: 0 | Z80: 0
X81: 0 | Y81: 0 | Z81: 0
X82: 0 | Y82: 0 | Z82: 0 | AA82: =SUM(Z76:Z82) -> 18992.38
A83: Whareama | B83: 463 | C83: A | D83: ='[6]Class Rates'!G84 -> 715.3860372 | E83: ='[6]Class Rates'!E84 -> 4.077827534 | H83: =D83 -> 715.3860372 | I83: 2917.22088 | X83: 715.3860372 | Y83: 0 | Z83: 2917.22088
C84: B | D84: ='[6]Class Rates'!G85 -> 952.5649402 | E84: ='[6]Class Rates'!E85 -> 1.568395205 | H84: 952.5649402 | I84: 1493.998285 | X84: 952.5649402 | Y84: 0 | Z84: 1493.998285
C85: C | D85: ='[6]Class Rates'!G86 -> 45575.12003 | E85: ='[6]Class Rates'!E86 -> 0.2744691609 | H85: 45575.12003 | I85: 12508.96495 | X85: 45575.12003 | Y85: 0 | Z85: 12508.96495
C86: D | D86: ='[6]Class Rates'!G87 -> 0 | E86: ='[6]Class Rates'!E87 -> 0.2352592808 | H86: 0 | I86: 0 | X86: 0 | Y86: 0 | Z86: 0
C87: E | D87: ='[6]Class Rates'!G88 -> 15.4025 | E87: ='[6]Class Rates'!E88 -> 0.1960494007 | H87: 15.4025 | I87: 3.019650894 | X87: 15.4025 | Y87: 0 | Z87: 3.019650894
C88: F | D88: ='[6]Class Rates'!G89 -> 2759.484523 | E88: ='[6]Class Rates'!E89 -> 0.1568395205 | H88: 2759.484523 | I88: 432.7962295 | X88: 2759.484523 | Y88: 0 | Z88: 432.7962295 | AA88: =SUM(Z83:Z88) -> 17356
A89: Homewood | B89: 1214 | C89: A | D89: ='[6]Class Rates'!G90 -> 2294.733573 | E89: ='[6]Class Rates'!E90 -> 1.654117647 | H89: 2294.733573 | I89: 3795.759298 | X89: 2294.733573 | Y89: 0 | Z89: 3795.759298
C90: B | D90: ='[6]Class Rates'!G91 -> 552.432145 | E90: ='[6]Class Rates'!E91 -> 1.575294118 | H90: 552.432145 | I90: 870.2431084 | X90: 552.432145 | Y90: 0 | Z90: 870.2431084
C91: C | D91: ='[6]Class Rates'!G92 -> 3662.473882 | E91: ='[6]Class Rates'!E92 -> 1.378431373 | H91: 3662.473882 | I91: 5048.4689 | X91: 3662.473882 | Y91: 0 | Z91: 5048.4689
C92: D | D92: ='[6]Class Rates'!G93 -> 1739.393562 | E92: ='[6]Class Rates'!E93 -> 0.1969607843 | H92: 1739.393562 | I92: 342.5923202 | X92: 1739.393562 | Y92: 0 | Z92: 342.5923202 | AA92: =SUM(Z89:Z92) -> 10057.06363
A93: Mataikona-Whakataki | B93: 1215 | C93: LV | D93: Land Value | E93: 0.00035 | G93: 215.08 | I93: 2448.92 | X93: 0 | Z93: 2664
C94: Dwell | D94: Dwellings | E94: =SUM('[6]Class Rates'!F162) -> 15.3 | G94: =E94*1 -> 15.3 | I94: 1815 | X94: 0 | Z94: 1830.3
X95: 0 | Y95: 0 | Z95: 0
X96: 0 | Y96: 0 | Z96: 0 | AA96: =SUM(Z93:Z96) -> 4494.3
A97: Maungaraki | B97: 1216 | C97: A | D97: ='[6]Class Rates'!G98 -> 3305.4718 | E97: 0.8627511758 | J97: 1934.2943 | K97: =J97*E97 -> 1668.814682 | L97: 1371.1775 | M97: =L97*E97 -> 1182.985 | X97: 3305.4718 | Y97: 0 | Z97: 2851.799682
C98: B | D98: ='[6]Class Rates'!G99 -> 2971.2169 | E98: 0.4060005533 | J98: 2593.582 | K98: =J98*E98 -> 1052.995727 | L98: 377.6349 | M98: =L98*E98 -> 153.3199783 | X98: 2971.2169 | Y98: 0 | Z98: 1206.315705
C99: Dwell | D99: 567 | E99: 30.4500415 | J99: 15 | K99: =J99*E99 -> 456.7506225 | L99: 4 | M99: =L99*E99 -> 121.800166 | X99: 19 | Z99: 578.5507884
C100: River Front | D100: 47619 | E100: 0.02842003873 | J100: 39068 | K100: =J100*E100 -> 1110.314073 | L100: 8551 | M100: =L100*E100 -> 243.0197512 | X100: 47619 | Y100: 0 | Z100: 1353.333824 | AA100: =SUM(Z97:Z100) -> 5990
A101: Upper Kaiwhata | B101: 1217 | C101: A | D101: ='[6]Class Rates'!G101 -> 32.6141 | E101: ='[6]Class Rates'!E101 -> 9.064369309 | H101: 32.6141 | I101: =H101*E101 -> 295.6262471 | K101: =J101*E101 -> 0 | X101: 32.6141 | Y101: 0 | Z101: 295.6262471
C102: B | D102: ='[6]Class Rates'!G102 -> 52.6078 | E102: ='[6]Class Rates'!E102 -> 3.965661573 | H102: 52.6078 | I102: 208.6247309 | K102: 0 | X102: 52.6078 | Y102: 0 | Z102: 208.6247309
C103: C | D103: ='[6]Class Rates'!G103 -> 958.1926 | E103: ='[6]Class Rates'!E103 -> 0.5665230818 | H103: 894.6869 | I103: 506.8607798 | J103: 63.5057 | K103: 35.97744488 | X103: 958.1926 | Y103: 0 | Z103: 542.8382247
C104: D | D104: ='[6]Class Rates'!G104 -> 2052.6787 | E104: ='[6]Class Rates'!E104 -> 0.3399138491 | H104: 1936.4976 | I104: 658.242353 | J104: 116.1811 | K104: 39.49156489 | X104: 2052.6787 | Y104: 0 | Z104: 697.7339179
C105: E | D105: ='[6]Class Rates'!G105 -> 1641.222 | E105: ='[6]Class Rates'!E105 -> 0.2266092327 | H105: 1641.222 | I105: 371.9160581 | J105: 0 | K105: 0 | X105: 1641.222 | Y105: 0 | Z105: 371.9160581
C106: F | D106: ='[6]Class Rates'!G106 -> 452.416 | E106: ='[6]Class Rates'!E106 -> 0.1133046164 | H106: 452.416 | I106: 51.26082132 | K106: 0 | X106: 452.416 | Y106: 0 | Z106: 51.26082132 | AA106: =SUM(Z101:Z106) -> 2168
A107: Lower Kaiwhata | B107: 1229 | C107: A | D107: ='[6]Class Rates'!G107 -> 45.9308 | E107: ='[6]Class Rates'!E107 -> 14.72961911 | H107: 27.5298 | I107: 405.5034681 | J107: 18.401 | K107: 271.0397212 | X107: 45.9308 | Y107: 0 | Z107: 676.5431893
C108: B | D108: ='[6]Class Rates'!G108 -> 44.4068 | E108: ='[6]Class Rates'!E108 -> 6.44420836 | H108: 7.565 | I108: 48.75043624 | J108: 36.8418 | K108: 237.4162356 | X108: 44.4068 | Y108: 0 | Z108: 286.1666718
C109: C | D109: ='[6]Class Rates'!G109 -> 1158.6409 | E109: ='[6]Class Rates'!E109 -> 0.9206011943 | H109: 141.1688 | I109: 129.9601659 | J109: 1017.4721 | K109: 936.6860304 | X109: 1158.6409 | Y109: 0 | Z109: 1066.646196
C110: D | D110: ='[6]Class Rates'!G110 -> 2959.1412 | E110: ='[6]Class Rates'!E110 -> 0.5523607166 | H110: 204.0429 | I110: 112.7052825 | J110: 2755.0983 | K110: 1521.808071 | X110: 2959.1412 | Y110: 0 | Z110: 1634.513354
C111: E | D111: ='[6]Class Rates'!G111 -> 0 | E111: ='[6]Class Rates'!E111 -> 0.361 | H111: 0 | I111: 0 | J111: 0 | K111: 0 | X111: 0 | Y111: 0 | Z111: 0
C112: F | D112: ='[6]Class Rates'!G112 -> 348.3082 | E112: ='[6]Class Rates'!E112 -> 0.1841202389 | H112: 17.4058 | I112: 3.204760053 | J112: 330.9024 | K112: 60.92582892 | X112: 348.3082 | Y112: 0 | Z112: 64.13058898 | AA112: =SUM(Z107:Z112) -> 3728
A113: Pump Drainage | Z113: 0
A114: Te Hopai | B114: 1223 | C114: A | D114: ='[6]Class Rates'!G114 -> 1246.617264 | E114: ='[6]Class Rates'!E114 -> 45.16542618 | L114: =D114 -> 1246.617264 | M114: =L114*E114 -> 56304 | X114: =F114+H114+J114+L114+N114+R114+P114 -> 1246.617264 | Y114: =D114-X114 -> 0 | Z114: 56304 | AA114: =SUM(Z114) -> 56304
A115: Moonmoot Pump | B115: 1224 | C115: A | D115: ='[6]Class Rates'!G115 -> 227.722785 | E115: ='[6]Class Rates'!E115 -> 120.936515 | L115: =D115 -> 227.722785 | M115: 27540 | X115: =F115+H115+J115+L115+N115+R115+P115 -> 227.722785 | Y115: =D115-X115 -> 0 | Z115: 27540 | AA115: =SUM(Z115) -> 27540
A116: Onoke Pump | B116: 1225 | C116: A | D116: ='[6]Class Rates'!G116 -> 713.42755 | E116: ='[6]Class Rates'!E116 -> 73.96266096 | L116: =D116 -> 713.42755 | M116: 52767 | X116: =F116+H116+J116+L116+N116+R116+P116 -> 713.42755 | Y116: =D116-X116 -> 0 | Z116: 52767 | AA116: =SUM(Z116) -> 52767
A117: Pouawha Pump | B117: 1226 | C117: A | D117: ='[6]Class Rates'!G117 -> 945.500242 | E117: ='[6]Class Rates'!E117 -> 111.5800878 | L117: =D117 -> 945.500242 | M117: 105499 | X117: =F117+H117+J117+L117+N117+R117+P117 -> 945.500242 | Y117: =D117-X117 -> 0 | Z117: 105499 | AA117: =SUM(Z117) -> 105499
A118: Gravity Drainage | Z118: 0
A119: Okawa | B119: 449 | C119: A | D119: ='[6]Class Rates'!G119 -> 282.0010603 | E119: ='[6]Class Rates'!E119 -> 7.14890929 | L119: =D119 -> 282.0010603 | M119: 2016 | X119: =F119+H119+J119+L119+N119+R119+P119 -> 282.0010603 | Y119: =D119-X119 -> 0 | Z119: 2016 | AA119: =SUM(Z118:Z119) -> 2016
A120: Taumata | B120: 451 | C120: A | D120: ='[6]Class Rates'!G120 -> 290.5627 | E120: ='[6]Class Rates'!E120 -> 6.439229812 | J120: =D120 -> 290.5627 | K120: 1871 | X120: 290.5627 | Y120: 0 | Z120: 1871 | AA120: =SUM(Z120) -> 1871
A121: East Pukio | B121: 455 | C121: A | D121: ='[6]Class Rates'!G121 -> 113.5531401 | E121: ='[6]Class Rates'!E121 -> 28.29512242 | K121: 0 | L121: =D121 -> 113.5531401 | M121: 3213 | X121: 113.5531401 | Y121: 0 | Z121: 3213 | AA121: =SUM(Z121) -> 3213
A122: Longbush | B122: 456 | C122: A | D122: ='[6]Class Rates'!G122 -> 218.1463214 | E122: ='[6]Class Rates'!E122 -> 16.07125908 | J122: =D122 -> 218.1463214 | K122: 3505.886047 | X122: 218.1463214 | Y122: 0 | Z122: 3505.886047
C123: B | D123: ='[6]Class Rates'!G123 -> 125.7043954 | E123: ='[6]Class Rates'!E123 -> 8.035629539 | J123: =D123 -> 125.7043954 | K123: 1010.113953 | X123: 125.7043954 | Y123: 0 | Z123: 1010.113953 | AA123: =SUM(Z122:Z123) -> 4516
A124: Otahoua | B124: 469 | C124: A | D124: ='[6]Class Rates'!G124 -> 92.7144272 | E124: ='[6]Class Rates'!E124 -> 33.00457213 | H124: =D124 -> 92.7144272 | I124: =H124*E124 -> 3060 | X124: 92.7144272 | Y124: 0 | Z124: 3060 | AA124: =SUM(Z124) -> 3060
A125: Te Whiti | B125: 470 | C125: A | D125: ='[6]Class Rates'!G125 -> 141.274 | E125: ='[6]Class Rates'!E125 -> 9.73285955 | H125: =D125 -> 141.274 | I125: =H125*E125 -> 1375 | X125: 141.274 | Y125: 0 | Z125: 1375 | AA125: =SUM(Z125) -> 1375
A126: Ahikouka | B126: 541 | C126: A | D126: ='[6]Class Rates'!G126 -> 112.207535 | E126: ='[6]Class Rates'!E126 -> 27.70758666 | L126: =D126 -> 112.207535 | M126: 3109 | X126: =F126+H126+J126+L126+N126+R126+P126 -> 112.207535 | Y126: 0 | Z126: 3109 | AA126: =SUM(Z126) -> 3109
A127: Battersea | B127: 1220 | C127: A | D127: ='[6]Class Rates'!G127 -> 168.7011513 | E127: ='[6]Class Rates'!E127 -> 15.38320624 | L127: 168.7011513 | M127: 2595.164603 | X127: 168.7011513 | Y127: 0 | Z127: 2595.164603
C128: B | D128: ='[6]Class Rates'!G128 -> 195.3607497 | E128: ='[6]Class Rates'!E128 -> 12.73663312 | L128: 195.3607497 | M128: 2488.238196 | X128: 195.3607497 | Y128: 0 | Z128: 2488.238196
C129: C | D129: ='[6]Class Rates'!G129 -> 318.0113359 | E129: ='[6]Class Rates'!E129 -> 9.924649186 | L129: 318.0113359 | M129: 3156.150946 | X129: 318.0113359 | Y129: 0 | Z129: 3156.150946
C130: D | D130: ='[6]Class Rates'!G130 -> 152.7371505 | E130: ='[6]Class Rates'!E130 -> 5.954789512 | L130: 152.7371505 | M130: 909.5175817 | X130: 152.7371505 | Y130: 0 | Z130: 909.5175817
C131: E | D131: ='[6]Class Rates'!G131 -> 202.8948324 | E131: ='[6]Class Rates'!E131 -> 5.127735413 | L131: 202.8948324 | M131: 1040.391017 | X131: 202.8948324 | Y131: 0 | Z131: 1040.391017
C132: F | D132: ='[6]Class Rates'!G132 -> 70.43828946 | E132: ='[6]Class Rates'!E132 -> 4.962324593 | L132: 70.43828946 | M132: 349.5376561 | X132: 70.43828946 | Y132: 0 | Z132: 349.5376561 | AA132: =SUM(Z127:Z132) -> 10539
A133: Manaia | B133: 1222 | C133: A | D133: ='[6]Class Rates'!G133 -> 174.4402849 | E133: ='[6]Class Rates'!E133 -> 23.20564887 | H133: =D133 -> 174.4402849 | I133: =H133*E133 -> 4048 | M133: 0 | X133: 174.4402849 | Y133: 0 | Z133: =SUM(G133+I133+K133+M133+O133+Q133+S133) -> 4048 | AA133: =SUM(Z133) -> 4048
A134: Whakawiriwiri | B134: 1227 | C134: A | D134: ='[6]Class Rates'!G134 -> 720.8720197 | E134: ='[6]Class Rates'!E134 -> 11.70526774 | L134: =D134 -> 720.8720197 | M134: 8438 | X134: 720.8720197 | Y134: 0 | Z134: =SUM(G134+I134+K134+M134+O134+Q134+S134) -> 8438 | AA134: =SUM(Z134) -> 8438
A136: Total Scheme Rates | D136: =SUM(D5:D135) -> 3030389.247 | X136: =SUM(X4:X135) -> 70803925.26 | AA136: =SUM(AA4:AA134) -> 1480409.512
AB138: Decision to maintain rate charge per ha. Operational land area has increased over time
A139: Regional Possum/Predator Rate | D139: ='[6]Class Rates'!G141 -> 613734.9733 | E139: ='[6]Class Rates'!E141 -> 0.8668236668 | F139: 5307.8223 | G139: =F139*E139 -> 4600.945989 | H139: 207207.7345 | I139: =H139*E139 -> 179612.5682 | J139: 78106.069 | K139: =J139*E139 -> 67704.18913 | L139: 178090.1371 | M139: =L139*E139 -> 154372.7457 | N139: 54326.2119 | O139: =N139*E139 -> 47091.2462 | P139: 15578 | Q139: =P139*E139 -> 13503.37908 | R139: 29205.9985 | S139: =R139*E139 -> 25316.45071 | T139: 34055 | U139: =T139*E139 -> 29519.67997 | V139: 11858 | W139: =V139*E139 -> 10278.79504 | X139: =SUM(F139,H139,J139,L139,N139,P139,R139,T139,V139) -> 613734.9733 | Y139: =D139-X139 -> 0 | Z139: =SUM(G139+I139+K139+M139+O139+Q139+S139+U139+W139) -> 532000 | AA139: =Z139 -> 532000
A142: Total Dollars Collectable | E142: =SUM(G142+I142+K142+M142+O142+Q142+S142+U142+W142) -> 2012409.512 | G142: =SUM(G5:G140) -> 4831.325989 | I142: =SUM(I5:I140) -> 410070.9939 | K142: =SUM(K5:K140) -> 194599.0452 | M142: =SUM(M5:M140) -> 1277198.596 | O142: =SUM(O5:O140) -> 47091.2462 | Q142: =SUM(Q5:Q140) -> 13503.37908 | S142: =SUM(S5:S140) -> 25316.45071 | U142: =SUM(U139:U139) -> 29519.67997 | W142: =SUM(W139:W139) -> 10278.79504 | AA142: =AA136+AA139 -> 2012409.512
A145: RPPCP Ha updated Feb16 | L145: =L139 -> 178090.1371 | P145: =P139 -> 15578
L146: draft | P146: draft

Sheet >>District wide rates
L7: New category to be added in GL
L8: New category to be added in GL, was "River Mgmt Rates"

Sheet Gen
A1: Wellington Regional Council
A2: ="General Rate "&year_current -> General Rate 2018/19
A3: Printed: | B3: =NOW() -> 2018-03-27T14:57:01
A4: =check_total -> 8066.052688
B6: CV | C6: ="ECV "&year_current -> ECV 2018/19 | D6: General Rate | E6: Rates sought
B7: $ | C7: $ | D7: $ | E7: Cents per $
A9: By TA
A10: Wellington City | B10: =INDEX(capital_values,MATCH($A10&"District wide",capital_values_rows,0),MATCH(B$6&" "&year_current,capital_values_header,0)) -> 51575881451 | C10: =INDEX(capital_values,MATCH($A10&"district wide",capital_values_rows,0),MATCH(C$6,capital_values_header,0)) -> 68975077410 | D10: =C10/C$19*D$19 -> 17763603.96 | E10: =D10/B10*100 -> 0.03444168758
A11: Hutt City | B11: 21308578500 | C11: 24118117072 | D11: =C11/C$19*D$19 -> 6211296.833 | E11: =D11/B11*100 -> 0.02914927822
A12: Upper Hutt City | B12: 8127444260 | C12: 9172479133 | D12: 2362248.695 | E12: 0.02906508639
A13: Porirua City | B13: 10194406250 | C13: 11429809803 | D13: 2943593.864 | E13: 0.0288745984
A14: Kapiti Coast District | B14: 14609528600 | C14: 14678791680 | D14: 3780325.471 | E14: 0.02587575256
A15: Masterton District | B15: 5909468000 | C15: 5891731979 | D15: 1517336.369 | E15: 0.02567636154
A16: Carterton District | B16: 2707141800 | C16: 2715649450 | D16: 699379.0094 | E16: 0.02583459091
A17: South Wairarapa District | B17: 4460485300 | C17: 4514129051 | D17: 1162553.254 | E17: 0.02606338045
A18: Tararua District | B18: 10760500 | C18: 7041800 | D18: 1813.520927 | E18: 0.01685350056
A19: Region wide | B19: =SUM(B10:B18) -> 118903694661 | C19: =SUM(C10:C18) -> 141502827378 | D19: =INDEX(ess_base_estract,MATCH(D6,ESSbase!$B$8:$B$26,0),MATCH(year_current,ESSbase!$F$6:$G$6,0)) -> 36442150.97 | E19: 0.03064845973
A22: Upper Hutt breakdown
A23: Trentham Military Camp | B23: =SUMIFS('UHCC Adjustments'!$D$9:$D$27,'UHCC Adjustments'!$B$9:$B$27,"Total",'UHCC Adjustments'!$C$9:$C$27,A23) -> 87721000 | D23: =+D12*'UHCC Adjustments'!$E$34 -> 20187.0187 | E23: =D23/B23*100 -> 0.02301275487
A24: Rest of Upper Hutt City | B24: =SUMIFS('UHCC Adjustments'!$D$9:$D$27,'UHCC Adjustments'!$B$9:$B$27,"Total",'UHCC Adjustments'!$C$9:$C$27,A24) -> 8039723260 | D24: =+D12-D23 -> 2342061.677 | E24: =D24/B24*100 -> 0.02913112306
A25: Total Upper Hutt City | B25: =+B24+B23 -> 8127444260 | D25: =+D24+D23 -> 2362248.695 | E25: =D25/B25*100 -> 0.02906508639
A28: Check Upper Hutt total | B28: =B25-B12 -> 0 | D28: =D25-D12 -> 0
A29: Check totals | B29: =B19-SUM(B10:B18) -> 0 | C29: =C19-SUM(C10:C18) -> 0 | D29: =D19-SUM(D10:D18) -> 0

Sheet FP - regional
A1: Wellington Regional Council
A2: ="Flood protection - regional "&year_current -> Flood protection - regional 2018/19
A3: Printed: | B3: =NOW() -> 2018-03-27T14:57:01
A4: =check_total -> 8066.052688
B6: CV | C6: ECV | D6: Flood protection – regional rate | E6: Rates sought
B7: $ | C7: $ | D7: $ | E7: Cents per $
A9: By TA
A10: Wellington City | B10: =INDEX(capital_values,MATCH($A10&"district wide",capital_values_rows,0),MATCH(B$6&" "&year_current,capital_values_header,0)) -> 51575881451 | C10: =INDEX(capital_values,MATCH($A10&"district wide",capital_values_rows,0),MATCH(C$6&" "&year_current,capital_values_header,0)) -> 68975077410 | D10: =C10/C$19*D$19 -> 4745293.017 | E10: =D10/B10*100 -> 0.009200604785
A11: Hutt City | B11: 21308578500 | C11: 24118117072 | D11: 1659259.211 | E11: 0.007786813235
A12: Upper Hutt City | B12: 8127444260 | C12: 9172479133 | D12: 631040.9906 | E12: 0.007764322589
A13: Porirua City | B13: 10194406250 | C13: 11429809803 | D13: 786339.047 | E13: 0.007713436445
A14: Kapiti Coast District | B14: 14609528600 | C14: 14678791680 | D14: 1009859.942 | E14: 0.006912337621
A15: Masterton District | B15: 5909468000 | C15: 5891731979 | D15: 405334.7334 | E15: 0.006859073159
A16: Carterton District | B16: 2707141800 | C16: 2715649450 | D16: 186829.1107 | E16: 0.006901341875
A17: South Wairarapa District | B17: 4460485300 | C17: 4514129051 | D17: 310559.4929 | E17: 0.006962459732
A18: Tararua District | B18: 10760500 | C18: 7041800 | D18: 484.4562068 | E18: 0.004502171895
A19: Region wide | B19: =SUM(B10:B18) -> 118903694661 | C19: =SUM(C10:C18) -> 141502827378 | D19: =INDEX(ess_base_estract,MATCH(D6,ESSbase!$B$8:$B$26,0),MATCH(year_current,ESSbase!$F$6:$G$6,0)) -> 9735000 | E19: 0.008187298156
A22: Upper Hutt breakdown
A23: Trentham Military Camp | B23: =SUMIFS('UHCC Adjustments'!$D$9:$D$27,'UHCC Adjustments'!$B$9:$B$27,"Total",'UHCC Adjustments'!$C$9:$C$27,A23) -> 87721000 | D23: =+D12*'UHCC Adjustments'!$E$34 -> 5392.673644 | E23: =D23/B23*100 -> 0.006147528692
A24: Rest of Upper Hutt City | B24: =SUMIFS('UHCC Adjustments'!$D$9:$D$27,'UHCC Adjustments'!$B$9:$B$27,"Total",'UHCC Adjustments'!$C$9:$C$27,A24) -> 8039723260 | D24: =+D12-D23 -> 625648.3169 | E24: =D24/B24*100 -> 0.007781963343
A25: Total Upper Hutt City | B25: =+B24+B23 -> 8127444260 | D25: =+D24+D23 -> 631040.9906 | E25: =D25/B25*100 -> 0.007764322589
A28: Check Upper Hutt total | B28: =B25-B12 -> 0 | D28: =D25-D12 -> 0
A29: Check totals | B29: =B19-SUM(B10:B18) -> 0 | C29: =C19-SUM(C10:C18) -> 0 | D29: =D19-SUM(D10:D18) -> 0

Sheet FP - catchment
A1: Wellington Regional Council
A2: ="Flood protection - Catchment "&year_current -> Flood protection - Catchment 2018/19
A3: Printed: | B3: =NOW() -> 2018-03-27T14:57:01
A4: =check_total -> 8066.052688
B6: CV | C6: Flood protection – catchment rate | D6: Rates sought
B7: $ | C7: $ | D7: Cents per $
A9: By TA
A10: Wellington City | B10: =INDEX(capital_values,MATCH($A10&"district wide",capital_values_rows,0),MATCH(B$6&" "&year_current,capital_values_header,0)) -> 51575881451 | C10: =INDEX(Control!$C$82:$C$93,MATCH(A10,Control!$A$82:$A$93,0),) -> 54042 | D10: =C10/B10*100 -> 0.0001047815345
A11: Hutt City | B11: 21308578500 | C11: =INDEX(Control!$C$82:$C$93,MATCH(A11,Control!$A$82:$A$93,0),) -> 5167492 | D11: 0.02425075891
A12: Upper Hutt City | B12: 8127444260 | C12: =INDEX(Control!$C$82:$C$93,MATCH(A12,Control!$A$82:$A$93,0),) -> 881402 | D12: 0.01084476216
A13: Porirua City | B13: 10194406250 | C13: =INDEX(Control!$C$82:$C$93,MATCH(A13,Control!$A$82:$A$93,0),) -> 45121 | D13: 0.000442605473
A14: Kapiti Coast District | B14: 14609528600 | C14: =INDEX(Control!$C$82:$C$93,MATCH(A14,Control!$A$82:$A$93,0),) -> 1619846 | D14: 0.01108759936
A15: Masterton District | B15: 5909468000 | C15: =INDEX(Control!$C$82:$C$93,MATCH(A15,Control!$A$82:$A$93,0),) -> 271627 | D15: =C15/B15*100 -> 0.00459647129
A16: Carterton District | B16: 2707141800 | C16: =INDEX(Control!$C$82:$C$93,MATCH(A16,Control!$A$82:$A$93,0),) -> 144634 | D16: 0.005342682825
A17: South Wairarapa District | B17: 4460485300 | C17: =INDEX(Control!$C$82:$C$93,MATCH(A17,Control!$A$82:$A$93,0),) -> 201926 | D17: 0.004526996199
A18: Tararua District | B18: 10760500 | C18: =INDEX(Control!$C$82:$C$93,MATCH(A18,Control!$A$82:$A$93,0),) -> 0 | D18: 0
A19: Region wide | B19: =SUM(B10:B18) -> 118903694661 | C19: =INDEX(ess_base_estract,MATCH(C6,ESSbase!$B$8:$B$26,0),MATCH(year_current,ESSbase!$F$6:$G$6,0)) -> 8386090.465 | D19: 0.00705284263
A22: Upper Hutt breakdown
A23: Trentham Military Camp | B23: =SUMIFS('UHCC Adjustments'!$D$9:$D$27,'UHCC Adjustments'!$B$9:$B$27,"Total",'UHCC Adjustments'!$C$9:$C$27,A23) -> 87721000 | C23: =+C12*'UHCC Adjustments'!$E$34 -> 7532.178426 | D23: =C23/B23*100 -> 0.008586516827
A24: Rest of Upper Hutt City | B24: =SUMIFS('UHCC Adjustments'!$D$9:$D$27,'UHCC Adjustments'!$B$9:$B$27,"Total",'UHCC Adjustments'!$C$9:$C$27,A24) -> 8039723260 | C24: =+C12-C23 -> 873869.8216 | D24: =C24/B24*100 -> 0.01086940176
A25: Total Upper Hutt City | B25: =+B24+B23 -> 8127444260 | C25: =+C24+C23 -> 881402 | D25: =C25/B25*100 -> 0.01084476216
A28: Non District wide
A29: Greytown River Management Rate | B29: =INDEX('Capital values'!$E$47:$E$48,MATCH("Greytown Urban -CV",'Capital values'!$A$47:$A$48,0),) -> 739130000 | C29: =INDEX(Control!$D$97:$D$98,MATCH(A29,Control!$A$97:$A$98,0),) -> 92549 | D29: =C29/B29*100 -> 0.01252134266
A30: Donalds Creek Stopbank River Management Rate | B30: =INDEX('Capital values'!$E$47:$E$48,MATCH("Featherston Urban - LV",'Capital values'!$A$47:$A$48,0),) -> 162213500 | C30: =INDEX(Control!$D$97:$D$98,MATCH(A30,Control!$A$97:$A$98,0),) -> 2615 | D30: =C30/B30*100 -> 0.001612072978
A31: Total non-district wide rates | C31: =INDEX(ess_base_estract,MATCH("River Mgmt Rates - Non District Wide",ESSbase!$B$8:$B$26,0),MATCH(year_current,ESSbase!$F$6:$G$6,0)) -> 95164
A34: Check Upper Hutt total | B34: =B25-B12 -> 0 | C34: =C25-C12 -> 0
A35: Check Non District Wide total | C35: =IF(ABS(C31-SUM(C29:C30))>tolerance_dollar,1,0) -> 0
A36: Check totals | B36: =B19-SUM(B10:B18) -> 0 | C36: =IF(ABS(C19-SUM(C10:C18))>tolerance_dollar,1,0) -> 0

Sheet Stad
A1: Wellington Regional Council
A2: ="Stadium Purposes Rate "&year_current -> Stadium Purposes Rate 2018/19
A3: Printed: | B3: =NOW() -> 2018-03-27T14:57:01
A4: =check_total -> 8066.052688
A6: =Control!A29 -> TA full name | B6: =Control!B29 -> Category group | C6: =Control!C29 -> Concatenated row | D6: ="Allocation "&year_current -> Allocation 2018/19 | E6: CV | F6: Stadium purposes rate | G6: Rates sought
A7: =Control!A40 -> 0 | B7: =Control!B40 -> 0 | C7: =Control!C40 -> 0 | D7: % | E7: $ | F7: $ | G7: Cents per $
A9: By TA
A10: =Control!A30 -> Wellington City | B10: =Control!B30 -> District wide | C10: =Control!C30 -> Wellington CityDistrict wide | D10: =SUMIF($A$23:$A$48,$A10,$D$23:$D$48) -> 0.594 | E10: =INDEX(capital_values,MATCH($C10,capital_values_rows,0),MATCH(E$6&" "&year_current,capital_values_header,0)) -> 51575881451 | F10: =SUMIF($A$23:$A$48,$A10,$F$23:$F$48) -> 0
A11: =Control!A31 -> Hutt City | B11: =Control!B31 -> District wide | C11: =Control!C31 -> Hutt CityDistrict wide | D11: 0.1952 | E11: 21308578500 | F11: =SUMIF($A$23:$A$48,$A11,$F$23:$F$48) -> 0
A12: =Control!A32 -> Upper Hutt City | B12: =Control!B32 -> District wide | C12: =Control!C32 -> Upper Hutt CityDistrict wide | D12: 0.0526 | E12: 8127444260 | F12: 0
A13: =Control!A33 -> Porirua City | B13: =Control!B33 -> District wide | C13: =Control!C33 -> Porirua CityDistrict wide | D13: 0.0718 | E13: 10194406250 | F13: 0
A14: =Control!A34 -> Kapiti Coast District | B14: =Control!B34 -> District wide | C14: =Control!C34 -> Kapiti Coast DistrictDistrict wide | D14: 0.0484 | E14: 14609528600 | F14: 0
A15: =Control!A35 -> Masterton District | B15: =Control!B35 -> District wide | C15: =Control!C35 -> Masterton DistrictDistrict wide | D15: 0.02 | E15: 5909468000 | F15: 0
A16: =Control!A36 -> Carterton District | B16: =Control!B36 -> District wide | C16: =Control!C36 -> Carterton DistrictDistrict wide | D16: 0.007 | E16: 2707141800 | F16: 0
A17: =Control!A37 -> South Wairarapa District | B17: =Control!B37 -> District wide | C17: =Control!C37 -> South Wairarapa DistrictDistrict wide | D17: 0.011 | E17: 4460485300 | F17: 0
A18: =Control!A38 -> Tararua District | B18: =Control!B38 -> District wide | C18: =Control!C38 -> Tararua DistrictDistrict wide | D18: 0 | E18: 10760500 | F18: =SUMIF($A$23:$A$48,$A18,$F$23:$F$48) -> 0
A19: Region wide | D19: =SUM(D10:D18) -> 1 | E19: =SUM(E10:E18) -> 118903694661 | F19: =SUM(F10:F18) -> 0
A22: By TA & Category
A23: =Control!A43 -> Wellington City | B23: =Control!B43 -> Regional CBD | C23: =Control!C43 -> Wellington CityRegional CBD | D23: =INDEX(stadium_rate_allocation,MATCH(C23,Control!$C$105:$C$130,0),) -> 0.137547126 | E23: =INDEX(capital_values,MATCH($C23,capital_values_rows,0),MATCH(E$6&" "&year_current,capital_values_header,0)) -> 7819039000 | F23: =$F$49*D23 -> 0 | G23: =F23/E23*100 -> 0
A24: =Control!A44 -> Wellington City | B24: =Control!B44 -> Business | C24: =Control!C44 -> Wellington CityBusiness | D24: =INDEX(stadium_rate_allocation,MATCH(C24,Control!$C$105:$C$130,0),) -> 0.06795287395 | E24: 3862866400 | F24: 0 | G24: 0
A25: =Control!A45 -> Wellington City | B25: =Control!B45 -> Residential | C25: =Control!C45 -> Wellington CityResidential | D25: =INDEX(stadium_rate_allocation,MATCH(C25,Control!$C$105:$C$130,0),) -> 0.3856 | E25: 39302266501 | F25: 0 | G25: 0
A26: =Control!A46 -> Wellington City | B26: =Control!B46 -> Rural | C26: =Control!C46 -> Wellington CityRural | D26: =INDEX(stadium_rate_allocation,MATCH(C26,Control!$C$105:$C$130,0),) -> 0.0029 | E26: 591709550 | F26: 0 | G26: 0
A27: =Control!A47 -> Hutt City | B27: =Control!B47 -> Business | C27: =Control!C47 -> Hutt CityBusiness | D27: =INDEX(stadium_rate_allocation,MATCH(C27,Control!$C$105:$C$130,0),) -> 0.0509 | E27: 3771653500 | F27: 0 | G27: 0
A28: =Control!A48 -> Hutt City | B28: =Control!B48 -> Residential | C28: =Control!C48 -> Hutt CityResidential | D28: =INDEX(stadium_rate_allocation,MATCH(C28,Control!$C$105:$C$130,0),) -> 0.142 | E28: 17222975000 | F28: 0 | G28: 0
A29: =Control!A49 -> Hutt City | B29: =Control!B49 -> Rural | C29: =Control!C49 -> Hutt CityRural | D29: =INDEX(stadium_rate_allocation,MATCH(C29,Control!$C$105:$C$130,0),) -> 0.0023 | E29: 313950000 | F29: 0 | G29: 0
A30: =Control!A50 -> Upper Hutt City | B30: =Control!B50 -> Business | C30: =Control!C50 -> Upper Hutt CityBusiness | D30: =INDEX(stadium_rate_allocation,MATCH(C30,Control!$C$105:$C$130,0),) -> 0.0079 | E30: 1176281500 | F30: 0 | G30: 0
A31: =Control!A51 -> Upper Hutt City | B31: =Control!B51 -> Residential | C31: =Control!C51 -> Upper Hutt CityResidential | D31: =INDEX(stadium_rate_allocation,MATCH(C31,Control!$C$105:$C$130,0),) -> 0.0427 | E31: 6108760420 | F31: 0 | G31: 0
A32: =Control!A52 -> Upper Hutt City | B32: =Control!B52 -> Rural | C32: =Control!C52 -> Upper Hutt CityRural | D32: =INDEX(stadium_rate_allocation,MATCH(C32,Control!$C$105:$C$130,0),) -> 0.002 | E32: 842402340 | F32: 0 | G32: 0
A33: =Control!A53 -> Porirua City | B33: =Control!B53 -> Business | C33: =Control!C53 -> Porirua CityBusiness | D33: =INDEX(stadium_rate_allocation,MATCH(C33,Control!$C$105:$C$130,0),) -> 0.0124 | E33: 1097240500 | F33: 0 | G33: 0
A34: =Control!A54 -> Porirua City | B34: =Control!B54 -> Residential | C34: =Control!C54 -> Porirua CityResidential | D34: =INDEX(stadium_rate_allocation,MATCH(C34,Control!$C$105:$C$130,0),) -> 0.058 | E34: 8483788000 | F34: 0 | G34: 0
A35: =Control!A55 -> Porirua City | B35: =Control!B55 -> Rural | C35: =Control!C55 -> Porirua CityRural | D35: =INDEX(stadium_rate_allocation,MATCH(C35,Control!$C$105:$C$130,0),) -> 0.0014 | E35: 613377750 | F35: 0 | G35: 0
A36: =Control!A56 -> Kapiti Coast District | B36: =Control!B56 -> Business | C36: =Control!C56 -> Kapiti Coast DistrictBusiness | D36: =INDEX(stadium_rate_allocation,MATCH(C36,Control!$C$105:$C$130,0),) -> 0.005310941709 | E36: 1513816000 | F36: 0 | G36: 0
A37: =Control!A57 -> Kapiti Coast District | B37: =Control!B57 -> Residential | C37: =Control!C57 -> Kapiti Coast DistrictResidential | D37: =INDEX(stadium_rate_allocation,MATCH(C37,Control!$C$105:$C$130,0),) -> 0.03878905829 | E37: 11056324900 | F37: 0 | G37: 0
A38: =Control!A58 -> Kapiti Coast District | B38: =Control!B58 -> Rural | C38: =Control!C58 -> Kapiti Coast DistrictRural | D38: =INDEX(stadium_rate_allocation,MATCH(C38,Control!$C$105:$C$130,0),) -> 0.0043 | E38: 2039387700 | F38: 0 | G38: 0
A39: =Control!A59 -> Masterton District | B39: =Control!B59 -> Business | C39: =Control!C59 -> Masterton DistrictBusiness | D39: =INDEX(stadium_rate_allocation,MATCH(C39,Control!$C$105:$C$130,0),) -> 0.002039569297 | E39: 435894100 | F39: 0 | G39: 0
A40: =Control!A60 -> Masterton District | B40: =Control!B60 -> Residential | C40: =Control!C60 -> Masterton DistrictResidential | D40: =INDEX(stadium_rate_allocation,MATCH(C40,Control!$C$105:$C$130,0),) -> 0.0126604307 | E40: 2705770800 | F40: 0 | G40: 0
A41: =Control!A61 -> Masterton District | B41: =Control!B61 -> Rural | C41: =Control!C61 -> Masterton DistrictRural | D41: =INDEX(stadium_rate_allocation,MATCH(C41,Control!$C$105:$C$130,0),) -> 0.0053 | E41: 2767803100 | F41: 0 | G41: 0
A42: =Control!A62 -> Carterton District | B42: =Control!B62 -> Business | C42: =Control!C62 -> Carterton DistrictBusiness | D42: =INDEX(stadium_rate_allocation,MATCH(C42,Control!$C$105:$C$130,0),) -> 0.0003928711058 | E42: 92706500 | F42: 0 | G42: 0
A43: =Control!A63 -> Carterton District | B43: =Control!B63 -> Residential | C43: =Control!C63 -> Carterton DistrictResidential | D43: =INDEX(stadium_rate_allocation,MATCH(C43,Control!$C$105:$C$130,0),) -> 0.003507128894 | E43: 827583500 | F43: 0 | G43: 0
A44: =Control!A64 -> Carterton District | B44: =Control!B64 -> Rural | C44: =Control!C64 -> Carterton DistrictRural | D44: =INDEX(stadium_rate_allocation,MATCH(C44,Control!$C$105:$C$130,0),) -> 0.0031 | E44: 1786851800 | F44: 0 | G44: 0
A45: =Control!A65 -> South Wairarapa District | B45: =Control!B65 -> Business | C45: =Control!C65 -> South Wairarapa DistrictBusiness | D45: =INDEX(stadium_rate_allocation,MATCH(C45,Control!$C$105:$C$130,0),) -> 0.0009877456792 | E45: 205904600 | F45: 0 | G45: 0
A46: =Control!A66 -> South Wairarapa District | B46: =Control!B66 -> Residential | C46: =Control!C66 -> South Wairarapa DistrictResidential | D46: =INDEX(stadium_rate_allocation,MATCH(C46,Control!$C$105:$C$130,0),) -> 0.006212254321 | E46: 1295001100 | F46: 0 | G46: 0
A47: =Control!A67 -> South Wairarapa District | B47: =Control!B67 -> Rural | C47: =Control!C67 -> South Wairarapa DistrictRural | D47: =INDEX(stadium_rate_allocation,MATCH(C47,Control!$C$105:$C$130,0),) -> 0.0038 | E47: 2959579600 | F47: 0 | G47: 0
A48: =Control!A68 -> Tararua District | B48: =Control!B68 -> Rural | C48: =Control!C68 -> Tararua DistrictRural | D48: =INDEX(stadium_rate_allocation,MATCH(C48,Control!$C$105:$C$130,0),) -> 0 | E48: 10760500 | F48: =$F$49*D48 -> 0 | G48: 0
A49: Region wide | D49: =SUM(D23:D48) -> 1 | E49: =SUM(E23:E48) -> 118903694661 | F49: =INDEX(ess_base_estract,MATCH(F6,ESSbase!$B$8:$B$26,0),MATCH(year_current,ESSbase!$F$6:$G$6,0)) -> 0
A52: Upper Hutt breakdown
A53: =$A$12 -> Upper Hutt City | B53: Business | C53: Trentham Military Camp | D53: =SUMIFS($D$23:$D$48,$A$23:$A$48,A53,$B$23:$B$48,B53) * IF(C53="Trentham Military Camp", INDEX('UHCC Adjustments'!$E$30:$E$32,MATCH(B53,'UHCC Adjustments'!$B$30:$B$32,0),), 1-INDEX('UHCC Adjustments'!$E$30:$E$32,MATCH(B53,'UHCC Adjustments'!$B$30:$B$32,0),)) -> 0.0005176155482 | E53: =SUMIFS('UHCC Adjustments'!$D$9:$D$27,'UHCC Adjustments'!$B$9:$B$27,B53,'UHCC Adjustments'!$C$9:$C$27,C53) -> 56325000 | F53: =$F$49*D53 -> 0 | G53: =F53/E53*100 -> 0
A54: Upper Hutt City | B54: Business | C54: Rest of Upper Hutt City | D54: =SUMIFS($D$23:$D$48,$A$23:$A$48,A54,$B$23:$B$48,B54) * IF(C54="Trentham Military Camp", INDEX('UHCC Adjustments'!$E$30:$E$32,MATCH(B54,'UHCC Adjustments'!$B$30:$B$32,0),), 1-INDEX('UHCC Adjustments'!$E$30:$E$32,MATCH(B54,'UHCC Adjustments'!$B$30:$B$32,0),)) -> 0.007382384452 | E54: =SUMIFS('UHCC Adjustments'!$D$9:$D$27,'UHCC Adjustments'!$B$9:$B$27,B54,'UHCC Adjustments'!$C$9:$C$27,C54) -> 1119956500 | F54: =$F$49*D54 -> 0 | G54: 0
A55: Upper Hutt City | B55: Residential | C55: Trentham Military Camp | D55: =SUMIFS($D$23:$D$48,$A$23:$A$48,A55,$B$23:$B$48,B55) * IF(C55="Trentham Military Camp", INDEX('UHCC Adjustments'!$E$30:$E$32,MATCH(B55,'UHCC Adjustments'!$B$30:$B$32,0),), 1-INDEX('UHCC Adjustments'!$E$30:$E$32,MATCH(B55,'UHCC Adjustments'!$B$30:$B$32,0),)) -> 0.0001367318806 | E55: =SUMIFS('UHCC Adjustments'!$D$9:$D$27,'UHCC Adjustments'!$B$9:$B$27,B55,'UHCC Adjustments'!$C$9:$C$27,C55) -> 26720000 | F55: 0 | G55: 0
A56: Upper Hutt City | B56: Residential | C56: Rest of Upper Hutt City | D56: =SUMIFS($D$23:$D$48,$A$23:$A$48,A56,$B$23:$B$48,B56) * IF(C56="Trentham Military Camp", INDEX('UHCC Adjustments'!$E$30:$E$32,MATCH(B56,'UHCC Adjustments'!$B$30:$B$32,0),), 1-INDEX('UHCC Adjustments'!$E$30:$E$32,MATCH(B56,'UHCC Adjustments'!$B$30:$B$32,0),)) -> 0.04256326812 | E56: =SUMIFS('UHCC Adjustments'!$D$9:$D$27,'UHCC Adjustments'!$B$9:$B$27,B56,'UHCC Adjustments'!$C$9:$C$27,C56) -> 6082040420 | F56: 0 | G56: 0
A57: Upper Hutt City | B57: Rural | C57: Trentham Military Camp | D57: =SUMIFS($D$23:$D$48,$A$23:$A$48,A57,$B$23:$B$48,B57) * IF(C57="Trentham Military Camp", INDEX('UHCC Adjustments'!$E$30:$E$32,MATCH(B57,'UHCC Adjustments'!$B$30:$B$32,0),), 1-INDEX('UHCC Adjustments'!$E$30:$E$32,MATCH(B57,'UHCC Adjustments'!$B$30:$B$32,0),)) -> 1.290813159e-05 | E57: =SUMIFS('UHCC Adjustments'!$D$9:$D$27,'UHCC Adjustments'!$B$9:$B$27,B57,'UHCC Adjustments'!$C$9:$C$27,C57) -> 4676000 | F57: 0 | G57: 0
A58: Upper Hutt City | B58: Rural | C58: Rest of Upper Hutt City | D58: =SUMIFS($D$23:$D$48,$A$23:$A$48,A58,$B$23:$B$48,B58) * IF(C58="Trentham Military Camp", INDEX('UHCC Adjustments'!$E$30:$E$32,MATCH(B58,'UHCC Adjustments'!$B$30:$B$32,0),), 1-INDEX('UHCC Adjustments'!$E$30:$E$32,MATCH(B58,'UHCC Adjustments'!$B$30:$B$32,0),)) -> 0.001987091868 | E58: =SUMIFS('UHCC Adjustments'!$D$9:$D$27,'UHCC Adjustments'!$B$9:$B$27,B58,'UHCC Adjustments'!$C$9:$C$27,C58) -> 837726340 | F58: 0 | G58: 0
A59: Total | D59: =SUM(D53:D58) -> 0.0526 | E59: =SUM(E53:E58) -> 8127444260 | F59: =SUM(F53:F58) -> 0
A62: Check Upper Hutt total | D62: =D59-D12 -> 0 | E62: =E59-E12 -> 0 | F62: =F59-F12 -> 0
A63: Check TA totals | D63: =D19-SUM(D10:D18) -> 0 | E63: =E19-SUM(E10:E18) -> 0 | F63: =F19-SUM(F10:F18) -> 0
A64: Check category totals | D64: =D49-SUM(D23:D48) -> 0 | E64: =E49-SUM(E23:E48) -> 0 | F64: =F49-SUM(F23:F48) -> 0
A65: Category matches TA | E65: =E49-E19 -> 0 | F65: =F49-F19 -> 0

Sheet WRS
A1: Wellington Regional Council
A2: ="Wellington Regional Strategy "&year_current -> Wellington Regional Strategy 2018/19
A3: Printed: | B3: =NOW() -> 2018-03-27T14:57:01
A4: =check_total -> 8066.052688
A6: =Control!A29 -> TA full name | B6: =Control!B29 -> Category group | C6: =Control!C29 -> Concatenated row | D6: CV assessments | E6: Contiguous assements | F6: Rateable properties | G6: Rating basis | H6: CV | I6: ECV | J6: Regional strategy rate | K6: Rates sought
A7: =Control!A40 -> 0 | B7: =Control!B40 -> 0 | C7: =Control!C40 -> 0 | D7: # | E7: # | F7: # | G7: $ | H7: $ | I7: $ | J7: $ | K7: Cents per $
A9: By TA
A10: =Control!A30 -> Wellington City | B10: =Control!B30 -> District wide | C10: =Control!C30 -> Wellington CityDistrict wide | H10: =INDEX(capital_values,MATCH($C10,capital_values_rows,0),MATCH(H$6&" "&year_current,capital_values_header,0)) -> 51575881451 | I10: 68975077410 | J10: =SUMIF($A$23:$A$48,$A10,$J$23:$J$48) -> 2346550.105
A11: =Control!A31 -> Hutt City | B11: =Control!B31 -> District wide | C11: =Control!C31 -> Hutt CityDistrict wide | H11: 21308578500 | I11: 24118117072 | J11: =SUMIF($A$23:$A$48,$A11,$J$23:$J$48) -> 883539.1397
A12: =Control!A32 -> Upper Hutt City | B12: =Control!B32 -> District wide | C12: =Control!C32 -> Upper Hutt CityDistrict wide | H12: 8127444260 | I12: 9172479133 | J12: 352214.2716
A13: =Control!A33 -> Porirua City | B13: =Control!B33 -> District wide | C13: =Control!C33 -> Porirua CityDistrict wide | H13: 10194406250 | I13: 11429809803 | J13: 362954.5637
A14: =Control!A34 -> Kapiti Coast District | B14: =Control!B34 -> District wide | C14: =Control!C34 -> Kapiti Coast DistrictDistrict wide | H14: 14609528600 | I14: 14678791680 | J14: 489421.5703
A15: =Control!A35 -> Masterton District | B15: =Control!B35 -> District wide | C15: =Control!C35 -> Masterton DistrictDistrict wide | H15: 5909468000 | I15: 5891731979 | J15: 242660.1347
A16: =Control!A36 -> Carterton District | B16: =Control!B36 -> District wide | C16: =Control!C36 -> Carterton DistrictDistrict wide | H16: 2707141800 | I16: 2715649450 | J16: 91329.72851
A17: =Control!A37 -> South Wairarapa District | B17: =Control!B37 -> District wide | C17: =Control!C37 -> South Wairarapa DistrictDistrict wide | H17: 4460485300 | I17: 4514129051 | J17: 138939.3075
A18: =Control!A38 -> Tararua District | B18: =Control!B38 -> District wide | C18: =Control!C38 -> Tararua DistrictDistrict wide | H18: 10760500 | I18: 7041800 | J18: 252
A19: Region wide | H19: =SUM(H10:H18) -> 118903694661 | I19: =SUM(I10:I18) -> 141502827378 | J19: =SUM(J10:J18) -> 4907860.821
A22: By TA & Category
A23: =Control!A43 -> Wellington City | B23: =Control!B43 -> Regional CBD | C23: =Control!C43 -> Wellington CityRegional CBD | D23: =INDEX(assessments,MATCH($C23,assessments_rows,0),MATCH(D$6&" "&year_current,assessments_header,0)) -> 3382 | E23: =INDEX(assessments_contiguous,MATCH($C23,assessments_contiguous_rows,0),MATCH(E$6&" "&year_current,assessments_contiguous_header,0)) -> 0 | F23: =D23-E23 -> 3382 | G23: =INDEX(WRS_value,MATCH($B23,WRS_categories,0),) -> Remainder | H23: =INDEX(capital_values,MATCH($C23,capital_values_rows,0),MATCH(H$6&" "&year_current,capital_values_header,0)) -> 7819039000 | I23: =INDEX($I$10:$I$18,MATCH(A23,$A$10:$A$18,0),)/INDEX($H$10:$H$18,MATCH(A23,$A$10:$A$18,0),)*H23 -> 1.045680278e+10 | J23: =IF(G23="Remainder", I23/(SUMIF($B$23:$B$48,"Business",$I$23:$I$48) +SUMIF($B$23:$B$48,"Regional CBD",$I$23:$I$48)) *($J$49-SUMPRODUCT($G$23:$G$48,$F$23:$F$48)), G23*F23) -> 890280.0349 | K23: =J23/H23*100 -> 0.01138605441
A24: =Control!A44 -> Wellington City | B24: =Control!B44 -> Business | C24: =Control!C44 -> Wellington CityBusiness | D24: 1900 | E24: 0 | F24: =D24-E24 -> 1900 | G24: Remainder | H24: 3862866400 | I24: =INDEX($I$10:$I$18,MATCH(A24,$A$10:$A$18,0),)/INDEX($H$10:$H$18,MATCH(A24,$A$10:$A$18,0),)*H24 -> 5166009799 | J24: =IF(G24="Remainder", I24/(SUMIF($B$23:$B$48,"Business",$I$23:$I$48) +SUMIF($B$23:$B$48,"Regional CBD",$I$23:$I$48)) *($J$49-SUMPRODUCT($G$23:$G$48,$F$23:$F$48)), G24*F24) -> 439828.0701 | K24: 0.01138605441
A25: =Control!A45 -> Wellington City | B25: =Control!B45 -> Residential | C25: =Control!C45 -> Wellington CityResidential | D25: 71045 | E25: 0 | F25: 71045 | G25: 14 | H25: 39302266501 | I25: 5.256094124e+10 | J25: 994630 | K25: 0.002530719189
A26: =Control!A46 -> Wellington City | B26: =Control!B46 -> Rural | C26: =Control!C46 -> Wellington CityRural | D26: 779 | E26: 0 | F26: 779 | G26: 28 | H26: 591709550 | I26: 791323596.8 | J26: 21812 | K26: 0.003686268035
A27: =Control!A47 -> Hutt City | B27: =Control!B47 -> Business | C27: =Control!C47 -> Hutt CityBusiness | D27: 2358 | E27: 0 | F27: 2358 | G27: Remainder | H27: 3771653500 | I27: 4268946456 | J27: 363453.1397 | K27: 0.009636440349
A28: =Control!A48 -> Hutt City | B28: =Control!B48 -> Residential | C28: =Control!C48 -> Hutt CityResidential | D28: 36300 | E28: 125 | F28: 36175 | G28: 14 | H28: =INDEX(capital_values,MATCH($C28,capital_values_rows,0),MATCH(H$6&" "&year_current,capital_values_header,0)) -> 17222975000 | I28: 1.949382627e+10 | J28: =IF(G28="Remainder", I28/(SUMIF($B$23:$B$48,"Business",$I$23:$I$48) +SUMIF($B$23:$B$48,"Regional CBD",$I$23:$I$48)) *($J$49-SUMPRODUCT($G$23:$G$48,$F$23:$F$48)), G28*F28) -> 506450 | K28: 0.002940548889
A29: =Control!A49 -> Hutt City | B29: =Control!B49 -> Rural | C29: =Control!C49 -> Hutt CityRural | D29: 487 | E29: 0 | F29: 487 | G29: 28 | H29: 313950000 | I29: 355344344.3 | J29: 13636 | K29: 0.004343366778
A30: =Control!A50 -> Upper Hutt City | B30: =Control!B50 -> Business | C30: =Control!C50 -> Upper Hutt CityBusiness | D30: 712 | E30: 0 | F30: 712 | G30: Remainder | H30: 1176281500 | I30: 1327528946 | J30: 113024.2716 | K30: 0.009608607426
A31: =Control!A51 -> Upper Hutt City | B31: =Control!B51 -> Residential | C31: =Control!C51 -> Upper Hutt CityResidential | D31: 14778 | E31: 37 | F31: 14741 | G31: 14 | H31: 6108760420 | I31: 6894230915 | J31: 206374 | K31: 0.003378328594
A32: =Control!A52 -> Upper Hutt City | B32: =Control!B52 -> Rural | C32: =Control!C52 -> Upper Hutt CityRural | D32: 1246 | E32: 74 | F32: 1172 | G32: 28 | H32: 842402340 | I32: 950719271.4 | J32: 32816 | K32: 0.003895525741
A33: =Control!A53 -> Porirua City | B33: =Control!B53 -> Business | C33: =Control!C53 -> Porirua CityBusiness | D33: 795 | E33: 0 | F33: 795 | G33: Remainder | H33: 1097240500 | I33: 1230208991 | J33: 104738.5637 | K33: 0.00954563413
A34: =Control!A54 -> Porirua City | B34: =Control!B54 -> Residential | C34: =Control!C54 -> Porirua CityResidential | D34: 17224 | E34: 0 | F34: 17224 | G34: 14 | H34: 8483788000 | I34: 9511891215 | J34: 241136 | K34: 0.002842315249
A35: =Control!A55 -> Porirua City | B35: =Control!B55 -> Rural | C35: =Control!C55 -> Porirua CityRural | D35: 610 | E35: 0 | F35: 610 | G35: 28 | H35: 613377750 | I35: 687709597.6 | J35: 17080 | K35: 0.002784580954
A36: =Control!A56 -> Kapiti Coast District | B36: =Control!B56 -> Business | C36: =Control!C56 -> Kapiti Coast DistrictBusiness | D36: 1395 | E36: 0 | F36: 1395 | G36: Remainder | H36: 1513816000 | I36: 1520992930 | J36: 129495.5703 | K36: 0.008554247693
A37: =Control!A57 -> Kapiti Coast District | B37: =Control!B57 -> Residential | C37: =Control!C57 -> Kapiti Coast DistrictResidential | D37: 20672 | E37: 199 | F37: 20473 | G37: 14 | H37: 11056324900 | I37: 1.110874241e+10 | J37: 286622 | K37: 0.002592380403
A38: =Control!A58 -> Kapiti Coast District | B38: =Control!B58 -> Rural | C38: =Control!C58 -> Kapiti Coast DistrictRural | D38: 2773 | E38: 155 | F38: 2618 | G38: 28 | H38: 2039387700 | I38: 2049056340 | J38: 73304 | K38: 0.003594412186
A39: =Control!A59 -> Masterton District | B39: =Control!B59 -> Business | C39: =Control!C59 -> Masterton DistrictBusiness | D39: 550 | E39: 0 | F39: 550 | G39: Remainder | H39: 435894100 | I39: 434585855.9 | J39: 37000.13467 | K39: 0.00848833115
A40: =Control!A60 -> Masterton District | B40: =Control!B60 -> Residential | C40: =Control!C60 -> Masterton DistrictResidential | D40: 7878 | E40: 14 | F40: 7864 | G40: 14 | H40: 2705770800 | I40: 2697650000 | J40: 110096 | K40: 0.004068932964
A41: =Control!A61 -> Masterton District | B41: =Control!B61 -> Rural | C41: =Control!C61 -> Masterton DistrictRural | D41: 3854 | E41: 441 | F41: 3413 | G41: 28 | H41: 2767803100 | I41: 2759496123 | J41: 95564 | K41: 0.003452702253
A42: =Control!A62 -> Carterton District | B42: =Control!B62 -> Business | C42: =Control!C62 -> Carterton DistrictBusiness | D42: 225 | E42: 0 | F42: 225 | G42: Remainder | H42: 92706500 | I42: 92997845.82 | J42: 7917.728507 | K42: 0.008540640092
A43: =Control!A63 -> Carterton District | B43: =Control!B63 -> Residential | C43: =Control!C63 -> Carterton DistrictResidential | D43: 2356 | E43: 82 | F43: 2274 | G43: 14 | H43: 827583500 | I43: 830184320.8 | J43: 31836 | K43: 0.003846862582
A44: =Control!A64 -> Carterton District | B44: =Control!B64 -> Rural | C44: =Control!C64 -> Carterton DistrictRural | D44: 2062 | E44: 220 | F44: 1842 | G44: 28 | H44: 1786851800 | I44: 1792467283 | J44: 51576 | K44: 0.002886417329
A45: =Control!A65 -> South Wairarapa District | B45: =Control!B65 -> Business | C45: =Control!C65 -> South Wairarapa DistrictBusiness | D45: 308 | E45: 0 | F45: 308 | G45: Remainder | H45: 205904600 | I45: 208380899 | J45: 17741.30755 | K45: 0.008616275473
A46: =Control!A66 -> South Wairarapa District | B46: =Control!B66 -> Residential | C46: =Control!C66 -> South Wairarapa DistrictResidential | D46: 3196 | E46: 73 | F46: 3123 | G46: 14 | H46: 1295001100 | I46: 1310575351 | J46: 43722 | K46: 0.003376213348
A47: =Control!A67 -> South Wairarapa District | B47: =Control!B67 -> Rural | C47: =Control!C67 -> South Wairarapa DistrictRural | D47: 3107 | E47: 340 | F47: 2767 | G47: 28 | H47: 2959579600 | I47: 2995172801 | J47: 77476 | K47: 0.002617804231
A48: =Control!A68 -> Tararua District | B48: =Control!B68 -> Rural | C48: =Control!C68 -> Tararua DistrictRural | D48: 10 | E48: 1 | F48: 9 | G48: 28 | H48: 10760500 | I48: 7041800 | J48: 252 | K48: 0.002341898611
A49: Region wide | D49: =SUM(D23:D48) -> 200002 | E49: =SUM(E23:E48) -> 1761 | F49: =SUM(F23:F48) -> 198241 | H49: =SUM(H23:H48) -> 118903694661 | I49: =SUM(I23:I48) -> 141502827378 | J49: =INDEX(ess_base_estract,MATCH(J6,ESSbase!$B$8:$B$26,0),MATCH(year_current,ESSbase!$F$6:$G$6,0)) -> 4907860.821
A51: Check TA totals | H51: =INDEX(capital_values,MATCH("Region wide",capital_values_rows,0),MATCH(H6&" "&year_current,capital_values_header,0))-SUM(H10:H18) -> 0 | I51: =INDEX(capital_values,MATCH("Region wide",capital_values_rows,0),MATCH(I6&" "&year_current,capital_values_header,0))-SUM(I10:I18) -> 0 | J51: =INDEX(ess_base_estract,MATCH(J6,ESSbase!$B$8:$B$26,0),MATCH(year_current,ESSbase!$F$6:$G$6,0))-SUM(J10:J18) -> 0
A52: Check category totals | D52: =INDEX(assessments,MATCH("region wide",assessments_rows,0),MATCH("CV assessments "&year_current,assessments_header,0))-SUM(D23:D48) -> 0 | E52: =INDEX(assessments_contiguous,MATCH("region wide",assessments_contiguous_rows,0),MATCH("Contiguous assements "&year_current,assessments_contiguous_header,0))-SUM(E23:E48) -> 0 | F52: =F49-SUM(F23:F48) -> 0 | H52: =INDEX(capital_values,MATCH("Region wide",capital_values_rows,0),MATCH(H6&" "&year_current,capital_values_header,0))-SUM(H23:H48) -> 0 | I52: =INDEX(capital_values,MATCH("Region wide",capital_values_rows,0),MATCH(I6&" "&year_current,capital_values_header,0))-SUM(I23:I48) -> 0 | J52: =INDEX(ess_base_estract,MATCH(J6,ESSbase!$B$8:$B$26,0),MATCH(year_current,ESSbase!$F$6:$G$6,0))-SUM(J23:J48) -> 0
A53: Category matches TA | H53: =H49-H19 -> 0 | I53: =I49-I19 -> 0 | J53: =J49-J19 -> 0

Sheet Tran
A1: Wellington Regional Council
A2: ="Regional Transport Rate "&year_current -> Regional Transport Rate 2018/19
A3: Printed: | B3: =NOW() -> 2018-03-27T14:57:01
A4: =check_total -> 8066.052688
A6: =Control!A29 -> TA full name | B6: =Control!B29 -> Category group | C6: =Control!C29 -> Concatenated row | D6: ="CV" -> CV | E6: ECV | F6: Differential | G6: ECV multiplied | H6: Public transport rate | I6: Rates sought
D7: $ | E7: $ | F7: # | G7: # | H7: $ | I7: Cents/$
A9: By TA
A10: =Control!A30 -> Wellington City | B10: =Control!B30 -> District wide | C10: =Control!C30 -> Wellington CityDistrict wide | D10: =INDEX(capital_values,MATCH($C10,capital_values_rows,0),MATCH(D$6&" "&year_current,capital_values_header,0)) -> 51575881451 | E10: 68975077410 | H10: =SUMIF($A$23:$A$48,$A10,$H$23:$H$48) -> 41775892.76
A11: =Control!A31 -> Hutt City | B11: =Control!B31 -> District wide | C11: =Control!C31 -> Hutt CityDistrict wide | D11: 21308578500 | E11: 24118117072 | H11: =SUMIF($A$23:$A$48,$A11,$H$23:$H$48) -> 10825287.61
A12: =Control!A32 -> Upper Hutt City | B12: =Control!B32 -> District wide | C12: =Control!C32 -> Upper Hutt CityDistrict wide | D12: 8127444260 | E12: 9172479133 | H12: 4174873.755
A13: =Control!A33 -> Porirua City | B13: =Control!B33 -> District wide | C13: =Control!C33 -> Porirua CityDistrict wide | D13: 10194406250 | E13: 11429809803 | H13: 5486054.931
A14: =Control!A34 -> Kapiti Coast District | B14: =Control!B34 -> District wide | C14: =Control!C34 -> Kapiti Coast DistrictDistrict wide | D14: 14609528600 | E14: 14678791680 | H14: 3744973.895
A15: =Control!A35 -> Masterton District | B15: =Control!B35 -> District wide | C15: =Control!C35 -> Masterton DistrictDistrict wide | D15: 5909468000 | E15: 5891731979 | H15: 511304.9577
A16: =Control!A36 -> Carterton District | B16: =Control!B36 -> District wide | C16: =Control!C36 -> Carterton DistrictDistrict wide | D16: 2707141800 | E16: 2715649450 | H16: 255218.8461
A17: =Control!A37 -> South Wairarapa District | B17: =Control!B37 -> District wide | C17: =Control!C37 -> South Wairarapa DistrictDistrict wide | D17: 4460485300 | E17: 4514129051 | H17: 499403.651
A18: =Control!A38 -> Tararua District | B18: =Control!B38 -> District wide | C18: =Control!C38 -> Tararua DistrictDistrict wide | D18: 10760500 | E18: 7041800 | H18: 0
A19: Region wide | D19: =SUM(D10:D18) -> 118903694661 | E19: =SUM(E10:E18) -> 141502827378 | H19: =SUM(H10:H18) -> 67273010.4
A22: By TA & Category
A23: =Control!A43 -> Wellington City | B23: =Control!B43 -> Regional CBD | C23: =Control!C43 -> Wellington CityRegional CBD | D23: =INDEX(capital_values,MATCH($C23,capital_values_rows,0),MATCH(D$6&" "&year_current,capital_values_header,0)) -> 7819039000 | E23: 1.045680278e+10 | F23: =INDEX(PT_differentials,MATCH($C23,Concat_rating_category,0),) -> 7.162136754 | G23: =E23*F23 -> 7.489305148e+10 | H23: =H$49*G23/G$49 -> 25944905.12 | I23: =H23/D23*100 -> 0.3318170573
A24: =Control!A44 -> Wellington City | B24: =Control!B44 -> Business | C24: =Control!C44 -> Wellington CityBusiness | D24: 3862866400 | E24: 5166009799 | F24: =INDEX(PT_differentials,MATCH($C24,Concat_rating_category,0),) -> 0.9406814812 | G24: =E24*F24 -> 4859569750 | H24: =H$49*G24/G$49 -> 1683481.626 | I24: 0.04358115066
A25: =Control!A45 -> Wellington City | B25: =Control!B45 -> Residential | C25: =Control!C45 -> Wellington CityResidential | D25: 39302266501 | E25: 5.256094124e+10 | F25: 0.7740148146 | G25: 4.068294719e+10 | H25: 14093633.3 | I25: 0.03585959426
A26: =Control!A46 -> Wellington City | B26: =Control!B46 -> Rural | C26: =Control!C46 -> Wellington CityRural | D26: 591709550 | E26: 791323596.8 | F26: 0.1965188139 | G26: 155509974.6 | H26: 53872.70857 | I26: 0.009104586629
A27: =Control!A47 -> Hutt City | B27: =Control!B47 -> Business | C27: =Control!C47 -> Hutt CityBusiness | D27: 3771653500 | E27: 4268946456 | F27: 1.446888823 | G27: 6176690912 | H27: 2139766.727 | I27: 0.05673285542
A28: =Control!A48 -> Hutt City | B28: =Control!B48 -> Residential | C28: =Control!C48 -> Hutt CityResidential | D28: 17222975000 | E28: 1.949382627e+10 | F28: 1.280222156 | G28: 2.49564283e+10 | H28: 8645557.251 | I28: 0.05019781571
A29: =Control!A49 -> Hutt City | B29: =Control!B49 -> Rural | C29: =Control!C49 -> Hutt CityRural | D29: 313950000 | E29: 355344344.3 | F29: 0.3246422102 | G29: 115359773.3 | H29: 39963.63233 | I29: 0.0127292984
A30: =Control!A50 -> Upper Hutt City | B30: =Control!B50 -> Business | C30: =Control!C50 -> Upper Hutt CityBusiness | D30: 1176281500 | E30: 1327528946 | F30: 1.564524426 | G30: 2076951462 | H30: 719510.122 | I30: 0.06116819163
A31: =Control!A51 -> Upper Hutt City | B31: =Control!B51 -> Residential | C31: =Control!C51 -> Upper Hutt CityResidential | D31: 6108760420 | E31: 6894230915 | F31: 1.397857759 | G31: 9637154177 | H31: 3338561.399 | I31: 0.05465202708
A32: =Control!A52 -> Upper Hutt City | B32: =Control!B52 -> Rural | C32: =Control!C52 -> Upper Hutt CityRural | D32: 842402340 | E32: 950719271.4 | F32: 0.35464047 | G32: 337163529.2 | H32: =H$49*G32/G$49 -> 116802.2347 | I32: 0.01386537396
A33: =Control!A53 -> Porirua City | B33: =Control!B53 -> Business | C33: =Control!C53 -> Porirua CityBusiness | D33: 1097240500 | E33: 1230208991 | F33: 1.598538878 | G33: 1966536899 | H33: 681259.6396 | I33: 0.06208845186
A34: =Control!A54 -> Porirua City | B34: =Control!B54 -> Residential | C34: =Control!C54 -> Porirua CityResidential | D34: 8483788000 | E34: 9511891215 | F34: 1.431872211 | G34: 1.361981271e+10 | H34: 4718258.121 | I34: 0.05561499322
A35: =Control!A55 -> Porirua City | B35: =Control!B55 -> Rural | C35: =Control!C55 -> Porirua CityRural | D35: 613377750 | E35: 687709597.6 | F35: 0.3632344603 | G35: 249799824.5 | H35: 86537.17023 | I35: 0.01410829953
A36: =Control!A56 -> Kapiti Coast District | B36: =Control!B56 -> Business | C36: =Control!C56 -> Kapiti Coast DistrictBusiness | D36: 1513816000 | E36: 1520992930 | F36: 0.9693177137 | G36: 1474325389 | H36: 510744.743 | I36: 0.03373889185
A37: =Control!A57 -> Kapiti Coast District | B37: =Control!B57 -> Residential | C37: =Control!C57 -> Kapiti Coast DistrictResidential | D37: 11056324900 | E37: 1.110874241e+10 | F37: 0.802651047 | G37: 8916443727 | H37: 3088888.514 | I37: 0.02793775094
A38: =Control!A58 -> Kapiti Coast District | B38: =Control!B58 -> Rural | C38: =Control!C58 -> Kapiti Coast DistrictRural | D38: 2039387700 | E38: 2049056340 | F38: 0.2047493834 | G38: 419543022.3 | H38: 145340.6383 | I38: 0.007126680144
A39: =Control!A59 -> Masterton District | B39: =Control!B59 -> Business | C39: =Control!C59 -> Masterton DistrictBusiness | D39: 435894100 | E39: 434585855.9 | F39: 0.4993249485 | G39: 216999560.1 | H39: =H$49*G39/G$49 -> 75174.30369 | I39: 0.01724600165
A40: =Control!A60 -> Masterton District | B40: =Control!B60 -> Residential | C40: =Control!C60 -> Masterton DistrictResidential | D40: 2705770800 | E40: 2697650000 | F40: 0.3326582818 | G40: 897395613.9 | H40: 310881.2312 | I40: 0.01148956265
A41: =Control!A61 -> Masterton District | B41: =Control!B61 -> Rural | C41: =Control!C61 -> Masterton DistrictRural | D41: 2767803100 | E41: 2759496123 | F41: 0.131019333 | G41: 361547341.4 | H41: 125249.4228 | I41: 0.004525228791
A42: =Control!A62 -> Carterton District | B42: =Control!B62 -> Business | C42: =Control!C62 -> Carterton DistrictBusiness | D42: 92706500 | E42: 92997845.82 | F42: 0.6311347496 | G42: 58694172.14 | H42: 20333.19109 | I42: 0.02193286457
A43: =Control!A63 -> Carterton District | B43: =Control!B63 -> Residential | C43: =Control!C63 -> Carterton DistrictResidential | D43: 827583500 | E43: 830184320.8 | F43: 0.4644680829 | G43: 385594120 | H43: 133579.8536 | I43: 0.01614095178
A44: =Control!A64 -> Carterton District | B44: =Control!B64 -> Rural | C44: =Control!C64 -> Carterton DistrictRural | D44: 1786851800 | E44: 1792467283 | F44: 0.1631445304 | G44: 292431233.2 | H44: 101305.8014 | I44: 0.005669513353
A45: =Control!A65 -> South Wairarapa District | B45: =Control!B65 -> Business | C45: =Control!C65 -> South Wairarapa DistrictBusiness | D45: 205904600 | E45: 208380899 | F45: 0.7268331513 | G45: 151458145.5 | H45: 52469.04933 | I45: 0.02548221328
A46: =Control!A66 -> South Wairarapa District | B46: =Control!B66 -> Residential | C46: =Control!C66 -> South Wairarapa DistrictResidential | D46: 1295001100 | E46: 1310575351 | F46: 0.5601664846 | G46: 734140387.1 | H46: 254325.3654 | I46: 0.01963900767
A47: =Control!A67 -> South Wairarapa District | B47: =Control!B67 -> Rural | C47: =Control!C67 -> South Wairarapa DistrictRural | D47: 2959579600 | E47: 2995172801 | F47: 0.1856285043 | G47: 555989447.1 | H47: 192609.2363 | I47: 0.006507993105
A48: =Control!A68 -> Tararua District | B48: =Control!B68 -> Rural | C48: =Control!C68 -> Tararua DistrictRural | D48: 10760500 | E48: 7041800 | F48: 0 | G48: 0 | H48: 0 | I48: 0
A49: Region wide | D49: =SUM(D23:D48) -> 118903694661 | E49: =SUM(E23:E48) -> 141502827378 | G49: =SUM(G23:G48) -> 1.941915381e+11 | H49: =INDEX(ess_base_estract,MATCH(H6,ESSbase!$B$8:$B$26,0),MATCH(year_current,ESSbase!$F$6:$G$6,0)) -> 67273010.4
A52: Upper Hutt breakdown
A53: =$A$12 -> Upper Hutt City | B53: Business | C53: Trentham Military Camp | D53: =SUMIFS('UHCC Adjustments'!$D$9:$D$27,'UHCC Adjustments'!$B$9:$B$27,B53,'UHCC Adjustments'!$C$9:$C$27,C53) -> 56325000 | H53: =SUMIFS($H$23:$H$48,$A$23:$A$48,A53,$B$23:$B$48,B53) * IF(C53="Trentham Military Camp", INDEX('UHCC Adjustments'!$E$30:$E$34,MATCH("Business & Residential",'UHCC Adjustments'!$B$30:$B$34,0),), 1-INDEX('UHCC Adjustments'!$E$30:$E$34,MATCH("Business & Residential",'UHCC Adjustments'!$B$30:$B$34,0),)) -> 6343.364216 | I53: =H53/D53*100 -> 0.01126207584
A54: Upper Hutt City | B54: Business | C54: Rest of Upper Hutt City | D54: =SUMIFS('UHCC Adjustments'!$D$9:$D$27,'UHCC Adjustments'!$B$9:$B$27,B54,'UHCC Adjustments'!$C$9:$C$27,C54) -> 1119956500 | H54: =SUMIFS($H$23:$H$48,$A$23:$A$48,A54,$B$23:$B$48,B54) * IF(C54="Trentham Military Camp", INDEX('UHCC Adjustments'!$E$30:$E$34,MATCH("Business & Residential",'UHCC Adjustments'!$B$30:$B$34,0),), 1-INDEX('UHCC Adjustments'!$E$30:$E$34,MATCH("Business & Residential",'UHCC Adjustments'!$B$30:$B$34,0),)) -> 713166.7578 | I54: 0.06367807659
A55: Upper Hutt City | B55: Residential | C55: Trentham Military Camp | D55: =SUMIFS('UHCC Adjustments'!$D$9:$D$27,'UHCC Adjustments'!$B$9:$B$27,B55,'UHCC Adjustments'!$C$9:$C$27,C55) -> 26720000 | H55: =SUMIFS($H$23:$H$48,$A$23:$A$48,A55,$B$23:$B$48,B55) * IF(C55="Trentham Military Camp", INDEX('UHCC Adjustments'!$E$30:$E$34,MATCH("Business & Residential",'UHCC Adjustments'!$B$30:$B$34,0),), 1-INDEX('UHCC Adjustments'!$E$30:$E$34,MATCH("Business & Residential",'UHCC Adjustments'!$B$30:$B$34,0),)) -> 29433.51353 | I55: 0.110155365
A56: Upper Hutt City | B56: Residential | C56: Rest of Upper Hutt City | D56: =SUMIFS('UHCC Adjustments'!$D$9:$D$27,'UHCC Adjustments'!$B$9:$B$27,B56,'UHCC Adjustments'!$C$9:$C$27,C56) -> 6082040420 | H56: =SUMIFS($H$23:$H$48,$A$23:$A$48,A56,$B$23:$B$48,B56) * IF(C56="Trentham Military Camp", INDEX('UHCC Adjustments'!$E$30:$E$34,MATCH("Business & Residential",'UHCC Adjustments'!$B$30:$B$34,0),), 1-INDEX('UHCC Adjustments'!$E$30:$E$34,MATCH("Business & Residential",'UHCC Adjustments'!$B$30:$B$34,0),)) -> 3309127.885 | I56: 0.05440818634
A57: Upper Hutt City | B57: Rural | C57: Trentham Military Camp | D57: =SUMIFS('UHCC Adjustments'!$D$9:$D$27,'UHCC Adjustments'!$B$9:$B$27,B57,'UHCC Adjustments'!$C$9:$C$27,C57) -> 4676000 | H57: =SUMIFS($H$23:$H$48,$A$23:$A$48,A57,$B$23:$B$48,B57) * IF(C57="Trentham Military Camp", INDEX('UHCC Adjustments'!$E$30:$E$32,MATCH(B57,'UHCC Adjustments'!$B$30:$B$32,0),), 1-INDEX('UHCC Adjustments'!$E$30:$E$32,MATCH(B57,'UHCC Adjustments'!$B$30:$B$32,0),)) -> 753.8493074 | I57: 0.01612167039
A58: Upper Hutt City | B58: Rural | C58: Rest of Upper Hutt City | D58: =SUMIFS('UHCC Adjustments'!$D$9:$D$27,'UHCC Adjustments'!$B$9:$B$27,B58,'UHCC Adjustments'!$C$9:$C$27,C58) -> 837726340 | H58: =SUMIFS($H$23:$H$48,$A$23:$A$48,A58,$B$23:$B$48,B58) * IF(C58="Trentham Military Camp", INDEX('UHCC Adjustments'!$E$30:$E$32,MATCH(B58,'UHCC Adjustments'!$B$30:$B$32,0),), 1-INDEX('UHCC Adjustments'!$E$30:$E$32,MATCH(B58,'UHCC Adjustments'!$B$30:$B$32,0),)) -> 116048.3854 | I58: 0.01385277982
A59: Total | D59: =SUM(D53:D58) -> 8127444260 | H59: =SUM(H53:H58) -> 4174873.755
A62: Check Upper Hutt total | D62: =D59-D12 -> 0 | H62: =H59-H12 -> 0
A63: Check TA totals | D63: =INDEX(capital_values,MATCH("Region wide",capital_values_rows,0),MATCH(D6&" "&year_current,capital_values_header,0))-SUM(D10:D18) -> 0 | E63: =INDEX(capital_values,MATCH("Region wide",capital_values_rows,0),MATCH(E6&" "&year_current,capital_values_header,0))-SUM(E10:E18) -> 0 | H63: =INDEX(ess_base_estract,MATCH(H6,ESSbase!$B$8:$B$26,0),MATCH(year_current,ESSbase!$F$6:$G$6,0))-SUM(H10:H18) -> 0
A64: Check category totals | D64: =INDEX(capital_values,MATCH("Region wide",capital_values_rows,0),MATCH(D6&" "&year_current,capital_values_header,0))-SUM(D23:D48) -> 0 | E64: =INDEX(capital_values,MATCH("Region wide",capital_values_rows,0),MATCH(E6&" "&year_current,capital_values_header,0))-SUM(E23:E48) -> 0 | G64: =G49-SUM(G23:G48) -> 0 | H64: =INDEX(ess_base_estract,MATCH(H6,ESSbase!$B$8:$B$26,0),MATCH(year_current,ESSbase!$F$6:$G$6,0))-SUM(H23:H48) -> 0
A65: Category matches TA | D65: =D49-D19 -> 0 | E65: =E49-E19 -> 0 | H65: =H49-H19 -> 0

Sheet >>Other rates & levies

Sheet Pest
A1: Wellington Regional Council
A2: ="Regional Possum/Predator Rate "&year_current -> Regional Possum/Predator Rate 2018/19
A3: Printed: | B3: =NOW() -> 2018-03-27T14:57:00.990
A4: =check_total -> 8066.052688
A6: TA full name | B6: Area ha | C6: $ per Hectare | D6: Pest management rate
B7: # | C7: $ | D7: Cents per $
A9: By TA
A10: =Control!A17 -> Wellington City | B10: =INDEX(Control!$D$135:$D$143,MATCH(Pest!A10,Control!$A$135:$A$143,0)) -> 34055 | C10: =$C$19 -> 0.8668236668 | D10: =B10*C10 -> 29519.67997
A11: =Control!A18 -> Hutt City | B11: =INDEX(Control!$D$135:$D$143,MATCH(Pest!A11,Control!$A$135:$A$143,0)) -> 15578 | C11: 0.8668236668 | D11: =B11*C11 -> 13503.37908
A12: =Control!A19 -> Upper Hutt City | B12: =INDEX(Control!$D$135:$D$143,MATCH(Pest!A12,Control!$A$135:$A$143,0)) -> 54326.2119 | C12: =$C$19 -> 0.8668236668 | D12: 47091.2462
A13: =Control!A20 -> Porirua City | B13: =INDEX(Control!$D$135:$D$143,MATCH(Pest!A13,Control!$A$135:$A$143,0)) -> 11858 | C13: 0.8668236668 | D13: 10278.79504
A14: =Control!A21 -> Kapiti Coast District | B14: =INDEX(Control!$D$135:$D$143,MATCH(Pest!A14,Control!$A$135:$A$143,0)) -> 29205.9985 | C14: 0.8668236668 | D14: 25316.45071
A15: =Control!A22 -> Masterton District | B15: =INDEX(Control!$D$135:$D$143,MATCH(Pest!A15,Control!$A$135:$A$143,0)) -> 207207.7345 | C15: 0.8668236668 | D15: 179612.5682
A16: =Control!A23 -> Carterton District | B16: =INDEX(Control!$D$135:$D$143,MATCH(Pest!A16,Control!$A$135:$A$143,0)) -> 78106.069 | C16: 0.8668236668 | D16: 67704.18913
A17: =Control!A24 -> South Wairarapa District | B17: =INDEX(Control!$D$135:$D$143,MATCH(Pest!A17,Control!$A$135:$A$143,0)) -> 178090.1371 | C17: 0.8668236668 | D17: 154372.7457
A18: =Control!A25 -> Tararua District | B18: =INDEX(Control!$D$135:$D$143,MATCH(Pest!A18,Control!$A$135:$A$143,0)) -> 5307.8223 | C18: 0.8668236668 | D18: 4600.945989
A19: Region wide | B19: =SUM(B10:B18) -> 613734.9733 | C19: =D19/B19 -> 0.8668236668 | D19: =INDEX(ess_base_estract,MATCH(D6,ESSbase!$B$8:$B$26,0),MATCH(year_current,ESSbase!$F$6:$G$6,0)) -> 532000
A21: Check | B21: ='TA Split'!X139-Pest!B19 -> 0 | D21: =D19-SUM(D10:D18) -> 0

Sheet Water levy
A1: Wellington Regional Council
A2: ="Water Supply Levy "&year_current -> Water Supply Levy 2018/19
A3: Printed : | B3: =NOW() -> 2018-03-27T14:57:01
A4: =check_total -> 8066.052688
B6: Share | C6: Bulk Water Levies
B7: % | C7: $
A9: By TA
A10: Wellington City | B10: =INDEX(Control!$B$150:$B$158,MATCH(A10,Control!$A$150:$A$158,0),) -> 0.535142175 | C10: =B10*$C$19 -> 17696562.02
A11: Hutt City | B11: =INDEX(Control!$B$150:$B$158,MATCH(A11,Control!$A$150:$A$158,0),) -> 0.2481588591 | C11: 8206340.01
A12: Upper Hutt City | B12: =INDEX(Control!$B$150:$B$158,MATCH(A12,Control!$A$150:$A$158,0),) -> 0.1003228774 | C12: 3317567.004
A13: Porirua City | B13: =INDEX(Control!$B$150:$B$158,MATCH(A13,Control!$A$150:$A$158,0),) -> 0.1163760885 | C13: =B13*$C$19 -> 3848429.005
A14: Kapiti Coast District | B14: =INDEX(Control!$B$150:$B$158,MATCH(A14,Control!$A$150:$A$158,0),) -> 0 | C14: 0
A15: Masterton District | B15: =INDEX(Control!$B$150:$B$158,MATCH(A15,Control!$A$150:$A$158,0),) -> 0 | C15: 0
A16: Carterton District | B16: =INDEX(Control!$B$150:$B$158,MATCH(A16,Control!$A$150:$A$158,0),) -> 0 | C16: 0
A17: South Wairarapa District | B17: =INDEX(Control!$B$150:$B$158,MATCH(A17,Control!$A$150:$A$158,0),) -> 0 | C17: 0
A18: Tararua District | B18: =INDEX(Control!$B$150:$B$158,MATCH(A18,Control!$A$150:$A$158,0),) -> 0 | C18: =B18*$C$19 -> 0
A19: Region wide | B19: =SUM(B10:B18) -> 1 | C19: =INDEX(ess_base_estract,MATCH(C6,ESSbase!$B$8:$B$26,0),MATCH(year_current,ESSbase!$F$6:$G$6,0)) -> 33068898.04
A21: Checks | B21: =1-B19 -> 0 | C21: =C19-SUM(C10:C18) -> 0

Sheet >>Output tabs

Sheet Comparison - TA
A1: Comparison of proposed vs current
A2: =check_total -> 8066.052688
A4: =year_previous&" rates" -> 2017/18 rates
B5: TA
B6: Wellington City | C6: Hutt City | D6: Upper Hutt City | E6: Porirua City | F6: Kapiti Coast District | G6: Masterton District | H6: Carterton District | I6: South Wairarapa District | J6: Tararua District | K6: Other | L6: Region wide
A7: General Rate | B7: 21189528.41 | C7: 7179456.053 | D7: 2718137.091 | E7: 3367756.606 | F7: 4329462.398 | G7: 1675353.225 | H7: 774173.169 | I7: 1245449.128 | J7: 2354.442882 | K7: 0 | L7: =INDEX(ess_base_estract,MATCH(A7,ESSbase!$B$8:$B$26,0),MATCH(year_previous,ESSbase!$F$6:$G$6,0)) -> 42481670.52 | M7: =ROUND(L7-SUM(B7:K7),-1) -> 0
A8: Remission of rates | B8: 0 | C8: 0 | D8: 0 | E8: 0 | F8: 0 | G8: 0 | H8: 0 | I8: 0 | J8: 0 | K8: 0 | L8: =INDEX(ess_base_estract,MATCH(A8,ESSbase!$B$8:$B$26,0),MATCH(year_previous,ESSbase!$F$6:$G$6,0)) -> 0 | M8: =ROUND(L8-SUM(B8:K8),-1) -> 0
A9: Public transport rate | B9: 38457358 | C9: 11536013.2 | D9: 4596383.562 | E9: 6066071.247 | F9: 3090620.087 | G9: 306748.566 | H9: 198788.9136 | I9: 404412.5484 | J9: 0 | K9: 0 | L9: =INDEX(ess_base_estract,MATCH(A9,ESSbase!$B$8:$B$26,0),MATCH(year_previous,ESSbase!$F$6:$G$6,0)) -> 64656396.13 | M9: 0
A10: Flood protection – regional rate | B10: 0 | C10: 0 | D10: 0 | E10: 0 | F10: 0 | G10: 0 | H10: 0 | I10: 0 | J10: 0 | K10: 0 | L10: =INDEX(ess_base_estract,MATCH(A10,ESSbase!$B$8:$B$26,0),MATCH(year_previous,ESSbase!$F$6:$G$6,0)) -> 0 | M10: =ROUND(L10-SUM(B10:K10),-1) -> 0
A11: Flood protection – catchment rate | B11: 43255 | C11: 3685586 | D11: 678045 | E11: 28308 | F11: 1368226 | G11: 0 | H11: 23240 | I11: 0 | J11: 0 | K11: 0 | L11: =INDEX(ess_base_estract,MATCH(A11,ESSbase!$B$8:$B$26,0),MATCH(year_previous,ESSbase!$F$6:$G$6,0)) -> 5826660.417 | M11: =ROUND(L11-SUM(B11:K11),-1) -> 0
A12: River management rate | M12: 0
A13: Stadium purposes rate | B13: 580986 | C13: 190924 | D13: 51447 | E13: 70226 | F13: 47340 | G13: 19562 | H13: 6846 | I13: 10760 | J13: 0 | K13: 0 | L13: =INDEX(ess_base_estract,MATCH(A13,ESSbase!$B$8:$B$26,0),MATCH(year_previous,ESSbase!$F$6:$G$6,0)) -> 978091.35 | M13: 0
A14: Regional strategy rate | B14: 2299850.973 | C14: 862252.3181 | D14: 343198.0108 | E14: 354526.1708 | F14: 491419.6459 | G14: 241562.2933 | H14: 90904.66358 | I14: 138051.1438 | J14: 252 | K14: 0 | L14: =INDEX(ess_base_estract,MATCH(A14,ESSbase!$B$8:$B$26,0),MATCH(year_previous,ESSbase!$F$6:$G$6,0)) -> 4822017.219 | M14: 0
A15: District-Wide Rates | B15: =SUM(B7:B14) -> 62570978.38 | C15: 23454231.57 | D15: 8387210.664 | E15: 9886888.025 | F15: 9327068.132 | G15: 2243226.084 | H15: 1093952.746 | I15: 1798672.82 | J15: 2606.442882 | K15: 0 | L15: =INDEX(ess_base_estract,MATCH(A15,ESSbase!$B$8:$B$26,0),MATCH(year_previous,ESSbase!$F$6:$G$6,0)) -> 118764835.6 | M15: =ROUND(L15-SUM(B15:K15),-1) -> 0
A16: Rates Penalties | B16: 0 | C16: 0 | D16: 0 | E16: 0 | F16: 0 | G16: 0 | H16: 0 | I16: 0 | J16: 0 | K16: 0 | L16: =INDEX(ess_base_estract,MATCH(A16,ESSbase!$B$8:$B$26,0),MATCH(year_previous,ESSbase!$F$6:$G$6,0)) -> 0 | M16: 0
A17: Remission of Rates Penalties | B17: 0 | C17: 0 | D17: 0 | E17: 0 | F17: 0 | G17: 0 | H17: 0 | I17: 0 | J17: 0 | K17: 0 | L17: =INDEX(ess_base_estract,MATCH(A17,ESSbase!$B$8:$B$26,0),MATCH(year_previous,ESSbase!$F$6:$G$6,0)) -> 0 | M17: 0
A18: Pest management rate | B18: 26190.39276 | C18: 11980.44159 | D18: 41780.2034 | E18: 9119.532442 | F18: 22461.21191 | G18: 159355.5116 | H18: 60068.37833 | I18: 136962.2856 | J18: 4082.042306 | K18: 0 | L18: =INDEX(ess_base_estract,MATCH(A18,ESSbase!$B$8:$B$26,0),MATCH(year_previous,ESSbase!$F$6:$G$6,0)) -> 472000 | M18: =ROUND(L18-SUM(B18:K18),-1) -> 0
A19: River Mgmt Rates - Non District Wide | B19: 0 | C19: 0 | D19: 0 | E19: 0 | F19: 0 | G19: 0 | H19: 0 | I19: 93297 | J19: 0 | K19: 0 | L19: =INDEX(ess_base_estract,MATCH(A19,ESSbase!$B$8:$B$26,0),MATCH(year_previous,ESSbase!$F$6:$G$6,0)) -> 93297.36 | M19: 0
A20: Special Rates | B20: 0 | C20: 0 | D20: 0 | E20: 0 | F20: 0 | G20: 0 | H20: 0 | I20: 0 | J20: 0 | K20: 1451758 | L20: =INDEX(ess_base_estract,MATCH(A20,ESSbase!$B$8:$B$26,0),MATCH(year_previous,ESSbase!$F$6:$G$6,0)) -> 1451756.116 | M20: 0
A21: Total Other Rates | B21: =SUM(B16:B20) -> 26190.39276 | C21: 11980.44159 | D21: 41780.2034 | E21: 9119.532442 | F21: 22461.21191 | G21: 159355.5116 | H21: 60068.37833 | I21: 230259.2856 | J21: 4082.042306 | K21: 1451758 | L21: =INDEX(ess_base_estract,MATCH(A21,ESSbase!$B$8:$B$26,0),MATCH(year_previous,ESSbase!$F$6:$G$6,0)) -> 2017053.476 | M21: 0
A22: Total Regnl Rates | B22: =SUM(B21,B15) -> 62597168.78 | C22: 23466212.01 | D22: 8428990.867 | E22: 9896007.557 | F22: 9349529.343 | G22: 2402581.596 | H22: 1154021.125 | I22: 2028932.106 | J22: 6688.485187 | K22: 1451758 | L22: =INDEX(ess_base_estract,MATCH(A22,ESSbase!$B$8:$B$26,0),MATCH(year_previous,ESSbase!$F$6:$G$6,0)) -> 120781889.1 | M22: 0
A23: Bulk Water Levies | B23: 16514665.79 | C23: 7660138.382 | D23: 3095535.373 | E23: 3592425.897 | F23: 0 | G23: 0 | H23: 0 | I23: 0 | J23: 0 | K23: 0 | L23: =INDEX(ess_base_estract,MATCH(A23,ESSbase!$B$8:$B$26,0),MATCH(year_previous,ESSbase!$F$6:$G$6,0)) -> 30862765.44 | M23: 0
A24: Total Regnl Rates & levies | B24: =SUM(B22:B23) -> 79111834.56 | C24: =SUM(C22:C23) -> 31126350.39 | D24: 11524526.24 | E24: 13488433.45 | F24: 9349529.343 | G24: 2402581.596 | H24: 1154021.125 | I24: 2028932.106 | J24: 6688.485187 | K24: 1451758 | L24: =INDEX(ess_base_estract,MATCH(A24,ESSbase!$B$8:$B$26,0),MATCH(year_previous,ESSbase!$F$6:$G$6,0)) -> 151644654.5 | M24: 0
A25: Warm Greater Wellington rate | K25: 3181767.073 | L25: =INDEX(ess_base_estract,MATCH(A25,ESSbase!$B$8:$B$26,0),MATCH(year_previous,ESSbase!$F$6:$G$6,0)) -> 3181767 | M25: 0
A26: Total Rates & Levies | B26: =SUM(B24:B25) -> 79111834.56 | C26: 31126350.39 | D26: 11524526.24 | E26: 13488433.45 | F26: 9349529.343 | G26: 2402581.596 | H26: 1154021.125 | I26: 2028932.106 | J26: 6688.485187 | K26: 4633525.073 | L26: =INDEX(ess_base_estract,MATCH(A26,ESSbase!$B$8:$B$26,0),MATCH(year_previous,ESSbase!$F$6:$G$6,0)) -> 154826421.5 | M26: 0
A29: =year_current&" rates" -> 2018/19 rates
B30: TA
B31: Wellington City | C31: Hutt City | D31: Upper Hutt City | E31: Porirua City | F31: Kapiti Coast District | G31: Masterton District | H31: Carterton District | I31: South Wairarapa District | J31: Tararua District | K31: Other | L31: Region wide
A32: General Rate | B32: =IFERROR(INDEX(Gen!$D$10:$D$18,MATCH(B$31,Gen!$A$10:$A$18,0),),0) -> 17763603.96 | C32: =IFERROR(INDEX(Gen!$D$10:$D$18,MATCH(C$31,Gen!$A$10:$A$18,0),),0) -> 6211296.833 | D32: =IFERROR(INDEX(Gen!$D$10:$D$18,MATCH(D$31,Gen!$A$10:$A$18,0),),0) -> 2362248.695 | E32: =IFERROR(INDEX(Gen!$D$10:$D$18,MATCH(E$31,Gen!$A$10:$A$18,0),),0) -> 2943593.864 | F32: =IFERROR(INDEX(Gen!$D$10:$D$18,MATCH(F$31,Gen!$A$10:$A$18,0),),0) -> 3780325.471 | G32: =IFERROR(INDEX(Gen!$D$10:$D$18,MATCH(G$31,Gen!$A$10:$A$18,0),),0) -> 1517336.369 | H32: =IFERROR(INDEX(Gen!$D$10:$D$18,MATCH(H$31,Gen!$A$10:$A$18,0),),0) -> 699379.0094 | I32: =IFERROR(INDEX(Gen!$D$10:$D$18,MATCH(I$31,Gen!$A$10:$A$18,0),),0) -> 1162553.254 | J32: =IFERROR(INDEX(Gen!$D$10:$D$18,MATCH(J$31,Gen!$A$10:$A$18,0),),0) -> 1813.520927 | K32: =IFERROR(INDEX(Gen!$D$10:$D$18,MATCH(K$31,Gen!$A$10:$A$18,0),),0) -> 0 | L32: =INDEX(ess_base_estract,MATCH(A32,ESSbase!$B$8:$B$26,0),MATCH(year_current,ESSbase!$F$6:$G$6,0)) -> 36442150.97 | M32: =ROUND(L32-SUM(B32:K32),-1) -> 0
A33: Remission of rates | B33: 0 | C33: 0 | D33: 0 | E33: 0 | F33: 0 | G33: 0 | H33: 0 | I33: 0 | J33: 0 | K33: 0 | L33: =INDEX(ess_base_estract,MATCH(A33,ESSbase!$B$8:$B$26,0),MATCH(year_current,ESSbase!$F$6:$G$6,0)) -> 0 | M33: 0
A34: Public transport rate | B34: =IFERROR(INDEX(Tran!$H$10:$H$18,MATCH(B$31,Tran!$A$10:$A$18,0),),0) -> 41775892.76 | C34: =IFERROR(INDEX(Tran!$H$10:$H$18,MATCH(C$31,Tran!$A$10:$A$18,0),),0) -> 10825287.61 | D34: =IFERROR(INDEX(Tran!$H$10:$H$18,MATCH(D$31,Tran!$A$10:$A$18,0),),0) -> 4174873.755 | E34: =IFERROR(INDEX(Tran!$H$10:$H$18,MATCH(E$31,Tran!$A$10:$A$18,0),),0) -> 5486054.931 | F34: =IFERROR(INDEX(Tran!$H$10:$H$18,MATCH(F$31,Tran!$A$10:$A$18,0),),0) -> 3744973.895 | G34: =IFERROR(INDEX(Tran!$H$10:$H$18,MATCH(G$31,Tran!$A$10:$A$18,0),),0) -> 511304.9577 | H34: =IFERROR(INDEX(Tran!$H$10:$H$18,MATCH(H$31,Tran!$A$10:$A$18,0),),0) -> 255218.8461 | I34: =IFERROR(INDEX(Tran!$H$10:$H$18,MATCH(I$31,Tran!$A$10:$A$18,0),),0) -> 499403.651 | J34: =IFERROR(INDEX(Tran!$H$10:$H$18,MATCH(J$31,Tran!$A$10:$A$18,0),),0) -> 0 | K34: =IFERROR(INDEX(Tran!$H$10:$H$18,MATCH(K$31,Tran!$A$10:$A$18,0),),0) -> 0 | L34: =INDEX(ess_base_estract,MATCH(A34,ESSbase!$B$8:$B$26,0),MATCH(year_current,ESSbase!$F$6:$G$6,0)) -> 67273010.4 | M34: 0
A35: Flood protection – regional rate | B35: =IFERROR(INDEX('FP - regional'!$D$10:$D$18,MATCH(B$31,'FP - regional'!$A$10:$A$18,0),),0) -> 4745293.017 | C35: =IFERROR(INDEX('FP - regional'!$D$10:$D$18,MATCH(C$31,'FP - regional'!$A$10:$A$18,0),),0) -> 1659259.211 | D35: =IFERROR(INDEX('FP - regional'!$D$10:$D$18,MATCH(D$31,'FP - regional'!$A$10:$A$18,0),),0) -> 631040.9906 | E35: =IFERROR(INDEX('FP - regional'!$D$10:$D$18,MATCH(E$31,'FP - regional'!$A$10:$A$18,0),),0) -> 786339.047 | F35: =IFERROR(INDEX('FP - regional'!$D$10:$D$18,MATCH(F$31,'FP - regional'!$A$10:$A$18,0),),0) -> 1009859.942 | G35: =IFERROR(INDEX('FP - regional'!$D$10:$D$18,MATCH(G$31,'FP - regional'!$A$10:$A$18,0),),0) -> 405334.7334 | H35: =IFERROR(INDEX('FP - regional'!$D$10:$D$18,MATCH(H$31,'FP - regional'!$A$10:$A$18,0),),0) -> 186829.1107 | I35: =IFERROR(INDEX('FP - regional'!$D$10:$D$18,MATCH(I$31,'FP - regional'!$A$10:$A$18,0),),0) -> 310559.4929 | J35: =IFERROR(INDEX('FP - regional'!$D$10:$D$18,MATCH(J$31,'FP - regional'!$A$10:$A$18,0),),0) -> 484.4562068 | K35: =IFERROR(INDEX('FP - regional'!$D$10:$D$18,MATCH(K$31,'FP - regional'!$A$10:$A$18,0),),0) -> 0 | L35: =INDEX(ess_base_estract,MATCH(A35,ESSbase!$B$8:$B$26,0),MATCH(year_current,ESSbase!$F$6:$G$6,0)) -> 9735000 | M35: =ROUND(L35-SUM(B35:K35),-1) -> 0
A36: Flood protection – catchment rate | B36: =IFERROR(INDEX('FP - catchment'!$C$10:$C$18,MATCH(B$31,'FP - catchment'!$A$10:$A$18,0),),0) -> 54042 | C36: =IFERROR(INDEX('FP - catchment'!$C$10:$C$18,MATCH(C$31,'FP - catchment'!$A$10:$A$18,0),),0) -> 5167492 | D36: =IFERROR(INDEX('FP - catchment'!$C$10:$C$18,MATCH(D$31,'FP - catchment'!$A$10:$A$18,0),),0) -> 881402 | E36: =IFERROR(INDEX('FP - catchment'!$C$10:$C$18,MATCH(E$31,'FP - catchment'!$A$10:$A$18,0),),0) -> 45121 | F36: =IFERROR(INDEX('FP - catchment'!$C$10:$C$18,MATCH(F$31,'FP - catchment'!$A$10:$A$18,0),),0) -> 1619846 | G36: =IFERROR(INDEX('FP - catchment'!$C$10:$C$18,MATCH(G$31,'FP - catchment'!$A$10:$A$18,0),),0) -> 271627 | H36: =IFERROR(INDEX('FP - catchment'!$C$10:$C$18,MATCH(H$31,'FP - catchment'!$A$10:$A$18,0),),0) -> 144634 | I36: =IFERROR(INDEX('FP - catchment'!$C$10:$C$18,MATCH(I$31,'FP - catchment'!$A$10:$A$18,0),),0) -> 201926 | J36: =IFERROR(INDEX('FP - catchment'!$C$10:$C$18,MATCH(J$31,'FP - catchment'!$A$10:$A$18,0),),0) -> 0 | K36: =IFERROR(INDEX('FP - catchment'!$C$10:$C$18,MATCH(K$31,'FP - catchment'!$A$10:$A$18,0),),0) -> 0 | L36: =INDEX(ess_base_estract,MATCH(A36,ESSbase!$B$8:$B$26,0),MATCH(year_current,ESSbase!$F$6:$G$6,0)) -> 8386090.465 | M36: 0
A37: River management rate | M37: 0
A38: Stadium purposes rate | B38: =IFERROR(INDEX(Stad!$F$10:$F$18,MATCH(B$31,Stad!$A$10:$A$18,0),),0) -> 0 | C38: =IFERROR(INDEX(Stad!$F$10:$F$18,MATCH(C$31,Stad!$A$10:$A$18,0),),0) -> 0 | D38: =IFERROR(INDEX(Stad!$F$10:$F$18,MATCH(D$31,Stad!$A$10:$A$18,0),),0) -> 0 | E38: =IFERROR(INDEX(Stad!$F$10:$F$18,MATCH(E$31,Stad!$A$10:$A$18,0),),0) -> 0 | F38: =IFERROR(INDEX(Stad!$F$10:$F$18,MATCH(F$31,Stad!$A$10:$A$18,0),),0) -> 0 | G38: =IFERROR(INDEX(Stad!$F$10:$F$18,MATCH(G$31,Stad!$A$10:$A$18,0),),0) -> 0 | H38: =IFERROR(INDEX(Stad!$F$10:$F$18,MATCH(H$31,Stad!$A$10:$A$18,0),),0) -> 0 | I38: =IFERROR(INDEX(Stad!$F$10:$F$18,MATCH(I$31,Stad!$A$10:$A$18,0),),0) -> 0 | J38: =IFERROR(INDEX(Stad!$F$10:$F$18,MATCH(J$31,Stad!$A$10:$A$18,0),),0) -> 0 | K38: =IFERROR(INDEX(Stad!$F$10:$F$18,MATCH(K$31,Stad!$A$10:$A$18,0),),0) -> 0 | L38: =INDEX(ess_base_estract,MATCH(A38,ESSbase!$B$8:$B$26,0),MATCH(year_current,ESSbase!$F$6:$G$6,0)) -> 0 | M38: 0
A39: Regional strategy rate | B39: =IFERROR(INDEX(WRS!$J$10:$J$18,MATCH(B$31,WRS!$A$10:$A$18,0),),0) -> 2346550.105 | C39: =IFERROR(INDEX(WRS!$J$10:$J$18,MATCH(C$31,WRS!$A$10:$A$18,0),),0) -> 883539.1397 | D39: =IFERROR(INDEX(WRS!$J$10:$J$18,MATCH(D$31,WRS!$A$10:$A$18,0),),0) -> 352214.2716 | E39: =IFERROR(INDEX(WRS!$J$10:$J$18,MATCH(E$31,WRS!$A$10:$A$18,0),),0) -> 362954.5637 | F39: =IFERROR(INDEX(WRS!$J$10:$J$18,MATCH(F$31,WRS!$A$10:$A$18,0),),0) -> 489421.5703 | G39: =IFERROR(INDEX(WRS!$J$10:$J$18,MATCH(G$31,WRS!$A$10:$A$18,0),),0) -> 242660.1347 | H39: =IFERROR(INDEX(WRS!$J$10:$J$18,MATCH(H$31,WRS!$A$10:$A$18,0),),0) -> 91329.72851 | I39: =IFERROR(INDEX(WRS!$J$10:$J$18,MATCH(I$31,WRS!$A$10:$A$18,0),),0) -> 138939.3075 | J39: =IFERROR(INDEX(WRS!$J$10:$J$18,MATCH(J$31,WRS!$A$10:$A$18,0),),0) -> 252 | K39: =IFERROR(INDEX(WRS!$J$10:$J$18,MATCH(K$31,WRS!$A$10:$A$18,0),),0) -> 0 | L39: =INDEX(ess_base_estract,MATCH(A39,ESSbase!$B$8:$B$26,0),MATCH(year_current,ESSbase!$F$6:$G$6,0)) -> 4907860.821 | M39: 0
A40: District-Wide Rates | B40: =SUM(B32:B39) -> 66685381.83 | C40: 24746874.79 | D40: 8401779.713 | E40: 9624063.405 | F40: 10644426.88 | G40: 2948263.195 | H40: 1377390.695 | I40: 2313381.705 | J40: 2549.977134 | K40: 0 | L40: =INDEX(ess_base_estract,MATCH(A40,ESSbase!$B$8:$B$26,0),MATCH(year_current,ESSbase!$F$6:$G$6,0)) -> 126744112.7 | M40: 0
A41: Rates Penalties | B41: 0 | C41: 0 | D41: 0 | E41: 0 | F41: 0 | G41: 0 | H41: 0 | I41: 0 | J41: 0 | K41: 0 | L41: =INDEX(ess_base_estract,MATCH(A41,ESSbase!$B$8:$B$26,0),MATCH(year_current,ESSbase!$F$6:$G$6,0)) -> 0 | M41: 0
A42: Remission of Rates Penalties | B42: 0 | C42: 0 | D42: 0 | E42: 0 | F42: 0 | G42: 0 | H42: 0 | I42: 0 | J42: 0 | K42: 0 | L42: =INDEX(ess_base_estract,MATCH(A42,ESSbase!$B$8:$B$26,0),MATCH(year_current,ESSbase!$F$6:$G$6,0)) -> 0 | M42: 0
A43: Pest management rate | B43: =IFERROR(INDEX(Pest!$D$10:$D$18,MATCH(B$31,Pest!$A$10:$A$18,0),),0) -> 29519.67997 | C43: =IFERROR(INDEX(Pest!$D$10:$D$18,MATCH(C$31,Pest!$A$10:$A$18,0),),0) -> 13503.37908 | D43: =IFERROR(INDEX(Pest!$D$10:$D$18,MATCH(D$31,Pest!$A$10:$A$18,0),),0) -> 47091.2462 | E43: =IFERROR(INDEX(Pest!$D$10:$D$18,MATCH(E$31,Pest!$A$10:$A$18,0),),0) -> 10278.79504 | F43: =IFERROR(INDEX(Pest!$D$10:$D$18,MATCH(F$31,Pest!$A$10:$A$18,0),),0) -> 25316.45071 | G43: =IFERROR(INDEX(Pest!$D$10:$D$18,MATCH(G$31,Pest!$A$10:$A$18,0),),0) -> 179612.5682 | H43: =IFERROR(INDEX(Pest!$D$10:$D$18,MATCH(H$31,Pest!$A$10:$A$18,0),),0) -> 67704.18913 | I43: =IFERROR(INDEX(Pest!$D$10:$D$18,MATCH(I$31,Pest!$A$10:$A$18,0),),0) -> 154372.7457 | J43: =IFERROR(INDEX(Pest!$D$10:$D$18,MATCH(J$31,Pest!$A$10:$A$18,0),),0) -> 4600.945989 | K43: =IFERROR(INDEX(Pest!$D$10:$D$18,MATCH(K$31,Pest!$A$10:$A$18,0),),0) -> 0 | L43: =INDEX(ess_base_estract,MATCH(A43,ESSbase!$B$8:$B$26,0),MATCH(year_current,ESSbase!$F$6:$G$6,0)) -> 532000 | M43: 0
A44: River Mgmt Rates - Non District Wide | B44: 0 | C44: 0 | D44: 0 | E44: 0 | F44: 0 | G44: 0 | H44: 0 | I44: ='FP - catchment'!C31 -> 95164 | J44: 0 | K44: 0 | L44: =INDEX(ess_base_estract,MATCH(A44,ESSbase!$B$8:$B$26,0),MATCH(year_current,ESSbase!$F$6:$G$6,0)) -> 95164 | M44: 0
A45: Special Rates | B45: 0 | C45: 0 | D45: 0 | E45: 0 | F45: 0 | G45: 0 | H45: 0 | I45: 0 | J45: 0 | K45: ='Class Rates'!B140 -> 1480591 | L45: =INDEX(ess_base_estract,MATCH(A45,ESSbase!$B$8:$B$26,0),MATCH(year_current,ESSbase!$F$6:$G$6,0)) -> 1480589 | M45: 0
A46: Total Other Rates | B46: =SUM(B41:B45) -> 29519.67997 | C46: 13503.37908 | D46: 47091.2462 | E46: 10278.79504 | F46: 25316.45071 | G46: 179612.5682 | H46: 67704.18913 | I46: 249536.7457 | J46: 4600.945989 | K46: 1480591 | L46: =INDEX(ess_base_estract,MATCH(A46,ESSbase!$B$8:$B$26,0),MATCH(year_current,ESSbase!$F$6:$G$6,0)) -> 2107753 | M46: 0
A47: Total Regnl Rates | B47: =SUM(B46,B40) -> 66714901.51 | C47: 24760378.17 | D47: 8448870.959 | E47: 9634342.2 | F47: 10669743.33 | G47: 3127875.763 | H47: 1445094.884 | I47: 2562918.451 | J47: 7150.923123 | K47: 1480591 | L47: =INDEX(ess_base_estract,MATCH(A47,ESSbase!$B$8:$B$26,0),MATCH(year_current,ESSbase!$F$6:$G$6,0)) -> 128851865.7 | M47: 0
A48: Bulk Water Levies | B48: =IFERROR(INDEX('Water levy'!$C$10:$C$18,MATCH('Comparison - TA'!B31,'Water levy'!$A$10:$A$18,0),),0) -> 17696562.02 | C48: =IFERROR(INDEX('Water levy'!$C$10:$C$18,MATCH('Comparison - TA'!C31,'Water levy'!$A$10:$A$18,0),),0) -> 8206340.01 | D48: =IFERROR(INDEX('Water levy'!$C$10:$C$18,MATCH('Comparison - TA'!D31,'Water levy'!$A$10:$A$18,0),),0) -> 3317567.004 | E48: =IFERROR(INDEX('Water levy'!$C$10:$C$18,MATCH('Comparison - TA'!E31,'Water levy'!$A$10:$A$18,0),),0) -> 3848429.005 | F48: =IFERROR(INDEX('Water levy'!$C$10:$C$18,MATCH('Comparison - TA'!F31,'Water levy'!$A$10:$A$18,0),),0) -> 0 | G48: =IFERROR(INDEX('Water levy'!$C$10:$C$18,MATCH('Comparison - TA'!G31,'Water levy'!$A$10:$A$18,0),),0) -> 0 | H48: =IFERROR(INDEX('Water levy'!$C$10:$C$18,MATCH('Comparison - TA'!H31,'Water levy'!$A$10:$A$18,0),),0) -> 0 | I48: =IFERROR(INDEX('Water levy'!$C$10:$C$18,MATCH('Comparison - TA'!I31,'Water levy'!$A$10:$A$18,0),),0) -> 0 | J48: =IFERROR(INDEX('Water levy'!$C$10:$C$18,MATCH('Comparison - TA'!J31,'Water levy'!$A$10:$A$18,0),),0) -> 0 | K48: =IFERROR(INDEX('Water levy'!$C$10:$C$18,MATCH('Comparison - TA'!K31,'Water levy'!$A$10:$A$18,0),),0) -> 0 | L48: =INDEX(ess_base_estract,MATCH(A48,ESSbase!$B$8:$B$26,0),MATCH(year_current,ESSbase!$F$6:$G$6,0)) -> 33068898.04 | M48: =ROUND(L48-SUM(B48:K48),-1) -> 0
A49: Total Regnl Rates & levies | B49: =SUM(B47:B48) -> 84411463.54 | C49: =SUM(C47:C48) -> 32966718.18 | D49: =SUM(D47:D48) -> 11766437.96 | E49: =SUM(E47:E48) -> 13482771.21 | F49: =SUM(F47:F48) -> 10669743.33 | G49: =SUM(G47:G48) -> 3127875.763 | H49: =SUM(H47:H48) -> 1445094.884 | I49: =SUM(I47:I48) -> 2562918.451 | J49: =SUM(J47:J48) -> 7150.923123 | K49: =SUM(K47:K48) -> 1480591 | L49: =INDEX(ess_base_estract,MATCH(A49,ESSbase!$B$8:$B$26,0),MATCH(year_current,ESSbase!$F$6:$G$6,0)) -> 161920763.7 | M49: 0
A50: Warm Greater Wellington rate | K50: =L50 -> 3237058 | L50: =INDEX(ess_base_estract,MATCH(A50,ESSbase!$B$8:$B$26,0),MATCH(year_current,ESSbase!$F$6:$G$6,0)) -> 3237058 | M50: 0
A51: Total Rates & Levies | B51: =SUM(B49:B50) -> 84411463.54 | C51: =SUM(C49:C50) -> 32966718.18 | D51: 11766437.96 | E51: 13482771.21 | F51: 10669743.33 | G51: 3127875.763 | H51: 1445094.884 | I51: 2562918.451 | J51: 7150.923123 | K51: 4717649 | L51: =INDEX(ess_base_estract,MATCH(A51,ESSbase!$B$8:$B$26,0),MATCH(year_current,ESSbase!$F$6:$G$6,0)) -> 165157821.7 | M51: 0
A54: Delta
B55: TA
B56: Wellington City | C56: Hutt City | D56: Upper Hutt City | E56: Porirua City | F56: Kapiti Coast District | G56: Masterton District | H56: Carterton District | I56: South Wairarapa District | J56: Tararua District | K56: Other | L56: Region wide
A57: General Rates | B57: =B32-B7 -> -3425924.45 | C57: =C32-C7 -> -968159.2204 | D57: -355888.3956 | E57: -424162.7423 | F57: -549136.9279 | G57: -158016.8561 | H57: -74794.15961 | I57: -82895.87431 | J57: -540.9219543 | K57: 0 | L57: =L32-L7 -> -6039519.548 | M57: =ROUND(L57-SUM(B57:K57),-1) -> 0
A58: Remission of Regional Rates | B58: =B33-B8 -> 0 | C58: 0 | D58: 0 | E58: 0 | F58: 0 | G58: 0 | H58: 0 | I58: 0 | J58: 0 | K58: 0 | L58: 0 | M58: 0
A59: Transport Rate | B59: =B34-B9 -> 3318534.752 | C59: -710725.5883 | D59: -421509.807 | E59: -580016.3168 | F59: 654353.8077 | G59: 204556.3916 | H59: 56429.93252 | I59: 94991.10261 | J59: 0 | K59: 0 | L59: 2616614.275 | M59: 0
A60: Flood protection - Regional rates | B60: =B35-B10 -> 4745293.017 | C60: 1659259.211 | D60: 631040.9906 | E60: 786339.047 | F60: 1009859.942 | G60: 405334.7334 | H60: 186829.1107 | I60: 310559.4929 | J60: 484.4562068 | K60: 0 | L60: 9735000 | M60: =ROUND(L60-SUM(B60:K60),-1) -> 0
A61: Flood protection - Catchment rates | B61: =B36-B11 -> 10787 | C61: 1481906 | D61: 203357 | E61: 16813 | F61: 251620 | G61: 271627 | H61: 121394 | I61: 201926 | J61: 0 | K61: 0 | L61: 2559430.048 | M61: =ROUND(L61-SUM(B61:K61),-1) -> 0
A62: River management rate | B62: =B37-B12 -> 0 | C62: 0 | D62: 0 | E62: 0 | F62: 0 | G62: 0 | H62: 0 | I62: 0 | J62: 0 | K62: 0 | L62: 0 | M62: =ROUND(L62-SUM(B62:K62),-1) -> 0
A63: Stadium Rate | B63: =B38-B13 -> -580986 | C63: -190924 | D63: -51447 | E63: -70226 | F63: -47340 | G63: -19562 | H63: -6846 | I63: -10760 | J63: 0 | K63: 0 | L63: -978091.35 | M63: =ROUND(L63-SUM(B63:K63),-1) -> 0
A64: WRS Rate | B64: =B39-B14 -> 46699.13236 | C64: 21286.82162 | D64: 9016.260737 | E64: 8428.392875 | F64: -1998.075669 | G64: 1097.841421 | H64: 425.0649291 | I64: 888.1637781 | J64: 0 | K64: 0 | L64: 85843.60205 | M64: =ROUND(L64-SUM(B64:K64),-1) -> 0
A65: District-Wide Rates | B65: =B40-B15 -> 4114403.451 | C65: 1292643.224 | D65: 14569.0488 | E65: -262824.6192 | F65: 1317358.746 | G65: 705037.1104 | H65: 283437.9485 | I65: 514708.885 | J65: -56.46574749 | K65: 0 | L65: 7979277.026 | M65: 0
A66: Rates Penalties | B66: =B41-B16 -> 0 | C66: 0 | D66: 0 | E66: 0 | F66: 0 | G66: 0 | H66: 0 | I66: 0 | J66: 0 | K66: 0 | L66: 0 | M66: 0
A67: Remission of Rates Penalties | B67: =B42-B17 -> 0 | C67: 0 | D67: 0 | E67: 0 | F67: 0 | G67: 0 | H67: 0 | I67: 0 | J67: 0 | K67: 0 | L67: 0 | M67: 0
A68: Pest Rate | B68: =B43-B18 -> 3329.287215 | C68: 1522.93749 | D68: 5311.042805 | E68: 1159.262599 | F68: 2855.238802 | G68: 20257.05656 | H68: 7635.810804 | I68: 17410.46004 | J68: 518.9036829 | K68: 0 | L68: 60000 | M68: 0
A69: River Mgmt Rates - Non District Wide | B69: =B44-B19 -> 0 | C69: 0 | D69: 0 | E69: 0 | F69: 0 | G69: 0 | H69: 0 | I69: 1867 | J69: 0 | K69: 0 | L69: 1866.64 | M69: =ROUND(L69-SUM(B69:K69),-1) -> 0
A70: Special Rates | B70: =B45-B20 -> 0 | C70: 0 | D70: 0 | E70: 0 | F70: 0 | G70: 0 | H70: 0 | I70: 0 | J70: 0 | K70: =K45-K20 -> 28833 | L70: =L45-L20 -> 28832.884 | M70: =ROUND(L70-SUM(B70:K70),-1) -> 0
A71: Total Other Rates | B71: =B46-B21 -> 3329.287215 | C71: 1522.93749 | D71: 5311.042805 | E71: 1159.262599 | F71: 2855.238802 | G71: 20257.05656 | H71: 7635.810804 | I71: 19277.46004 | J71: 518.9036829 | K71: 28833 | L71: =L46-L21 -> 90699.524 | M71: 0
A72: Total Regnl Rates | B72: =B47-B22 -> 4117732.738 | C72: 1294166.161 | D72: 19880.0916 | E72: -261665.3566 | F72: 1320213.985 | G72: 725294.167 | H72: 291073.7593 | I72: 533986.345 | J72: 462.4379355 | K72: 28833 | L72: =L47-L22 -> 8069976.55 | M72: =ROUND(L72-SUM(B72:K72),-1) -> 0
A73: Bulk Water Levies | B73: =B48-B23 -> 1181896.236 | C73: 546201.6283 | D73: 222031.6306 | E73: 256003.1077 | F73: 0 | G73: 0 | H73: 0 | I73: 0 | J73: 0 | K73: 0 | L73: =L48-L23 -> 2206132.602 | M73: 0
A74: Total Regnl Rates & levies | B74: =B49-B24 -> 5299628.974 | C74: 1840367.79 | D74: 241911.7222 | E74: -5662.248845 | F74: 1320213.985 | G74: 725294.167 | H74: 291073.7593 | I74: 533986.345 | J74: 462.4379355 | K74: 28833 | L74: 10276109.15 | M74: =ROUND(L74-SUM(B74:K74),-1) -> 0
A75: Warm Greater Wellington rate | B75: =B50-B25 -> 0 | C75: 0 | D75: 0 | E75: 0 | F75: 0 | G75: 0 | H75: 0 | I75: 0 | J75: 0 | K75: 55290.92744 | L75: 55291 | M75: 0
A76: Total Rates & Levies | B76: =B51-B26 -> 5299628.974 | C76: 1840367.79 | D76: 241911.7222 | E76: -5662.248845 | F76: 1320213.985 | G76: 725294.167 | H76: 291073.7593 | I76: 533986.345 | J76: 462.4379355 | K76: 84123.92744 | L76: 10331400.15 | M76: 0

Sheet Comparison - Category
A1: Comparison of proposed vs current
A2: =check_total -> 8066.052688
A5: =year_previous&" rates" -> 2017/18 rates
I6: Rates | R6: Rates for average property | AA6: Cents/$ OR Regional Strategy Rate $/property
A7: =Control!A29 -> TA full name | B7: =Control!B29 -> Category group | C7: =Control!C29 -> Concatenated row | E7: CV | F7: CV Assessments | G7: Average CV | I7: General Rate | J7: Flood protection – regional rate | K7: Flood protection – catchment rate | L7: River management rate | M7: Public transport rate | N7: Stadium purposes rate | O7: Regional strategy rate | P7: District-Wide Rates | R7: General Rate | S7: Flood protection – regional rate | T7: Flood protection – catchment rate | U7: River management rate | V7: Public transport rate | W7: Stadium purposes rate | X7: Regional strategy rate | Y7: District-Wide Rates | AA7: General Rate | AB7: Flood protection – regional rate | AC7: Flood protection – catchment rate | AD7: River management rate | AE7: Public transport rate | AF7: Stadium purposes rate | AG7: Regional strategy rate | AH7: District-Wide Rates
A9: By TA
A10: =Control!A30 -> Wellington City | B10: =Control!B30 -> District wide | C10: =Control!C30 -> Wellington CityDistrict wide | E10: 51319125451 | F10: 76971 | G10: 666733.256 | I10: 21189528.41 | J10: 0 | K10: 0 | L10: 43255.4241 | M10: 38457358 | N10: 580986.2619 | O10: 2299850.973 | P10: 62570979.07 | R10: =I10/$E10*$G10 -> 275.2923621 | S10: =J10/$E10*$G10 -> 0 | T10: =K10/$E10*$G10 -> 0 | U10: =L10/$E10*$G10 -> 0.5619704058 | V10: =M10/$E10*$G10 -> 499.6343818 | W10: =N10/$E10*$G10 -> 7.548118927 | X10: =O10/$E10*$G10 -> 29.87944775 | Y10: =IF('Comparison - Category'!B10="Residential",SUM(R10:W10,Control!$B$75),IF('Comparison - Category'!B10="Rural",SUM(R10:W10,Control!$B$76),P10/$E10*$G10)) -> 812.9162811
A11: =Control!A31 -> Hutt City | B11: =Control!B31 -> District wide | C11: =Control!C31 -> Hutt CityDistrict wide | E11: 21170821500 | F11: 39049 | G11: 542160.401 | I11: 7179456.053 | J11: 0 | K11: 0 | L11: 3685586.303 | M11: 11536013.2 | N11: 190923.4315 | O11: 862252.3181 | P11: 23454231.3 | R11: 183.8576161 | S11: 0 | T11: 0 | U11: 94.38362834 | V11: 295.4240364 | W11: 4.889329599 | X11: 22.08129064 | Y11: =IF('Comparison - Category'!B11="Residential",SUM(R11:W11,Control!$B$75),IF('Comparison - Category'!B11="Rural",SUM(R11:W11,Control!$B$76),P11/$E11*$G11)) -> 600.6359012
A12: =Control!A32 -> Upper Hutt City | B12: =Control!B32 -> District wide | C12: =Control!C32 -> Upper Hutt CityDistrict wide | E12: 8012247760 | F12: 16570 | G12: 483539.3941 | I12: 2718137.091 | J12: 0 | K12: 0 | L12: 678045.4338 | M12: 4596383.562 | N12: 51447.60501 | O12: 343198.0108 | P12: 8387211.703 | R12: =I12/$E12*$G12 -> 164.0396555 | S12: 0 | T12: 0 | U12: 40.92006239 | V12: 277.3918867 | W12: 3.104864515 | X12: 20.71201031 | Y12: =IF('Comparison - Category'!B12="Residential",SUM(R12:W12,Control!$B$75),IF('Comparison - Category'!B12="Rural",SUM(R12:W12,Control!$B$76),P12/$E12*$G12)) -> 506.1684794
A13: =Control!A33 -> Porirua City | B13: =Control!B33 -> District wide | C13: =Control!C33 -> Porirua CityDistrict wide | E13: 10044595300 | F13: 18514 | G13: 542540.5261 | I13: 3367756.606 | J13: 0 | K13: 0 | L13: 28307.67988 | M13: 6066071.247 | N13: 70226.95893 | O13: 354526.1708 | P13: 9886888.663 | R13: 181.9032411 | S13: 0 | T13: 0 | U13: 1.528987786 | V13: 327.6477934 | W13: 3.793181318 | X13: 19.1490856 | Y13: =IF('Comparison - Category'!B13="Residential",SUM(R13:W13,Control!$B$75),IF('Comparison - Category'!B13="Rural",SUM(R13:W13,Control!$B$76),P13/$E13*$G13)) -> 534.0222893
A14: =Control!A34 -> Kapiti Coast District | B14: =Control!B34 -> District wide | C14: =Control!C34 -> Kapiti Coast DistrictDistrict wide | E14: 10974506450 | F14: 24761 | G14: 443217.4165 | I14: 4329462.398 | J14: 0 | K14: 0 | L14: 1368225.795 | M14: 3090620.087 | N14: 47339.62134 | O14: 491419.6459 | P14: 9327067.548 | R14: 174.8500625 | S14: 0 | T14: 0 | U14: 55.25729149 | V14: 124.8180642 | W14: 1.911862257 | X14: 19.84651855 | Y14: =IF('Comparison - Category'!B14="Residential",SUM(R14:W14,Control!$B$75),IF('Comparison - Category'!B14="Rural",SUM(R14:W14,Control!$B$76),P14/$E14*$G14)) -> 376.683799
A15: =Control!A35 -> Masterton District | B15: =Control!B35 -> District wide | C15: =Control!C35 -> Masterton DistrictDistrict wide | E15: 4724008400 | F15: 12296 | G15: 384190.6636 | I15: 1675353.225 | J15: 0 | K15: 0 | L15: 0 | M15: 306748.566 | N15: 19561.827 | O15: 241562.2933 | P15: 2243225.911 | R15: 136.2518888 | S15: 0 | T15: 0 | U15: 0 | V15: 24.94702066 | W15: 1.590909808 | X15: 19.64559965 | Y15: =IF('Comparison - Category'!B15="Residential",SUM(R15:W15,Control!$B$75),IF('Comparison - Category'!B15="Rural",SUM(R15:W15,Control!$B$76),P15/$E15*$G15)) -> 182.4354189
A16: =Control!A36 -> Carterton District | B16: =Control!B36 -> District wide | C16: =Control!C36 -> Carterton DistrictDistrict wide | E16: 2188251200 | F16: 4561 | G16: 479774.4354 | I16: 774173.169 | J16: 0 | K16: 0 | L16: 23239.68 | M16: 198788.9136 | N16: 6846.63945 | O16: 90904.66358 | P16: 1093953.066 | R16: 169.7375946 | S16: 0 | T16: 0 | U16: 5.095303661 | V16: 43.584502 | W16: 1.501126825 | X16: 19.93086244 | Y16: =IF('Comparison - Category'!B16="Residential",SUM(R16:W16,Control!$B$75),IF('Comparison - Category'!B16="Rural",SUM(R16:W16,Control!$B$76),P16/$E16*$G16)) -> 239.8493895
A17: =Control!A37 -> South Wairarapa District | B17: =Control!B37 -> District wide | C17: =Control!C37 -> South Wairarapa DistrictDistrict wide | E17: 3612556200 | F17: 6598 | G17: 547522.916 | I17: 1245449.128 | J17: 0 | K17: 0 | L17: 0 | M17: 404412.5484 | N17: 10759.00485 | O17: 138051.1438 | P17: 1798671.825 | R17: 188.7616138 | S17: 0 | T17: 0 | U17: 0 | V17: 61.29320225 | W17: 1.630646385 | X17: 20.92318032 | Y17: =IF('Comparison - Category'!B17="Residential",SUM(R17:W17,Control!$B$75),IF('Comparison - Category'!B17="Rural",SUM(R17:W17,Control!$B$76),P17/$E17*$G17)) -> 272.6086428
A18: =Control!A38 -> Tararua District | B18: =Control!B38 -> District wide | C18: =Control!C38 -> Tararua DistrictDistrict wide | E18: 6806000 | F18: 12 | G18: 567166.6667 | I18: 2354.442882 | J18: 0 | K18: 0 | L18: 0 | M18: 0 | N18: 0 | O18: 252 | P18: 2606.442882 | R18: 196.2035735 | S18: 0 | T18: 0 | U18: 0 | V18: 0 | W18: 0 | X18: 21 | Y18: =IF('Comparison - Category'!B18="Residential",SUM(R18:W18,Control!$B$75),IF('Comparison - Category'!B18="Rural",SUM(R18:W18,Control!$B$76),P18/$E18*$G18)) -> 217.2035735
A19: =Control!A39 -> Region wide | B19: =Control!B39 -> 0 | C19: =Control!C39 -> Region wide | E19: 112052918261 | F19: 199332 | G19: 562142.1461 | I19: 42481670.52 | J19: 0 | K19: 0 | L19: 5826660.315 | M19: 64656396.13 | N19: 978091.35 | O19: 4822017.219 | P19: 118764835.5 | R19: 213.120174 | S19: 0 | T19: 0 | U19: 29.23093289 | V19: 324.3653609 | W19: 4.906845614 | X19: 24.19088365 | Y19: =IF('Comparison - Category'!B19="Residential",SUM(R19:W19,Control!$B$75),IF('Comparison - Category'!B19="Rural",SUM(R19:W19,Control!$B$76),P19/$E19*$G19)) -> 595.8141971
A21: By TA & Category
A22: =Control!A43 -> Wellington City | B22: =Control!B43 -> Regional CBD | C22: =Control!C43 -> Wellington CityRegional CBD | E22: 7854191500 | F22: 3401 | G22: 2309377.095 | I22: 3242974.475 | J22: 0 | K22: 0 | L22: 6620.073537 | M22: 25019166.07 | N22: 135230.613 | O22: 865036.7413 | P22: 29269027.98 | R22: =I22/$E22*$G22 -> 953.5355703 | S22: =J22/$E22*$G22 -> 0 | T22: =K22/$E22*$G22 -> 0 | U22: =L22/$E22*$G22 -> 1.94650795 | V22: =M22/$E22*$G22 -> 7356.414605 | W22: =N22/$E22*$G22 -> 39.762015 | X22: =IF('Comparison - Category'!B22="Residential",Control!$B$75,IF('Comparison - Category'!B22="Rural",Control!$B$76,O22/$E22*$G22)) -> 254.3477628 | Y22: =IF('Comparison - Category'!B22="Residential",SUM(R22:W22,Control!$B$75),IF('Comparison - Category'!B22="Rural",SUM(R22:W22,Control!$B$76),P22/$E22*$G22)) -> 8606.006461 | AA22: =I22/$E22*100 -> 0.04128973014 | AB22: =J22/$E22*100 -> 0 | AC22: =K22/$E22*100 -> 0 | AD22: =L22/$E22*100 -> 8.428714193e-05 | AE22: =M22/$E22*100 -> 0.3185454044 | AF22: =N22/$E22*100 -> 0.001721763634 | AG22: =IF(OR('Comparison - Category'!B22="Residential",'Comparison - Category'!B22="Rural"),X22,O22/$E22*100) -> 0.01101369557 | AH22: =P22/$E22*100 -> 0.3726548808
A23: =Control!A44 -> Wellington City | B23: =Control!B44 -> Business | C23: =Control!C44 -> Wellington CityBusiness | E23: 3819755400 | F23: 1907 | G23: 2003018.039 | I23: 1577166.697 | J23: 0 | K23: 0 | L23: 3219.562655 | M23: 1192769.666 | N23: 65767.1594 | O23: 420696.2313 | P23: 3259619.316 | R23: =I23/$E23*$G23 -> 827.0407428 | S23: 0 | T23: 0 | U23: 1.688286657 | V23: 625.4691483 | W23: 34.48723618 | X23: =IF('Comparison - Category'!B23="Residential",Control!$B$75,IF('Comparison - Category'!B23="Rural",Control!$B$76,O23/$E23*$G23)) -> 220.606309 | Y23: =IF('Comparison - Category'!B23="Residential",SUM(R23:W23,Control!$B$75),IF('Comparison - Category'!B23="Rural",SUM(R23:W23,Control!$B$76),P23/$E23*$G23)) -> 1709.291723 | AA23: 0.04128973014 | AB23: 0 | AC23: 0 | AD23: 8.428714193e-05 | AE23: 0.03122633627 | AF23: 0.001721763634 | AG23: =IF(OR('Comparison - Category'!B23="Residential",'Comparison - Category'!B23="Rural"),X23,O23/$E23*100) -> 0.01101369557 | AH23: 0.08533581275
A24: =Control!A45 -> Wellington City | B24: =Control!B45 -> Residential | C24: =Control!C45 -> Wellington CityResidential | E24: 39066389001 | F24: 70889 | G24: 551092.398 | I24: 16130406.59 | J24: 0 | K24: 0 | L24: 32927.94274 | M24: 12199002 | N24: 377152.0246 | O24: 992446 | P24: 29731934.56 | R24: 227.5445639 | S24: 0 | T24: 0 | U24: 0.4645000316 | V24: 172.0859654 | W24: 5.320318026 | X24: =IF('Comparison - Category'!B24="Residential",Control!$B$75,IF('Comparison - Category'!B24="Rural",Control!$B$76,O24/$E24*$G24)) -> 14 | Y24: =IF('Comparison - Category'!B24="Residential",SUM(R24:W24,Control!$B$75),IF('Comparison - Category'!B24="Rural",SUM(R24:W24,Control!$B$76),P24/$E24*$G24)) -> 419.4153473 | AA24: 0.04128973014 | AB24: 0 | AC24: 0 | AD24: 8.428714193e-05 | AE24: 0.03122633627 | AF24: 0.0009654130679 | AG24: =IF(OR('Comparison - Category'!B24="Residential",'Comparison - Category'!B24="Rural"),X24,O24/$E24*100) -> 14 | AH24: 0.07610617546
A25: =Control!A46 -> Wellington City | B25: =Control!B46 -> Rural | C25: =Control!C46 -> Wellington CityRural | E25: 578789550 | F25: 774 | G25: 747790.1163 | I25: 238980.6433 | J25: 0 | K25: 0 | L25: 487.8451695 | M25: 46420.26679 | N25: 2836.464915 | O25: 21672 | P25: 310397.2201 | R25: 308.760521 | S25: 0 | T25: 0 | U25: 0.6302909166 | V25: 59.9745049 | W25: 3.664683353 | X25: =IF('Comparison - Category'!B25="Residential",Control!$B$75,IF('Comparison - Category'!B25="Rural",Control!$B$76,O25/$E25*$G25)) -> 28 | Y25: =IF('Comparison - Category'!B25="Residential",SUM(R25:W25,Control!$B$75),IF('Comparison - Category'!B25="Rural",SUM(R25:W25,Control!$B$76),P25/$E25*$G25)) -> 401.0300002 | AA25: 0.04128973014 | AB25: 0 | AC25: 0 | AD25: 8.428714193e-05 | AE25: 0.008020232361 | AF25: 0.0004900684394 | AG25: =IF(OR('Comparison - Category'!B25="Residential",'Comparison - Category'!B25="Rural"),X25,O25/$E25*100) -> 28 | AH25: 0.05362868423
A26: =Control!A47 -> Hutt City | B26: =Control!B47 -> Business | C26: =Control!C47 -> Hutt CityBusiness | E26: 3796856000 | F26: 2357 | G26: 1610885.023 | I26: 1287591.074 | J26: 0 | K26: 0 | L26: 660987.1265 | M26: 2092334.59 | N26: 49784.84971 | O26: 343454.3181 | P26: 4434151.958 | R26: 546.2838668 | S26: 0 | T26: 0 | U26: 280.435777 | V26: 887.7108994 | W26: 21.12212546 | X26: =IF('Comparison - Category'!B26="Residential",Control!$B$75,IF('Comparison - Category'!B26="Rural",Control!$B$76,O26/$E26*$G26)) -> 145.7167238 | Y26: =IF('Comparison - Category'!B26="Residential",SUM(R26:W26,Control!$B$75),IF('Comparison - Category'!B26="Rural",SUM(R26:W26,Control!$B$76),P26/$E26*$G26)) -> 1881.269392 | AA26: 0.03391203338 | AB26: 0 | AC26: 0 | AD26: 0.01740880156 | AE26: 0.05510703039 | AF26: 0.00131121248 | AG26: =IF(OR('Comparison - Category'!B26="Residential",'Comparison - Category'!B26="Rural"),X26,O26/$E26*100) -> 0.009045755701 | AH26: 0.1167848335
A27: =Control!A48 -> Hutt City | B27: =Control!B48 -> Residential | C27: =Control!C48 -> Hutt CityResidential | E27: 17055925500 | F27: 36202 | G27: 471132.1336 | I27: 5784011.148 | J27: 0 | K27: 0 | L27: 2969232.224 | M27: 9399014.049 | N27: 138888.9717 | O27: 505078 | P27: 18796224.39 | R27: 159.7704864 | S27: 0 | T27: 0 | U27: 82.01845821 | V27: 259.626928 | W27: 3.836499964 | X27: =IF('Comparison - Category'!B27="Residential",Control!$B$75,IF('Comparison - Category'!B27="Rural",Control!$B$76,O27/$E27*$G27)) -> 14 | Y27: =IF('Comparison - Category'!B27="Residential",SUM(R27:W27,Control!$B$75),IF('Comparison - Category'!B27="Rural",SUM(R27:W27,Control!$B$76),P27/$E27*$G27)) -> 519.2523726 | AA27: 0.03391203338 | AB27: 0 | AC27: 0 | AD27: 0.01740880156 | AE27: 0.05510703039 | AF27: 0.0008143150701 | AG27: =IF(OR('Comparison - Category'!B27="Residential",'Comparison - Category'!B27="Rural"),X27,O27/$E27*100) -> 14 | AH27: 0.1102034855
A28: =Control!A49 -> Hutt City | B28: =Control!B49 -> Rural | C28: =Control!C49 -> Hutt CityRural | E28: 318040000 | F28: 490 | G28: 649061.2245 | I28: 107853.8309 | J28: 0 | K28: 0 | L28: 55366.95247 | M28: 44664.56015 | N28: 2249.610105 | O28: 13720 | P28: 223854.9537 | R28: 220.1098591 | S28: 0 | T28: 0 | U28: 112.9937806 | V28: 91.15216357 | W28: 4.591041031 | X28: =IF('Comparison - Category'!B28="Residential",Control!$B$75,IF('Comparison - Category'!B28="Rural",Control!$B$76,O28/$E28*$G28)) -> 28 | Y28: =IF('Comparison - Category'!B28="Residential",SUM(R28:W28,Control!$B$75),IF('Comparison - Category'!B28="Rural",SUM(R28:W28,Control!$B$76),P28/$E28*$G28)) -> 456.8468442 | AA28: 0.03391203338 | AB28: 0 | AC28: 0 | AD28: 0.01740880156 | AE28: 0.01404369266 | AF28: 0.0007073355883 | AG28: =IF(OR('Comparison - Category'!B28="Residential",'Comparison - Category'!B28="Rural"),X28,O28/$E28*100) -> 28 | AH28: 0.07038578596
A29: =Control!A50 -> Upper Hutt City | B29: =Control!B50 -> Business | C29: =Control!C50 -> Upper Hutt CityBusiness | E29: 1170562500 | F29: 722 | G29: 1621277.701 | I29: 397110.704 | J29: 0 | K29: 0 | L29: 99060.16162 | M29: 725473.2634 | N29: 7726.921665 | O29: 105926.0108 | P29: 1335297.061 | R29: 550.0148255 | S29: 0 | T29: 0 | U29: 137.2024399 | V29: 1004.810614 | W29: 10.70210757 | X29: =IF('Comparison - Category'!B29="Residential",Control!$B$75,IF('Comparison - Category'!B29="Rural",Control!$B$76,O29/$E29*$G29)) -> 146.7119263 | Y29: =IF('Comparison - Category'!B29="Residential",SUM(R29:W29,Control!$B$75),IF('Comparison - Category'!B29="Rural",SUM(R29:W29,Control!$B$76),P29/$E29*$G29)) -> 1849.441913 | AA29: 0.03392477582 | AB29: 0 | AC29: 0 | AD29: 0.008462611917 | AE29: 0.06197646545 | AF29: 0.0006601032978 | AG29: =IF(OR('Comparison - Category'!B29="Residential",'Comparison - Category'!B29="Rural"),X29,O29/$E29*100) -> 0.009049154644 | AH29: 0.1140731111
A30: =Control!A51 -> Upper Hutt City | B30: =Control!B51 -> Residential | C30: =Control!C51 -> Upper Hutt CityResidential | E30: 6041952920 | F30: 14604 | G30: 413719.0441 | I30: 2049718.983 | J30: 0 | K30: 0 | L30: 511307.0278 | M30: 3744588.864 | N30: 41764.50065 | O30: 204288 | P30: 6551667.376 | R30: 140.3532582 | S30: 0 | T30: 0 | U30: 35.01143713 | V30: 256.4084404 | W30: 2.859798729 | X30: =IF('Comparison - Category'!B30="Residential",Control!$B$75,IF('Comparison - Category'!B30="Rural",Control!$B$76,O30/$E30*$G30)) -> 14 | Y30: =IF('Comparison - Category'!B30="Residential",SUM(R30:W30,Control!$B$75),IF('Comparison - Category'!B30="Rural",SUM(R30:W30,Control!$B$76),P30/$E30*$G30)) -> 448.6329345 | AA30: 0.03392477582 | AB30: 0 | AC30: 0 | AD30: 0.008462611917 | AE30: 0.06197646545 | AF30: 0.0006912417425 | AG30: =IF(OR('Comparison - Category'!B30="Residential",'Comparison - Category'!B30="Rural"),X30,O30/$E30*100) -> 14 | AH30: 0.1084362534
A31: =Control!A52 -> Upper Hutt City | B31: =Control!B52 -> Rural | C31: =Control!C52 -> Upper Hutt CityRural | E31: 799732340 | F31: 1244 | G31: 642871.6559 | I31: 271307.4035 | J31: 0 | K31: 0 | L31: 67678.24431 | M31: 126321.4349 | N31: 1956.1827 | O31: 32984 | P31: 500247.2654 | R31: 218.0927681 | S31: 0 | T31: 0 | U31: 54.40373337 | V31: 101.5445618 | W31: 1.572494132 | X31: =IF('Comparison - Category'!B31="Residential",Control!$B$75,IF('Comparison - Category'!B31="Rural",Control!$B$76,O31/$E31*$G31)) -> 28 | Y31: =IF('Comparison - Category'!B31="Residential",SUM(R31:W31,Control!$B$75),IF('Comparison - Category'!B31="Rural",SUM(R31:W31,Control!$B$76),P31/$E31*$G31)) -> 403.6135574 | AA31: 0.03392477582 | AB31: 0 | AC31: 0 | AD31: 0.008462611917 | AE31: 0.01579546413 | AF31: 0.0002446046761 | AG31: =IF(OR('Comparison - Category'!B31="Residential",'Comparison - Category'!B31="Rural"),X31,O31/$E31*100) -> 28 | AH31: 0.06255183646
A32: =Control!A53 -> Porirua City | B32: =Control!B53 -> Business | C32: =Control!C53 -> Porirua CityBusiness | E32: 1094739500 | F32: 796 | G32: 1375300.879 | I32: 367044.7712 | J32: 0 | K32: 0 | L32: 3085.195012 | M32: 691972.2212 | N32: 12128.33274 | O32: 97906.17079 | P32: 1172136.691 | R32: 461.1115216 | S32: 0 | T32: 0 | U32: 3.87587313 | V32: 869.3118357 | W32: 15.23659892 | X32: =IF('Comparison - Category'!B32="Residential",Control!$B$75,IF('Comparison - Category'!B32="Rural",Control!$B$76,O32/$E32*$G32)) -> 122.997702 | Y32: =IF('Comparison - Category'!B32="Residential",SUM(R32:W32,Control!$B$75),IF('Comparison - Category'!B32="Rural",SUM(R32:W32,Control!$B$76),P32/$E32*$G32)) -> 1472.533531 | AA32: 0.03352804673 | AB32: 0 | AC32: 0 | AD32: 0.0002818200139 | AE32: 0.06320884751 | AF32: 0.001107873859 | AG32: =IF(OR('Comparison - Category'!B32="Residential",'Comparison - Category'!B32="Rural"),X32,O32/$E32*100) -> 0.008943330426 | AH32: 0.1070699185
A33: =Control!A54 -> Porirua City | B33: =Control!B54 -> Residential | C33: =Control!C54 -> Porirua CityResidential | E33: 8349049050 | F33: 17106 | G33: 488077.2273 | I33: 2799273.067 | J33: 0 | K33: 0 | L33: 23529.2912 | M33: 5277337.682 | N33: 56729.2983 | O33: 239484 | P33: 8396353.339 | R33: =I33/$E33*$G33 -> 163.6427609 | S33: 0 | T33: 0 | U33: 1.37549931 | V33: 308.5079903 | W33: 3.316339197 | X33: =IF('Comparison - Category'!B33="Residential",Control!$B$75,IF('Comparison - Category'!B33="Rural",Control!$B$76,O33/$E33*$G33)) -> 14 | Y33: =IF('Comparison - Category'!B33="Residential",SUM(R33:W33,Control!$B$75),IF('Comparison - Category'!B33="Rural",SUM(R33:W33,Control!$B$76),P33/$E33*$G33)) -> 490.8425897 | AA33: 0.03352804673 | AB33: 0 | AC33: 0 | AD33: 0.0002818200139 | AE33: 0.06320884751 | AF33: 0.0006794701763 | AG33: =IF(OR('Comparison - Category'!B33="Residential",'Comparison - Category'!B33="Rural"),X33,O33/$E33*100) -> 14 | AH33: 0.100566583
A34: =Control!A55 -> Porirua City | B34: =Control!B55 -> Rural | C34: =Control!C55 -> Porirua CityRural | E34: 600806750 | F34: 612 | G34: 981710.3758 | I34: 201438.7679 | J34: 0 | K34: 0 | L34: 1693.193667 | M34: 96761.34373 | N34: 1369.32789 | O34: 17136 | P34: 318398.6332 | R34: =I34/$E34*$G34 -> 329.1483136 | S34: 0 | T34: 0 | U34: 2.766656318 | V34: 158.1067708 | W34: 2.237463873 | X34: =IF('Comparison - Category'!B34="Residential",Control!$B$75,IF('Comparison - Category'!B34="Rural",Control!$B$76,O34/$E34*$G34)) -> 28 | Y34: =IF('Comparison - Category'!B34="Residential",SUM(R34:W34,Control!$B$75),IF('Comparison - Category'!B34="Rural",SUM(R34:W34,Control!$B$76),P34/$E34*$G34)) -> 520.2592046 | AA34: 0.03352804673 | AB34: 0 | AC34: 0 | AD34: 0.0002818200139 | AE34: 0.01610523579 | AF34: 0.0002279148645 | AG34: =IF(OR('Comparison - Category'!B34="Residential",'Comparison - Category'!B34="Rural"),X34,O34/$E34*100) -> 28 | AH34: 0.05299518243
A35: =Control!A56 -> Kapiti Coast District | B35: =Control!B56 -> Business | C35: =Control!C56 -> Kapiti Coast DistrictBusiness | E35: 1268607000 | F35: 1389 | G35: 913323.9741 | I35: 500467.7276 | J35: 0 | K35: 0 | L35: 158161.1737 | M35: 403085.5328 | N35: 5889.225561 | O35: 133495.6459 | P35: 1201099.306 | R35: 360.3079393 | S35: 0 | T35: 0 | U35: 113.8669357 | V35: 290.1983678 | W35: 4.239903212 | X35: =IF('Comparison - Category'!B35="Residential",Control!$B$75,IF('Comparison - Category'!B35="Rural",Control!$B$76,O35/$E35*$G35)) -> 96.10917634 | Y35: =IF('Comparison - Category'!B35="Residential",SUM(R35:W35,Control!$B$75),IF('Comparison - Category'!B35="Rural",SUM(R35:W35,Control!$B$76),P35/$E35*$G35)) -> 864.7223223 | AA35: 0.03945017863 | AB35: 0 | AC35: 0 | AD35: 0.0124673105 | AE35: 0.03177386951 | AF35: 0.0004642277365 | AG35: =IF(OR('Comparison - Category'!B35="Residential",'Comparison - Category'!B35="Rural"),X35,O35/$E35*100) -> 0.01052301035 | AH35: 0.09467859673
A36: =Control!A57 -> Kapiti Coast District | B36: =Control!B57 -> Residential | C36: =Control!C57 -> Kapiti Coast DistrictResidential | E36: 8022916350 | F36: 20583 | G36: 389783.6248 | I36: 3165054.832 | J36: 0 | K36: 0 | L36: 1000241.892 | M36: 2549190.972 | N36: 37244.60297 | O36: 284592 | P36: 7036324.299 | R36: 153.7703363 | S36: 0 | T36: 0 | U36: 48.59553477 | V36: 123.8493403 | W36: 1.809483699 | X36: =IF('Comparison - Category'!B36="Residential",Control!$B$75,IF('Comparison - Category'!B36="Rural",Control!$B$76,O36/$E36*$G36)) -> 14 | Y36: =IF('Comparison - Category'!B36="Residential",SUM(R36:W36,Control!$B$75),IF('Comparison - Category'!B36="Rural",SUM(R36:W36,Control!$B$76),P36/$E36*$G36)) -> 342.0246951 | AA36: 0.03945017863 | AB36: 0 | AC36: 0 | AD36: 0.0124673105 | AE36: 0.03177386951 | AF36: 0.0004642277365 | AG36: =IF(OR('Comparison - Category'!B36="Residential",'Comparison - Category'!B36="Rural"),X36,O36/$E36*100) -> 14 | AH36: 0.08770282516
A37: =Control!A58 -> Kapiti Coast District | B37: =Control!B58 -> Rural | C37: =Control!C58 -> Kapiti Coast DistrictRural | E37: 1682983100 | F37: 2789 | G37: 603436.0344 | I37: 663939.8393 | J37: 0 | K37: 0 | L37: 209822.7287 | M37: 138343.5821 | N37: 4205.792805 | O37: 73332 | P37: 1089643.943 | R37: 238.0565935 | S37: 0 | T37: 0 | U37: 75.23224406 | V37: 49.60329226 | W37: 1.507993118 | X37: =IF('Comparison - Category'!B37="Residential",Control!$B$75,IF('Comparison - Category'!B37="Rural",Control!$B$76,O37/$E37*$G37)) -> 28 | Y37: =IF('Comparison - Category'!B37="Residential",SUM(R37:W37,Control!$B$75),IF('Comparison - Category'!B37="Rural",SUM(R37:W37,Control!$B$76),P37/$E37*$G37)) -> 392.4001229 | AA37: 0.03945017863 | AB37: 0 | AC37: 0 | AD37: 0.0124673105 | AE37: 0.008220140898 | AF37: 0.0002499010718 | AG37: =IF(OR('Comparison - Category'!B37="Residential",'Comparison - Category'!B37="Rural"),X37,O37/$E37*100) -> 28 | AH37: 0.0647447941
A38: =Control!A59 -> Masterton District | B38: =Control!B59 -> Business | C38: =Control!C59 -> Masterton DistrictBusiness | E38: 381148600 | F38: 546 | G38: 698074.359 | I38: 135173.0315 | J38: 0 | K38: 0 | L38: 0 | M38: 38506.17602 | N38: 2325.988066 | O38: 36056.29325 | P38: 212061.4888 | R38: 247.5696547 | S38: 0 | T38: 0 | U38: 0 | V38: =M38/$E38*$G38 -> 70.5241319 | W38: 4.260051403 | X38: =IF('Comparison - Category'!B38="Residential",Control!$B$75,IF('Comparison - Category'!B38="Rural",Control!$B$76,O38/$E38*$G38)) -> 66.03716713 | Y38: =IF('Comparison - Category'!B38="Residential",SUM(R38:W38,Control!$B$75),IF('Comparison - Category'!B38="Rural",SUM(R38:W38,Control!$B$76),P38/$E38*$G38)) -> 388.3910052 | AA38: 0.03546465381 | AB38: 0 | AC38: 0 | AD38: 0 | AE38: 0.01010266757 | AF38: 0.000610257539 | AG38: =IF(OR('Comparison - Category'!B38="Residential",'Comparison - Category'!B38="Rural"),X38,O38/$E38*100) -> 0.009459904418 | AH38: 0.05563748334
A39: =Control!A60 -> Masterton District | B39: =Control!B60 -> Residential | C39: =Control!C60 -> Masterton DistrictResidential | E39: 1974896500 | F39: 7842 | G39: 251835.8199 | I39: 700390.2068 | J39: 0 | K39: 0 | L39: 0 | M39: 199517.2283 | N39: 12051.95478 | O39: 109550 | P39: 1021509.39 | R39: 89.31270171 | S39: 0 | T39: 0 | U39: 0 | V39: 25.44213572 | W39: 1.536847077 | X39: =IF('Comparison - Category'!B39="Residential",Control!$B$75,IF('Comparison - Category'!B39="Rural",Control!$B$76,O39/$E39*$G39)) -> 14 | Y39: =IF('Comparison - Category'!B39="Residential",SUM(R39:W39,Control!$B$75),IF('Comparison - Category'!B39="Rural",SUM(R39:W39,Control!$B$76),P39/$E39*$G39)) -> 130.2916845 | AA39: 0.03546465381 | AB39: 0 | AC39: 0 | AD39: 0 | AE39: 0.01010266757 | AF39: 0.000610257539 | AG39: =IF(OR('Comparison - Category'!B39="Residential",'Comparison - Category'!B39="Rural"),X39,O39/$E39*100) -> 14 | AH39: 0.05172470506
A40: =Control!A61 -> Masterton District | B40: =Control!B61 -> Rural | C40: =Control!C61 -> Masterton DistrictRural | E40: 2367963300 | F40: 3908 | G40: 605927.1494 | I40: 839789.9866 | J40: 0 | K40: 0 | L40: 0 | M40: 68725.1617 | N40: 5183.884155 | O40: 95956 | P40: 1009655.032 | R40: 214.8899659 | S40: 0 | T40: 0 | U40: 0 | V40: 17.58576297 | W40: 1.326480081 | X40: =IF('Comparison - Category'!B40="Residential",Control!$B$75,IF('Comparison - Category'!B40="Rural",Control!$B$76,O40/$E40*$G40)) -> 28 | Y40: =IF('Comparison - Category'!B40="Residential",SUM(R40:W40,Control!$B$75),IF('Comparison - Category'!B40="Rural",SUM(R40:W40,Control!$B$76),P40/$E40*$G40)) -> 261.8022089 | AA40: 0.03546465381 | AB40: 0 | AC40: 0 | AD40: 0 | AE40: 0.002902289985 | AF40: 0.0002189174197 | AG40: =IF(OR('Comparison - Category'!B40="Residential",'Comparison - Category'!B40="Rural"),X40,O40/$E40*100) -> 28 | AH40: 0.04263811996
A41: =Control!A62 -> Carterton District | B41: =Control!B62 -> Business | C41: =Control!C62 -> Carterton DistrictBusiness | E41: 93045500 | F41: 225 | G41: 413535.5556 | I41: 32918.2178 | J41: 0 | K41: 0 | L41: 988.1624401 | M41: 16823.53517 | N41: 506.4623492 | O41: 8780.663578 | P41: 60017.04134 | R41: 146.3031902 | S41: 0 | T41: 0 | U41: 4.391833067 | V41: 74.77126744 | W41: 2.250943774 | X41: =IF('Comparison - Category'!B41="Residential",Control!$B$75,IF('Comparison - Category'!B41="Rural",Control!$B$76,O41/$E41*$G41)) -> 39.02517146 | Y41: =IF('Comparison - Category'!B41="Residential",SUM(R41:W41,Control!$B$75),IF('Comparison - Category'!B41="Rural",SUM(R41:W41,Control!$B$76),P41/$E41*$G41)) -> 266.742406 | AA41: 0.03537862422 | AB41: 0 | AC41: 0 | AD41: 0.001062020667 | AE41: 0.0180809767 | AF41: 0.0005443168657 | AG41: =IF(OR('Comparison - Category'!B41="Residential",'Comparison - Category'!B41="Rural"),X41,O41/$E41*100) -> 0.009436956734 | AH41: 0.06450289519
A42: =Control!A63 -> Carterton District | B42: =Control!B63 -> Residential | C42: =Control!C63 -> Carterton DistrictResidential | E42: 607751500 | F42: 2299 | G42: 264354.7194 | I42: 215014.1194 | J42: 0 | K42: 0 | L42: 6454.446537 | M42: 109887.4071 | N42: 3308.093916 | O42: 31080 | P42: 365744.0669 | R42: 93.5250628 | S42: 0 | T42: 0 | U42: 2.807501756 | V42: 47.79791522 | W42: 1.438927323 | X42: =IF('Comparison - Category'!B42="Residential",Control!$B$75,IF('Comparison - Category'!B42="Rural",Control!$B$76,O42/$E42*$G42)) -> 14 | Y42: =IF('Comparison - Category'!B42="Residential",SUM(R42:W42,Control!$B$75),IF('Comparison - Category'!B42="Rural",SUM(R42:W42,Control!$B$76),P42/$E42*$G42)) -> 159.5694071 | AA42: 0.03537862422 | AB42: 0 | AC42: 0 | AD42: 0.001062020667 | AE42: 0.0180809767 | AF42: 0.0005443168657 | AG42: =IF(OR('Comparison - Category'!B42="Residential",'Comparison - Category'!B42="Rural"),X42,O42/$E42*100) -> 14 | AH42: 0.06017987071
A43: =Control!A64 -> Carterton District | B43: =Control!B64 -> Rural | C43: =Control!C64 -> Carterton DistrictRural | E43: 1487454200 | F43: 2037 | G43: 730218.0658 | I43: 526240.8319 | J43: 0 | K43: 0 | L43: 15797.07102 | M43: 72077.97134 | N43: 3032.083185 | O43: 51044 | P43: 668191.9574 | R43: 258.3411055 | S43: 0 | T43: 0 | U43: 7.755066776 | V43: 35.38437474 | W43: 1.488504264 | X43: =IF('Comparison - Category'!B43="Residential",Control!$B$75,IF('Comparison - Category'!B43="Rural",Control!$B$76,O43/$E43*$G43)) -> 28 | Y43: =IF('Comparison - Category'!B43="Residential",SUM(R43:W43,Control!$B$75),IF('Comparison - Category'!B43="Rural",SUM(R43:W43,Control!$B$76),P43/$E43*$G43)) -> 330.9690513 | AA43: 0.03537862422 | AB43: 0 | AC43: 0 | AD43: 0.001062020667 | AE43: 0.004845727105 | AF43: 0.0002038438014 | AG43: =IF(OR('Comparison - Category'!B43="Residential",'Comparison - Category'!B43="Rural"),X43,O43/$E43*100) -> 28 | AH43: 0.04492185087
A44: =Control!A65 -> South Wairarapa District | B44: =Control!B65 -> Business | C44: =Control!C65 -> South Wairarapa DistrictBusiness | E44: 190419802 | F44: 312 | G44: 610319.8782 | I44: 65648.30088 | J44: 0 | K44: 0 | L44: 0 | M44: 44332.49902 | N44: 1243.692615 | O44: 17511.14377 | P44: 128735.6363 | R44: 210.4112208 | S44: 0 | T44: 0 | U44: 0 | V44: 142.091343 | W44: 3.98619428 | X44: =IF('Comparison - Category'!B44="Residential",Control!$B$75,IF('Comparison - Category'!B44="Rural",Control!$B$76,O44/$E44*$G44)) -> 56.1254608 | Y44: =IF('Comparison - Category'!B44="Residential",SUM(R44:W44,Control!$B$75),IF('Comparison - Category'!B44="Rural",SUM(R44:W44,Control!$B$76),P44/$E44*$G44)) -> 412.6142189 | AA44: 0.03447556409 | AB44: 0 | AC44: 0 | AD44: 0 | AE44: 0.02328145422 | AF44: 0.000653131976 | AG44: =IF(OR('Comparison - Category'!B44="Residential",'Comparison - Category'!B44="Rural"),X44,O44/$E44*100) -> 0.00919607288 | AH44: 0.06760622316
A45: =Control!A66 -> South Wairarapa District | B45: =Control!B66 -> Residential | C45: =Control!C66 -> South Wairarapa DistrictResidential | E45: 887809098 | F45: 3147 | G45: 282112.837 | I45: 306077.1946 | J45: 0 | K45: 0 | L45: 0 | M45: 206694.8687 | N45: 5798.565105 | O45: 43008 | P45: 561578.6284 | R45: 97.25999193 | S45: 0 | T45: 0 | U45: 0 | V45: 65.67997098 | W45: 1.842569147 | X45: =IF('Comparison - Category'!B45="Residential",Control!$B$75,IF('Comparison - Category'!B45="Rural",Control!$B$76,O45/$E45*$G45)) -> 14 | Y45: =IF('Comparison - Category'!B45="Residential",SUM(R45:W45,Control!$B$75),IF('Comparison - Category'!B45="Rural",SUM(R45:W45,Control!$B$76),P45/$E45*$G45)) -> 178.7825321 | AA45: 0.03447556409 | AB45: 0 | AC45: 0 | AD45: 0 | AE45: 0.02328145422 | AF45: 0.000653131976 | AG45: =IF(OR('Comparison - Category'!B45="Residential",'Comparison - Category'!B45="Rural"),X45,O45/$E45*100) -> 14 | AH45: 0.06325443495
A46: =Control!A67 -> South Wairarapa District | B46: =Control!B67 -> Rural | C46: =Control!C67 -> South Wairarapa DistrictRural | E46: 2534327300 | F46: 3139 | G46: 807367.7286 | I46: 873723.6326 | J46: 0 | K46: 0 | L46: 0 | M46: 153385.1807 | N46: 3716.74713 | O46: 77532 | P46: 1108357.56 | R46: 278.3445787 | S46: 0 | T46: 0 | U46: 0 | V46: 48.86434556 | W46: 1.184054517 | X46: =IF('Comparison - Category'!B46="Residential",Control!$B$75,IF('Comparison - Category'!B46="Rural",Control!$B$76,O46/$E46*$G46)) -> 28 | Y46: =IF('Comparison - Category'!B46="Residential",SUM(R46:W46,Control!$B$75),IF('Comparison - Category'!B46="Rural",SUM(R46:W46,Control!$B$76),P46/$E46*$G46)) -> 356.3929788 | AA46: 0.03447556409 | AB46: 0 | AC46: 0 | AD46: 0 | AE46: 0.006052303533 | AF46: 0.0001466561612 | AG46: =IF(OR('Comparison - Category'!B46="Residential",'Comparison - Category'!B46="Rural"),X46,O46/$E46*100) -> 28 | AH46: 0.04373379715
A47: =Control!A68 -> Tararua District | B47: =Control!B68 -> Rural | C47: =Control!C68 -> Tararua DistrictRural | E47: 6806000 | F47: 12 | G47: 567166.6667 | I47: 2354.442882 | J47: 0 | K47: 0 | L47: 0 | M47: 0 | N47: 0 | O47: 252 | P47: 2606.442882 | R47: 196.2035735 | S47: 0 | T47: 0 | U47: 0 | V47: 0 | W47: 0 | X47: =IF('Comparison - Category'!B47="Residential",Control!$B$75,IF('Comparison - Category'!B47="Rural",Control!$B$76,O47/$E47*$G47)) -> 28 | Y47: =IF('Comparison - Category'!B47="Residential",SUM(R47:W47,Control!$B$75),IF('Comparison - Category'!B47="Rural",SUM(R47:W47,Control!$B$76),P47/$E47*$G47)) -> 224.2035735 | AA47: 0.03459363623 | AB47: 0 | AC47: 0 | AD47: 0 | AE47: 0 | AF47: 0 | AG47: =IF(OR('Comparison - Category'!B47="Residential",'Comparison - Category'!B47="Rural"),X47,O47/$E47*100) -> 28 | AH47: 0.03829625157
A48: =Control!A69 -> Region wide | B48: =Control!B69 -> 0 | C48: =Control!C69 -> Region wide | E48: 112052918261 | F48: 199332 | G48: 562142.1461 | I48: 42481670.52 | J48: 0 | K48: 0 | L48: 5826660.315 | M48: 64656396.13 | N48: 978091.35 | O48: 4822017.219 | P48: 118764835.5 | R48: 213.120174 | S48: 0 | T48: 0 | U48: 29.23093289 | V48: 324.3653609 | W48: 4.906845614 | X48: =O48/$E48*$G48 -> 24.19088365 | Y48: =IF('Comparison - Category'!B48="Residential",SUM(R48:W48,Control!$B$75),IF('Comparison - Category'!B48="Rural",SUM(R48:W48,Control!$B$76),P48/$E48*$G48)) -> 595.8141971 | AA48: 0.03791215006 | AB48: 0 | AC48: 0 | AD48: 0.005199918401 | AE48: 0.05770166197 | AF48: 0.0008728834243 | AG48: =IF(OR(B48="Residential",B48="Rural"),"n/a",O48/$E48*100) -> 0.004303339256 | AH48: 0.1059899531
A50: By category
A51: Region Wide | B51: =B22 -> Regional CBD | C51: =A51&B51 -> Region WideRegional CBD | E51: =SUMIF($B$22:$B$47,$B51,E$22:E$47) -> 7854191500 | F51: 3401 | G51: =E51/F51 -> 2309377.095 | I51: =SUMIF($B$22:$B$47,$B51,I$22:I$47) -> 3242974.475 | J51: 0 | K51: 0 | L51: 6620.073537 | M51: 25019166.07 | N51: 135230.613 | O51: 865036.7413 | P51: 29269027.98 | R51: =I51/$E51*$G51 -> 953.5355703 | S51: =J51/$E51*$G51 -> 0 | T51: =K51/$E51*$G51 -> 0 | U51: =L51/$E51*$G51 -> 1.94650795 | V51: =M51/$E51*$G51 -> 7356.414605 | W51: =N51/$E51*$G51 -> 39.762015 | X51: =O51/$E51*$G51 -> 254.3477628 | Y51: =IF('Comparison - Category'!B51="Residential",SUM(R51:W51,Control!$B$75),IF('Comparison - Category'!B51="Rural",SUM(R51:W51,Control!$B$76),P51/$E51*$G51)) -> 8606.006461
A52: Region Wide | B52: =B23 -> Business | C52: =A52&B52 -> Region WideBusiness | E52: 11815134302 | F52: 8254 | G52: 1431443.458 | I52: 4363120.523 | J52: 0 | K52: 0 | L52: 925501.3819 | M52: 5205297.483 | N52: 145372.6321 | O52: 1163826.478 | P52: 11803118.5 | R52: 528.6067995 | S52: 0 | T52: 0 | U52: 112.1276208 | V52: 630.6393849 | W52: 17.61238577 | X52: 141.0015117 | Y52: =IF('Comparison - Category'!B52="Residential",SUM(R52:W52,Control!$B$75),IF('Comparison - Category'!B52="Rural",SUM(R52:W52,Control!$B$76),P52/$E52*$G52)) -> 1429.987703
A53: Region Wide | B53: =B24 -> Residential | C53: =A53&B53 -> Region WideResidential | E53: 82006689919 | F53: 172672 | G53: 474927.55 | I53: 31149946.14 | J53: 0 | K53: 0 | L53: 4543692.825 | M53: 33685233.07 | N53: 672938.012 | O53: 2409526 | P53: 72461336.05 | R53: 180.3995213 | S53: 0 | T53: 0 | U53: 26.31401052 | V53: 195.0821967 | W53: 3.897204017 | X53: 13.95435276 | Y53: =IF('Comparison - Category'!B53="Residential",SUM(R53:W53,Control!$B$75),IF('Comparison - Category'!B53="Rural",SUM(R53:W53,Control!$B$76),P53/$E53*$G53)) -> 419.6929326
A54: Region Wide | B54: =B25 -> Rural | C54: =A54&B54 -> Region WideRural | E54: 10376902540 | F54: 15005 | G54: 691562.9817 | I54: 3725629.379 | J54: 0 | K54: 0 | L54: 350846.0353 | M54: 746699.5014 | N54: 24550.09288 | O54: 383628 | P54: 5231353.009 | R54: 248.2925278 | S54: 0 | T54: 0 | U54: 23.38194171 | V54: 49.76337897 | W54: 1.636127483 | X54: 25.56667777 | Y54: =IF('Comparison - Category'!B54="Residential",SUM(R54:W54,Control!$B$75),IF('Comparison - Category'!B54="Rural",SUM(R54:W54,Control!$B$76),P54/$E54*$G54)) -> 351.0739759
A55: Region Wide | B55: Total | C55: =A55&B55 -> Region WideTotal | E55: =SUM(E51:E54) -> 112052918261 | F55: =SUM(F51:F54) -> 199332 | G55: 562142.1461 | I55: =SUM(I51:I54) -> 42481670.52 | J55: 0 | K55: 0 | L55: 5826660.315 | M55: 64656396.13 | N55: 978091.35 | O55: 4822017.219 | P55: 118764835.5 | R55: 213.120174 | S55: 0 | T55: 0 | U55: 29.23093289 | V55: 324.3653609 | W55: 4.906845614 | X55: 24.19088365 | Y55: =IF('Comparison - Category'!B55="Residential",SUM(R55:W55,Control!$B$75),IF('Comparison - Category'!B55="Rural",SUM(R55:W55,Control!$B$76),P55/$E55*$G55)) -> 595.8141971
I58: =IF(ABS(I19-SUM(I10:I18))>tolerance_dollar,1,0) -> 0 | J58: 0 | K58: 0 | L58: 0 | M58: 0 | N58: 0 | O58: 0 | P58: 0
I59: =I48-SUM(I22:I47) -> 0 | J59: =J48-SUM(J22:J47) -> 0 | K59: 0 | L59: 0 | M59: =M48-SUM(M22:M47) -> 0 | N59: =N48-SUM(N22:N47) -> 0 | O59: 0 | P59: 0
E60: =E48-E19 -> 0 | F60: =F48-F19 -> 0 | I60: =IF(ABS(I48-I19)>tolerance_dollar,1,0) -> 0 | J60: 0 | K60: 0 | L60: 0 | M60: 0 | N60: 0 | O60: 0 | P60: 0 | R60: =IF(ABS(R48-R19)>tolerance_dollar,1,0) -> 0 | S60: 0 | T60: 0 | U60: 0 | V60: 0 | W60: 0 | X60: 0 | Y60: 0
A63: =year_current&" rates" -> 2018/19 rates
I64: Rates | R64: Rates / average CV | AA64: Cents/$ OR Regional Strategy Rate $/property
A65: =Control!A29 -> TA full name | B65: =Control!B29 -> Category group | C65: =Control!C29 -> Concatenated row | E65: CV | F65: CV Assessments | G65: Average CV | I65: General Rate | J65: Flood protection – regional rate | K65: Flood protection – catchment rate | L65: River management rate | M65: Public transport rate | N65: Stadium purposes rate | O65: Regional strategy rate | P65: District-Wide Rates | R65: General Rate | S65: Flood protection – regional rate | T65: Flood protection – catchment rate | U65: River management rate | V65: Public transport rate | W65: Stadium purposes rate | X65: Regional strategy rate | Y65: District-Wide Rates | AA65: General Rate | AB65: Flood protection – regional rate | AC65: Flood protection – catchment rate | AD65: River management rate | AE65: Public transport rate | AF65: Stadium purposes rate | AG65: Regional strategy rate | AH65: District-Wide Rates
A67: By TA
A68: =Control!A30 -> Wellington City | B68: =Control!B30 -> District wide | C68: =Control!C30 -> Wellington CityDistrict wide | E68: =INDEX(capital_values,MATCH($C68,capital_values_rows,0),MATCH(E$65&" "&year_current,capital_values_header,0)) -> 51575881451 | F68: =INDEX(assessments,MATCH($C68,assessments_rows,0),MATCH(F$65&" "&year_current,assessments_header,0)) -> 77106 | G68: =E68/F68 -> 668895.8246 | I68: =INDEX(Gen!$D$10:$D$18,MATCH($A68,Gen!$A$10:$A$18,0),) -> 17763603.96 | J68: =INDEX('FP - regional'!$D$10:$D$18,MATCH($A68,'FP - regional'!$A$10:$A$18,0),) -> 4745293.017 | K68: =INDEX('FP - catchment'!$C$10:$C$18,MATCH($A68,'FP - catchment'!$A$10:$A$18,0),) -> 54042 | L68: 0 | M68: =INDEX(Tran!$H$10:$H$18,MATCH($A68,Tran!$A$10:$A$18,0),) -> 41775892.76 | N68: =INDEX(Stad!$F$10:$F$18,MATCH($A68,Stad!$A$10:$A$18,0),) -> 0 | O68: =INDEX(WRS!$J$10:$J$18,MATCH($A68,WRS!$A$10:$A$18,0),) -> 2346550.105 | P68: =SUM(I68:O68) -> 66685381.83 | R68: =I68/$E68*$G68 -> 230.3790102 | S68: =J68/$E68*$G68 -> 61.54246124 | T68: =K68/$E68*$G68 -> 0.700879309 | U68: =L68/$E68*$G68 -> 0 | V68: =M68/$E68*$G68 -> 541.7982097 | W68: =N68/$E68*$G68 -> 0 | X68: =O68/$E68*$G68 -> 30.43278221 | Y68: =IF('Comparison - Category'!B68="Residential",SUM(R68:W68,Control!$B$75),IF('Comparison - Category'!B68="Rural",SUM(R68:W68,Control!$B$76),P68/$E68*$G68)) -> 864.8533426
A69: =Control!A31 -> Hutt City | B69: =Control!B31 -> District wide | C69: =Control!C31 -> Hutt CityDistrict wide | E69: 21308578500 | F69: 39145 | G69: =E69/F69 -> 544349.9425 | I69: =INDEX(Gen!$D$10:$D$18,MATCH($A69,Gen!$A$10:$A$18,0),) -> 6211296.833 | J69: =INDEX('FP - regional'!$D$10:$D$18,MATCH($A69,'FP - regional'!$A$10:$A$18,0),) -> 1659259.211 | K69: =INDEX('FP - catchment'!$C$10:$C$18,MATCH($A69,'FP - catchment'!$A$10:$A$18,0),) -> 5167492 | L69: 0 | M69: =INDEX(Tran!$H$10:$H$18,MATCH($A69,Tran!$A$10:$A$18,0),) -> 10825287.61 | N69: =INDEX(Stad!$F$10:$F$18,MATCH($A69,Stad!$A$10:$A$18,0),) -> 0 | O69: =INDEX(WRS!$J$10:$J$18,MATCH($A69,WRS!$A$10:$A$18,0),) -> 883539.1397 | P69: =SUM(I69:O69) -> 24746874.79 | R69: =I69/$E69*$G69 -> 158.6740793 | S69: 42.38751337 | T69: 132.0089922 | U69: 0 | V69: 276.5433034 | W69: 0 | X69: 22.57093217 | Y69: =IF('Comparison - Category'!B69="Residential",SUM(R69:W69,Control!$B$75),IF('Comparison - Category'!B69="Rural",SUM(R69:W69,Control!$B$76),P69/$E69*$G69)) -> 632.1848204
A70: =Control!A32 -> Upper Hutt City | B70: =Control!B32 -> District wide | C70: =Control!C32 -> Upper Hutt CityDistrict wide | E70: 8127444260 | F70: 16736 | G70: 485626.4496 | I70: =INDEX(Gen!$D$10:$D$18,MATCH($A70,Gen!$A$10:$A$18,0),) -> 2362248.695 | J70: =INDEX('FP - regional'!$D$10:$D$18,MATCH($A70,'FP - regional'!$A$10:$A$18,0),) -> 631040.9906 | K70: =INDEX('FP - catchment'!$C$10:$C$18,MATCH($A70,'FP - catchment'!$A$10:$A$18,0),) -> 881402 | L70: 0 | M70: =INDEX(Tran!$H$10:$H$18,MATCH($A70,Tran!$A$10:$A$18,0),) -> 4174873.755 | N70: =INDEX(Stad!$F$10:$F$18,MATCH($A70,Stad!$A$10:$A$18,0),) -> 0 | O70: =INDEX(WRS!$J$10:$J$18,MATCH($A70,WRS!$A$10:$A$18,0),) -> 352214.2716 | P70: 8401779.713 | R70: 141.1477471 | S70: 37.70560412 | T70: 52.66503346 | U70: 0 | V70: 249.4546938 | W70: 0 | X70: 21.04530781 | Y70: =IF('Comparison - Category'!B70="Residential",SUM(R70:W70,Control!$B$75),IF('Comparison - Category'!B70="Rural",SUM(R70:W70,Control!$B$76),P70/$E70*$G70)) -> 502.0183863
A71: =Control!A33 -> Porirua City | B71: =Control!B33 -> District wide | C71: =Control!C33 -> Porirua CityDistrict wide | E71: 10194406250 | F71: 18629 | G71: 547233.1446 | I71: =INDEX(Gen!$D$10:$D$18,MATCH($A71,Gen!$A$10:$A$18,0),) -> 2943593.864 | J71: =INDEX('FP - regional'!$D$10:$D$18,MATCH($A71,'FP - regional'!$A$10:$A$18,0),) -> 786339.047 | K71: =INDEX('FP - catchment'!$C$10:$C$18,MATCH($A71,'FP - catchment'!$A$10:$A$18,0),) -> 45121 | L71: 0 | M71: =INDEX(Tran!$H$10:$H$18,MATCH($A71,Tran!$A$10:$A$18,0),) -> 5486054.931 | N71: =INDEX(Stad!$F$10:$F$18,MATCH($A71,Stad!$A$10:$A$18,0),) -> 0 | O71: =INDEX(WRS!$J$10:$J$18,MATCH($A71,WRS!$A$10:$A$18,0),) -> 362954.5637 | P71: 9624063.405 | R71: 158.0113728 | S71: 42.21048081 | T71: 2.422083848 | U71: 0 | V71: 294.4900387 | W71: 0 | X71: 19.48330902 | Y71: =IF('Comparison - Category'!B71="Residential",SUM(R71:W71,Control!$B$75),IF('Comparison - Category'!B71="Rural",SUM(R71:W71,Control!$B$76),P71/$E71*$G71)) -> 516.6172852
A72: =Control!A34 -> Kapiti Coast District | B72: =Control!B34 -> District wide | C72: =Control!C34 -> Kapiti Coast DistrictDistrict wide | E72: 14609528600 | F72: 24840 | G72: 588145.2738 | I72: =INDEX(Gen!$D$10:$D$18,MATCH($A72,Gen!$A$10:$A$18,0),) -> 3780325.471 | J72: =INDEX('FP - regional'!$D$10:$D$18,MATCH($A72,'FP - regional'!$A$10:$A$18,0),) -> 1009859.942 | K72: =INDEX('FP - catchment'!$C$10:$C$18,MATCH($A72,'FP - catchment'!$A$10:$A$18,0),) -> 1619846 | L72: 0 | M72: =INDEX(Tran!$H$10:$H$18,MATCH($A72,Tran!$A$10:$A$18,0),) -> 3744973.895 | N72: =INDEX(Stad!$F$10:$F$18,MATCH($A72,Stad!$A$10:$A$18,0),) -> 0 | O72: =INDEX(WRS!$J$10:$J$18,MATCH($A72,WRS!$A$10:$A$18,0),) -> 489421.5703 | P72: 10644426.88 | R72: 152.1870157 | S72: 40.65458702 | T72: 65.21119163 | U72: 0 | V72: 150.7638444 | W72: 0 | X72: 19.70296177 | Y72: =IF('Comparison - Category'!B72="Residential",SUM(R72:W72,Control!$B$75),IF('Comparison - Category'!B72="Rural",SUM(R72:W72,Control!$B$76),P72/$E72*$G72)) -> 428.5196005
A73: =Control!A35 -> Masterton District | B73: =Control!B35 -> District wide | C73: =Control!C35 -> Masterton DistrictDistrict wide | E73: 5909468000 | F73: 12282 | G73: 481148.6729 | I73: =INDEX(Gen!$D$10:$D$18,MATCH($A73,Gen!$A$10:$A$18,0),) -> 1517336.369 | J73: =INDEX('FP - regional'!$D$10:$D$18,MATCH($A73,'FP - regional'!$A$10:$A$18,0),) -> 405334.7334 | K73: =INDEX('FP - catchment'!$C$10:$C$18,MATCH($A73,'FP - catchment'!$A$10:$A$18,0),) -> 271627 | L73: 0 | M73: =INDEX(Tran!$H$10:$H$18,MATCH($A73,Tran!$A$10:$A$18,0),) -> 511304.9577 | N73: =INDEX(Stad!$F$10:$F$18,MATCH($A73,Stad!$A$10:$A$18,0),) -> 0 | O73: =INDEX(WRS!$J$10:$J$18,MATCH($A73,WRS!$A$10:$A$18,0),) -> 242660.1347 | P73: 2948263.195 | R73: 123.5414728 | S73: 33.00233948 | T73: 22.11586061 | U73: 0 | V73: 41.63043134 | W73: 0 | X73: 19.75737947 | Y73: =IF('Comparison - Category'!B73="Residential",SUM(R73:W73,Control!$B$75),IF('Comparison - Category'!B73="Rural",SUM(R73:W73,Control!$B$76),P73/$E73*$G73)) -> 240.0474837
A74: =Control!A36 -> Carterton District | B74: =Control!B36 -> District wide | C74: =Control!C36 -> Carterton DistrictDistrict wide | E74: 2707141800 | F74: 4643 | G74: 583058.7551 | I74: =INDEX(Gen!$D$10:$D$18,MATCH($A74,Gen!$A$10:$A$18,0),) -> 699379.0094 | J74: =INDEX('FP - regional'!$D$10:$D$18,MATCH($A74,'FP - regional'!$A$10:$A$18,0),) -> 186829.1107 | K74: =INDEX('FP - catchment'!$C$10:$C$18,MATCH($A74,'FP - catchment'!$A$10:$A$18,0),) -> 144634 | L74: 0 | M74: =INDEX(Tran!$H$10:$H$18,MATCH($A74,Tran!$A$10:$A$18,0),) -> 255218.8461 | N74: =INDEX(Stad!$F$10:$F$18,MATCH($A74,Stad!$A$10:$A$18,0),) -> 0 | O74: =INDEX(WRS!$J$10:$J$18,MATCH($A74,WRS!$A$10:$A$18,0),) -> 91329.72851 | P74: 1377390.695 | R74: 150.6308442 | S74: 40.23887802 | T74: 31.15097997 | U74: 0 | V74: 54.96852167 | W74: 0 | X74: 19.6704132 | Y74: =IF('Comparison - Category'!B74="Residential",SUM(R74:W74,Control!$B$75),IF('Comparison - Category'!B74="Rural",SUM(R74:W74,Control!$B$76),P74/$E74*$G74)) -> 296.659637
A75: =Control!A37 -> South Wairarapa District | B75: =Control!B37 -> District wide | C75: =Control!C37 -> South Wairarapa DistrictDistrict wide | E75: 4460485300 | F75: 6611 | G75: 674706.5951 | I75: =INDEX(Gen!$D$10:$D$18,MATCH($A75,Gen!$A$10:$A$18,0),) -> 1162553.254 | J75: =INDEX('FP - regional'!$D$10:$D$18,MATCH($A75,'FP - regional'!$A$10:$A$18,0),) -> 310559.4929 | K75: =INDEX('FP - catchment'!$C$10:$C$18,MATCH($A75,'FP - catchment'!$A$10:$A$18,0),) -> 201926 | L75: 0 | M75: =INDEX(Tran!$H$10:$H$18,MATCH($A75,Tran!$A$10:$A$18,0),) -> 499403.651 | N75: =INDEX(Stad!$F$10:$F$18,MATCH($A75,Stad!$A$10:$A$18,0),) -> 0 | O75: =INDEX(WRS!$J$10:$J$18,MATCH($A75,WRS!$A$10:$A$18,0),) -> 138939.3075 | P75: 2313381.705 | R75: 175.8513468 | S75: 46.97617499 | T75: 30.54394191 | U75: 0 | V75: 75.54131766 | W75: 0 | X75: 21.01638293 | Y75: =IF('Comparison - Category'!B75="Residential",SUM(R75:W75,Control!$B$75),IF('Comparison - Category'!B75="Rural",SUM(R75:W75,Control!$B$76),P75/$E75*$G75)) -> 349.9291643
A76: =Control!A38 -> Tararua District | B76: =Control!B38 -> District wide | C76: =Control!C38 -> Tararua DistrictDistrict wide | E76: 10760500 | F76: 10 | G76: 1076050 | I76: =INDEX(Gen!$D$10:$D$18,MATCH($A76,Gen!$A$10:$A$18,0),) -> 1813.520927 | J76: =INDEX('FP - regional'!$D$10:$D$18,MATCH($A76,'FP - regional'!$A$10:$A$18,0),) -> 484.4562068 | K76: =INDEX('FP - catchment'!$C$10:$C$18,MATCH($A76,'FP - catchment'!$A$10:$A$18,0),) -> 0 | L76: 0 | M76: =INDEX(Tran!$H$10:$H$18,MATCH($A76,Tran!$A$10:$A$18,0),) -> 0 | N76: =INDEX(Stad!$F$10:$F$18,MATCH($A76,Stad!$A$10:$A$18,0),) -> 0 | O76: =INDEX(WRS!$J$10:$J$18,MATCH($A76,WRS!$A$10:$A$18,0),) -> 252 | P76: 2549.977134 | R76: 181.3520927 | S76: 48.44562068 | T76: 0 | U76: 0 | V76: 0 | W76: 0 | X76: 25.2 | Y76: =IF('Comparison - Category'!B76="Residential",SUM(R76:W76,Control!$B$75),IF('Comparison - Category'!B76="Rural",SUM(R76:W76,Control!$B$76),P76/$E76*$G76)) -> 254.9977134
A77: Region wide | C77: =Control!C39 -> Region wide | E77: =SUM(E68:E76) -> 118903694661 | F77: =SUM(F68:F76) -> 200002 | G77: =E77/F77 -> 594512.5282 | I77: =INDEX(ess_base_estract,MATCH(I65,ESSbase!$B$8:$B$26,0),MATCH(year_current,ESSbase!$F$6:$G$6,0)) -> 36442150.97 | J77: =INDEX(ess_base_estract,MATCH(J65,ESSbase!$B$8:$B$26,0),MATCH(year_current,ESSbase!$F$6:$G$6,0)) -> 9735000 | K77: =INDEX(ess_base_estract,MATCH(K65,ESSbase!$B$8:$B$26,0),MATCH(year_current,ESSbase!$F$6:$G$6,0)) -> 8386090.465 | M77: =INDEX(ess_base_estract,MATCH(M65,ESSbase!$B$8:$B$26,0),MATCH(year_current,ESSbase!$F$6:$G$6,0)) -> 67273010.4 | N77: =INDEX(ess_base_estract,MATCH(N65,ESSbase!$B$8:$B$26,0),MATCH(year_current,ESSbase!$F$6:$G$6,0)) -> 0 | O77: =INDEX(ess_base_estract,MATCH(O65,ESSbase!$B$8:$B$26,0),MATCH(year_current,ESSbase!$F$6:$G$6,0)) -> 4907860.821 | P77: =INDEX(ess_base_estract,MATCH(P65,ESSbase!$B$8:$B$26,0),MATCH(year_current,ESSbase!$F$6:$G$6,0)) -> 126744112.7 | R77: 182.2089328 | S77: 48.67451325 | T77: 41.93003303 | U77: =L77/$E77*$G77 -> 0 | V77: 336.3616884 | W77: 0 | X77: 24.53905871 | Y77: =IF('Comparison - Category'!B77="Residential",SUM(R77:W77,Control!$B$75),IF('Comparison - Category'!B77="Rural",SUM(R77:W77,Control!$B$76),P77/$E77*$G77)) -> 633.7142262
A79: By TA & Category
A80: =Control!A43 -> Wellington City | B80: =Control!B43 -> Regional CBD | C80: =Control!C43 -> Wellington CityRegional CBD | E80: =INDEX(capital_values,MATCH($C80,capital_values_rows,0),MATCH(E$65&" "&year_current,capital_values_header,0)) -> 7819039000 | F80: =INDEX(assessments,MATCH($C80,assessments_rows,0),MATCH(F$65&" "&year_current,assessments_header,0)) -> 3382 | G80: =E80/F80 -> 2311957.126 | I80: =($E80/INDEX($E$68:$E$76,MATCH($A80,$A$68:$A$76,0),)) * INDEX(I$68:I$76,MATCH($A80,$A$68:$A$76,0),) -> 2693008.984 | J80: =($E80/INDEX($E$68:$E$76,MATCH($A80,$A$68:$A$76,0),)) * INDEX(J$68:J$76,MATCH($A80,$A$68:$A$76,0),) -> 719398.8764 | K80: =($E80/INDEX($E$68:$E$76,MATCH($A80,$A$68:$A$76,0),)) * INDEX(K$68:K$76,MATCH($A80,$A$68:$A$76,0),) -> 8192.909045 | L80: =($E80/INDEX($E$68:$E$76,MATCH($A80,$A$68:$A$76,0),)) * INDEX(L$68:L$76,MATCH($A80,$A$68:$A$76,0),) -> 0 | M80: =INDEX(Tran!$H$23:$H$48,MATCH($C80,Tran!$C$23:$C$48,0),) -> 25944905.12 | N80: =INDEX(Stad!$F$23:$F$48,MATCH($C80,Stad!$C$23:$C$48,0),) -> 0 | O80: =INDEX(WRS!$J$23:$J$48,MATCH($C80,WRS!$C$23:$C$48,0),) -> 890280.0349 | P80: =SUM(I80:O80) -> 30255785.92 | R80: =I80/$E80*$G80 -> 796.2770503 | S80: =J80/$E80*$G80 -> 212.714038 | T80: =K80/$E80*$G80 -> 2.422504153 | U80: =L80/$E80*$G80 -> 0 | V80: =M80/$E80*$G80 -> 7671.468101 | W80: =N80/$E80*$G80 -> 0 | X80: =IF('Comparison - Category'!B80="Residential",Control!$B$75,IF('Comparison - Category'!B80="Rural",Control!$B$76,O80/$E80*$G80)) -> 263.2406963 | Y80: =IF('Comparison - Category'!B80="Residential",SUM(R80:W80,Control!$B$75),IF('Comparison - Category'!B80="Rural",SUM(R80:W80,Control!$B$76),P80/$E80*$G80)) -> 8946.12239 | AA80: =I80/$E80*100 -> 0.03444168758 | AB80: =J80/$E80*100 -> 0.009200604785 | AC80: =K80/$E80*100 -> 0.0001047815345 | AD80: =L80/$E80*100 -> 0 | AE80: =M80/$E80*100 -> 0.3318170573 | AF80: =N80/$E80*100 -> 0 | AG80: =IF(OR('Comparison - Category'!B80="Residential",'Comparison - Category'!B80="Rural"),X80,O80/$E80*100) -> 0.01138605441 | AH80: =P80/$E80*100 -> 0.3869501856
A81: =Control!A44 -> Wellington City | B81: =Control!B44 -> Business | C81: =Control!C44 -> Wellington CityBusiness | E81: 3862866400 | F81: 1900 | G81: 2033087.579 | I81: =($E81/INDEX($E$68:$E$76,MATCH($A81,$A$68:$A$76,0),)) * INDEX(I$68:I$76,MATCH($A81,$A$68:$A$76,0),) -> 1330436.377 | J81: 355407.0708 | K81: 4047.570688 | L81: 0 | M81: =INDEX(Tran!$H$23:$H$48,MATCH($C81,Tran!$C$23:$C$48,0),) -> 1683481.626 | N81: =INDEX(Stad!$F$23:$F$48,MATCH($C81,Stad!$C$23:$C$48,0),) -> 0 | O81: =INDEX(WRS!$J$23:$J$48,MATCH($C81,WRS!$C$23:$C$48,0),) -> 439828.0701 | P81: 3813200.715 | R81: 700.2296722 | S81: 187.0563531 | T81: 2.130300362 | U81: 0 | V81: 886.0429609 | W81: 0 | X81: =IF('Comparison - Category'!B81="Residential",Control!$B$75,IF('Comparison - Category'!B81="Rural",Control!$B$76,O81/$E81*$G81)) -> 231.4884579 | Y81: =IF('Comparison - Category'!B81="Residential",SUM(R81:W81,Control!$B$75),IF('Comparison - Category'!B81="Rural",SUM(R81:W81,Control!$B$76),P81/$E81*$G81)) -> 2006.947744 | AA81: 0.03444168758 | AB81: 0.009200604785 | AC81: 0.0001047815345 | AD81: 0 | AE81: 0.04358115066 | AF81: 0 | AG81: =IF(OR('Comparison - Category'!B81="Residential",'Comparison - Category'!B81="Rural"),X81,O81/$E81*100) -> 0.01138605441 | AH81: 0.09871427897
A82: =Control!A45 -> Wellington City | B82: =Control!B45 -> Residential | C82: =Control!C45 -> Wellington CityResidential | E82: 39302266501 | F82: 71045 | G82: 553202.4281 | I82: 13536363.84 | J82: 3616046.212 | K82: 41181.51792 | L82: 0 | M82: =INDEX(Tran!$H$23:$H$48,MATCH($C82,Tran!$C$23:$C$48,0),) -> 14093633.3 | N82: =INDEX(Stad!$F$23:$F$48,MATCH($C82,Stad!$C$23:$C$48,0),) -> 0 | O82: =INDEX(WRS!$J$23:$J$48,MATCH($C82,WRS!$C$23:$C$48,0),) -> 994630 | P82: 32281854.87 | R82: 190.532252 | S82: 50.89796907 | T82: 0.5796539928 | U82: 0 | V82: 198.3761462 | W82: 0 | X82: =IF('Comparison - Category'!B82="Residential",Control!$B$75,IF('Comparison - Category'!B82="Rural",Control!$B$76,O82/$E82*$G82)) -> 14 | Y82: =IF('Comparison - Category'!B82="Residential",SUM(R82:W82,Control!$B$75),IF('Comparison - Category'!B82="Rural",SUM(R82:W82,Control!$B$76),P82/$E82*$G82)) -> 454.3860212 | AA82: 0.03444168758 | AB82: 0.009200604785 | AC82: 0.0001047815345 | AD82: 0 | AE82: 0.03585959426 | AF82: 0 | AG82: =IF(OR('Comparison - Category'!B82="Residential",'Comparison - Category'!B82="Rural"),X82,O82/$E82*100) -> 14 | AH82: 0.08213738735
A83: =Control!A46 -> Wellington City | B83: =Control!B46 -> Rural | C83: =Control!C46 -> Wellington CityRural | E83: 591709550 | F83: 779 | G83: 759575.8023 | I83: 203794.7546 | J83: 54440.85717 | K83: 620.0023461 | L83: 0 | M83: =INDEX(Tran!$H$23:$H$48,MATCH($C83,Tran!$C$23:$C$48,0),) -> 53872.70857 | N83: =INDEX(Stad!$F$23:$F$48,MATCH($C83,Stad!$C$23:$C$48,0),) -> 0 | O83: =INDEX(WRS!$J$23:$J$48,MATCH($C83,WRS!$C$23:$C$48,0),) -> 21812 | P83: 334540.3227 | R83: 261.6107248 | S83: 69.88556761 | T83: 0.7958951811 | U83: 0 | V83: 69.15623693 | W83: 0 | X83: =IF('Comparison - Category'!B83="Residential",Control!$B$75,IF('Comparison - Category'!B83="Rural",Control!$B$76,O83/$E83*$G83)) -> 28 | Y83: =IF('Comparison - Category'!B83="Residential",SUM(R83:W83,Control!$B$75),IF('Comparison - Category'!B83="Rural",SUM(R83:W83,Control!$B$76),P83/$E83*$G83)) -> 429.4484245 | AA83: 0.03444168758 | AB83: 0.009200604785 | AC83: 0.0001047815345 | AD83: 0 | AE83: 0.009104586629 | AF83: 0 | AG83: =IF(OR('Comparison - Category'!B83="Residential",'Comparison - Category'!B83="Rural"),X83,O83/$E83*100) -> 28 | AH83: 0.05653792856
A84: =Control!A47 -> Hutt City | B84: =Control!B47 -> Business | C84: =Control!C47 -> Hutt CityBusiness | E84: 3771653500 | F84: 2358 | G84: 1599513.783 | I84: 1099409.772 | J84: 293691.6139 | K84: 914654.5974 | L84: 0 | M84: =INDEX(Tran!$H$23:$H$48,MATCH($C84,Tran!$C$23:$C$48,0),) -> 2139766.727 | N84: =INDEX(Stad!$F$23:$F$48,MATCH($C84,Stad!$C$23:$C$48,0),) -> 0 | O84: =INDEX(WRS!$J$23:$J$48,MATCH($C84,WRS!$C$23:$C$48,0),) -> 363453.1397 | P84: 4810975.85 | R84: 466.2467228 | S84: 124.5511509 | T84: 387.8942313 | U84: 0 | V84: 907.4498418 | W84: 0 | X84: =IF('Comparison - Category'!B84="Residential",Control!$B$75,IF('Comparison - Category'!B84="Rural",Control!$B$76,O84/$E84*$G84)) -> 154.1361916 | Y84: =IF('Comparison - Category'!B84="Residential",SUM(R84:W84,Control!$B$75),IF('Comparison - Category'!B84="Rural",SUM(R84:W84,Control!$B$76),P84/$E84*$G84)) -> 2040.278138 | AA84: 0.02914927822 | AB84: 0.007786813235 | AC84: 0.02425075891 | AD84: 0 | AE84: 0.05673285542 | AF84: 0 | AG84: =IF(OR('Comparison - Category'!B84="Residential",'Comparison - Category'!B84="Rural"),X84,O84/$E84*100) -> 0.009636440349 | AH84: 0.1275561461
A85: =Control!A48 -> Hutt City | B85: =Control!B48 -> Residential | C85: =Control!C48 -> Hutt CityResidential | E85: 17222975000 | F85: 36300 | G85: 474462.1212 | I85: 5020372.901 | J85: 1341120.897 | K85: 4176702.145 | L85: 0 | M85: =INDEX(Tran!$H$23:$H$48,MATCH($C85,Tran!$C$23:$C$48,0),) -> 8645557.251 | N85: =INDEX(Stad!$F$23:$F$48,MATCH($C85,Stad!$C$23:$C$48,0),) -> 0 | O85: =INDEX(WRS!$J$23:$J$48,MATCH($C85,WRS!$C$23:$C$48,0),) -> 506450 | P85: 19690203.19 | R85: 138.3022838 | S85: 36.94547925 | T85: 115.0606652 | U85: 0 | V85: 238.1696212 | W85: 0 | X85: =IF('Comparison - Category'!B85="Residential",Control!$B$75,IF('Comparison - Category'!B85="Rural",Control!$B$76,O85/$E85*$G85)) -> 14 | Y85: =IF('Comparison - Category'!B85="Residential",SUM(R85:W85,Control!$B$75),IF('Comparison - Category'!B85="Rural",SUM(R85:W85,Control!$B$76),P85/$E85*$G85)) -> 542.4780494 | AA85: 0.02914927822 | AB85: 0.007786813235 | AC85: 0.02425075891 | AD85: 0 | AE85: 0.05019781571 | AF85: 0 | AG85: =IF(OR('Comparison - Category'!B85="Residential",'Comparison - Category'!B85="Rural"),X85,O85/$E85*100) -> 14 | AH85: 0.114325215
A86: =Control!A49 -> Hutt City | B86: =Control!B49 -> Rural | C86: =Control!C49 -> Hutt CityRural | E86: 313950000 | F86: 487 | G86: 644661.191 | I86: 91514.15899 | J86: 24446.70015 | K86: 76135.25761 | L86: 0 | M86: =INDEX(Tran!$H$23:$H$48,MATCH($C86,Tran!$C$23:$C$48,0),) -> 39963.63233 | N86: =INDEX(Stad!$F$23:$F$48,MATCH($C86,Stad!$C$23:$C$48,0),) -> 0 | O86: =INDEX(WRS!$J$23:$J$48,MATCH($C86,WRS!$C$23:$C$48,0),) -> 13636 | P86: 245695.7491 | R86: 187.9140842 | S86: 50.19856294 | T86: 156.3352312 | U86: 0 | V86: 82.06084667 | W86: 0 | X86: =IF('Comparison - Category'!B86="Residential",Control!$B$75,IF('Comparison - Category'!B86="Rural",Control!$B$76,O86/$E86*$G86)) -> 28 | Y86: =IF('Comparison - Category'!B86="Residential",SUM(R86:W86,Control!$B$75),IF('Comparison - Category'!B86="Rural",SUM(R86:W86,Control!$B$76),P86/$E86*$G86)) -> 504.508725 | AA86: 0.02914927822 | AB86: 0.007786813235 | AC86: 0.02425075891 | AD86: 0 | AE86: 0.0127292984 | AF86: 0 | AG86: =IF(OR('Comparison - Category'!B86="Residential",'Comparison - Category'!B86="Rural"),X86,O86/$E86*100) -> 28 | AH86: 0.07825951555
A87: =Control!A50 -> Upper Hutt City | B87: =Control!B50 -> Business | C87: =Control!C50 -> Upper Hutt CityBusiness | E87: 1176281500 | F87: 712 | G87: 1652080.758 | I87: 341887.2341 | J87: 91330.29021 | K87: 127564.9311 | L87: 0 | M87: =INDEX(Tran!$H$23:$H$48,MATCH($C87,Tran!$C$23:$C$48,0),) -> 719510.122 | N87: =INDEX(Stad!$F$23:$F$48,MATCH($C87,Stad!$C$23:$C$48,0),) -> 0 | O87: =INDEX(WRS!$J$23:$J$48,MATCH($C87,WRS!$C$23:$C$48,0),) -> 113024.2716 | P87: 1393316.849 | R87: 480.1786996 | S87: 128.2728795 | T87: 179.164229 | U87: 0 | V87: 1010.547924 | W87: 0 | X87: =IF('Comparison - Category'!B87="Residential",Control!$B$75,IF('Comparison - Category'!B87="Rural",Control!$B$76,O87/$E87*$G87)) -> 158.7419544 | Y87: =IF('Comparison - Category'!B87="Residential",SUM(R87:W87,Control!$B$75),IF('Comparison - Category'!B87="Rural",SUM(R87:W87,Control!$B$76),P87/$E87*$G87)) -> 1956.905687 | AA87: 0.02906508639 | AB87: 0.007764322589 | AC87: 0.01084476216 | AD87: 0 | AE87: 0.06116819163 | AF87: 0 | AG87: =IF(OR('Comparison - Category'!B87="Residential",'Comparison - Category'!B87="Rural"),X87,O87/$E87*100) -> 0.009608607426 | AH87: 0.1184509702
A88: =Control!A51 -> Upper Hutt City | B88: =Control!B51 -> Residential | C88: =Control!C51 -> Upper Hutt CityResidential | E88: 6108760420 | F88: 14778 | G88: 413368.5492 | I88: 1775516.493 | J88: 474303.8652 | K88: 662480.5387 | L88: 0 | M88: =INDEX(Tran!$H$23:$H$48,MATCH($C88,Tran!$C$23:$C$48,0),) -> 3338561.399 | N88: =INDEX(Stad!$F$23:$F$48,MATCH($C88,Stad!$C$23:$C$48,0),) -> 0 | O88: =INDEX(WRS!$J$23:$J$48,MATCH($C88,WRS!$C$23:$C$48,0),) -> 206374 | P88: 6457236.296 | R88: 120.1459259 | S88: 32.09526764 | T88: 44.82883602 | U88: 0 | V88: 225.9142914 | W88: 0 | X88: =IF('Comparison - Category'!B88="Residential",Control!$B$75,IF('Comparison - Category'!B88="Rural",Control!$B$76,O88/$E88*$G88)) -> 14 | Y88: =IF('Comparison - Category'!B88="Residential",SUM(R88:W88,Control!$B$75),IF('Comparison - Category'!B88="Rural",SUM(R88:W88,Control!$B$76),P88/$E88*$G88)) -> 436.984321 | AA88: 0.02906508639 | AB88: 0.007764322589 | AC88: 0.01084476216 | AD88: 0 | AE88: 0.05465202708 | AF88: 0 | AG88: =IF(OR('Comparison - Category'!B88="Residential",'Comparison - Category'!B88="Rural"),X88,O88/$E88*100) -> 14 | AH88: 0.1057045268
A89: =Control!A52 -> Upper Hutt City | B89: =Control!B52 -> Rural | C89: =Control!C52 -> Upper Hutt CityRural | E89: 842402340 | F89: 1246 | G89: 676085.3451 | I89: 244844.9679 | J89: 65406.83518 | K89: 91356.53024 | L89: 0 | M89: =INDEX(Tran!$H$23:$H$48,MATCH($C89,Tran!$C$23:$C$48,0),) -> 116802.2347 | N89: =INDEX(Stad!$F$23:$F$48,MATCH($C89,Stad!$C$23:$C$48,0),) -> 0 | O89: =INDEX(WRS!$J$23:$J$48,MATCH($C89,WRS!$C$23:$C$48,0),) -> 32816 | P89: 551226.5679 | R89: 196.5047896 | S89: 52.49344717 | T89: 73.3198477 | U89: 0 | V89: 93.74176137 | W89: 0 | X89: =IF('Comparison - Category'!B89="Residential",Control!$B$75,IF('Comparison - Category'!B89="Rural",Control!$B$76,O89/$E89*$G89)) -> 28 | Y89: =IF('Comparison - Category'!B89="Residential",SUM(R89:W89,Control!$B$75),IF('Comparison - Category'!B89="Rural",SUM(R89:W89,Control!$B$76),P89/$E89*$G89)) -> 444.0598459 | AA89: 0.02906508639 | AB89: 0.007764322589 | AC89: 0.01084476216 | AD89: 0 | AE89: 0.01386537396 | AF89: 0 | AG89: =IF(OR('Comparison - Category'!B89="Residential",'Comparison - Category'!B89="Rural"),X89,O89/$E89*100) -> 28 | AH89: 0.06543507084
A90: =Control!A53 -> Porirua City | B90: =Control!B53 -> Business | C90: =Control!C53 -> Porirua CityBusiness | E90: 1097240500 | F90: 795 | G90: 1380176.73 | I90: 316823.7879 | J90: 84634.94862 | K90: 4856.446505 | L90: 0 | M90: =INDEX(Tran!$H$23:$H$48,MATCH($C90,Tran!$C$23:$C$48,0),) -> 681259.6396 | N90: =INDEX(Stad!$F$23:$F$48,MATCH($C90,Stad!$C$23:$C$48,0),) -> 0 | O90: =INDEX(WRS!$J$23:$J$48,MATCH($C90,WRS!$C$23:$C$48,0),) -> 104738.5637 | P90: 1192313.386 | R90: 398.5204879 | S90: 106.4590549 | T90: 6.108737742 | U90: 0 | V90: 856.9303643 | W90: 0 | X90: =IF('Comparison - Category'!B90="Residential",Control!$B$75,IF('Comparison - Category'!B90="Rural",Control!$B$76,O90/$E90*$G90)) -> 131.746621 | Y90: =IF('Comparison - Category'!B90="Residential",SUM(R90:W90,Control!$B$75),IF('Comparison - Category'!B90="Rural",SUM(R90:W90,Control!$B$76),P90/$E90*$G90)) -> 1499.765266 | AA90: 0.0288745984 | AB90: 0.007713436445 | AC90: 0.000442605473 | AD90: 0 | AE90: 0.06208845186 | AF90: 0 | AG90: =IF(OR('Comparison - Category'!B90="Residential",'Comparison - Category'!B90="Rural"),X90,O90/$E90*100) -> 0.00954563413 | AH90: 0.1086647263
A91: =Control!A54 -> Porirua City | B91: =Control!B54 -> Residential | C91: =Control!C54 -> Porirua CityResidential | E91: 8483788000 | F91: 17224 | G91: 492556.2007 | I91: 2449659.714 | J91: 654391.5955 | K91: 37549.71 | L91: 0 | M91: =INDEX(Tran!$H$23:$H$48,MATCH($C91,Tran!$C$23:$C$48,0),) -> 4718258.121 | N91: =INDEX(Stad!$F$23:$F$48,MATCH($C91,Stad!$C$23:$C$48,0),) -> 0 | O91: =INDEX(WRS!$J$23:$J$48,MATCH($C91,WRS!$C$23:$C$48,0),) -> 241136 | P91: 8100995.141 | R91: =I91/$E91*$G91 -> 142.2236248 | S91: 37.99300949 | T91: 2.180080702 | U91: 0 | V91: 273.9350976 | W91: 0 | X91: =IF('Comparison - Category'!B91="Residential",Control!$B$75,IF('Comparison - Category'!B91="Rural",Control!$B$76,O91/$E91*$G91)) -> 14 | Y91: =IF('Comparison - Category'!B91="Residential",SUM(R91:W91,Control!$B$75),IF('Comparison - Category'!B91="Rural",SUM(R91:W91,Control!$B$76),P91/$E91*$G91)) -> 470.3318126 | AA91: 0.0288745984 | AB91: 0.007713436445 | AC91: 0.000442605473 | AD91: 0 | AE91: 0.05561499322 | AF91: 0 | AG91: =IF(OR('Comparison - Category'!B91="Residential",'Comparison - Category'!B91="Rural"),X91,O91/$E91*100) -> 14 | AH91: 0.09548794879
A92: =Control!A55 -> Porirua City | B92: =Control!B55 -> Rural | C92: =Control!C55 -> Porirua CityRural | E92: 613377750 | F92: 610 | G92: 1005537.295 | I92: 177110.362 | J92: 47312.50291 | K92: 2714.843492 | L92: 0 | M92: =INDEX(Tran!$H$23:$H$48,MATCH($C92,Tran!$C$23:$C$48,0),) -> 86537.17023 | N92: =INDEX(Stad!$F$23:$F$48,MATCH($C92,Stad!$C$23:$C$48,0),) -> 0 | O92: =INDEX(WRS!$J$23:$J$48,MATCH($C92,WRS!$C$23:$C$48,0),) -> 17080 | P92: 330754.8786 | R92: =I92/$E92*$G92 -> 290.3448557 | S92: 77.56148019 | T92: 4.450563101 | U92: 0 | V92: 141.8642135 | W92: 0 | X92: =IF('Comparison - Category'!B92="Residential",Control!$B$75,IF('Comparison - Category'!B92="Rural",Control!$B$76,O92/$E92*$G92)) -> 28 | Y92: =IF('Comparison - Category'!B92="Residential",SUM(R92:W92,Control!$B$75),IF('Comparison - Category'!B92="Rural",SUM(R92:W92,Control!$B$76),P92/$E92*$G92)) -> 542.2211125 | AA92: 0.0288745984 | AB92: 0.007713436445 | AC92: 0.000442605473 | AD92: 0 | AE92: 0.01410829953 | AF92: 0 | AG92: =IF(OR('Comparison - Category'!B92="Residential",'Comparison - Category'!B92="Rural"),X92,O92/$E92*100) -> 28 | AH92: 0.0539235208
A93: =Control!A56 -> Kapiti Coast District | B93: =Control!B56 -> Business | C93: =Control!C56 -> Kapiti Coast DistrictBusiness | E93: 1513816000 | F93: 1395 | G93: 1085172.76 | I93: 391711.2824 | J93: 104640.0729 | K93: 167845.8532 | L93: 0 | M93: =INDEX(Tran!$H$23:$H$48,MATCH($C93,Tran!$C$23:$C$48,0),) -> 510744.743 | N93: =INDEX(Stad!$F$23:$F$48,MATCH($C93,Stad!$C$23:$C$48,0),) -> 0 | O93: =INDEX(WRS!$J$23:$J$48,MATCH($C93,WRS!$C$23:$C$48,0),) -> 129495.5703 | P93: 1304437.522 | R93: 280.7966182 | S93: 75.01080493 | T93: 120.319608 | U93: 0 | V93: 366.1252638 | W93: 0 | X93: =IF('Comparison - Category'!B93="Residential",Control!$B$75,IF('Comparison - Category'!B93="Rural",Control!$B$76,O93/$E93*$G93)) -> 92.82836578 | Y93: =IF('Comparison - Category'!B93="Residential",SUM(R93:W93,Control!$B$75),IF('Comparison - Category'!B93="Rural",SUM(R93:W93,Control!$B$76),P93/$E93*$G93)) -> 935.0806607 | AA93: 0.02587575256 | AB93: 0.006912337621 | AC93: 0.01108759936 | AD93: 0 | AE93: 0.03373889185 | AF93: 0 | AG93: =IF(OR('Comparison - Category'!B93="Residential",'Comparison - Category'!B93="Rural"),X93,O93/$E93*100) -> 0.008554247693 | AH93: 0.08616882908
A94: =Control!A57 -> Kapiti Coast District | B94: =Control!B57 -> Residential | C94: =Control!C57 -> Kapiti Coast DistrictResidential | E94: 11056324900 | F94: 20672 | G94: 534845.4383 | I94: 2860907.273 | J94: 764250.5056 | K94: 1225881.009 | L94: 0 | M94: =INDEX(Tran!$H$23:$H$48,MATCH($C94,Tran!$C$23:$C$48,0),) -> 3088888.514 | N94: =INDEX(Stad!$F$23:$F$48,MATCH($C94,Stad!$C$23:$C$48,0),) -> 0 | O94: =INDEX(WRS!$J$23:$J$48,MATCH($C94,WRS!$C$23:$C$48,0),) -> 286622 | P94: 8226549.302 | R94: 138.3952822 | S94: 36.97032244 | T94: 59.30151941 | U94: 0 | V94: 149.4237865 | W94: 0 | X94: =IF('Comparison - Category'!B94="Residential",Control!$B$75,IF('Comparison - Category'!B94="Rural",Control!$B$76,O94/$E94*$G94)) -> 14 | Y94: =IF('Comparison - Category'!B94="Residential",SUM(R94:W94,Control!$B$75),IF('Comparison - Category'!B94="Rural",SUM(R94:W94,Control!$B$76),P94/$E94*$G94)) -> 398.0909105 | AA94: 0.02587575256 | AB94: 0.006912337621 | AC94: 0.01108759936 | AD94: 0 | AE94: 0.02793775094 | AF94: 0 | AG94: =IF(OR('Comparison - Category'!B94="Residential",'Comparison - Category'!B94="Rural"),X94,O94/$E94*100) -> 14 | AH94: 0.07440582089
A95: =Control!A58 -> Kapiti Coast District | B95: =Control!B58 -> Rural | C95: =Control!C58 -> Kapiti Coast DistrictRural | E95: 2039387700 | F95: 2773 | G95: 735444.5366 | I95: 527706.915 | J95: 140969.3632 | K95: 226119.1376 | L95: 0 | M95: =INDEX(Tran!$H$23:$H$48,MATCH($C95,Tran!$C$23:$C$48,0),) -> 145340.6383 | N95: =INDEX(Stad!$F$23:$F$48,MATCH($C95,Stad!$C$23:$C$48,0),) -> 0 | O95: =INDEX(WRS!$J$23:$J$48,MATCH($C95,WRS!$C$23:$C$48,0),) -> 73304 | P95: 1113440.054 | R95: 190.3018085 | S95: 50.83640939 | T95: 81.54314376 | U95: 0 | V95: 52.41277976 | W95: 0 | X95: =IF('Comparison - Category'!B95="Residential",Control!$B$75,IF('Comparison - Category'!B95="Rural",Control!$B$76,O95/$E95*$G95)) -> 28 | Y95: =IF('Comparison - Category'!B95="Residential",SUM(R95:W95,Control!$B$75),IF('Comparison - Category'!B95="Rural",SUM(R95:W95,Control!$B$76),P95/$E95*$G95)) -> 403.0941414 | AA95: 0.02587575256 | AB95: 0.006912337621 | AC95: 0.01108759936 | AD95: 0 | AE95: 0.007126680144 | AF95: 0 | AG95: =IF(OR('Comparison - Category'!B95="Residential",'Comparison - Category'!B95="Rural"),X95,O95/$E95*100) -> 28 | AH95: 0.05459678187
A96: =Control!A59 -> Masterton District | B96: =Control!B59 -> Business | C96: =Control!C59 -> Masterton DistrictBusiness | E96: 435894100 | F96: 550 | G96: 792534.7273 | I96: 111921.745 | J96: 29898.29522 | K96: 20035.74716 | L96: 0 | M96: =INDEX(Tran!$H$23:$H$48,MATCH($C96,Tran!$C$23:$C$48,0),) -> 75174.30369 | N96: =INDEX(Stad!$F$23:$F$48,MATCH($C96,Stad!$C$23:$C$48,0),) -> 0 | O96: =INDEX(WRS!$J$23:$J$48,MATCH($C96,WRS!$C$23:$C$48,0),) -> 37000.13467 | P96: 274030.2258 | R96: 203.4940819 | S96: 54.36053676 | T96: 36.4286312 | U96: 0 | V96: 136.6805522 | W96: 0 | X96: =IF('Comparison - Category'!B96="Residential",Control!$B$75,IF('Comparison - Category'!B96="Rural",Control!$B$76,O96/$E96*$G96)) -> 67.27297213 | Y96: =IF('Comparison - Category'!B96="Residential",SUM(R96:W96,Control!$B$75),IF('Comparison - Category'!B96="Rural",SUM(R96:W96,Control!$B$76),P96/$E96*$G96)) -> 498.2367742 | AA96: 0.02567636154 | AB96: 0.006859073159 | AC96: 0.00459647129 | AD96: 0 | AE96: 0.01724600165 | AF96: 0 | AG96: =IF(OR('Comparison - Category'!B96="Residential",'Comparison - Category'!B96="Rural"),X96,O96/$E96*100) -> 0.00848833115 | AH96: 0.06286623879
A97: =Control!A60 -> Masterton District | B97: =Control!B60 -> Residential | C97: =Control!C60 -> Masterton DistrictResidential | E97: 2705770800 | F97: 7878 | G97: 343459.1013 | I97: 694743.4931 | J97: 185590.7987 | K97: 124369.978 | L97: 0 | M97: =INDEX(Tran!$H$23:$H$48,MATCH($C97,Tran!$C$23:$C$48,0),) -> 310881.2312 | N97: =INDEX(Stad!$F$23:$F$48,MATCH($C97,Stad!$C$23:$C$48,0),) -> 0 | O97: =INDEX(WRS!$J$23:$J$48,MATCH($C97,WRS!$C$23:$C$48,0),) -> 110096 | P97: 1425681.501 | R97: 88.18780059 | S97: 23.55811103 | T97: 15.78699898 | U97: 0 | V97: 39.46194862 | W97: 0 | X97: =IF('Comparison - Category'!B97="Residential",Control!$B$75,IF('Comparison - Category'!B97="Rural",Control!$B$76,O97/$E97*$G97)) -> 14 | Y97: =IF('Comparison - Category'!B97="Residential",SUM(R97:W97,Control!$B$75),IF('Comparison - Category'!B97="Rural",SUM(R97:W97,Control!$B$76),P97/$E97*$G97)) -> 180.9948592 | AA97: 0.02567636154 | AB97: 0.006859073159 | AC97: 0.00459647129 | AD97: 0 | AE97: 0.01148956265 | AF97: 0 | AG97: =IF(OR('Comparison - Category'!B97="Residential",'Comparison - Category'!B97="Rural"),X97,O97/$E97*100) -> 14 | AH97: 0.0526904016
A98: =Control!A61 -> Masterton District | B98: =Control!B61 -> Rural | C98: =Control!C61 -> Masterton DistrictRural | E98: 2767803100 | F98: 3854 | G98: 718163.7519 | I98: 710671.1307 | J98: 189845.6395 | K98: 127221.2748 | L98: 0 | M98: =INDEX(Tran!$H$23:$H$48,MATCH($C98,Tran!$C$23:$C$48,0),) -> 125249.4228 | N98: =INDEX(Stad!$F$23:$F$48,MATCH($C98,Stad!$C$23:$C$48,0),) -> 0 | O98: =INDEX(WRS!$J$23:$J$48,MATCH($C98,WRS!$C$23:$C$48,0),) -> 95564 | P98: 1248551.468 | R98: 184.3983214 | S98: 49.25937715 | T98: 33.01019067 | U98: 0 | V98: 32.49855287 | W98: 0 | X98: =IF('Comparison - Category'!B98="Residential",Control!$B$75,IF('Comparison - Category'!B98="Rural",Control!$B$76,O98/$E98*$G98)) -> 28 | Y98: =IF('Comparison - Category'!B98="Residential",SUM(R98:W98,Control!$B$75),IF('Comparison - Category'!B98="Rural",SUM(R98:W98,Control!$B$76),P98/$E98*$G98)) -> 327.1664421 | AA98: 0.02567636154 | AB98: 0.006859073159 | AC98: 0.00459647129 | AD98: 0 | AE98: 0.004525228791 | AF98: 0 | AG98: =IF(OR('Comparison - Category'!B98="Residential",'Comparison - Category'!B98="Rural"),X98,O98/$E98*100) -> 28 | AH98: 0.04510983703
A99: =Control!A62 -> Carterton District | B99: =Control!B62 -> Business | C99: =Control!C62 -> Carterton DistrictBusiness | E99: 92706500 | F99: 225 | G99: 412028.8889 | I99: 23950.34502 | J99: 6397.992506 | K99: 4953.014253 | L99: 0 | M99: =INDEX(Tran!$H$23:$H$48,MATCH($C99,Tran!$C$23:$C$48,0),) -> 20333.19109 | N99: =INDEX(Stad!$F$23:$F$48,MATCH($C99,Stad!$C$23:$C$48,0),) -> 0 | O99: =INDEX(WRS!$J$23:$J$48,MATCH($C99,WRS!$C$23:$C$48,0),) -> 7917.728507 | P99: 63552.27138 | R99: 106.4459779 | S99: 28.43552225 | T99: 22.01339668 | U99: 0 | V99: 90.36973817 | W99: 0 | X99: =IF('Comparison - Category'!B99="Residential",Control!$B$75,IF('Comparison - Category'!B99="Rural",Control!$B$76,O99/$E99*$G99)) -> 35.18990447 | Y99: =IF('Comparison - Category'!B99="Residential",SUM(R99:W99,Control!$B$75),IF('Comparison - Category'!B99="Rural",SUM(R99:W99,Control!$B$76),P99/$E99*$G99)) -> 282.4545395 | AA99: 0.02583459091 | AB99: 0.006901341875 | AC99: 0.005342682825 | AD99: 0 | AE99: 0.02193286457 | AF99: 0 | AG99: =IF(OR('Comparison - Category'!B99="Residential",'Comparison - Category'!B99="Rural"),X99,O99/$E99*100) -> 0.008540640092 | AH99: 0.06855212027
A100: =Control!A63 -> Carterton District | B100: =Control!B63 -> Residential | C100: =Control!C63 -> Carterton DistrictResidential | E100: 827583500 | F100: 2356 | G100: 351266.3413 | I100: 213802.8117 | J100: 57114.36664 | K100: 44215.16152 | L100: 0 | M100: =INDEX(Tran!$H$23:$H$48,MATCH($C100,Tran!$C$23:$C$48,0),) -> 133579.8536 | N100: =INDEX(Stad!$F$23:$F$48,MATCH($C100,Stad!$C$23:$C$48,0),) -> 0 | O100: =INDEX(WRS!$J$23:$J$48,MATCH($C100,WRS!$C$23:$C$48,0),) -> 31836 | P100: 480548.1935 | R100: 90.74822228 | S100: 24.2420911 | T100: 18.76704648 | U100: 0 | V100: 56.69773075 | W100: 0 | X100: =IF('Comparison - Category'!B100="Residential",Control!$B$75,IF('Comparison - Category'!B100="Rural",Control!$B$76,O100/$E100*$G100)) -> 14 | Y100: =IF('Comparison - Category'!B100="Residential",SUM(R100:W100,Control!$B$75),IF('Comparison - Category'!B100="Rural",SUM(R100:W100,Control!$B$76),P100/$E100*$G100)) -> 204.4550906 | AA100: 0.02583459091 | AB100: 0.006901341875 | AC100: 0.005342682825 | AD100: 0 | AE100: 0.01614095178 | AF100: 0 | AG100: =IF(OR('Comparison - Category'!B100="Residential",'Comparison - Category'!B100="Rural"),X100,O100/$E100*100) -> 14 | AH100: 0.05806642997
A101: =Control!A64 -> Carterton District | B101: =Control!B64 -> Rural | C101: =Control!C64 -> Carterton DistrictRural | E101: 1786851800 | F101: 2062 | G101: 866562.4636 | I101: 461625.8527 | J101: 123316.7515 | K101: 95465.82423 | L101: 0 | M101: =INDEX(Tran!$H$23:$H$48,MATCH($C101,Tran!$C$23:$C$48,0),) -> 101305.8014 | N101: =INDEX(Stad!$F$23:$F$48,MATCH($C101,Stad!$C$23:$C$48,0),) -> 0 | O101: =INDEX(WRS!$J$23:$J$48,MATCH($C101,WRS!$C$23:$C$48,0),) -> 51576 | P101: 833290.2299 | R101: 223.8728675 | S101: 59.80443818 | T101: 46.29768391 | U101: 0 | V101: 49.12987458 | W101: 0 | X101: =IF('Comparison - Category'!B101="Residential",Control!$B$75,IF('Comparison - Category'!B101="Rural",Control!$B$76,O101/$E101*$G101)) -> 28 | Y101: =IF('Comparison - Category'!B101="Residential",SUM(R101:W101,Control!$B$75),IF('Comparison - Category'!B101="Rural",SUM(R101:W101,Control!$B$76),P101/$E101*$G101)) -> 407.1048642 | AA101: 0.02583459091 | AB101: 0.006901341875 | AC101: 0.005342682825 | AD101: 0 | AE101: 0.005669513353 | AF101: 0 | AG101: =IF(OR('Comparison - Category'!B101="Residential",'Comparison - Category'!B101="Rural"),X101,O101/$E101*100) -> 28 | AH101: 0.04663454629
A102: =Control!A65 -> South Wairarapa District | B102: =Control!B65 -> Business | C102: =Control!C65 -> South Wairarapa DistrictBusiness | E102: 205904600 | F102: 308 | G102: 668521.4286 | I102: 53665.69927 | J102: 14336.02486 | K102: 9321.293416 | L102: 0 | M102: =INDEX(Tran!$H$23:$H$48,MATCH($C102,Tran!$C$23:$C$48,0),) -> 52469.04933 | N102: =INDEX(Stad!$F$23:$F$48,MATCH($C102,Stad!$C$23:$C$48,0),) -> 0 | O102: =INDEX(WRS!$J$23:$J$48,MATCH($C102,WRS!$C$23:$C$48,0),) -> 17741.30755 | P102: 147533.3744 | R102: 174.2392833 | S102: 46.54553527 | T102: 30.26393966 | U102: 0 | V102: 170.3540563 | W102: 0 | X102: =IF('Comparison - Category'!B102="Residential",Control!$B$75,IF('Comparison - Category'!B102="Rural",Control!$B$76,O102/$E102*$G102)) -> 57.60164788 | Y102: =IF('Comparison - Category'!B102="Residential",SUM(R102:W102,Control!$B$75),IF('Comparison - Category'!B102="Rural",SUM(R102:W102,Control!$B$76),P102/$E102*$G102)) -> 479.0044624 | AA102: 0.02606338045 | AB102: 0.006962459732 | AC102: 0.004526996199 | AD102: 0 | AE102: 0.02548221328 | AF102: 0 | AG102: =IF(OR('Comparison - Category'!B102="Residential",'Comparison - Category'!B102="Rural"),X102,O102/$E102*100) -> 0.008616275473 | AH102: 0.07165132514
A103: =Control!A66 -> South Wairarapa District | B103: =Control!B66 -> Residential | C103: =Control!C66 -> South Wairarapa DistrictResidential | E103: 1295001100 | F103: 3196 | G103: 405194.3367 | I103: 337521.0636 | J103: 90163.93012 | K103: 58624.65058 | L103: 0 | M103: =INDEX(Tran!$H$23:$H$48,MATCH($C103,Tran!$C$23:$C$48,0),) -> 254325.3654 | N103: =INDEX(Stad!$F$23:$F$48,MATCH($C103,Stad!$C$23:$C$48,0),) -> 0 | O103: =INDEX(WRS!$J$23:$J$48,MATCH($C103,WRS!$C$23:$C$48,0),) -> 43722 | P103: 784357.0097 | R103: 105.6073415 | S103: 28.21149253 | T103: 18.34313222 | U103: 0 | V103: 79.57614687 | W103: 0 | X103: =IF('Comparison - Category'!B103="Residential",Control!$B$75,IF('Comparison - Category'!B103="Rural",Control!$B$76,O103/$E103*$G103)) -> 14 | Y103: =IF('Comparison - Category'!B103="Residential",SUM(R103:W103,Control!$B$75),IF('Comparison - Category'!B103="Rural",SUM(R103:W103,Control!$B$76),P103/$E103*$G103)) -> 245.7381132 | AA103: 0.02606338045 | AB103: 0.006962459732 | AC103: 0.004526996199 | AD103: 0 | AE103: 0.01963900767 | AF103: 0 | AG103: =IF(OR('Comparison - Category'!B103="Residential",'Comparison - Category'!B103="Rural"),X103,O103/$E103*100) -> 14 | AH103: 0.06056805741
A104: =Control!A67 -> South Wairarapa District | B104: =Control!B67 -> Rural | C104: =Control!C67 -> South Wairarapa DistrictRural | E104: 2959579600 | F104: 3107 | G104: 952552.1725 | I104: 771366.4909 | J104: 206059.5379 | K104: 133980.056 | L104: 0 | M104: =INDEX(Tran!$H$23:$H$48,MATCH($C104,Tran!$C$23:$C$48,0),) -> 192609.2363 | N104: =INDEX(Stad!$F$23:$F$48,MATCH($C104,Stad!$C$23:$C$48,0),) -> 0 | O104: =INDEX(WRS!$J$23:$J$48,MATCH($C104,WRS!$C$23:$C$48,0),) -> 77476 | P104: 1381491.321 | R104: 248.2672967 | S104: 66.32106144 | T104: 43.12200065 | U104: 0 | V104: 61.99202971 | W104: 0 | X104: =IF('Comparison - Category'!B104="Residential",Control!$B$75,IF('Comparison - Category'!B104="Rural",Control!$B$76,O104/$E104*$G104)) -> 28 | Y104: =IF('Comparison - Category'!B104="Residential",SUM(R104:W104,Control!$B$75),IF('Comparison - Category'!B104="Rural",SUM(R104:W104,Control!$B$76),P104/$E104*$G104)) -> 447.7023885 | AA104: 0.02606338045 | AB104: 0.006962459732 | AC104: 0.004526996199 | AD104: 0 | AE104: 0.006507993105 | AF104: 0 | AG104: =IF(OR('Comparison - Category'!B104="Residential",'Comparison - Category'!B104="Rural"),X104,O104/$E104*100) -> 28 | AH104: 0.04667863372
A105: =Control!A68 -> Tararua District | B105: =Control!B68 -> Rural | C105: =Control!C68 -> Tararua DistrictRural | E105: 10760500 | F105: 10 | G105: 1076050 | I105: 1813.520927 | J105: 484.4562068 | K105: 0 | L105: 0 | M105: =INDEX(Tran!$H$23:$H$48,MATCH($C105,Tran!$C$23:$C$48,0),) -> 0 | N105: =INDEX(Stad!$F$23:$F$48,MATCH($C105,Stad!$C$23:$C$48,0),) -> 0 | O105: =INDEX(WRS!$J$23:$J$48,MATCH($C105,WRS!$C$23:$C$48,0),) -> 252 | P105: 2549.977134 | R105: 181.3520927 | S105: 48.44562068 | T105: 0 | U105: 0 | V105: 0 | W105: 0 | X105: =IF('Comparison - Category'!B105="Residential",Control!$B$75,IF('Comparison - Category'!B105="Rural",Control!$B$76,O105/$E105*$G105)) -> 28 | Y105: =IF('Comparison - Category'!B105="Residential",SUM(R105:W105,Control!$B$75),IF('Comparison - Category'!B105="Rural",SUM(R105:W105,Control!$B$76),P105/$E105*$G105)) -> 257.7977134 | AA105: 0.01685350056 | AB105: 0.004502171895 | AC105: 0 | AD105: 0 | AE105: 0 | AF105: 0 | AG105: =IF(OR('Comparison - Category'!B105="Residential",'Comparison - Category'!B105="Rural"),X105,O105/$E105*100) -> 28 | AH105: 0.02369757106
A106: Region wide | C106: =Control!C69 -> Region wide | E106: =SUM(E80:E105) -> 118903694661 | F106: =SUM(F80:F105) -> 200002 | G106: 594512.5282 | I106: =SUM(I80:I105) -> 36442150.97 | J106: 9735000 | K106: 8386090 | L106: 0 | M106: 67273010.4 | N106: 0 | O106: 4907860.821 | P106: 126744112.2 | R106: 182.2089328 | S106: 48.67451325 | T106: 41.9300307 | U106: 0 | V106: 336.3616884 | W106: 0 | X106: =O106/$E106*$G106 -> 24.53905871 | Y106: =IF('Comparison - Category'!B106="Residential",SUM(R106:W106,Control!$B$75),IF('Comparison - Category'!B106="Rural",SUM(R106:W106,Control!$B$76),P106/$E106*$G106)) -> 633.7142238 | AA106: 0.03064845973 | AB106: 0.008187298156 | AC106: 0.007052842238 | AD106: 0 | AE106: 0.05657772922 | AF106: 0 | AG106: =IF(OR(B106="Residential",B106="Rural"),X106,O106/$E106*100) -> 0.004127593205 | AH106: 0.1065939225
A108: By category
A109: Region Wide | B109: =B80 -> Regional CBD | C109: =A109&B109 -> Region WideRegional CBD | E109: =SUMIF($B$80:$B$105,$B109,E$80:E$105) -> 7819039000 | F109: =SUMIF($B$80:$B$105,$B109,F$80:F$105) -> 3382 | G109: =E109/F109 -> 2311957.126 | I109: =SUMIF($B$80:$B$105,$B109,I$80:I$105) -> 2693008.984 | J109: 719398.8764 | K109: 8192.909045 | L109: 0 | M109: 25944905.12 | N109: 0 | O109: 890280.0349 | P109: 30255785.92 | R109: =I109/$E109*$G109 -> 796.2770503 | S109: =J109/$E109*$G109 -> 212.714038 | T109: =K109/$E109*$G109 -> 2.422504153 | U109: =L109/$E109*$G109 -> 0 | V109: =M109/$E109*$G109 -> 7671.468101 | W109: =N109/$E109*$G109 -> 0 | X109: =O109/$E109*$G109 -> 263.2406963 | Y109: =IF('Comparison - Category'!B109="Residential",SUM(R109:W109,Control!$B$75),IF('Comparison - Category'!B109="Rural",SUM(R109:W109,Control!$B$76),P109/$E109*$G109)) -> 8946.12239
A110: Region Wide | B110: =B81 -> Business | C110: Region WideBusiness | E110: =SUMIF($B$80:$B$105,$B110,E$80:E$105) -> 12156363100 | F110: 8243 | G110: 1474749.86 | I110: 3669806.243 | J110: 980336.3091 | K110: 1253279.454 | L110: 0 | M110: 5882739.401 | N110: 0 | O110: 1213198.786 | P110: 12999360.19 | R110: 445.202747 | S110: 118.9295534 | T110: 152.0416661 | U110: 0 | V110: 713.6648552 | W110: 0 | X110: 147.1792777 | Y110: =IF('Comparison - Category'!B110="Residential",SUM(R110:W110,Control!$B$75),IF('Comparison - Category'!B110="Rural",SUM(R110:W110,Control!$B$76),P110/$E110*$G110)) -> 1577.018099
A111: Region Wide | B111: =B82 -> Residential | C111: Region WideResidential | E111: 87002470221 | F111: 173449 | G111: 501602.6049 | I111: 26888887.59 | J111: 7182982.171 | K111: 6371004.711 | L111: 0 | M111: 34583685.04 | N111: 0 | O111: 2420866 | P111: 77447425.51 | R111: 155.0247484 | S111: 41.41264678 | T111: 36.73128534 | U111: 0 | V111: 199.3882066 | W111: 0 | X111: 13.95722085 | Y111: =IF('Comparison - Category'!B111="Residential",SUM(R111:W111,Control!$B$75),IF('Comparison - Category'!B111="Rural",SUM(R111:W111,Control!$B$76),P111/$E111*$G111)) -> 446.5568871
A112: Region Wide | B112: =B83 -> Rural | C112: Region WideRural | E112: 11925822340 | F112: 14928 | G112: 798889.4922 | I112: 3190448.154 | J112: 852282.6438 | K112: 753612.9264 | L112: 0 | M112: 861680.8445 | N112: 0 | O112: 383516 | P112: 6041540.568 | R112: =I112/$E112*$G112 -> 213.7224112 | S112: 57.09288879 | T112: 50.48318103 | U112: 0 | V112: =M112/$E112*$G112 -> 57.72245743 | W112: 0 | X112: 25.69105038 | Y112: =IF('Comparison - Category'!B112="Residential",SUM(R112:W112,Control!$B$75),IF('Comparison - Category'!B112="Rural",SUM(R112:W112,Control!$B$76),P112/$E112*$G112)) -> 407.0209384
A113: Region Wide | B113: Total | C113: Region WideTotal | E113: =SUM(E109:E112) -> 118903694661 | F113: =SUM(F109:F112) -> 200002 | G113: 594512.5282 | I113: =SUM(I109:I112) -> 36442150.97 | J113: 9735000 | K113: 8386090 | L113: 0 | M113: 67273010.4 | N113: 0 | O113: 4907860.821 | P113: 126744112.2 | R113: 182.2089328 | S113: 48.67451325 | T113: 41.9300307 | U113: 0 | V113: 336.3616884 | W113: 0 | X113: 24.53905871 | Y113: =IF('Comparison - Category'!B113="Residential",SUM(R113:W113,Control!$B$75),IF('Comparison - Category'!B113="Rural",SUM(R113:W113,Control!$B$76),P113/$E113*$G113)) -> 633.7142238
I116: =IF(ABS(I77-SUM(I68:I76))>tolerance_dollar,1,0) -> 0 | J116: 0 | K116: 0 | L116: 0 | M116: 0 | N116: 0 | O116: 0 | P116: 0
I117: =I106-SUM(I80:I105) -> 0 | J117: =J106-SUM(J80:J105) -> 0 | K117: 0 | L117: 0 | M117: =M106-SUM(M80:M105) -> 0 | N117: 0 | O117: 0 | P117: 0
E118: =E106-E77 -> 0 | F118: =F106-F77 -> 0 | I118: =IF(ABS(I106-I77)>tolerance_dollar,1,0) -> 0 | J118: 0 | K118: 0 | L118: 0 | M118: 0 | N118: 0 | O118: 0 | P118: 0 | R118: =IF(ABS(R106-R77)>tolerance_dollar,1,0) -> 0 | S118: 0 | T118: 0 | U118: 0 | V118: 0 | W118: 0 | X118: 0 | Y118: 0
A121: Delta
I122: Rates | R122: Rates / average CV | AA122: Cents/$ OR Regional Strategy Rate $/property
A123: =Control!A29 -> TA full name | B123: =Control!B29 -> Category group | C123: =Control!C29 -> Concatenated row | E123: CV | F123: CV Assessments | G123: Average CV | I123: General Rate | J123: Flood protection – regional rate | K123: Flood protection – catchment rate | L123: River management rate | M123: Public transport rate | N123: Stadium purposes rate | O123: Regional strategy rate | P123: District-Wide Rates | R123: General Rate | S123: Flood protection – regional rate | T123: Flood protection – catchment rate | U123: River management rate | V123: Public transport rate | W123: Stadium purposes rate | X123: Regional strategy rate | Y123: District-Wide Rates | AA123: General Rate | AB123: Flood protection – regional rate | AC123: Flood protection – catchment rate | AD123: River management rate | AE123: Public transport rate | AF123: Stadium purposes rate | AG123: Regional strategy rate | AH123: District-Wide Rates
A125: By TA
A126: =Control!A30 -> Wellington City | B126: =Control!B30 -> District wide | C126: =Control!C30 -> Wellington CityDistrict wide | E126: =E68-E10 -> 256756000 | F126: 135 | G126: 2162.568548 | I126: =I68-I10 -> -3425924.45 | J126: 4745293.017 | K126: 54042 | L126: -43255.4241 | M126: 3318534.752 | N126: -580986.2619 | O126: 46699.13239 | P126: 4114402.765 | R126: =R68-R10 -> -44.913352 | S126: =S68-S10 -> 61.54246124 | T126: =T68-T10 -> 0.700879309 | U126: =U68-U10 -> -0.5619704058 | V126: =V68-V10 -> 42.16382786 | W126: =W68-W10 -> -7.548118927 | X126: 0.5533344609 | Y126: =Y68-Y10 -> 51.93706154
A127: =Control!A31 -> Hutt City | B127: =Control!B31 -> District wide | C127: =Control!C31 -> Hutt CityDistrict wide | E127: 137757000 | F127: 96 | G127: 2189.541487 | I127: -968159.2204 | J127: 1659259.211 | K127: 5167492 | L127: -3685586.303 | M127: -710725.5883 | N127: -190923.4315 | O127: 21286.8216 | P127: 1292643.489 | R127: -25.18353689 | S127: 42.38751337 | T127: 132.0089922 | U127: -94.38362834 | V127: -18.88073307 | W127: -4.889329599 | X127: 0.4896415303 | Y127: 31.54891922
A128: =Control!A32 -> Upper Hutt City | B128: =Control!B32 -> District wide | C128: =Control!C32 -> Upper Hutt CityDistrict wide | E128: 115196500 | F128: 166 | G128: 2087.055484 | I128: -355888.3956 | J128: 631040.9906 | K128: 881402 | L128: -678045.4338 | M128: -421509.807 | N128: -51447.60501 | O128: 9016.260733 | P128: 14568.01001 | R128: -22.89190836 | S128: 37.70560412 | T128: 52.66503346 | U128: -40.92006239 | V128: -27.93719289 | W128: -3.104864515 | X128: 0.3332975037 | Y128: -4.150093066
A129: =Control!A33 -> Porirua City | B129: =Control!B33 -> District wide | C129: =Control!C33 -> Porirua CityDistrict wide | E129: 149810950 | F129: 115 | G129: 4692.618471 | I129: -424162.7423 | J129: 786339.047 | K129: 45121 | L129: -28307.67988 | M129: -580016.3168 | N129: -70226.95893 | O129: 8428.392871 | P129: -262825.258 | R129: -23.89186833 | S129: 42.21048081 | T129: 2.422083848 | U129: -1.528987786 | V129: -33.15775474 | W129: -3.793181318 | X129: 0.3342234166 | Y129: -17.40500409
A130: =Control!A34 -> Kapiti Coast District | B130: =Control!B34 -> District wide | C130: =Control!C34 -> Kapiti Coast DistrictDistrict wide | E130: 3635022150 | F130: 79 | G130: 144927.8573 | I130: -549136.9279 | J130: 1009859.942 | K130: 1619846 | L130: -1368225.795 | M130: 654353.8077 | N130: -47339.62134 | O130: -1998.075674 | P130: 1317359.33 | R130: -22.66304681 | S130: 40.65458702 | T130: 65.21119163 | U130: -55.25729149 | V130: 25.94578022 | W130: -1.911862257 | X130: -0.1435567891 | Y130: 51.83580152
A131: =Control!A35 -> Masterton District | B131: =Control!B35 -> District wide | C131: =Control!C35 -> Masterton DistrictDistrict wide | E131: 1185459600 | F131: -14 | G131: 96958.00922 | I131: -158016.8561 | J131: 405334.7334 | K131: 271627 | L131: 0 | M131: 204556.3916 | N131: -19561.827 | O131: 1097.84142 | P131: 705037.2834 | R131: -12.71041603 | S131: 33.00233948 | T131: 22.11586061 | U131: 0 | V131: 16.68341068 | W131: -1.590909808 | X131: 0.1117798253 | Y131: 57.61206475
A132: =Control!A36 -> Carterton District | B132: =Control!B36 -> District wide | C132: =Control!C36 -> Carterton DistrictDistrict wide | E132: 518890600 | F132: 82 | G132: 103284.3197 | I132: -74794.15961 | J132: 186829.1107 | K132: 144634 | L132: -23239.68 | M132: 56429.93252 | N132: -6846.63945 | O132: 425.0649287 | P132: 283437.6291 | R132: -19.10675046 | S132: 40.23887802 | T132: 31.15097997 | U132: -5.095303661 | V132: 11.38401968 | W132: -1.501126825 | X132: -0.2604492335 | Y132: =Y74-Y16 -> 56.81024749
A133: =Control!A37 -> South Wairarapa District | B133: =Control!B37 -> District wide | C133: =Control!C37 -> South Wairarapa DistrictDistrict wide | E133: 847929100 | F133: 13 | G133: 127183.679 | I133: -82895.87431 | J133: 310559.4929 | K133: 201926 | L133: 0 | M133: 94991.10261 | N133: -10759.00485 | O133: 888.1637774 | P133: 514709.8801 | R133: -12.91026702 | S133: 46.97617499 | T133: 30.54394191 | U133: 0 | V133: 14.24811541 | W133: -1.630646385 | X133: 0.09320260675 | Y133: 77.32052152
A134: =Control!A38 -> Tararua District | B134: =Control!B38 -> District wide | C134: =Control!C38 -> Tararua DistrictDistrict wide | E134: 3954500 | F134: -2 | G134: 508883.3333 | I134: -540.9219543 | J134: 484.4562068 | K134: 0 | L134: 0 | M134: 0 | N134: 0 | O134: 0 | P134: -56.46574749 | R134: -14.85148074 | S134: 48.44562068 | T134: 0 | U134: 0 | V134: 0 | W134: 0 | X134: 4.2 | Y134: 37.79413994
A135: Region wide | C135: =Control!C39 -> Region wide | E135: 6850776400 | F135: 670 | G135: 32370.38211 | I135: -6039519.548 | J135: 9735000 | K135: 8386090.465 | L135: -5826660.315 | M135: 2616614.275 | N135: -978091.35 | O135: 85843.60205 | P135: 7979277.128 | R135: -30.91124121 | S135: 48.67451325 | T135: 41.93003303 | U135: -29.23093289 | V135: 11.99632745 | W135: -4.906845614 | X135: 0.3481750683 | Y135: 37.90002908
A137: By TA & Category
A138: =Control!A43 -> Wellington City | B138: =Control!B43 -> Regional CBD | C138: =Control!C43 -> Wellington CityRegional CBD | E138: =E80-E22 -> -35152500 | F138: -19 | G138: =G80-G22 -> 2580.030989 | I138: =I80-I22 -> -549965.4905 | J138: 719398.8764 | K138: 8192.909045 | L138: -6620.073537 | M138: 925739.0446 | N138: -135230.613 | O138: 25243.29358 | P138: 986757.9466 | R138: =R80-R22 -> -157.25852 | S138: =S80-S22 -> 212.714038 | T138: 2.422504153 | U138: -1.94650795 | V138: 315.0534956 | W138: -39.762015 | X138: 8.892933492 | Y138: =Y80-Y22 -> 340.1159282 | AA138: =AA80-AA22 -> -0.006848042555 | AB138: 0.009200604785 | AC138: 0.0001047815345 | AD138: =AD80-AD22 -> -8.428714193e-05 | AE138: =AE80-AE22 -> 0.01327165292 | AF138: -0.001721763634 | AG138: =AG80-AG22 -> 0.0003723588399 | AH138: 0.01429530475
A139: =Control!A44 -> Wellington City | B139: =Control!B44 -> Business | C139: =Control!C44 -> Wellington CityBusiness | E139: 43111000 | F139: -7 | G139: 30069.54014 | I139: -246730.3193 | J139: 355407.0708 | K139: 4047.570688 | L139: -3219.562655 | M139: 490711.9598 | N139: -65767.1594 | O139: 19131.83881 | P139: 553581.3988 | R139: -126.8110706 | S139: 187.0563531 | T139: 2.130300362 | U139: -1.688286657 | V139: 260.5738126 | W139: -34.48723618 | X139: 10.88214893 | Y139: 297.6560215 | AA139: -0.006848042555 | AB139: 0.009200604785 | AC139: 0.0001047815345 | AD139: -8.428714193e-05 | AE139: 0.01235481439 | AF139: -0.001721763634 | AG139: 0.0003723588399 | AH139: 0.01337846622
A140: =Control!A45 -> Wellington City | B140: =Control!B45 -> Residential | C140: =Control!C45 -> Wellington CityResidential | E140: 235877500 | F140: 156 | G140: 2110.030064 | I140: -2594042.752 | J140: 3616046.212 | K140: 41181.51792 | L140: -32927.94274 | M140: 1894631.306 | N140: -377152.0246 | O140: 2184 | P140: 2549920.317 | R140: -37.01231197 | S140: 50.89796907 | T140: 0.5796539928 | U140: -0.4645000316 | V140: 26.29018081 | W140: -5.320318026 | X140: 0 | Y140: 34.97067384 | AA140: -0.006848042555 | AB140: 0.009200604785 | AC140: 0.0001047815345 | AD140: -8.428714193e-05 | AE140: 0.004633257995 | AF140: -0.0009654130679 | AG140: =AG82-AG24 -> 0 | AH140: 0.006031211898
A141: =Control!A46 -> Wellington City | B141: =Control!B46 -> Rural | C141: =Control!C46 -> Wellington CityRural | E141: 12920000 | F141: 5 | G141: 11785.68603 | I141: -35185.88865 | J141: 54440.85717 | K141: 620.0023461 | L141: -487.8451695 | M141: 7452.441781 | N141: -2836.464915 | O141: 140 | P141: 24143.10256 | R141: -47.14979622 | S141: 69.88556761 | T141: 0.7958951811 | U141: -0.6302909166 | V141: 9.181732037 | W141: -3.664683353 | X141: 0 | Y141: 28.41842434 | AA141: =AA83-AA25 -> -0.006848042555 | AB141: 0.009200604785 | AC141: 0.0001047815345 | AD141: -8.428714193e-05 | AE141: 0.001084354268 | AF141: -0.0004900684394 | AG141: 0 | AH141: 0.002909244334
A142: =Control!A47 -> Hutt City | B142: =Control!B47 -> Business | C142: =Control!C47 -> Hutt CityBusiness | E142: -25202500 | F142: 1 | G142: -11371.24047 | I142: -188181.3016 | J142: 293691.6139 | K142: 914654.5974 | L142: -660987.1265 | M142: 47432.13719 | N142: -49784.84971 | O142: 19998.8216 | P142: 376823.8923 | R142: -80.03714395 | S142: 124.5511509 | T142: 387.8942313 | U142: -280.435777 | V142: 19.73894245 | W142: -21.12212546 | X142: 8.419467719 | Y142: 159.0087459 | AA142: -0.004762755151 | AB142: 0.007786813235 | AC142: 0.02425075891 | AD142: -0.01740880156 | AE142: 0.001625825027 | AF142: -0.00131121248 | AG142: 0.0005906846476 | AH142: 0.01077131264
A143: =Control!A48 -> Hutt City | B143: =Control!B48 -> Residential | C143: =Control!C48 -> Hutt CityResidential | E143: 167049500 | F143: 98 | G143: 3329.987628 | I143: -763638.2468 | J143: 1341120.897 | K143: 4176702.145 | L143: -2969232.224 | M143: -753456.7977 | N143: -138888.9717 | O143: 1372 | P143: 893978.8016 | R143: =R85-R27 -> -21.4682026 | S143: 36.94547925 | T143: 115.0606652 | U143: -82.01845821 | V143: -21.4573068 | W143: -3.836499964 | X143: 0 | Y143: 23.22567683 | AA143: -0.004762755151 | AB143: 0.007786813235 | AC143: 0.02425075891 | AD143: -0.01740880156 | AE143: -0.004909214677 | AF143: -0.0008143150701 | AG143: 0 | AH143: 0.004121729434
A144: =Control!A49 -> Hutt City | B144: =Control!B49 -> Rural | C144: =Control!C49 -> Hutt CityRural | E144: -4090000 | F144: -3 | G144: -4400.033525 | I144: -16339.67196 | J144: 24446.70015 | K144: 76135.25761 | L144: -55366.95247 | M144: -4700.927821 | N144: -2249.610105 | O144: -84 | P144: 21840.7954 | R144: -32.19577492 | S144: 50.19856294 | T144: 156.3352312 | U144: -112.9937806 | V144: -9.091316901 | W144: -4.591041031 | X144: 0 | Y144: 47.66188077 | AA144: -0.004762755151 | AB144: 0.007786813235 | AC144: 0.02425075891 | AD144: -0.01740880156 | AE144: -0.001314394264 | AF144: -0.0007073355883 | AG144: 0 | AH144: 0.00787372959
A145: =Control!A50 -> Upper Hutt City | B145: =Control!B50 -> Business | C145: =Control!C50 -> Upper Hutt CityBusiness | E145: 5719000 | F145: -10 | G145: 30803.0576 | I145: -55223.46984 | J145: 91330.29021 | K145: 127564.9311 | L145: -99060.16162 | M145: -5963.141386 | N145: -7726.921665 | O145: 7098.260733 | P145: 58019.78749 | R145: -69.83612582 | S145: 128.2728795 | T145: 179.164229 | U145: -137.2024399 | V145: 5.73731005 | W145: -10.70210757 | X145: 12.03002808 | Y145: 107.4637733 | AA145: -0.004859689434 | AB145: 0.007764322589 | AC145: 0.01084476216 | AD145: -0.008462611917 | AE145: -0.0008082738226 | AF145: -0.0006601032978 | AG145: 0.0005594527822 | AH145: 0.004377859064
A146: =Control!A51 -> Upper Hutt City | B146: =Control!B51 -> Residential | C146: =Control!C51 -> Upper Hutt CityResidential | E146: 66807500 | F146: 174 | G146: -350.4949028 | I146: -274202.4901 | J146: 474303.8652 | K146: 662480.5387 | L146: -511307.0278 | M146: -406027.4653 | N146: -41764.50065 | O146: 2086 | P146: -94431.07998 | R146: -20.20733232 | S146: 32.09526764 | T146: 44.82883602 | U146: -35.01143713 | V146: -30.494149 | W146: -2.859798729 | X146: 0 | Y146: -11.64861352 | AA146: -0.004859689434 | AB146: 0.007764322589 | AC146: 0.01084476216 | AD146: -0.008462611917 | AE146: -0.007324438376 | AF146: -0.0006912417425 | AG146: 0 | AH146: -0.002731726545
A147: =Control!A52 -> Upper Hutt City | B147: =Control!B52 -> Rural | C147: =Control!C52 -> Upper Hutt CityRural | E147: 42670000 | F147: 2 | G147: 33213.68916 | I147: -26462.43566 | J147: 65406.83518 | K147: 91356.53024 | L147: -67678.24431 | M147: -9519.200238 | N147: -1956.1827 | O147: -168 | P147: 50979.3025 | R147: -21.58797849 | S147: 52.49344717 | T147: 73.3198477 | U147: -54.40373337 | V147: -7.802800451 | W147: -1.572494132 | X147: 0 | Y147: 40.44628843 | AA147: -0.004859689434 | AB147: 0.007764322589 | AC147: 0.01084476216 | AD147: -0.008462611917 | AE147: -0.001930090173 | AF147: -0.0002446046761 | AG147: 0 | AH147: 0.00288323438
A148: =Control!A53 -> Porirua City | B148: =Control!B53 -> Business | C148: =Control!C53 -> Porirua CityBusiness | E148: 2501000 | F148: -1 | G148: 4875.850163 | I148: =I90-I32 -> -50220.9833 | J148: 84634.94862 | K148: 4856.446505 | L148: -3085.195012 | M148: -10712.58157 | N148: -12128.33274 | O148: 6832.392871 | P148: 20176.69537 | R148: =R90-R32 -> -62.59103368 | S148: 106.4590549 | T148: 6.108737742 | U148: -3.87587313 | V148: -12.38147137 | W148: -15.23659892 | X148: 8.74891896 | Y148: 27.23173446 | AA148: =AA90-AA32 -> -0.004653448332 | AB148: 0.007713436445 | AC148: 0.000442605473 | AD148: -0.0002818200139 | AE148: -0.001120395652 | AF148: -0.001107873859 | AG148: 0.0006023037044 | AH148: 0.001594807766
A149: =Control!A54 -> Porirua City | B149: =Control!B54 -> Residential | C149: =Control!C54 -> Porirua CityResidential | E149: 134738950 | F149: 118 | G149: 4478.973362 | I149: -349613.3531 | J149: 654391.5955 | K149: 37549.71 | L149: -23529.2912 | M149: -559079.5617 | N149: -56729.2983 | O149: 1652 | P149: -295358.1988 | R149: -21.41913602 | S149: 37.99300949 | T149: 2.180080702 | U149: -1.37549931 | V149: -34.57289274 | W149: -3.316339197 | X149: 0 | Y149: -20.51077708 | AA149: -0.004653448332 | AB149: 0.007713436445 | AC149: 0.000442605473 | AD149: -0.0002818200139 | AE149: -0.007593854292 | AF149: -0.0006794701763 | AG149: 0 | AH149: -0.005078634175
A150: =Control!A55 -> Porirua City | B150: =Control!B55 -> Rural | C150: =Control!C55 -> Porirua CityRural | E150: 12571000 | F150: -2 | G150: 23826.91926 | I150: -24328.40592 | J150: 47312.50291 | K150: 2714.843492 | L150: -1693.193667 | M150: -10224.1735 | N150: -1369.32789 | O150: -56 | P150: 12356.24543 | R150: -38.80345786 | S150: 77.56148019 | T150: 4.450563101 | U150: -2.766656318 | V150: -16.24255731 | W150: -2.237463873 | X150: 0 | Y150: 21.96190793 | AA150: -0.004653448332 | AB150: 0.007713436445 | AC150: 0.000442605473 | AD150: -0.0002818200139 | AE150: -0.001996936258 | AF150: -0.0002279148645 | AG150: 0 | AH150: 0.0009283383759
A151: =Control!A56 -> Kapiti Coast District | B151: =Control!B56 -> Business | C151: =Control!C56 -> Kapiti Coast DistrictBusiness | E151: 245209000 | F151: 6 | G151: 171848.7858 | I151: -108756.4453 | J151: 104640.0729 | K151: 167845.8532 | L151: -158161.1737 | M151: 107659.2102 | N151: -5889.225561 | O151: -4000.075674 | P151: 103338.216 | R151: -79.51132108 | S151: 75.01080493 | T151: 120.319608 | U151: -113.8669357 | V151: 75.92689604 | W151: -4.239903212 | X151: -3.280810561 | Y151: 70.35833843 | AA151: -0.01357442607 | AB151: 0.006912337621 | AC151: 0.01108759936 | AD151: -0.0124673105 | AE151: 0.001965022333 | AF151: -0.0004642277365 | AG151: -0.001968762659 | AH151: -0.008509767647
A152: =Control!A57 -> Kapiti Coast District | B152: =Control!B57 -> Residential | C152: =Control!C57 -> Kapiti Coast DistrictResidential | E152: 3033408550 | F152: 89 | G152: 145061.8134 | I152: -304147.5583 | J152: 764250.5056 | K152: 1225881.009 | L152: -1000241.892 | M152: 539697.5414 | N152: -37244.60297 | O152: 2030 | P152: 1190225.003 | R152: -15.37505409 | S152: 36.97032244 | T152: 59.30151941 | U152: -48.59553477 | V152: 25.57444612 | W152: -1.809483699 | X152: 0 | Y152: 56.0662154 | AA152: -0.01357442607 | AB152: 0.006912337621 | AC152: 0.01108759936 | AD152: -0.0124673105 | AE152: -0.003836118574 | AF152: -0.0004642277365 | AG152: 0 | AH152: -0.01329700427
A153: =Control!A58 -> Kapiti Coast District | B153: =Control!B58 -> Rural | C153: =Control!C58 -> Kapiti Coast DistrictRural | E153: 356404600 | F153: -16 | G153: 132008.5022 | I153: -136232.9243 | J153: 140969.3632 | K153: 226119.1376 | L153: -209822.7287 | M153: 6997.056157 | N153: -4205.792805 | O153: -28 | P153: 23796.11121 | R153: -47.75478501 | S153: 50.83640939 | T153: 81.54314376 | U153: -75.23224406 | V153: 2.809487499 | W153: -1.507993118 | X153: 0 | Y153: 10.69401845 | AA153: -0.01357442607 | AB153: 0.006912337621 | AC153: 0.01108759936 | AD153: -0.0124673105 | AE153: -0.001093460754 | AF153: -0.0002499010718 | AG153: 0 | AH153: -0.01014801223
A154: =Control!A59 -> Masterton District | B154: =Control!B59 -> Business | C154: =Control!C59 -> Masterton DistrictBusiness | E154: 54745500 | F154: 4 | G154: 94460.3683 | I154: -23251.28643 | J154: 29898.29522 | K154: 20035.74716 | L154: 0 | M154: 36668.12767 | N154: -2325.988066 | O154: 943.8414196 | P154: 61968.73697 | R154: -44.07557282 | S154: 54.36053676 | T154: 36.4286312 | U154: 0 | V154: =V96-V38 -> 66.15642027 | W154: -4.260051403 | X154: 1.235805002 | Y154: 109.845769 | AA154: -0.009788292267 | AB154: 0.006859073159 | AC154: 0.00459647129 | AD154: 0 | AE154: 0.00714333408 | AF154: -0.000610257539 | AG154: -0.0009715732683 | AH154: 0.007228755454
A155: =Control!A60 -> Masterton District | B155: =Control!B60 -> Residential | C155: =Control!C60 -> Masterton DistrictResidential | E155: 730874300 | F155: 36 | G155: 91623.28135 | I155: -5646.713724 | J155: 185590.7987 | K155: 124369.978 | L155: 0 | M155: 111364.0029 | N155: -12051.95478 | O155: 546 | P155: 404172.1111 | R155: -1.124901115 | S155: 23.55811103 | T155: 15.78699898 | U155: 0 | V155: 14.0198129 | W155: -1.536847077 | X155: 0 | Y155: 50.70317472 | AA155: -0.009788292267 | AB155: 0.006859073159 | AC155: 0.00459647129 | AD155: 0 | AE155: 0.001386895076 | AF155: -0.000610257539 | AG155: 0 | AH155: 0.0009656965421
A156: =Control!A61 -> Masterton District | B156: =Control!B61 -> Rural | C156: =Control!C61 -> Masterton DistrictRural | E156: 399839800 | F156: -54 | G156: 112236.6025 | I156: -129118.856 | J156: 189845.6395 | K156: 127221.2748 | L156: 0 | M156: 56524.26106 | N156: -5183.884155 | O156: -392 | P156: 238896.4353 | R156: -30.49164447 | S156: 49.25937715 | T156: 33.01019067 | U156: 0 | V156: 14.9127899 | W156: -1.326480081 | X156: 0 | Y156: 65.36423316 | AA156: -0.009788292267 | AB156: 0.006859073159 | AC156: 0.00459647129 | AD156: 0 | AE156: 0.001622938806 | AF156: -0.0002189174197 | AG156: 0 | AH156: 0.002471717072
A157: =Control!A62 -> Carterton District | B157: =Control!B62 -> Business | C157: =Control!C62 -> Carterton DistrictBusiness | E157: -339000 | F157: 0 | G157: -1506.666667 | I157: -8967.872775 | J157: 6397.992506 | K157: 4953.014253 | L157: -988.1624401 | M157: 3509.655915 | N157: -506.4623492 | O157: -862.9350713 | P157: 3535.230038 | R157: -39.85721233 | S157: 28.43552225 | T157: 22.01339668 | U157: -4.391833067 | V157: 15.59847073 | W157: -2.250943774 | X157: -3.835266984 | Y157: 15.7121335 | AA157: -0.009544033308 | AB157: 0.006901341875 | AC157: 0.005342682825 | AD157: -0.001062020667 | AE157: 0.003851887868 | AF157: -0.0005443168657 | AG157: -0.0008963166423 | AH157: 0.004049225084
A158: =Control!A63 -> Carterton District | B158: =Control!B63 -> Residential | C158: =Control!C63 -> Carterton DistrictResidential | E158: 219832000 | F158: 57 | G158: 86911.62181 | I158: =I100-I42 -> -1211.307698 | J158: 57114.36664 | K158: 44215.16152 | L158: -6454.446537 | M158: 23692.44655 | N158: -3308.093916 | O158: 756 | P158: 114804.1266 | R158: =R100-R42 -> -2.776840525 | S158: 24.2420911 | T158: 18.76704648 | U158: -2.807501756 | V158: 8.899815529 | W158: -1.438927323 | X158: 0 | Y158: 44.88568351 | AA158: =AA100-AA42 -> -0.009544033308 | AB158: 0.006901341875 | AC158: 0.005342682825 | AD158: -0.001062020667 | AE158: -0.001940024921 | AF158: -0.0005443168657 | AG158: 0 | AH158: -0.002113440736
A159: =Control!A64 -> Carterton District | B159: =Control!B64 -> Rural | C159: =Control!C64 -> Carterton DistrictRural | E159: 299397600 | F159: 25 | G159: 136344.3978 | I159: -64614.97913 | J159: 123316.7515 | K159: 95465.82423 | L159: -15797.07102 | M159: 29227.83005 | N159: -3032.083185 | O159: 532 | P159: 165098.2725 | R159: -34.46823801 | S159: 59.80443818 | T159: 46.29768391 | U159: -7.755066776 | V159: 13.74549985 | W159: -1.488504264 | X159: 0 | Y159: 76.13581289 | AA159: -0.009544033308 | AB159: 0.006901341875 | AC159: 0.005342682825 | AD159: -0.001062020667 | AE159: 0.0008237862479 | AF159: -0.0002038438014 | AG159: 0 | AH159: 0.001712695429
A160: =Control!A65 -> South Wairarapa District | B160: =Control!B65 -> Business | C160: =Control!C65 -> South Wairarapa DistrictBusiness | E160: 15484798 | F160: -4 | G160: 58201.55037 | I160: -11982.60161 | J160: 14336.02486 | K160: 9321.293416 | L160: 0 | M160: 8136.55031 | N160: -1243.692615 | O160: 230.1637774 | P160: 18797.73814 | R160: -36.17193744 | S160: 46.54553527 | T160: 30.26393966 | U160: 0 | V160: 28.26271325 | W160: -3.98619428 | X160: 1.47618708 | Y160: 66.39024354 | AA160: -0.008412183639 | AB160: 0.006962459732 | AC160: 0.004526996199 | AD160: 0 | AE160: 0.002200759067 | AF160: -0.000653131976 | AG160: -0.0005797974071 | AH160: 0.004045101976
A161: =Control!A66 -> South Wairarapa District | B161: =Control!B66 -> Residential | C161: =Control!C66 -> South Wairarapa DistrictResidential | E161: 407192002 | F161: 49 | G161: 123081.4997 | I161: 31443.86896 | J161: 90163.93012 | K161: 58624.65058 | L161: 0 | M161: 47630.49671 | N161: -5798.565105 | O161: 714 | P161: 222778.3813 | R161: 8.347349612 | S161: 28.21149253 | T161: 18.34313222 | U161: 0 | V161: 13.89617589 | W161: -1.842569147 | X161: 0 | Y161: 66.9555811 | AA161: -0.008412183639 | AB161: 0.006962459732 | AC161: 0.004526996199 | AD161: 0 | AE161: -0.003642446544 | AF161: -0.000653131976 | AG161: 0 | AH161: -0.002686377545
A162: =Control!A67 -> South Wairarapa District | B162: =Control!B67 -> Rural | C162: =Control!C67 -> South Wairarapa DistrictRural | E162: 425252300 | F162: -32 | G162: 145184.4439 | I162: -102357.1417 | J162: 206059.5379 | K162: 133980.056 | L162: 0 | M162: 39224.05559 | N162: -3716.74713 | O162: -56 | P162: 273133.7607 | R162: -30.07728199 | S162: 66.32106144 | T162: 43.12200065 | U162: 0 | V162: 13.12768415 | W162: -1.184054517 | X162: 0 | Y162: 91.30940973 | AA162: -0.008412183639 | AB162: 0.006962459732 | AC162: 0.004526996199 | AD162: 0 | AE162: 0.0004556895719 | AF162: -0.0001466561612 | AG162: 0 | AH162: 0.002944836572
A163: =Control!A68 -> Tararua District | B163: =Control!B68 -> Rural | C163: =Control!C68 -> Tararua DistrictRural | E163: 3954500 | F163: -2 | G163: 508883.3333 | I163: -540.9219543 | J163: 484.4562068 | K163: 0 | L163: 0 | M163: 0 | N163: 0 | O163: 0 | P163: -56.46574749 | R163: -14.85148074 | S163: 48.44562068 | T163: 0 | U163: 0 | V163: 0 | W163: 0 | X163: 0 | Y163: 33.59413994 | AA163: -0.01774013567 | AB163: 0.004502171895 | AC163: 0 | AD163: 0 | AE163: 0 | AF163: 0 | AG163: 0 | AH163: -0.0145986805
A164: Region wide | C164: =Control!C69 -> Region wide | E164: 6850776400 | F164: 670 | G164: 32370.38211 | I164: -6039519.548 | J164: 9735000 | K164: 8386090 | L164: -5826660.315 | M164: 2616614.275 | N164: -978091.35 | O164: 85843.60205 | P164: 7979276.663 | R164: -30.91124121 | S164: 48.67451325 | T164: 41.9300307 | U164: -29.23093289 | V164: 11.99632745 | W164: -4.906845614 | X164: 0.3481750683 | Y164: 37.90002676 | AA164: -0.007263690335 | AB164: 0.008187298156 | AC164: 0.007052842238 | AD164: -0.005199918401 | AE164: -0.001123932751 | AF164: -0.0008728834243 | AG164: -0.0001757460512 | AH164: 0.0006039694315
A166: By category
A167: Region Wide | B167: =B138 -> Regional CBD | C167: =A167&B167 -> Region WideRegional CBD | E167: =E109-E51 -> -35152500 | F167: -19 | G167: 2580.030989 | I167: =I109-I51 -> -549965.4905 | J167: 719398.8764 | K167: 8192.909045 | L167: -6620.073537 | M167: 925739.0446 | N167: -135230.613 | O167: 25243.29358 | P167: 986757.9466 | R167: =R109-R51 -> -157.25852 | S167: 212.714038 | T167: 2.422504153 | U167: -1.94650795 | V167: 315.0534956 | W167: -39.762015 | X167: 8.892933492 | Y167: 340.1159282
A168: Region Wide | B168: =B139 -> Business | C168: Region WideBusiness | E168: =E110-E52 -> 341228798 | F168: -11 | G168: 43306.40253 | I168: =I110-I52 -> -693314.2802 | J168: 980336.3091 | K168: 1253279.454 | L168: -925501.3819 | M168: 677441.9181 | N168: -145372.6321 | O168: 49372.30847 | P168: 1196241.695 | R168: =R110-R52 -> -83.40405257 | S168: 118.9295534 | T168: 152.0416661 | U168: -112.1276208 | V168: 83.02547026 | W168: -17.61238577 | X168: 6.177765995 | Y168: 147.0303967
A169: Region Wide | B169: =B140 -> Residential | C169: Region WideResidential | E169: =E111-E53 -> 4995780302 | F169: 777 | G169: 26675.05489 | I169: =I111-I53 -> -4261058.552 | J169: 7182982.171 | K169: 6371004.711 | L169: -4543692.825 | M169: 898451.969 | N169: -672938.012 | O169: 11340 | P169: 4986089.462 | R169: =R111-R53 -> -25.37477288 | S169: 41.41264678 | T169: 36.73128534 | U169: -26.31401052 | V169: 4.306009848 | W169: -3.897204017 | X169: 0.00286809324 | Y169: 26.86395455
A170: Region Wide | B170: =B141 -> Rural | C170: Region WideRural | E170: =E112-E54 -> 1548919800 | F170: -77 | G170: 107326.5106 | I170: =I112-I54 -> -535181.2252 | J170: 852282.6438 | K170: 753612.9264 | L170: -350846.0353 | M170: 114981.3431 | N170: -24550.09288 | O170: -112 | P170: 810187.5598 | R170: =R112-R54 -> -34.5701166 | S170: 57.09288879 | T170: 50.48318103 | U170: -23.38194171 | V170: 7.959078461 | W170: -1.636127483 | X170: 0.1243726011 | Y170: 55.94696249
A171: Region Wide | B171: Total | C171: Region WideTotal | E171: =E113-E55 -> 6850776400 | F171: 670 | G171: 32370.38211 | I171: =I113-I55 -> -6039519.548 | J171: 9735000 | K171: 8386090 | L171: -5826660.315 | M171: 2616614.275 | N171: -978091.35 | O171: 85843.60205 | P171: 7979276.663 | R171: =R113-R55 -> -30.91124121 | S171: 48.67451325 | T171: 41.9300307 | U171: -29.23093289 | V171: 11.99632745 | W171: -4.906845614 | X171: 0.3481750683 | Y171: 37.90002676
I174: =IF(ABS(I135-SUM(I126:I134))>tolerance_dollar,1,0) -> 0 | J174: 0 | K174: 0 | L174: 0 | M174: 0 | N174: 0 | O174: 0 | P174: 0
I175: =IF(ABS(I164-SUM(I138:I163))>tolerance_dollar,1,0) -> 0 | J175: 0 | K175: 0 | L175: 0 | M175: 0 | N175: 0 | O175: 0 | P175: 0
E176: =E164-E135 -> 0 | F176: =F164-F135 -> 0 | I176: =IF(ABS(I164-I135)>tolerance_dollar,1,0) -> 0 | J176: 0 | K176: 0 | L176: 0 | M176: 0 | N176: 0 | O176: 0 | P176: 0 | R176: =IF(ABS(R164-R135)>tolerance_dollar,1,0) -> 0 | S176: 0 | T176: 0 | U176: 0 | V176: 0 | W176: 0 | X176: 0 | Y176: 0

Sheet Rates Check
A1: Wellington Regional Council
A2: =B5&" Check "&year_current -> Masterton District Check 2018/19
A3: =check_total -> 8066.052688
A4: Printed: | B4: =NOW() -> 2018-03-27T14:57:01
A5: TA to view | B5: Masterton District
D7: Excluding GST | H7: Including GST
A9: Total (including Trentham)
A10: Rate | B10: Categories | D10: Rateable Capital Value | E10: Cents in Dollar | F10: Rates Set | H10: Cents in Dollar | I10: Rates Set
D11: $ | E11: Cents / $ | F11: $ | H11: Cents / $ | I11: $
A12: General Rate | B12: District Wide | D12: =INDEX(capital_values,MATCH($B$5&B12,capital_values_rows,0),MATCH("CV "&year_current,capital_values_header,0)) -> 5909468000 | E12: =INDEX(Gen!$E$10:$E$19,MATCH(B5,Gen!$A$10:$A$19,0),) -> 0.02567636154 | F12: =+E12*D12/100 -> 1517336.369 | H12: =+E12*(1+GST) -> 0.02952781577 | I12: =+F12*(1+GST) -> 1744936.824
A13: Flood protection - regional rate | B13: District Wide | D13: =INDEX(capital_values,MATCH($B$5&B13,capital_values_rows,0),MATCH("CV "&year_current,capital_values_header,0)) -> 5909468000 | E13: =INDEX('FP - regional'!$E$10:$E$19,MATCH(B5,'FP - regional'!$A$10:$A$19,0),) -> 0.006859073159 | F13: =+E13*D13/100 -> 405334.7334 | H13: 0.007887934133 | I13: 466134.9435
A14: Flood protection – catchment rate | B14: District Wide | D14: =INDEX(capital_values,MATCH($B$5&B14,capital_values_rows,0),MATCH("CV "&year_current,capital_values_header,0)) -> 5909468000 | E14: =INDEX('FP - catchment'!$D$10:$D$19,MATCH(B5,'FP - catchment'!$A$10:$A$19,0),) -> 0.00459647129 | F14: 271627 | H14: 0.005285941983 | I14: 312371.05
A15: Regional Transport Rate | B15: Regional CBD | D15: =IFERROR(INDEX(capital_values,MATCH($B$5&B15,capital_values_rows,0),MATCH("CV "&year_current,capital_values_header,0)),0) -> 0 | E15: =IFERROR(INDEX(Tran!$I$23:$I$49,MATCH($B$5&B15,Tran!$C$23:$C$49,0),),0) -> 0 | F15: 0 | H15: 0 | I15: 0
B16: Business | D16: 435894100 | E16: =IFERROR(INDEX(Tran!$I$23:$I$49,MATCH($B$5&B16,Tran!$C$23:$C$49,0),),0) -> 0.01724600165 | F16: 75174.30369 | H16: 0.0198329019 | I16: 86450.44925
B17: Residential | D17: 2705770800 | E17: =IFERROR(INDEX(Tran!$I$23:$I$49,MATCH($B$5&B17,Tran!$C$23:$C$49,0),),0) -> 0.01148956265 | F17: 310881.2312 | H17: 0.01321299705 | I17: 357513.4159
B18: Rural | D18: 2767803100 | E18: =IFERROR(INDEX(Tran!$I$23:$I$49,MATCH($B$5&B18,Tran!$C$23:$C$49,0),),0) -> 0.004525228791 | F18: 125249.4228 | H18: 0.00520401311 | I18: 144036.8362
A19: Stadium Purposes Rate | B19: Regional CBD | D19: 0 | E19: =IFERROR(INDEX(Stad!$G$23:$G$48,MATCH($B$5&B19,Stad!$C$23:$C$48,0),),0) -> 0 | F19: 0 | H19: 0 | I19: 0
B20: Business | D20: 435894100 | E20: =IFERROR(INDEX(Stad!$G$23:$G$48,MATCH($B$5&B20,Stad!$C$23:$C$48,0),),0) -> 0 | F20: 0 | H20: 0 | I20: 0
B21: Residential | D21: 2705770800 | E21: =IFERROR(INDEX(Stad!$G$23:$G$48,MATCH($B$5&B21,Stad!$C$23:$C$48,0),),0) -> 0 | F21: 0 | H21: 0 | I21: 0
B22: Rural | D22: 2767803100 | E22: =IFERROR(INDEX(Stad!$G$23:$G$48,MATCH($B$5&B22,Stad!$C$23:$C$48,0),),0) -> 0 | F22: 0 | H22: 0 | I22: 0
A23: WRS Rate | B23: Regional CBD | D23: 0 | E23: =IFERROR(INDEX(WRS!$K$23:$K$48,MATCH($B$5&B23,WRS!$C$23:$C$48,0),),0) -> 0 | F23: 0 | H23: 0 | I23: 0
B24: Business | D24: 435894100 | E24: =IFERROR(INDEX(WRS!$K$23:$K$48,MATCH($B$5&B24,WRS!$C$23:$C$48,0),),0) -> 0.00848833115 | F24: 37000.13467 | H24: 0.009761580822 | I24: 42550.15487
A26: Rate | B26: Categories | D26: Number of assessments | E26: Amount per rating unit | F26: Rates Set | H26: Amount per rating unit | I26: Rates Set
D27: # | E27: $ | F27: $ | H27: $ | I27: $
A28: =+A23 -> WRS Rate | B28: Residential | D28: =IFERROR(INDEX(WRS!$F$23:$F$48,MATCH($B$5&B28,WRS!$C$23:$C$48,0),),0) -> 7864 | E28: =INDEX(WRS_value,MATCH(B28,WRS_categories,0),) -> 14 | F28: =D28*E28 -> 110096 | H28: =+E28*(1+GST) -> 16.1 | I28: =+F28*(1+GST) -> 126610.4
B29: Rural | D29: =IFERROR(INDEX(WRS!$F$23:$F$48,MATCH($B$5&B29,WRS!$C$23:$C$48,0),),0) -> 3413 | E29: =INDEX(WRS_value,MATCH(B29,WRS_categories,0),) -> 28 | F29: =D29*E29 -> 95564 | H29: =+E29*(1+GST) -> 32.2 | I29: =+F29*(1+GST) -> 109898.6
A32: District-Wide Rates | F32: =SUM(F12:F30) -> 2948263.195 | I32: =SUM(I12:I30) -> 3390502.674
A35: Rate | B35: Categories | D35: No of Hectares | E35: Cents Per | F35: Rates | H35: Cents Per | I35: Rates
D36: # | E36: $ | F36: $ | H36: $ | I36: $
A37: Regional Possum/Predator Rate | D37: =INDEX(Pest!$B$10:$B$18,MATCH(B5,Pest!$A$10:$A$18,0),) -> 207207.7345 | E37: =INDEX(Pest!$C$10:$C$18,MATCH(B5,Pest!$A$10:$A$18,0),) -> 0.8668236668 | F37: =+D37*E37 -> 179612.5682 | H37: =+E37*(1+GST) -> 0.9968472168 | I37: =+F37*(1+GST) -> 206554.4534
A40: Rate | B40: Categories | D40: Rateable Capital Value or Land Value | E40: Cents in Dollar | F40: Rates Set | H40: Cents in Dollar | I40: Rates Set
D41: $ | E41: Cents / $ | F41: $ | H41: Cents / $ | I41: $
A42: Greytown River Management Rate | B42: Greytown Urban -CV | D42: =INDEX('Capital values'!$D$47:$E$48,MATCH(B42,'Capital values'!$A$47:$A$48,0),MATCH("CV "&year_current,capital_values_header,0)) -> 739130000 | E42: =IF($B$5="South Wairarapa District",INDEX('FP - catchment'!$D$29:$D$30,MATCH(A42,'FP - catchment'!$A$29:$A$30,0),),0) -> 0 | F42: =+E42*D42/100 -> 0 | H42: =+E42*(1+GST) -> 0 | I42: =+F42*(1+GST) -> 0
A43: Donalds Creek Stopbank River Management Rate | B43: Featherston Urban - LV | D43: =INDEX('Capital values'!$D$47:$E$48,MATCH(B43,'Capital values'!$A$47:$A$48,0),MATCH("CV "&year_current,capital_values_header,0)) -> 162213500 | E43: =IF($B$5="South Wairarapa District",INDEX('FP - catchment'!$D$29:$D$30,MATCH(A43,'FP - catchment'!$A$29:$A$30,0),),0) -> 0 | F43: 0 | H43: =+E43*(1+GST) -> 0 | I43: =+F43*(1+GST) -> 0
A46: Total Regional Rates (excl Special rates) | F46: =SUM(F32:F45) -> 3127875.763 | I46: =SUM(I32:I45) -> 3597057.127
A48: Check | F48: =INDEX('Comparison - TA'!$B$47:$L$47,,MATCH(B5,'Comparison - TA'!$B$31:$L$31,0))-F46 -> 0
A53: Trentham Military Camp (UPPER HUTT ONLY)
A54: Rate | B54: Categories | D54: Rateable Capital Value | E54: Cents in Dollar | F54: Rates Set | H54: Cents in Dollar | I54: Rates Set
D55: $ | E55: Cents / $ | F55: $ | H55: Cents / $ | I55: $
A56: General Rate | B56: Trentham Military Camp | D56: =Gen!B23 -> 87721000 | E56: =IF(B5="Upper Hutt City",Gen!E23,0) -> 0 | F56: =+E56*D56/100 -> 0 | H56: =+E56*(1+GST) -> 0 | I56: =+F56*(1+GST) -> 0
A57: FP - regional | B57: Trentham Military Camp | D57: ='FP - regional'!B23 -> 87721000 | E57: =IF(B5="Upper Hutt City",'FP - regional'!E23,0) -> 0 | F57: =+E57*D57/100 -> 0 | H57: 0 | I57: 0
A58: FP - catchment | B58: Trentham Military Camp | D58: ='FP - catchment'!B23 -> 87721000 | E58: =IF(B5="Upper Hutt City",'FP - catchment'!D23,0) -> 0 | F58: =+E58*D58/100 -> 0 | H58: 0 | I58: 0
A59: Regional Transport Rate | B59: Business | D59: =Tran!D53 -> 56325000 | E59: =IF(B5="Upper Hutt City",Tran!I53,0) -> 0 | F59: =+E59*D59/100 -> 0 | H59: 0 | I59: 0
B60: Residential | D60: =Tran!D55 -> 26720000 | E60: =IF(B5="Upper Hutt City",Tran!I55,0) -> 0 | F60: 0 | H60: 0 | I60: 0
B61: Rural | D61: =Tran!D57 -> 4676000 | E61: =IF(B5="Upper Hutt City",Tran!I57,0) -> 0 | F61: 0 | H61: 0 | I61: 0
A62: Stadium Purposes Rate | B62: Business | D62: =Stad!E53 -> 56325000 | E62: =IF(B5="Upper Hutt City",Stad!G53,0) -> 0 | F62: =+E62*D62/100 -> 0 | H62: 0 | I62: 0
B63: Residential | D63: =Stad!E55 -> 26720000 | E63: =IF(B5="Upper Hutt City",Stad!G55,0) -> 0 | F63: 0 | H63: 0 | I63: 0
B64: Rural | D64: =Stad!E57 -> 4676000 | E64: =IF(B5="Upper Hutt City",Stad!G57,0) -> 0 | F64: 0 | H64: 0 | I64: 0
A65: Economic development rate | B65: Business | D65: ='UHCC Adjustments'!D9 -> 56325000 | E65: =IF(B5="Upper Hutt City",WRS!K30,0) -> 0 | F65: =+E65*D65/100 -> 0 | H65: 0 | I65: 0
B66: No change for residential or rural as it is a fixed charge per property
A67: Trentham Military Camp | F67: =SUM(F56:F66) -> 0 | I67: =SUM(I56:I66) -> 0

Sheet Checks
A1: Wellington Regional Council
A2: Value checks
A3: =check_total -> 8066.052688
A5: Tab/component | B5: Check | D5: Check notes
A7: OVERALL | B7: =SUM(B9:B45) -> 8066.052688 | D7: checked ok
A10: Capital values tab
A11: Populated | B11: =SUM('Capital values'!I8:J137) -> 0
A12: TA total matches category
A13: Capital values | B13: =SUM('Capital values'!D50:E50) -> 0
A14: No. of Assessments (#) | B14: =SUM('Capital values'!D95:E95) -> 0
A15: Number of Assessments Contiguous for WRS | B15: =SUM('Capital values'!D140:E140) -> 0
A17: Rate model checks
A18: General rate | B18: =SUM(Gen!B28:D29) -> 0
A19: FP - regional | B19: =SUM('FP - regional'!B28:D29) -> 0
A20: FP - catchment | B20: =SUM('FP - catchment'!B34:C36) -> 0
A21: Stadium | B21: =SUM(Stad!D62:F65) -> 0
A22: WRS | B22: =SUM(WRS!D51:J53) -> 0
A23: Transport | B23: =SUM(Tran!D62:H65) -> 0
A24: Pest | B24: =SUM(Pest!B21:D21) -> 0
A25: Water Levy | B25: =SUM('Water levy'!B21:C21) -> 0
A26: Class rates - schemes | B26: =SUM('Class Rates'!B141:H141) -> 0
A28: Comparison - TA | B28: =SUM('Comparison - TA'!M7:M74) -> 0
A30: Comparison - category
A31: Previous year | B31: =SUM('Comparison - Category'!E58:Y60) -> 0
A32: Current year | B32: =SUM('Comparison - Category'!E116:Y118) -> 0
A33: Delta | B33: =SUM('Comparison - Category'!E174:Y176) -> 0
A35: Rates check | B35: ='Rates Check'!F48 -> 0
A37: Rates
A38: 1 | B38: =SUM('1'!J19:K49) -> 6173.829815 | D38: checked ok
A39: 2 | B39: =SUM('2'!J19:K41) -> 1892.222873 | D39: checked ok
A40: 3 - changes | B40: =SUM('3'!V14:Y39) -> 0
A41: 3 - inputs | B41: =SUM('3'!V61:V121) -> 0
A42: 4 | B42: =SUM('4'!Z16:AA24) -> 0
A43: 5 | B43: =SUM('5'!R33:S40) -> 0
A44: Impact for annual plan | B44: =Impact!L258+Impact!L262 -> 0

Sheet >>Rates

Sheet 1
A1: SUMMARY OF RATES AND LEVIES
A3: This table shows the rates and levies for GWRC in 2018/19, together with the changes from 2017/18. Rates comprise the general rate and various targeted rates. GWRC also charges a water supply levy directly to the four city councils in the region. The city councils then rate accordingly for this levy.
A7: The total rate increase in regional rates for 2018/19 is 6.7%. The water supply levy, which is charged to the four metropolitan city councils is proposed to increase by 7.1% over 2018/19. When the water supply levy is included, Greater Wellington Regional Council's overall increase is 6.8%.
A10: By rate and levy type: | B10: =year_previous -> 2017/18 | C10: =year_current -> 2018/19
B11: Budget | C11: Plan | D11: Change | E11: Change
B12: $000s | C12: $000s | D12: $000s | E12: % | G12: Row lookup | H12: Column lookup
A13: General rates
A14: Flood protection 1 | B14: =ESSbase!F39/1000 -> 21662.71948 | C14: 0 | D14: =C14-B14 -> -21662.71948 | E14: =ROUND(D14/B14,4) -> -1
A15: Environment, Parks | B15: =ESSbase!F44/1000-SUM(B14,B16:B18) -> 25441.15385 | C15: =ESSbase!G44/1000-SUM(C14,C16:C18) -> 27529.11379 | D15: 2087.959941 | E15: =ROUND(D15/B15,4) -> 0.0821
A16: Council costs, Strategy and Planning | B16: =ESSbase!F40/1000 -> 5273.359228 | C16: =ESSbase!G40/1000 -> 6446.744482 | D16: 1173.385254 | E16: =ROUND(D16/B16,4) -> 0.2225
A17: Biosecurity and land management | B17: =ESSbase!F39/1000-B14 -> 0 | C17: =ESSbase!G39/1000-C14 -> 11132.10925 | D17: 11132.10925 | E17: =ROUND(D17/B17,4) -> 
A18: Investment management 2 | B18: =ESSbase!F42/1000 -> -9897.893768 | C18: =ESSbase!G42/1000 -> -8665.816554 | D18: 1232.077214 | E18: =-ROUND(D18/B18,4) -> 0.1245
A19: General rate | B19: =INDEX('Comparison - TA'!$B$7:$L$26,MATCH(G19,'Comparison - TA'!$A$7:$A$26,0),MATCH(H19,'Comparison - TA'!$B$6:$L$6,0))/1000 -> 42481.67052 | C19: =INDEX('Comparison - TA'!$B$32:$L$51,MATCH(G19,'Comparison - TA'!$A$32:$A$51,0),MATCH(H19,'Comparison - TA'!$B$31:$L$31,0))/1000 -> 36442.15097 | D19: -6039.519548 | E19: =ROUND(D19/B19,4) -> -0.1422 | G19: General rate | H19: Region wide | J19: =INDEX(ess_base_estract,MATCH($G19,ESSbase!$B$8:$B$26,0),MATCH(B$10,ESSbase!$F$6:$G$6,0))/1000-B19 -> 0 | K19: =INDEX(ess_base_estract,MATCH($G19,ESSbase!$B$8:$B$26,0),MATCH(C$10,ESSbase!$F$6:$G$6,0))/1000-C19 -> 0
A21: Targeted rates:
A22: Region wide targeted rates:
A23: Flood protection – regional rate | B23: =INDEX('Comparison - TA'!$B$7:$L$26,MATCH(G23,'Comparison - TA'!$A$7:$A$26,0),MATCH(H23,'Comparison - TA'!$B$6:$L$6,0))/1000 -> 0 | C23: =INDEX('Comparison - TA'!$B$32:$L$51,MATCH(G23,'Comparison - TA'!$A$32:$A$51,0),MATCH(H23,'Comparison - TA'!$B$31:$L$31,0))/1000 -> 9735 | D23: 9735 | E23: =ROUND(D23/B23,4) ->  | G23: Flood protection – regional rate | H23: Region wide | J23: =INDEX(ess_base_estract,MATCH($G23,ESSbase!$B$8:$B$26,0),MATCH(B$10,ESSbase!$F$6:$G$6,0))/1000-B23 -> 0 | K23: =INDEX(ess_base_estract,MATCH($G23,ESSbase!$B$8:$B$26,0),MATCH(C$10,ESSbase!$F$6:$G$6,0))/1000-C23 -> 0
A24: Flood protection – catchment rate | B24: 0 | C24: =INDEX('Comparison - TA'!$B$32:$L$51,MATCH(G24,'Comparison - TA'!$A$32:$A$51,0),MATCH(H24,'Comparison - TA'!$B$31:$L$31,0))/1000 -> 8386.090465 | D24: 8386.090465 | G24: Flood protection – catchment rate | H24: Region wide | J24: =INDEX(ess_base_estract,MATCH($G24,ESSbase!$B$8:$B$26,0),MATCH(B$10,ESSbase!$F$6:$G$6,0))/1000-B24 -> 5826.660417 | K24: =INDEX(ess_base_estract,MATCH($G24,ESSbase!$B$8:$B$26,0),MATCH(C$10,ESSbase!$F$6:$G$6,0))/1000-C24 -> 0
A25: River management rate | B25: 5826.660417 | D25: -5826.660417 | E25: -1 | G25: River management rate | H25: Region wide
A26: Public transport rate | B26: =INDEX('Comparison - TA'!$B$7:$L$26,MATCH(G26,'Comparison - TA'!$A$7:$A$26,0),MATCH(H26,'Comparison - TA'!$B$6:$L$6,0))/1000 -> 64656.39613 | C26: =INDEX('Comparison - TA'!$B$32:$L$51,MATCH(G26,'Comparison - TA'!$A$32:$A$51,0),MATCH(H26,'Comparison - TA'!$B$31:$L$31,0))/1000 -> 67273.0104 | D26: 2616.614275 | E26: 0.0405 | G26: Public transport rate | H26: Region wide | J26: =INDEX(ess_base_estract,MATCH($G26,ESSbase!$B$8:$B$26,0),MATCH(B$10,ESSbase!$F$6:$G$6,0))/1000-B26 -> 0 | K26: =INDEX(ess_base_estract,MATCH($G26,ESSbase!$B$8:$B$26,0),MATCH(C$10,ESSbase!$F$6:$G$6,0))/1000-C26 -> 0
A27: Stadium purposes rate | B27: =INDEX('Comparison - TA'!$B$7:$L$26,MATCH(G27,'Comparison - TA'!$A$7:$A$26,0),MATCH(H27,'Comparison - TA'!$B$6:$L$6,0))/1000 -> 978.09135 | C27: =INDEX('Comparison - TA'!$B$32:$L$51,MATCH(G27,'Comparison - TA'!$A$32:$A$51,0),MATCH(H27,'Comparison - TA'!$B$31:$L$31,0))/1000 -> 0 | D27: -978.09135 | E27: -1 | G27: Stadium purposes rate | H27: Region wide | J27: =INDEX(ess_base_estract,MATCH($G27,ESSbase!$B$8:$B$26,0),MATCH(B$10,ESSbase!$F$6:$G$6,0))/1000-B27 -> 0 | K27: =INDEX(ess_base_estract,MATCH($G27,ESSbase!$B$8:$B$26,0),MATCH(C$10,ESSbase!$F$6:$G$6,0))/1000-C27 -> 0
